{"text_format":"1","workbook":"xlsx","n_sheets":27,"sheets":["1,1","1,2","1,3","1,4","2","3","4","5.1","5.2","5.3","5.4","6","7","8","9","10","11.1","11.2","11.3","12","13","14","15","16","17","18","19"],"not_rendered":{"charts":0,"images":0,"macros":1,"external_links":0,"defined_names":49,"comments":0,"pivot_tables":0},"unopened":[],"bounds":{"document_bytes":16777216,"sheet_cells":100000,"rows_first":2000,"rows_last":500,"rows_between":2000,"halvings":0,"cell_chars":16384,"cell_head_chars":4096},"cells_cut":0,"cells_raw":0,"read":"whole","date_system":"1900"}

{"sheet":"1,1","index":0,"n_rows":38,"n_cols":31,"rows_kept":38,"cut":false,"hidden":false,"merged":[[12,0,12,30],[16,3,16,4],[16,5,16,6],[16,13,16,14],[16,23,16,24],[16,27,16,28],[16,29,16,30],[14,1,17,1],[14,2,17,2],[14,3,14,30],[15,3,15,6],[15,7,15,10],[15,11,15,14],[15,15,15,18],[15,19,15,22],[13,0,13,30],[4,0,4,30],[11,0,11,30],[1,10,1,11],[3,0,3,30],[6,0,6,30],[7,0,7,30],[9,0,9,30],[15,27,15,30],[14,0,17,0],[16,25,16,26],[16,11,16,12],[16,19,16,20],[16,21,16,22],[16,9,16,10],[16,15,16,16],[16,7,16,8],[16,17,16,18],[15,23,15,26]]}
[null,null,null,null,null,null,null,null,null,null,null,null,null,null,null,null,null,null,null,null,null,null,null,null,null,null,"Приложение  № 1"]
[null,null,null,null,null,null,null,null,null,null,null,null,null,null,null,null,null,null,null,null,null,null,null,null,null,null,"к приказу Минэнерго России"]
[null,null,null,null,null,null,null,null,null,null,null,null,null,null,null,null,null,null,null,null,null,null,null,null,null,null,"от «__» _____ 2016 г. №___"]
["Форма 1. Перечни инвестиционных проектов"]
[" на год 2021"]
[]
["Инвестиционная программа АО \"ВЭС\""]
[" полное наименование субъекта электроэнергетики"]
[]
["Год раскрытия информации: 2020 год"]
[]
["Утвержденные плановые значения показателей приведены в соответствии с  ______________________________________________________________________________"]
["                                                                                                              реквизиты решения органа исполнительной власти, утвердившего инвестиционную программу"]
[]
["Номер группы инвести-ционных проектов","  Наименование инвестиционного проекта (группы инвестиционных проектов)","Идентифика-тор инвестицион-ного проекта","Цели реализации инвестиционных проектов и плановые (фактические) значения количественных показателей, характеризующие достижение таких целей"]
[null,null,null,"Развитие электрической сети/усиление существующей электрической сети, связанное с подключением новых потребителей",null,null,null,"Замещение (обновление) электрической сети/повышение экономической эффективности (мероприятия направленные на снижение эксплуатационных затрат) оказания услуг в сфере электроэнергетики",null,null,null,"Повышение надежности оказываемых услуг в сфере электроэнергетики ",null,null,null,"Повышение качества оказываемых услуг в сфере электроэнергетики ",null,null,null,"Выполнение требований законодательства Российской Федерации, предписаний органов исполнительной власти, регламентов рынков электрической энергии",null,null,null,"Обеспечение текущей деятельности в сфере электроэнергетики, в том числе развитие информационной инфраструктуры, хозяйственное обеспечение деятельности",null,null,null,"Инвестиции, связанные с деятельностью, не относящейся к сфере электроэнергетики"]
[null,null,null,"Показатель увеличения мощности силовых трансформаторов на подстанциях",null,"Показатель строительства линий электропередач",null,"Показатель замены силовых трансформаторов",null,"Показатель замены линий электропередач",null,"Показатель замены силовых трансформаторов",null,"Показатель замены линий электропередач",null,"Наименование количественного показателя, соответствующего цели",null,"Наименование количественного показателя, соответствующего цели",null,"Наименование количественного показателя, соответствующего цели",null,"Наименование количественного показателя, соответствующего цели",null,"Показатель объема финансовых потребностей",null,"Наименование количественного показателя, соответствующего цели",null,"Показатель объема финансовых потребностей",null,"Наименование количественного показателя, соответствующего цели"]
[null,null,null,"План","факт","План","факт","План","факт","План","факт","План","факт","План","факт","План","факт","План","факт","План","факт","План","факт","План","факт","План","факт","План","факт","План","факт"]
[1,2,3,"4.1","4.2","4.3","4.4","5.1","5.2","5.3","5.4","6.1","6.2","6.3","6.4","7.1","7.2","7.3","7.4","8.1","8.2","8.3","8.4","9.1","9.2","9.3","9.4","10.1","10.2","10.3","10.4"]
["0","ВСЕГО по инвестиционной программе, в том числе:"]
["0.2","Реконструкция, модернизация, техническое перевооружение, всего"]
["0.3","Инвестиционные проекты, реализация которых обуславливается схемами и программами перспективного развития электроэнергетики, всего"]
["0.6","Прочие инвестиционные проекты, всего"]
["1","Свердловская область"]
["1.2","Реконструкция, модернизация, техническое перевооружение всего, в том числе:"]
["1.2.1","Реконструкция, модернизация, техническое перевооружение  трансформаторных и иных подстанций, распределительных пунктов, всего, в том числе:"]
["1.2.1.1","Реконструкция трансформаторных и иных подстанций, всего, в том числе:"]
["1.2.1.1","Реконструкция ТП-7011, ТП-1072, ТП-1017, ТП-1078, г. Верхняя Салда",null,null,null,null,null,"1,6 МВА"]
["1.2.1.2","Модернизация, техническое перевооружение трансформаторных и иных подстанций, распределительных пунктов, всего, в том числе:"]
["1.2.2","Реконструкция, модернизация, техническое перевооружение линий электропередачи, всего, в том числе:"]
["1.2.2.1","Реконструкция линий электропередачи, всего, в том числе:"]
["1.2.2.1","Реконструкция ВЛ-6 кВ ПС Басьяновка, г. Верхняя Салда"]
["1.2.3","Развитие и модернизация учета электрической энергии (мощности), всего, в том числе:"]
["1.2.3.1","«Установка приборов учета, класс напряжения 0,22 (0,4) кВ, всего, в том числе:»"]
["1.2.3.1","Развитие системы АИИСКУЭ в сетях 0,4 кВ, г. Верхняя Салда"]
["1.6","Прочие инвестиционные проекты, всего, в том числе:"]
["1.6","Развитие системы АИИСКУЭ в сетях 6/10 кВ, г. Верхняя Салда",null,null,null,null,null,null,null,null,null,null,null,null,null,null,null,null,null,null,null,null,null,"2396,29 тыс.руб."]
["1.6","Установка реклоузеров, г. Верхняя Салда",null,null,null,null,null,null,null,null,null,null,null,null,null,null,null,null,null,null,null,null,null,"1842,576 тыс.руб."]

{"sheet":"1,2","index":1,"n_rows":37,"n_cols":45,"rows_kept":37,"cut":false,"hidden":false,"merged":[[15,23,15,26],[15,27,15,30],[14,3,14,30],[15,3,15,6],[15,7,15,10],[15,11,15,14],[15,15,15,18],[15,19,15,22],[16,15,16,16],[16,17,16,18],[16,19,16,20],[16,21,16,22],[16,23,16,24],[9,0,9,44],[11,0,11,44],[12,0,12,44],[13,0,13,44],[14,0,17,0],[14,1,17,1],[14,2,17,2],[16,3,16,4],[16,5,16,6],[16,7,16,8],[16,9,16,10],[16,11,16,12],[16,25,16,26],[16,27,16,28],[16,29,16,30],[16,13,16,14],[7,0,7,44],[1,10,1,11],[1,12,1,13],[3,0,3,44],[4,0,4,44],[6,0,6,44]]}
[null,null,null,null,null,null,null,null,null,null,null,null,null,null,null,null,null,null,null,null,null,null,null,null,null,null,null,null,null,null,null,null,null,null,null,null,null,null,null,null,null,null,null,null,"Приложение  № 1"]
[null,null,null,null,null,null,null,null,null,null,null,null,null,null,null,null,null,null,null,null,null,null,null,null,null,null,null,null,null,null,null,null,null,null,null,null,null,null,null,null,null,null,null,null,"к приказу Минэнерго России"]
[null,null,null,null,null,null,null,null,null,null,null,null,null,null,null,null,null,null,null,null,null,null,null,null,null,null,null,null,null,null,null,null,null,null,null,null,null,null,null,null,null,null,null,null,"от «__» _____ 2016 г. №___"]
["Форма 1. Перечни инвестиционных проектов"]
[" на год 2022"]
[]
["Инвестиционная программа АО \"ВЭС\""]
[" полное наименование субъекта электроэнергетики"]
[]
["Год раскрытия информации: 2020 год"]
[]
["Утвержденные плановые значения показателей приведены в соответствии с  ______________________________________________________________________________"]
["                                                                                                              реквизиты решения органа исполнительной власти, утвердившего инвестиционную программу"]
[]
["Номер группы инвести-ционных проектов","  Наименование инвестиционного проекта (группы инвестиционных проектов)","Идентифика-тор инвестицион-ного проекта","Цели реализации инвестиционных проектов и плановые (фактические) значения количественных показателей, характеризующие достижение таких целей"]
[null,null,null,"Развитие электрической сети/усиление существующей электрической сети, связанное с подключением новых потребителей",null,null,null,"Замещение (обновление) электрической сети/повышение экономической эффективности (мероприятия направленные на снижение эксплуатационных затрат) оказания услуг в сфере электроэнергетики",null,null,null,"Повышение надежности оказываемых услуг в сфере электроэнергетики ",null,null,null,"Повышение качества оказываемых услуг в сфере электроэнергетики ",null,null,null,"Выполнение требований законодательства Российской Федерации, предписаний органов исполнительной власти, регламентов рынков электрической энергии",null,null,null,"Обеспечение текущей деятельности в сфере электроэнергетики, в том числе развитие информационной инфраструктуры, хозяйственное обеспечение деятельности",null,null,null,"Инвестиции, связанные с деятельностью, не относящейся к сфере электроэнергетики"]
[null,null,null,"Показатель увеличения мощности силовых трансформаторов на подстанциях",null,"Показатель строительства линий электропередач",null,"Показатель замены силовых трансформаторов",null,"Показатель замены линий электропередач",null,"Показатель замены силовых трансформаторов",null,"Показатель замены линий электропередач",null,"Наименование количественного показателя, соответствующего цели",null,"Наименование количественного показателя, соответствующего цели",null,"Наименование количественного показателя, соответствующего цели",null,"Наименование количественного показателя, соответствующего цели",null,"Показатель объема финансовых потребностей",null,"Наименование количественного показателя, соответствующего цели",null,"Показатель объема финансовых потребностей",null,"Наименование количественного показателя, соответствующего цели"]
[null,null,null,"План","факт","План","факт","План","факт","План","факт","План","факт","План","факт","План","факт","План","факт","План","факт","План","факт","План","факт","План","факт","План","факт","План","факт"]
[1,2,3,"4.1","4.2","4.3","4.4","5.1","5.2","5.3","5.4","6.1","6.2","6.3","6.4","7.1","7.2","7.3","7.4","8.1","8.2","8.3","8.4","9.1","9.2","9.3","9.4","10.1","10.2","10.3","10.4"]
["0","ВСЕГО по инвестиционной программе, в том числе:"]
["0.2","Реконструкция, модернизация, техническое перевооружение, всего"]
["0.3","Инвестиционные проекты, реализация которых обуславливается схемами и программами перспективного развития электроэнергетики, всего"]
["0.6","Прочие инвестиционные проекты, всего"]
["1","Свердловская область"]
["1.2","Реконструкция, модернизация, техническое перевооружение всего, в том числе:"]
["1.2.1","Реконструкция, модернизация, техническое перевооружение  трансформаторных и иных подстанций, распределительных пунктов, всего, в том числе:"]
["1.2.1.1","Реконструкция трансформаторных и иных подстанций, всего, в том числе:"]
["1.2.1.2","Модернизация, техническое перевооружение трансформаторных и иных подстанций, распределительных пунктов, всего, в том числе:"]
["1.2.2","Реконструкция, модернизация, техническое перевооружение линий электропередачи, всего, в том числе:"]
["1.2.2.1","Реконструкция линий электропередачи, всего, в том числе:"]
["1.2.2.1","Реконструкция ВЛ-6 кВ ПС Басьяновка, г. Верхняя Салда",null,null,null,null,null,null,null,"8 км"]
["1.2.3","Развитие и модернизация учета электрической энергии (мощности), всего, в том числе:"]
["1.2.3.1","«Установка приборов учета, класс напряжения 0,22 (0,4) кВ, всего, в том числе:»"]
["1.2.3.1","Развитие системы АИИСКУЭ в сетях 0,4 кВ, г. Верхняя Салда"]
["1.6","Прочие инвестиционные проекты, всего, в том числе:"]
["1.6","Развитие системы АИИСКУЭ в сетях 6/10 кВ, г. Верхняя Салда",null,null,null,null,null,null,null,null,null,null,null,null,null,null,null,null,null,null,null,null,null,"1198,145 тыс.руб."]
["1.6","Установка реклоузеров, г. Верхняя Салда",null,null,null,null,null,null,null,null,null,null,null,null,null,null,null,null,null,null,null,null,null,"2763,864 тыс.руб."]

{"sheet":"1,3","index":2,"n_rows":37,"n_cols":45,"rows_kept":37,"cut":false,"hidden":false,"merged":[[15,23,15,26],[15,27,15,30],[14,3,14,30],[15,3,15,6],[15,7,15,10],[15,11,15,14],[15,15,15,18],[15,19,15,22],[16,15,16,16],[16,17,16,18],[16,19,16,20],[16,21,16,22],[16,23,16,24],[9,0,9,44],[11,0,11,44],[12,0,12,44],[13,0,13,44],[14,0,17,0],[14,1,17,1],[14,2,17,2],[16,3,16,4],[16,5,16,6],[16,7,16,8],[16,9,16,10],[16,11,16,12],[16,25,16,26],[16,27,16,28],[16,29,16,30],[16,13,16,14],[7,0,7,44],[1,10,1,11],[1,12,1,13],[3,0,3,44],[4,0,4,44],[6,0,6,44]]}
[null,null,null,null,null,null,null,null,null,null,null,null,null,null,null,null,null,null,null,null,null,null,null,null,null,null,null,null,null,null,null,null,null,null,null,null,null,null,null,null,null,null,null,null,"Приложение  № 1"]
[null,null,null,null,null,null,null,null,null,null,null,null,null,null,null,null,null,null,null,null,null,null,null,null,null,null,null,null,null,null,null,null,null,null,null,null,null,null,null,null,null,null,null,null,"к приказу Минэнерго России"]
[null,null,null,null,null,null,null,null,null,null,null,null,null,null,null,null,null,null,null,null,null,null,null,null,null,null,null,null,null,null,null,null,null,null,null,null,null,null,null,null,null,null,null,null,"от «__» _____ 2016 г. №___"]
["Форма 1. Перечни инвестиционных проектов"]
[" на год 2023"]
[]
["Инвестиционная программа АО \"ВЭС\""]
[" полное наименование субъекта электроэнергетики"]
[]
["Год раскрытия информации: 2020 год"]
[]
["Утвержденные плановые значения показателей приведены в соответствии с  ______________________________________________________________________________"]
["                                                                                                              реквизиты решения органа исполнительной власти, утвердившего инвестиционную программу"]
[]
["Номер группы инвести-ционных проектов","  Наименование инвестиционного проекта (группы инвестиционных проектов)","Идентифика-тор инвестицион-ного проекта","Цели реализации инвестиционных проектов и плановые (фактические) значения количественных показателей, характеризующие достижение таких целей"]
[null,null,null,"Развитие электрической сети/усиление существующей электрической сети, связанное с подключением новых потребителей",null,null,null,"Замещение (обновление) электрической сети/повышение экономической эффективности (мероприятия направленные на снижение эксплуатационных затрат) оказания услуг в сфере электроэнергетики",null,null,null,"Повышение надежности оказываемых услуг в сфере электроэнергетики ",null,null,null,"Повышение качества оказываемых услуг в сфере электроэнергетики ",null,null,null,"Выполнение требований законодательства Российской Федерации, предписаний органов исполнительной власти, регламентов рынков электрической энергии",null,null,null,"Обеспечение текущей деятельности в сфере электроэнергетики, в том числе развитие информационной инфраструктуры, хозяйственное обеспечение деятельности",null,null,null,"Инвестиции, связанные с деятельностью, не относящейся к сфере электроэнергетики"]
[null,null,null,"Показатель увеличения мощности силовых трансформаторов на подстанциях",null,"Показатель строительства линий электропередач",null,"Показатель замены силовых трансформаторов",null,"Показатель замены линий электропередач",null,"Показатель замены силовых трансформаторов",null,"Показатель замены линий электропередач",null,"Наименование количественного показателя, соответствующего цели",null,"Наименование количественного показателя, соответствующего цели",null,"Наименование количественного показателя, соответствующего цели",null,"Наименование количественного показателя, соответствующего цели",null,"Показатель объема финансовых потребностей",null,"Наименование количественного показателя, соответствующего цели",null,"Показатель объема финансовых потребностей",null,"Наименование количественного показателя, соответствующего цели"]
[null,null,null,"План","факт","План","факт","План","факт","План","факт","План","факт","План","факт","План","факт","План","факт","План","факт","План","факт","План","факт","План","факт","План","факт","План","факт"]
[1,2,3,"4.1","4.2","4.3","4.4","5.1","5.2","5.3","5.4","6.1","6.2","6.3","6.4","7.1","7.2","7.3","7.4","8.1","8.2","8.3","8.4","9.1","9.2","9.3","9.4","10.1","10.2","10.3","10.4"]
["0","ВСЕГО по инвестиционной программе, в том числе:"]
["0.2","Реконструкция, модернизация, техническое перевооружение, всего"]
["0.3","Инвестиционные проекты, реализация которых обуславливается схемами и программами перспективного развития электроэнергетики, всего"]
["0.6","Прочие инвестиционные проекты, всего"]
["1","Свердловская область"]
["1.2","Реконструкция, модернизация, техническое перевооружение всего, в том числе:"]
["1.2.1","Реконструкция, модернизация, техническое перевооружение  трансформаторных и иных подстанций, распределительных пунктов, всего, в том числе:"]
["1.2.1.1","Реконструкция трансформаторных и иных подстанций, всего, в том числе:"]
["1.2.1.2","Модернизация, техническое перевооружение трансформаторных и иных подстанций, распределительных пунктов, всего, в том числе:"]
["1.2.2","Реконструкция, модернизация, техническое перевооружение линий электропередачи, всего, в том числе:"]
["1.2.2.1","Реконструкция линий электропередачи, всего, в том числе:"]
["1.2.3","Развитие и модернизация учета электрической энергии (мощности), всего, в том числе:"]
["1.2.3.1","«Установка приборов учета, класс напряжения 0,22 (0,4) кВ, всего, в том числе:»"]
["1.2.3.1","Развитие системы АИИСКУЭ в сетях 0,4 кВ, г. Верхняя Салда"]
["1.6","Прочие инвестиционные проекты, всего, в том числе:"]
["1.6","Развитие системы АИИСКУЭ в сетях 6/10 кВ, г. Верхняя Салда",null,null,null,null,null,null,null,null,null,null,null,null,null,null,null,null,null,null,null,null,null,"1437,774 тыс.руб."]
["1.6","Приобретение передвижной электротехнической лаборатории",null,null,null,null,null,null,null,null,null,null,null,null,null,null,null,null,null,null,null,null,null,"3982,797 тыс.руб."]
["1.6","Реконструкция кровли теплой автостоянки для строительно- эксплуатационной техники, г. Верхняя Салда ",null,null,null,null,null,null,null,null,null,null,null,null,null,null,null,null,null,null,null,null,null,"4186,220 тыс.руб."]

{"sheet":"1,4","index":3,"n_rows":37,"n_cols":45,"rows_kept":37,"cut":false,"hidden":false,"merged":[[15,23,15,26],[15,27,15,30],[14,3,14,30],[15,3,15,6],[15,7,15,10],[15,11,15,14],[15,15,15,18],[15,19,15,22],[16,15,16,16],[16,17,16,18],[16,19,16,20],[16,21,16,22],[16,23,16,24],[9,0,9,44],[11,0,11,44],[12,0,12,44],[13,0,13,44],[14,0,17,0],[14,1,17,1],[14,2,17,2],[16,3,16,4],[16,5,16,6],[16,7,16,8],[16,9,16,10],[16,11,16,12],[16,25,16,26],[16,27,16,28],[16,29,16,30],[16,13,16,14],[7,0,7,44],[1,10,1,11],[1,12,1,13],[3,0,3,44],[4,0,4,44],[6,0,6,44]]}
[null,null,null,null,null,null,null,null,null,null,null,null,null,null,null,null,null,null,null,null,null,null,null,null,null,null,null,null,null,null,null,null,null,null,null,null,null,null,null,null,null,null,null,null,"Приложение  № 1"]
[null,null,null,null,null,null,null,null,null,null,null,null,null,null,null,null,null,null,null,null,null,null,null,null,null,null,null,null,null,null,null,null,null,null,null,null,null,null,null,null,null,null,null,null,"к приказу Минэнерго России"]
[null,null,null,null,null,null,null,null,null,null,null,null,null,null,null,null,null,null,null,null,null,null,null,null,null,null,null,null,null,null,null,null,null,null,null,null,null,null,null,null,null,null,null,null,"от «__» _____ 2016 г. №___"]
["Форма 1. Перечни инвестиционных проектов"]
[" на год 2024"]
[]
["Инвестиционная программа АО \"ВЭС\""]
[" полное наименование субъекта электроэнергетики"]
[]
["Год раскрытия информации: 2020 год"]
[]
["Утвержденные плановые значения показателей приведены в соответствии с  ______________________________________________________________________________"]
["                                                                                                              реквизиты решения органа исполнительной власти, утвердившего инвестиционную программу"]
[]
["Номер группы инвести-ционных проектов","  Наименование инвестиционного проекта (группы инвестиционных проектов)","Идентифика-тор инвестицион-ного проекта","Цели реализации инвестиционных проектов и плановые (фактические) значения количественных показателей, характеризующие достижение таких целей"]
[null,null,null,"Развитие электрической сети/усиление существующей электрической сети, связанное с подключением новых потребителей",null,null,null,"Замещение (обновление) электрической сети/повышение экономической эффективности (мероприятия направленные на снижение эксплуатационных затрат) оказания услуг в сфере электроэнергетики",null,null,null,"Повышение надежности оказываемых услуг в сфере электроэнергетики ",null,null,null,"Повышение качества оказываемых услуг в сфере электроэнергетики ",null,null,null,"Выполнение требований законодательства Российской Федерации, предписаний органов исполнительной власти, регламентов рынков электрической энергии",null,null,null,"Обеспечение текущей деятельности в сфере электроэнергетики, в том числе развитие информационной инфраструктуры, хозяйственное обеспечение деятельности",null,null,null,"Инвестиции, связанные с деятельностью, не относящейся к сфере электроэнергетики"]
[null,null,null,"Показатель увеличения мощности силовых трансформаторов на подстанциях",null,"Показатель строительства линий электропередач",null,"Показатель замены силовых трансформаторов",null,"Показатель замены линий электропередач",null,"Показатель замены силовых трансформаторов",null,"Показатель замены линий электропередач",null,"Наименование количественного показателя, соответствующего цели",null,"Наименование количественного показателя, соответствующего цели",null,"Наименование количественного показателя, соответствующего цели",null,"Наименование количественного показателя, соответствующего цели",null,"Показатель объема финансовых потребностей",null,"Наименование количественного показателя, соответствующего цели",null,"Показатель объема финансовых потребностей",null,"Наименование количественного показателя, соответствующего цели"]
[null,null,null,"План","факт","План","факт","План","факт","План","факт","План","факт","План","факт","План","факт","План","факт","План","факт","План","факт","План","факт","План","факт","План","факт","План","факт"]
[1,2,3,"4.1","4.2","4.3","4.4","5.1","5.2","5.3","5.4","6.1","6.2","6.3","6.4","7.1","7.2","7.3","7.4","8.1","8.2","8.3","8.4","9.1","9.2","9.3","9.4","10.1","10.2","10.3","10.4"]
["0","ВСЕГО по инвестиционной программе, в том числе:"]
["0.2","Реконструкция, модернизация, техническое перевооружение, всего"]
["0.3","Инвестиционные проекты, реализация которых обуславливается схемами и программами перспективного развития электроэнергетики, всего"]
["0.6","Прочие инвестиционные проекты, всего"]
["1","Свердловская область"]
["1.2","Реконструкция, модернизация, техническое перевооружение всего, в том числе:"]
["1.2.1","Реконструкция, модернизация, техническое перевооружение  трансформаторных и иных подстанций, распределительных пунктов, всего, в том числе:"]
["1.2.1.1","Реконструкция трансформаторных и иных подстанций, всего, в том числе:"]
["1.2.1.1","Установка КТПн 250кВА в п. Тагильский ",null,null,null,null,null,"0,25 МВА"]
["1.2.1.1","Установка КТПн 400кВА в г. Верхняя Салда",null,null,null,null,null,"0,4 МВА"]
["1.2.1.2","Модернизация, техническое перевооружение трансформаторных и иных подстанций, распределительных пунктов, всего, в том числе:"]
["1.2.1.2","Ретрофит ячеек 6-10 кВ в РП, ТП, г. Верхняя Салда"]
["1.2.2","Реконструкция, модернизация, техническое перевооружение линий электропередачи, всего, в том числе:"]
["1.2.2.1","Реконструкция линий электропередачи, всего, в том числе:"]
["1.2.3","Развитие и модернизация учета электрической энергии (мощности), всего, в том числе:"]
["1.2.3.1","«Установка приборов учета, класс напряжения 0,22 (0,4) кВ, всего, в том числе:»"]
["1.2.3.1","Развитие системы АИИСКУЭ в сетях 6/10 кВ, г. Верхняя Салда"]
["1.6","Прочие инвестиционные проекты, всего, в том числе:"]

{"sheet":"2","index":4,"n_rows":48,"n_cols":45,"rows_kept":48,"cut":false,"hidden":false,"merged":[[13,13,14,13],[13,0,15,0],[13,10,15,10],[14,11,14,12],[13,1,15,1],[13,3,15,3],[3,0,3,18],[9,0,9,18],[10,0,10,18],[11,0,11,18],[8,0,8,18],[4,0,4,18],[5,0,5,18],[6,0,6,18],[7,0,7,18],[13,44,15,44],[13,2,15,2],[13,9,15,9],[13,4,15,4],[13,19,13,43],[14,29,14,33],[13,6,13,8],[14,6,14,8],[14,24,14,28],[14,39,14,43],[14,19,14,23],[14,34,14,38],[13,5,14,5],[13,11,13,12],[14,14,14,18],[13,14,13,18]]}
[null,null,null,null,null,null,null,null,null,null,null,null,null,null,null,null,null,null,"Приложение  № 2"]
[null,null,null,null,null,null,null,null,null,null,null,null,null,null,null,null,null,null,"к приказу Минэнерго России"]
[null,null,null,null,null,null,null,null,null,null,null,null,null,null,null,null,null,null,"от «__» _____ 2016 г. №___"]
["Форма 2. План финансирования капитальных вложений по инвестиционным проектам"]
[]
["Инвестиционная программа АО \"ВЭС\""]
["                                                         полное наименование субъекта электроэнергетики"]
[]
["Год раскрытия информации: 2020 год"]
[]
["Утвержденные плановые значения показателей приведены в соответствии с  ______________________________________________________________________________"]
["                                                                                                                                                             реквизиты решения органа исполнительной власти, утвердившего инвестиционную программу"]
[]
["Номер группы инвести-ционных проектов","  Наименование инвестиционного проекта (группы инвестиционных проектов)","Идентификатор инвестицион-ного проекта","Текущая стадия реализации инвестиционного проекта","Год начала  реализации инвестиционного проекта","Год окончания реализации инвестицион-ного проекта","Полная сметная стоимость инвестиционного проекта в соответствии с утвержденной проектной документацией",null,null,"Размер платы за технологическое присоединение (подключение), млн рублей","Фактический объем финансирования на 01.01.2020 года, млн рублей \n(с НДС) ","Оценка полной стоимости инвестиционного проекта в соответствии с укрупненными нормативами цены типовых технологических решений капитального строительства объектов электроэнергетики",null,"Оценка полной стоимости инвестиционного проекта в прогнозных ценах соответствующих лет, млн рублей (с НДС) ","Финансирование капитальных вложений 2020 года  в прогнозных ценах, млн рублей (с НДС)",null,null,null,null,"Финансирование капитальных вложений в прогнозных ценах соответствующих лет, млн рублей (с НДС)",null,null,null,null,null,null,null,null,null,null,null,null,null,null,null,null,null,null,null,null,null,null,null,null,"Краткое обоснование  корректировки утвержденного плана"]
[null,null,null,null,null,null,"План",null,null,null,null,"План",null,null,"План",null,null,null,null,"План 2021 года",null,null,null,null,"План 2022 года",null,null,null,null,"План 2023 года",null,null,null,null,"План 2024 года",null,null,null,null,"Итого план"]
[null,null,null,null,null,"План ","в базисном уровне цен, млн рублей \n(с НДС)","в ценах, сложившихся ко времени составления сметной документации, млн рублей (с НДС)","месяц и год составления сметной документации",null,null,"в текущих ценах, млн рублей (с НДС) ","в прогнозных ценах соответствующих лет, млн рублей \n(с НДС) ","План","Общий объем финансирования, в том числе за счет:","федерального бюджета","бюджетов субъектов Российской Федерации и муниципальных образований","средств, полученных от оказания услуг, реализации товаров по регулируемым государством ценам (тарифам)","иных источников финансирования","Общий объем финансирования, в том числе за счет:","федерального бюджета","бюджетов субъектов Российской Федерации и муниципальных образований","средств, полученных от оказания услуг, реализации товаров по регулируемым государством ценам (тарифам)","иных источников финансирования","Общий объем финансирования, в том числе за счет:","федерального бюджета","бюджетов субъектов Российской Федерации и муниципальных образований","средств, полученных от оказания услуг, реализации товаров по регулируемым государством ценам (тарифам)","иных источников финансирования","Общий объем финансирования, в том числе за счет:","федерального бюджета","бюджетов субъектов Российской Федерации и муниципальных образований","средств, полученных от оказания услуг, реализации товаров по регулируемым государством ценам (тарифам)","иных источников финансирования","Общий объем финансирования, в том числе за счет:","федерального бюджета","бюджетов субъектов Российской Федерации и муниципальных образований","средств, полученных от оказания услуг, реализации товаров по регулируемым государством ценам (тарифам)","иных источников финансирования","Общий объем финансирования, в том числе за счет:","федерального бюджета","бюджетов субъектов Российской Федерации и муниципальных образований","средств, полученных от оказания услуг, реализации товаров по регулируемым государством ценам (тарифам)","иных источников финансирования"]
[1,2,3,4,5,6,8,9,10,14,15,"16.1","16.2",17,22,23,24,25,26,"32.1","32.2","32.3","32.4","32.5","32.6","32.7","32.8","32.9","32.10","32.11","32.12","32.13","32.14","32.15","32.16","32.17","32.18","32.19","32.20",33,34,35,36,37,43]
["0","ВСЕГО по инвестиционной программе, в том числе:",null,null,null,null,{"$f":"G19+G20+G21","v":0},{"$f":"H19+H20+H21","v":77.137},0,0,0,0,0,0,0,0,0,{"$f":"R19+R20+R21","v":0},0,19.298999999999999,0,0,19.298999999999999,0,19.285,0,0,19.285,0,19.282,0,0,19.282,0,19.271000000000001,0,0,19.271000000000001,0,{"$f":"H18","v":77.137},0,0,{"$f":"AN18","v":77.137},0]
["0.2","Реконструкция, модернизация, техническое перевооружение, всего",null,null,null,null,{"$f":"G23","v":0},{"$f":"H23","v":55.768000000000001},0,0,0,0,0,0,0,0,0,0,0,14.212,0,0,14.212,0,14.53,0,0,14.530000000000001,0,7.7549999999999999,0,0,7.7549999999999999,0,19.271000000000001,0,0,19.271000000000001,0,{"$f":"H19","v":55.768000000000001},0,0,{"$f":"AN19","v":55.768000000000001},0]
["0.3","Инвестиционные проекты, реализация которых обуславливается схемами и программами перспективного развития электроэнергетики, всего",null,null,null,null,null,null,null,null,null,null,null,null,null,null,null,null,null,null,null,null,null,null,null,null,null,null,null,null,null,null,null,null,null,null,null,null,null,0,null,null,0]
["0.6","Прочие инвестиционные проекты, всего",null,null,null,null,{"$f":"G41","v":0},{"$f":"H41","v":21.369},0,0,0,0,0,0,0,0,0,0,0,5.0869999999999997,0,0,5.0869999999999997,0,4.7549999999999999,0,0,4.7549999999999999,0,11.526999999999999,0,0,11.526999999999999,0,0,0,0,0,0,21.369,0,0,21.369,0]
["1","Свердловская область",null,null,null,null,{"$f":"G23+G41","v":0},77.137,0,0,0,0,0,0,0,0,0,0,0,19.298999999999999,0,0,19.298999999999999,0,19.285,0,0,19.285,0,19.282,0,0,19.282,0,19.271000000000001,0,0,19.271000000000001,0,{"$f":"H22","v":77.137},0,0,{"$f":"AN22","v":77.137},0]
["1.2","Реконструкция, модернизация, техническое перевооружение всего, в том числе:",null,null,null,null,{"$f":"G24+G31+G35","v":0},55.768000000000001,0,0,0,0,0,0,0,0,0,0,0,14.212,0,0,14.212,0,14.53,0,0,14.530000000000001,0,7.7549999999999999,0,0,7.7549999999999999,0,19.271000000000001,0,0,19.271000000000001,0,{"$f":"H23","v":55.768000000000001},0,0,{"$f":"AN23","v":55.768000000000001},0]
["1.2.1","Реконструкция, модернизация, техническое перевооружение  трансформаторных и иных подстанций, распределительных пунктов, всего, в том числе:",null,null,null,null,{"$f":"G25+G29","v":0},12.191000000000001,0,0,0,0,0,0,0,0,0,0,0,2.887,0,0,2.887,0,0,0,0,0,0,0,0,0,0,0,9.3040000000000003,0,0,9.3040000000000003,0,{"$f":"H24","v":12.191000000000001},0,0,{"$f":"AN24","v":12.191000000000001},0]
["1.2.1.1","Реконструкция трансформаторных и иных подстанций, всего, в том числе:",null,null,null,null,{"$f":"SUMIF(OFFSET($A25,1,0):$A710,$A25,OFFSET(G25,1,0):G710)","v":0},{"$f":"SUMIF(OFFSET($A25,1,0):$A710,$A25,OFFSET(H25,1,0):H710)","v":4.9830000000000005},null,null,{"$f":"SUMIF(OFFSET($A25,1,0):$A710,$A25,OFFSET(K25,1,0):K710)","v":0},{"$f":"SUMIF(OFFSET($A25,1,0):$A710,$A25,OFFSET(L25,1,0):L710)","v":0},{"$f":"SUMIF(OFFSET($A25,1,0):$A710,$A25,OFFSET(M25,1,0):M710)","v":0},{"$f":"SUMIF(OFFSET($A25,1,0):$A710,$A25,OFFSET(N25,1,0):N710)","v":0},{"$f":"SUMIF(OFFSET($A25,1,0):$A710,$A25,OFFSET(O25,1,0):O710)","v":0},{"$f":"SUMIF(OFFSET($A25,1,0):$A710,$A25,OFFSET(P25,1,0):P710)","v":0},{"$f":"SUMIF(OFFSET($A25,1,0):$A710,$A25,OFFSET(Q25,1,0):Q710)","v":0},{"$f":"SUMIF(OFFSET($A25,1,0):$A710,$A25,OFFSET(R25,1,0):R710)","v":0},{"$f":"SUMIF(OFFSET($A25,1,0):$A710,$A25,OFFSET(S25,1,0):S710)","v":0},{"$f":"SUMIF(OFFSET($A25,1,0):$A710,$A25,OFFSET(T25,1,0):T710)","v":2.887},{"$f":"SUMIF(OFFSET($A25,1,0):$A710,$A25,OFFSET(U25,1,0):U710)","v":0},{"$f":"SUMIF(OFFSET($A25,1,0):$A710,$A25,OFFSET(V25,1,0):V710)","v":0},{"$f":"SUMIF(OFFSET($A25,1,0):$A710,$A25,OFFSET(W25,1,0):W710)","v":2.887},{"$f":"SUMIF(OFFSET($A25,1,0):$A710,$A25,OFFSET(X25,1,0):X710)","v":0},{"$f":"SUMIF(OFFSET($A25,1,0):$A710,$A25,OFFSET(Y25,1,0):Y710)","v":0},{"$f":"SUMIF(OFFSET($A25,1,0):$A710,$A25,OFFSET(Z25,1,0):Z710)","v":0},{"$f":"SUMIF(OFFSET($A25,1,0):$A710,$A25,OFFSET(AA25,1,0):AA710)","v":0},{"$f":"SUMIF(OFFSET($A25,1,0):$A710,$A25,OFFSET(AB25,1,0):AB710)","v":0},{"$f":"SUMIF(OFFSET($A25,1,0):$A710,$A25,OFFSET(AC25,1,0):AC710)","v":0},{"$f":"SUMIF(OFFSET($A25,1,0):$A710,$A25,OFFSET(AD25,1,0):AD710)","v":0},{"$f":"SUMIF(OFFSET($A25,1,0):$A710,$A25,OFFSET(AE25,1,0):AE710)","v":0},{"$f":"SUMIF(OFFSET($A25,1,0):$A710,$A25,OFFSET(AF25,1,0):AF710)","v":0},{"$f":"SUMIF(OFFSET($A25,1,0):$A710,$A25,OFFSET(AG25,1,0):AG710)","v":0},{"$f":"SUMIF(OFFSET($A25,1,0):$A710,$A25,OFFSET(AH25,1,0):AH710)","v":0},{"$f":"SUMIF(OFFSET($A25,1,0):$A710,$A25,OFFSET(AI25,1,0):AI710)","v":2.0960000000000001},{"$f":"SUMIF(OFFSET($A25,1,0):$A710,$A25,OFFSET(AJ25,1,0):AJ710)","v":0},{"$f":"SUMIF(OFFSET($A25,1,0):$A710,$A25,OFFSET(AK25,1,0):AK710)","v":0},{"$f":"SUMIF(OFFSET($A25,1,0):$A710,$A25,OFFSET(AL25,1,0):AL710)","v":2.0960000000000001},{"$f":"SUMIF(OFFSET($A25,1,0):$A710,$A25,OFFSET(AM25,1,0):AM710)","v":0},{"$f":"H25","v":4.9830000000000005},{"$f":"SUMIF(OFFSET($A25,1,0):$A710,$A25,OFFSET(AO25,1,0):AO710)","v":0},{"$f":"SUMIF(OFFSET($A25,1,0):$A710,$A25,OFFSET(AP25,1,0):AP710)","v":0},{"$f":"AN25","v":4.9830000000000005},{"$f":"SUMIF(OFFSET($A25,1,0):$A710,$A25,OFFSET(AR25,1,0):AR710)","v":0}]
["1.2.1.1","Реконструкция ТП-7011, ТП-1072, ТП-1017, ТП-1078, г. Верхняя Салда",null,"С",2021,2021,null,2.887,"2019-12-01",null,{"$f":"L26","v":0},null,null,null,null,null,null,null,null,2.887,null,null,2.887,null,{"$f":"SUM(Z26:AC26)","v":0},null,null,0,null,{"$f":"SUM(AE26:AH26)","v":0},null,null,0,null,{"$f":"SUM(AJ26:AM26)","v":0},null,null,0,null,{"$f":"H26","v":2.887},null,null,{"$f":"AN26","v":2.887}]
["1.2.1.1","Установка КТПн 250кВА в п. Тагильский ",null,"С",2024,2024,null,1.048,"2019-12-01",null,{"$f":"L27","v":0},null,null,null,{"$f":"SUM(P27:S27)","v":0},null,null,null,null,{"$f":"SUM(U27:X27)","v":0},null,null,0,null,{"$f":"SUM(Z27:AC27)","v":0},null,null,0,null,null,null,null,null,null,{"$f":"SUM(AJ27:AM27)","v":1.048},null,null,1.048,null,1.048,null,null,1.048]
["1.2.1.1","Установка КТПн 400кВА в г. Верхняя Салда",null,"С",2024,2024,null,1.048,"2019-12-01",null,{"$f":"L28","v":0},null,null,null,null,null,null,null,null,{"$f":"SUM(U28:X28)","v":0},null,null,0,null,{"$f":"SUM(Z28:AC28)","v":0},null,null,0,null,{"$f":"SUM(AE28:AH28)","v":0},null,null,0,null,{"$f":"SUM(AJ28:AM28)","v":1.048},null,null,1.048,null,1.048,null,null,1.048]
["1.2.1.2","Модернизация, техническое перевооружение трансформаторных и иных подстанций, распределительных пунктов, всего, в том числе:",null,null,null,null,{"$f":"SUMIF(OFFSET($A29,1,0):$A847,$A29,OFFSET(G29,1,0):G847)","v":0},{"$f":"SUMIF(OFFSET($A29,1,0):$A847,$A29,OFFSET(H29,1,0):H847)","v":7.2080000000000002},null,null,{"$f":"SUMIF(OFFSET($A29,1,0):$A847,$A29,OFFSET(K29,1,0):K847)","v":0},{"$f":"SUMIF(OFFSET($A29,1,0):$A847,$A29,OFFSET(L29,1,0):L847)","v":0},{"$f":"SUMIF(OFFSET($A29,1,0):$A847,$A29,OFFSET(M29,1,0):M847)","v":0},{"$f":"SUMIF(OFFSET($A29,1,0):$A847,$A29,OFFSET(N29,1,0):N847)","v":0},{"$f":"SUMIF(OFFSET($A29,1,0):$A847,$A29,OFFSET(O29,1,0):O847)","v":0},{"$f":"SUMIF(OFFSET($A29,1,0):$A847,$A29,OFFSET(P29,1,0):P847)","v":0},{"$f":"SUMIF(OFFSET($A29,1,0):$A847,$A29,OFFSET(Q29,1,0):Q847)","v":0},{"$f":"SUMIF(OFFSET($A29,1,0):$A847,$A29,OFFSET(R29,1,0):R847)","v":0},{"$f":"SUMIF(OFFSET($A29,1,0):$A847,$A29,OFFSET(S29,1,0):S847)","v":0},{"$f":"SUMIF(OFFSET($A29,1,0):$A847,$A29,OFFSET(T29,1,0):T847)","v":0},{"$f":"SUMIF(OFFSET($A29,1,0):$A847,$A29,OFFSET(U29,1,0):U847)","v":0},{"$f":"SUMIF(OFFSET($A29,1,0):$A847,$A29,OFFSET(V29,1,0):V847)","v":0},{"$f":"SUMIF(OFFSET($A29,1,0):$A847,$A29,OFFSET(W29,1,0):W847)","v":0},{"$f":"SUMIF(OFFSET($A29,1,0):$A847,$A29,OFFSET(X29,1,0):X847)","v":0},{"$f":"SUMIF(OFFSET($A29,1,0):$A847,$A29,OFFSET(Y29,1,0):Y847)","v":0},{"$f":"SUMIF(OFFSET($A29,1,0):$A847,$A29,OFFSET(Z29,1,0):Z847)","v":0},{"$f":"SUMIF(OFFSET($A29,1,0):$A847,$A29,OFFSET(AA29,1,0):AA847)","v":0},{"$f":"SUMIF(OFFSET($A29,1,0):$A847,$A29,OFFSET(AB29,1,0):AB847)","v":0},{"$f":"SUMIF(OFFSET($A29,1,0):$A847,$A29,OFFSET(AC29,1,0):AC847)","v":0},{"$f":"SUMIF(OFFSET($A29,1,0):$A847,$A29,OFFSET(AD29,1,0):AD847)","v":0},{"$f":"SUMIF(OFFSET($A29,1,0):$A847,$A29,OFFSET(AE29,1,0):AE847)","v":0},{"$f":"SUMIF(OFFSET($A29,1,0):$A847,$A29,OFFSET(AF29,1,0):AF847)","v":0},{"$f":"SUMIF(OFFSET($A29,1,0):$A847,$A29,OFFSET(AG29,1,0):AG847)","v":0},{"$f":"SUMIF(OFFSET($A29,1,0):$A847,$A29,OFFSET(AH29,1,0):AH847)","v":0},{"$f":"SUMIF(OFFSET($A29,1,0):$A847,$A29,OFFSET(AI29,1,0):AI847)","v":7.2080000000000002},{"$f":"SUMIF(OFFSET($A29,1,0):$A847,$A29,OFFSET(AJ29,1,0):AJ847)","v":0},{"$f":"SUMIF(OFFSET($A29,1,0):$A847,$A29,OFFSET(AK29,1,0):AK847)","v":0},{"$f":"SUMIF(OFFSET($A29,1,0):$A847,$A29,OFFSET(AL29,1,0):AL847)","v":7.2080000000000002},{"$f":"SUMIF(OFFSET($A29,1,0):$A847,$A29,OFFSET(AM29,1,0):AM847)","v":0},7.2080000000000002,{"$f":"SUMIF(OFFSET($A29,1,0):$A847,$A29,OFFSET(AO29,1,0):AO847)","v":0},{"$f":"SUMIF(OFFSET($A29,1,0):$A847,$A29,OFFSET(AP29,1,0):AP847)","v":0},{"$f":"SUMIF(OFFSET($A29,1,0):$A847,$A29,OFFSET(AQ29,1,0):AQ847)","v":7.2080000000000002}]
["1.2.1.2","Ретрофит ячеек 6-10 кВ в РП, ТП, г. Верхняя Салда",null,"С",2024,2024,0,7.2080000000000002,"2019-12-01",null,{"$f":"L30","v":0},null,0,null,null,null,null,null,null,{"$f":"SUM(U30:X30)","v":0},null,null,0,null,{"$f":"SUM(Z30:AC30)","v":0},null,null,0,null,{"$f":"SUM(AE30:AH30)","v":0},null,null,0,null,7.2080000000000002,null,null,7.2080000000000002,null,7.2080000000000002,null,null,{"$f":"AL30+AG30+AB30+W30+R30","v":7.2080000000000002}]
["1.2.2","Реконструкция, модернизация, техническое перевооружение линий электропередачи, всего, в том числе:",null,null,null,null,{"$f":"G32","v":0},{"$f":"H32","v":7.7670000000000003},0,0,0,0,0,0,0,0,0,0,0,0.99199999999999999,0,0,0.99199999999999999,0,6.7750000000000004,0,0,6.7750000000000004,0,0,0,0,0,0,0,0,0,0,0,7.7670000000000003,0,0,7.7670000000000003]
["1.2.2.1","Реконструкция линий электропередачи, всего, в том числе:",null,null,null,null,{"$f":"SUMIF(OFFSET($A32,1,0):$A872,$A32,OFFSET(G32,1,0):G872)","v":0},{"$f":"SUMIF(OFFSET($A32,1,0):$A872,$A32,OFFSET(H32,1,0):H872)","v":7.7670000000000003},null,{"$f":"SUMIF(OFFSET($A32,1,0):$A872,$A32,OFFSET(J32,1,0):J872)","v":0},{"$f":"SUMIF(OFFSET($A32,1,0):$A872,$A32,OFFSET(K32,1,0):K872)","v":0},{"$f":"SUMIF(OFFSET($A32,1,0):$A872,$A32,OFFSET(L32,1,0):L872)","v":0},{"$f":"SUMIF(OFFSET($A32,1,0):$A872,$A32,OFFSET(M32,1,0):M872)","v":0},{"$f":"SUMIF(OFFSET($A32,1,0):$A872,$A32,OFFSET(N32,1,0):N872)","v":0},{"$f":"SUMIF(OFFSET($A32,1,0):$A872,$A32,OFFSET(O32,1,0):O872)","v":0},{"$f":"SUMIF(OFFSET($A32,1,0):$A872,$A32,OFFSET(P32,1,0):P872)","v":0},{"$f":"SUMIF(OFFSET($A32,1,0):$A872,$A32,OFFSET(Q32,1,0):Q872)","v":0},{"$f":"SUMIF(OFFSET($A32,1,0):$A872,$A32,OFFSET(R32,1,0):R872)","v":0},{"$f":"SUMIF(OFFSET($A32,1,0):$A872,$A32,OFFSET(S32,1,0):S872)","v":0},{"$f":"SUMIF(OFFSET($A32,1,0):$A872,$A32,OFFSET(T32,1,0):T872)","v":0.99199999999999999},{"$f":"SUMIF(OFFSET($A32,1,0):$A872,$A32,OFFSET(U32,1,0):U872)","v":0},{"$f":"SUMIF(OFFSET($A32,1,0):$A872,$A32,OFFSET(V32,1,0):V872)","v":0},{"$f":"SUMIF(OFFSET($A32,1,0):$A872,$A32,OFFSET(W32,1,0):W872)","v":0.99199999999999999},{"$f":"SUMIF(OFFSET($A32,1,0):$A872,$A32,OFFSET(X32,1,0):X872)","v":0},{"$f":"SUMIF(OFFSET($A32,1,0):$A872,$A32,OFFSET(Y32,1,0):Y872)","v":6.7750000000000004},{"$f":"SUMIF(OFFSET($A32,1,0):$A872,$A32,OFFSET(Z32,1,0):Z872)","v":0},{"$f":"SUMIF(OFFSET($A32,1,0):$A872,$A32,OFFSET(AA32,1,0):AA872)","v":0},{"$f":"SUMIF(OFFSET($A32,1,0):$A872,$A32,OFFSET(AB32,1,0):AB872)","v":6.7750000000000004},{"$f":"SUMIF(OFFSET($A32,1,0):$A872,$A32,OFFSET(AC32,1,0):AC872)","v":0},{"$f":"SUMIF(OFFSET($A32,1,0):$A872,$A32,OFFSET(AD32,1,0):AD872)","v":0},{"$f":"SUMIF(OFFSET($A32,1,0):$A872,$A32,OFFSET(AE32,1,0):AE872)","v":0},{"$f":"SUMIF(OFFSET($A32,1,0):$A872,$A32,OFFSET(AF32,1,0):AF872)","v":0},{"$f":"SUMIF(OFFSET($A32,1,0):$A872,$A32,OFFSET(AG32,1,0):AG872)","v":0},{"$f":"SUMIF(OFFSET($A32,1,0):$A872,$A32,OFFSET(AH32,1,0):AH872)","v":0},{"$f":"SUMIF(OFFSET($A32,1,0):$A872,$A32,OFFSET(AI32,1,0):AI872)","v":0},{"$f":"SUMIF(OFFSET($A32,1,0):$A872,$A32,OFFSET(AJ32,1,0):AJ872)","v":0},{"$f":"SUMIF(OFFSET($A32,1,0):$A872,$A32,OFFSET(AK32,1,0):AK872)","v":0},{"$f":"SUMIF(OFFSET($A32,1,0):$A872,$A32,OFFSET(AL32,1,0):AL872)","v":0},{"$f":"SUMIF(OFFSET($A32,1,0):$A872,$A32,OFFSET(AM32,1,0):AM872)","v":0},7.7670000000000003,{"$f":"SUMIF(OFFSET($A32,1,0):$A872,$A32,OFFSET(AO32,1,0):AO872)","v":0},{"$f":"SUMIF(OFFSET($A32,1,0):$A872,$A32,OFFSET(AP32,1,0):AP872)","v":0},{"$f":"SUMIF(OFFSET($A32,1,0):$A872,$A32,OFFSET(AQ32,1,0):AQ872)","v":7.7670000000000003}]
["1.2.2.1","Реконструкция ВЛ-6 кВ ПС Басьяновка, г. Верхняя Салда",null,"П",2021,2021,null,0.99199999999999999,"2019-12-01",null,{"$f":"L33","v":0},null,null,null,{"$f":"SUM(P33:S33)","v":0},null,null,0,null,0.99199999999999999,null,null,0.99199999999999999,null,{"$f":"SUM(Z33:AC33)","v":0},null,null,0,null,{"$f":"SUM(AE33:AH33)","v":0},null,null,0,null,{"$f":"SUM(AJ33:AM33)","v":0},null,null,0,null,0.99199999999999999,null,null,{"$f":"AL33+AG33+AB33+W33+R33","v":0.99199999999999999}]
["1.2.2.1","Реконструкция ВЛ-6 кВ ПС Басьяновка, г. Верхняя Салда",null,"С",2022,2022,null,6.7750000000000004,"2019-12-01",null,{"$f":"L34","v":0},null,null,null,{"$f":"SUM(P34:S34)","v":0},null,null,0,null,null,null,null,null,null,{"$f":"SUM(Z34:AC34)","v":6.7750000000000004},null,null,6.7750000000000004,null,{"$f":"SUM(AE34:AH34)","v":0},null,null,0,null,{"$f":"SUM(AJ34:AM34)","v":0},null,null,0,null,6.7750000000000004,null,null,{"$f":"AL34+AG34+AB34+W34+R34","v":6.7750000000000004}]
["1.2.3","Развитие и модернизация учета электрической энергии (мощности), всего, в том числе:",null,null,null,null,null,{"$f":"H36","v":35.81},{"$f":"I36","v":0},0,0,0,0,0,0,0,0,0,0,10.333,0,0,10.333,0,7.55,0,0,7.7549999999999999,0,7.7549999999999999,0,0,7.7549999999999999,0,9.9670000000000005,0,0,9.9670000000000005,0,35.81,0,0,{"$f":"AN35","v":35.81}]
["1.2.3.1","«Установка приборов учета, класс напряжения 0,22 (0,4) кВ, всего, в том числе:»",null,null,null,null,{"$f":"SUMIF(OFFSET($A36,1,0):$A1018,$A36,OFFSET(G36,1,0):G1018)","v":0},{"$f":"SUMIF(OFFSET($A36,1,0):$A1018,$A36,OFFSET(H36,1,0):H1018)","v":35.81},null,{"$f":"SUMIF(OFFSET($A36,1,0):$A1018,$A36,OFFSET(J36,1,0):J1018)","v":0},{"$f":"SUMIF(OFFSET($A36,1,0):$A1018,$A36,OFFSET(K36,1,0):K1018)","v":0},{"$f":"SUMIF(OFFSET($A36,1,0):$A1018,$A36,OFFSET(L36,1,0):L1018)","v":0},{"$f":"SUMIF(OFFSET($A36,1,0):$A1018,$A36,OFFSET(M36,1,0):M1018)","v":0},{"$f":"SUMIF(OFFSET($A36,1,0):$A1018,$A36,OFFSET(N36,1,0):N1018)","v":0},{"$f":"SUMIF(OFFSET($A36,1,0):$A1018,$A36,OFFSET(O36,1,0):O1018)","v":0},{"$f":"SUMIF(OFFSET($A36,1,0):$A1018,$A36,OFFSET(P36,1,0):P1018)","v":0},{"$f":"SUMIF(OFFSET($A36,1,0):$A1018,$A36,OFFSET(Q36,1,0):Q1018)","v":0},{"$f":"SUMIF(OFFSET($A36,1,0):$A1018,$A36,OFFSET(R36,1,0):R1018)","v":0},{"$f":"SUMIF(OFFSET($A36,1,0):$A1018,$A36,OFFSET(S36,1,0):S1018)","v":0},{"$f":"SUMIF(OFFSET($A36,1,0):$A1018,$A36,OFFSET(T36,1,0):T1018)","v":10.333},{"$f":"SUMIF(OFFSET($A36,1,0):$A1018,$A36,OFFSET(U36,1,0):U1018)","v":0},{"$f":"SUMIF(OFFSET($A36,1,0):$A1018,$A36,OFFSET(V36,1,0):V1018)","v":0},{"$f":"SUMIF(OFFSET($A36,1,0):$A1018,$A36,OFFSET(W36,1,0):W1018)","v":10.333},{"$f":"SUMIF(OFFSET($A36,1,0):$A1018,$A36,OFFSET(X36,1,0):X1018)","v":0},{"$f":"SUMIF(OFFSET($A36,1,0):$A1018,$A36,OFFSET(Y36,1,0):Y1018)","v":7.55},{"$f":"SUMIF(OFFSET($A36,1,0):$A1018,$A36,OFFSET(Z36,1,0):Z1018)","v":0},{"$f":"SUMIF(OFFSET($A36,1,0):$A1018,$A36,OFFSET(AA36,1,0):AA1018)","v":0},{"$f":"SUMIF(OFFSET($A36,1,0):$A1018,$A36,OFFSET(AB36,1,0):AB1018)","v":7.7549999999999999},{"$f":"SUMIF(OFFSET($A36,1,0):$A1018,$A36,OFFSET(AC36,1,0):AC1018)","v":0},7.7549999999999999,{"$f":"SUMIF(OFFSET($A36,1,0):$A1018,$A36,OFFSET(AE36,1,0):AE1018)","v":0},{"$f":"SUMIF(OFFSET($A36,1,0):$A1018,$A36,OFFSET(AF36,1,0):AF1018)","v":0},{"$f":"SUMIF(OFFSET($A36,1,0):$A1018,$A36,OFFSET(AG36,1,0):AG1018)","v":7.7549999999999999},{"$f":"SUMIF(OFFSET($A36,1,0):$A1018,$A36,OFFSET(AH36,1,0):AH1018)","v":0},9.9670000000000005,{"$f":"SUMIF(OFFSET($A36,1,0):$A1018,$A36,OFFSET(AJ36,1,0):AJ1018)","v":0},{"$f":"SUMIF(OFFSET($A36,1,0):$A1018,$A36,OFFSET(AK36,1,0):AK1018)","v":0},{"$f":"SUMIF(OFFSET($A36,1,0):$A1018,$A36,OFFSET(AL36,1,0):AL1018)","v":9.9670000000000005},{"$f":"SUMIF(OFFSET($A36,1,0):$A1018,$A36,OFFSET(AM36,1,0):AM1018)","v":0},35.81,{"$f":"SUMIF(OFFSET($A36,1,0):$A1018,$A36,OFFSET(AO36,1,0):AO1018)","v":0},{"$f":"SUMIF(OFFSET($A36,1,0):$A1018,$A36,OFFSET(AP36,1,0):AP1018)","v":0},{"$f":"AN36","v":35.81}]
["1.2.3.1","Развитие системы АИИСКУЭ в сетях 0,4 кВ, г. Верхняя Салда",null,"С",2021,2021,null,10.333,"2019-12-01",null,{"$f":"L37","v":0},null,0,null,null,null,null,null,null,10.333,null,null,10.333,null,null,null,null,null,null,null,null,null,null,null,null,null,null,null,null,10.333,null,null,{"$f":"AN37","v":10.333}]
["1.2.3.1","Развитие системы АИИСКУЭ в сетях 0,4 кВ, г. Верхняя Салда",null,"С",2022,2022,null,7.7549999999999999,"2019-12-01",null,{"$f":"L38","v":0},null,0,null,{"$f":"SUM(P38:S38)","v":0},null,null,0,null,{"$f":"SUM(U38:X38)","v":0},null,null,0,null,7.55,null,null,7.7549999999999999,null,null,null,null,null,null,null,null,null,null,null,7.7549999999999999,null,null,{"$f":"AN38","v":7.7549999999999999}]
["1.2.3.1","Развитие системы АИИСКУЭ в сетях 0,4 кВ, г. Верхняя Салда",null,"С",2023,2023,null,7.7549999999999999,"2019-12-01",null,{"$f":"L39","v":0},null,0,null,{"$f":"SUM(P39:S39)","v":0},null,null,0,null,{"$f":"SUM(U39:X39)","v":0},null,null,0,null,null,null,null,null,null,7.7549999999999999,null,null,7.7549999999999999,null,null,null,null,null,null,7.7549999999999999,null,null,7.7549999999999999]
["1.2.3.1","Развитие системы АИИСКУЭ в сетях 0,4 кВ, г. Верхняя Салда",null,"С",2024,2024,0,9.9670000000000005,"2019-12-01",null,{"$f":"L40","v":0},null,0,null,{"$f":"SUM(P40:S40)","v":0},null,null,0,null,{"$f":"SUM(U40:X40)","v":0},null,null,0,null,null,null,null,null,null,null,null,null,null,null,9.9670000000000005,null,null,9.9670000000000005,null,9.9670000000000005,null,null,9.9670000000000005]
["1.6","Прочие инвестиционные проекты, всего, в том числе:",null,null,null,null,{"$f":"SUMIF(OFFSET($A41,1,0):$A1020,$A41,OFFSET(G41,1,0):G1020)","v":0},{"$f":"SUMIF(OFFSET($A41,1,0):$A1020,$A41,OFFSET(H41,1,0):H1020)","v":21.369},null,{"$f":"SUMIF(OFFSET($A41,1,0):$A1020,$A41,OFFSET(J41,1,0):J1020)","v":0},{"$f":"SUMIF(OFFSET($A41,1,0):$A1020,$A41,OFFSET(K41,1,0):K1020)","v":0},{"$f":"SUMIF(OFFSET($A41,1,0):$A1020,$A41,OFFSET(L41,1,0):L1020)","v":0},{"$f":"SUMIF(OFFSET($A41,1,0):$A1020,$A41,OFFSET(M41,1,0):M1020)","v":0},{"$f":"SUMIF(OFFSET($A41,1,0):$A1020,$A41,OFFSET(N41,1,0):N1020)","v":0},{"$f":"SUMIF(OFFSET($A41,1,0):$A1020,$A41,OFFSET(O41,1,0):O1020)","v":0},{"$f":"SUMIF(OFFSET($A41,1,0):$A1020,$A41,OFFSET(P41,1,0):P1020)","v":0},{"$f":"SUMIF(OFFSET($A41,1,0):$A1020,$A41,OFFSET(Q41,1,0):Q1020)","v":0},{"$f":"SUMIF(OFFSET($A41,1,0):$A1020,$A41,OFFSET(R41,1,0):R1020)","v":0},{"$f":"SUMIF(OFFSET($A41,1,0):$A1020,$A41,OFFSET(S41,1,0):S1020)","v":0},{"$f":"SUMIF(OFFSET($A41,1,0):$A1020,$A41,OFFSET(T41,1,0):T1020)","v":5.0869999999999997},{"$f":"SUMIF(OFFSET($A41,1,0):$A1020,$A41,OFFSET(U41,1,0):U1020)","v":0},{"$f":"SUMIF(OFFSET($A41,1,0):$A1020,$A41,OFFSET(V41,1,0):V1020)","v":0},{"$f":"SUMIF(OFFSET($A41,1,0):$A1020,$A41,OFFSET(W41,1,0):W1020)","v":5.0869999999999997},{"$f":"SUMIF(OFFSET($A41,1,0):$A1020,$A41,OFFSET(X41,1,0):X1020)","v":0},{"$f":"SUMIF(OFFSET($A41,1,0):$A1020,$A41,OFFSET(Y41,1,0):Y1020)","v":4.7549999999999999},{"$f":"SUMIF(OFFSET($A41,1,0):$A1020,$A41,OFFSET(Z41,1,0):Z1020)","v":0},{"$f":"SUMIF(OFFSET($A41,1,0):$A1020,$A41,OFFSET(AA41,1,0):AA1020)","v":0},{"$f":"SUMIF(OFFSET($A41,1,0):$A1020,$A41,OFFSET(AB41,1,0):AB1020)","v":4.7549999999999999},{"$f":"SUMIF(OFFSET($A41,1,0):$A1020,$A41,OFFSET(AC41,1,0):AC1020)","v":0},{"$f":"SUMIF(OFFSET($A41,1,0):$A1020,$A41,OFFSET(AD41,1,0):AD1020)","v":11.526999999999999},{"$f":"SUMIF(OFFSET($A41,1,0):$A1020,$A41,OFFSET(AE41,1,0):AE1020)","v":0},{"$f":"SUMIF(OFFSET($A41,1,0):$A1020,$A41,OFFSET(AF41,1,0):AF1020)","v":0},{"$f":"SUMIF(OFFSET($A41,1,0):$A1020,$A41,OFFSET(AG41,1,0):AG1020)","v":11.526999999999999},{"$f":"SUMIF(OFFSET($A41,1,0):$A1020,$A41,OFFSET(AH41,1,0):AH1020)","v":0},{"$f":"SUMIF(OFFSET($A41,1,0):$A1020,$A41,OFFSET(AI41,1,0):AI1020)","v":0},{"$f":"SUMIF(OFFSET($A41,1,0):$A1020,$A41,OFFSET(AJ41,1,0):AJ1020)","v":0},{"$f":"SUMIF(OFFSET($A41,1,0):$A1020,$A41,OFFSET(AK41,1,0):AK1020)","v":0},{"$f":"SUMIF(OFFSET($A41,1,0):$A1020,$A41,OFFSET(AL41,1,0):AL1020)","v":0},{"$f":"SUMIF(OFFSET($A41,1,0):$A1020,$A41,OFFSET(AM41,1,0):AM1020)","v":0},{"$f":"H41","v":21.369},{"$f":"SUMIF(OFFSET($A41,1,0):$A1020,$A41,OFFSET(AO41,1,0):AO1020)","v":0},{"$f":"SUMIF(OFFSET($A41,1,0):$A1020,$A41,OFFSET(AP41,1,0):AP1020)","v":0},{"$f":"SUMIF(OFFSET($A41,1,0):$A1020,$A41,OFFSET(AQ41,1,0):AQ1020)","v":21.369},{"$f":"SUMIF(OFFSET($A41,1,0):$A1020,$A41,OFFSET(AR41,1,0):AR1020)","v":0}]
["1.6","Развитие системы АИИСКУЭ в сетях 6/10 кВ, г. Верхняя Салда",null,"С",2021,2021,0,2.8759999999999999,"2019-12-01",null,{"$f":"L42","v":0},null,0,null,null,null,null,null,null,2.8759999999999999,null,null,2.8759999999999999,null,{"$f":"SUM(Z42:AC42)","v":0},null,null,0,null,{"$f":"SUM(AE42:AH42)","v":0},null,null,0,null,{"$f":"SUM(AJ42:AM42)","v":0},null,null,0,null,{"$f":"H42","v":2.8759999999999999},null,null,{"$f":"AN42","v":2.8759999999999999}]
["1.6","Развитие системы АИИСКУЭ в сетях 6/10 кВ, г. Верхняя Салда",null,"С",2022,2022,0,1.4379999999999999,"2019-12-01",null,{"$f":"L43","v":0},null,0,null,null,null,null,null,null,null,null,null,null,null,{"$f":"SUM(Z43:AC43)","v":1.4379999999999999},null,null,1.4379999999999999,null,{"$f":"SUM(AE43:AH43)","v":0},null,null,0,null,{"$f":"SUM(AJ43:AM43)","v":0},null,null,0,null,{"$f":"H43","v":1.4379999999999999},null,null,{"$f":"AN43","v":1.4379999999999999}]
["1.6","Развитие системы АИИСКУЭ в сетях 6/10 кВ, г. Верхняя Салда",null,"С",2023,2023,null,1.7250000000000001,"2019-12-01",null,null,null,null,null,null,null,null,null,null,null,null,null,null,null,null,null,null,null,null,1.7250000000000001,null,null,1.7250000000000001,null,null,null,null,null,null,1.7250000000000001,null,null,1.7250000000000001]
["1.6","Установка реклоузеров, г. Верхняя Салда",null,"С",2021,2021,null,2.2109999999999999,"2019-12-01",null,null,null,null,null,null,null,null,null,null,2.2109999999999999,null,null,2.2109999999999999,null,null,null,null,null,null,null,null,null,null,null,null,null,null,null,null,2.2109999999999999,null,null,2.2109999999999999]
["1.6","Установка реклоузеров, г. Верхняя Салда",null,"С",2022,2022,null,3.3170000000000002,"2019-12-01",null,null,null,null,null,null,null,null,null,null,null,null,null,null,null,3.3170000000000002,null,null,3.3170000000000002,null,null,null,null,null,null,null,null,null,null,null,3.3170000000000002,null,null,3.3170000000000002]
["1.6","Приобретение передвижной электротехнической лаборатории",null,"С",2023,2023,null,4.7789999999999999,"2019-12-01",null,null,null,null,null,null,null,null,null,null,null,null,null,null,null,null,null,null,null,null,4.7789999999999999,null,null,4.7789999999999999,null,null,null,null,null,null,4.7789999999999999,null,null,4.7789999999999999]
["1.6","Реконструкция кровли теплой автостоянки для строительно- эксплуатационной техники, г. Верхняя Салда ",null,"С",2023,2023,0,5.0229999999999997,"2019-12-01",null,null,null,0,null,null,null,null,null,null,null,null,null,null,null,null,null,null,null,null,5.0229999999999997,null,null,5.0229999999999997,null,null,null,null,null,null,5.0229999999999997,null,null,5.0229999999999997]

{"sheet":"3","index":5,"n_rows":48,"n_cols":32,"rows_kept":48,"cut":false,"hidden":false,"merged":[[11,0,11,31],[13,13,13,18],[13,3,15,3],[13,4,15,4],[13,5,14,5],[13,8,13,12],[13,7,15,7],[14,17,14,18],[14,15,14,16],[14,13,14,14],[14,27,14,28],[14,25,14,26],[14,23,14,24],[14,21,14,22],[3,0,3,31],[10,0,10,31],[14,30,15,30],[13,21,13,30],[14,8,14,12],[14,29,15,29],[12,0,12,30],[13,0,15,0],[13,1,15,1],[13,2,15,2],[13,19,14,20],[5,0,5,31],[6,0,6,31],[13,31,15,31],[13,6,14,6],[8,0,8,31]]}
[null,null,null,null,null,null,null,null,null,null,null,null,null,null,null,null,null,null,null,null,null,null,null,null,null,null,null,null,null,null,null,"Приложение  № 3"]
[null,null,null,null,null,null,null,null,null,null,null,null,null,null,null,null,null,null,null,null,null,null,null,null,null,null,null,null,null,null,null,"к приказу Минэнерго России"]
[null,null,null,null,null,null,null,null,null,null,null,null,null,null,null,null,null,null,null,null,null,null,null,null,null,null,null,null,null,null,null,"от «__» _____ 2016 г. №___"]
["Форма 3. План освоения капитальных вложений по инвестиционным проектам"]
[]
["Инвестиционная программа АО \"ВЭС\""]
["                                                         полное наименование субъекта электроэнергетики"]
[]
["Год раскрытия информации: 2019 год"]
[]
["Утвержденные плановые значения показателей приведены в соответствии с  ______________________________________________________________________________"]
["                                                                                                                                                              реквизиты решения органа исполнительной власти, утвердившего инвестиционную программу"]
[]
["Номер группы инвести-ционных проектов","  Наименование инвестиционного проекта (группы инвестиционных проектов)","Идентифика-тор инвестицион-ного проекта","Текущая стадия реализации инвестиционного проекта  ","Год начала  реализации инвестиционного проекта","Год окончания реализации инвестиционного проекта","Полная сметная стоимость инвестиционного проекта в соответствии с утвержденной проектной документацией в базисном уровне цен, млн рублей (без НДС)","Фактический объем финансирования на 01.01.2019 года, млн рублей ","Оценка полной стоимости в прогнозных ценах соответствующих лет, \nмлн рублей (без НДС)",null,null,null,null,"Остаток освоения капитальных вложений, \nмлн рублей (без НДС)",null,null,null,null,null,"Освоение капитальных вложений 2018 года в прогнозных ценах соответствующих лет, млн рублей (без НДС)",null,"Освоение капитальных вложений в прогнозных ценах соответствующих лет, млн рублей  (без НДС)",null,null,null,null,null,null,null,null,null,"Краткое обоснование корректировки утвержденного плана"]
[null,null,null,null,null,null,null,null,"План",null,null,null,null,"План на 01.01.2019 года ",null,"План \nна 01.01.2020 года ",null,"Предложение по корректировке утвержденного плана \nна 01.01.года X",null,null,null,"2021 год ",null,"2022 год",null,"2023 год ",null,"2024 год ",null,"Итого за период реализации инвестиционной программы, план","Итого за период реализации инвестиционной программы"]
[null,null,null,null,null,"План","План ",null,"Всего, в т.ч.:","проектно-изыскательские работы","строительные работы, реконструкция, монтаж оборудования","оборудование","прочие затраты","в базисном уровне цен","в прогнозных ценах соответствующих лет","в базисном уровне цен","в прогнозных ценах соответствующих лет","в базисном уровне цен","в прогнозных ценах соответствующих лет","План","Факт ","План","Факт ","План","Факт ","План","Факт ","План","Факт "]
[1,2,3,4,5,6,8,10,11,12,13,14,15,21,22,23,24,25,26,27,28,"29.1","29.2","29.3","29.4","29.5","29.6","29.7","29.8",30,31,32]
["0","ВСЕГО по инвестиционной программе, в том числе:",null,null,null,null,{"$f":"G19+G20+G21","v":{"$error":"#REF!"}},{"$error":"#N/A"},{"$error":"#REF!"},{"$error":"#REF!"},{"$error":"#REF!"},{"$error":"#REF!"},{"$f":"M19+M20+M21","v":0},0,0,{"$error":"#REF!"},64.281999999999996,{"$f":"R19+R20+R21","v":0},{"$f":"S19+S20+S21","v":0},{"$f":"T19+T20+T21","v":0},0,{"$f":"V19+V20+V21","v":16.907},{"$f":"W19+W20+W21","v":0},16.07,{"$f":"Y19+Y20+Y21","v":0},16.07,{"$f":"AA19+AA20+AA21","v":0},16.059000000000001,{"$f":"AC19+AC20+AC21","v":0},64.281999999999996,{"$f":"AE19+AE20+AE21","v":0}]
["0.2","Реконструкция, модернизация, техническое перевооружение, всего",null,null,null,null,{"$f":"G23","v":{"$error":"#REF!"}},{"$error":"#N/A"},{"$error":"#REF!"},{"$error":"#REF!"},{"$error":"#REF!"},{"$error":"#REF!"},{"$f":"M23","v":0},0,0,{"$error":"#REF!"},46.472000000000001,{"$f":"R23","v":0},{"$f":"S23","v":0},{"$f":"T23","v":0},0,12.669,{"$f":"W23","v":0},12.108000000000001,{"$f":"Y23","v":0},6.4630000000000001,{"$f":"AA23","v":0},{"$f":"SUM(AB20,AB32)","v":16.058999999999997},{"$f":"AC23","v":0},46.472000000000001,{"$f":"AE23","v":0}]
["0.3","Инвестиционные проекты, реализация которых обуславливается схемами и программами перспективного развития электроэнергетики, всего",null,null,null,null,null,null,null,null,null,null,null,null,null,null,null,null,null,null,null,null,null,null,null,null,null,{"$f":"SUM(AB21,AB25)","v":7.7530000000000001}]
["0.6","Прочие инвестиционные проекты, всего",null,null,null,null,{"$f":"SUMIF(OFFSET($B21,1,0):$B976,\"Прочие инвестиционные проекты, всего, в том числе:\",OFFSET(G21,1,0):G976)","v":2.7570000000000001E-2},{"$f":"SUMIF(OFFSET($B21,1,0):$B976,\"Прочие инвестиционные проекты, всего, в том числе:\",OFFSET(H21,1,0):H976)","v":{"$error":"#N/A"}},{"$f":"SUMIF(OFFSET($B21,1,0):$B976,\"Прочие инвестиционные проекты, всего, в том числе:\",OFFSET(I21,1,0):I976)","v":0.62080200000000008},{"$f":"SUMIF(OFFSET($B21,1,0):$B976,\"Прочие инвестиционные проекты, всего, в том числе:\",OFFSET(J21,1,0):J976)","v":4.6384999999999996E-2},{"$f":"SUMIF(OFFSET($B21,1,0):$B976,\"Прочие инвестиционные проекты, всего, в том числе:\",OFFSET(K21,1,0):K976)","v":0.49360000000000004},{"$f":"SUMIF(OFFSET($B21,1,0):$B976,\"Прочие инвестиционные проекты, всего, в том числе:\",OFFSET(L21,1,0):L976)","v":8.0817E-2},{"$f":"SUMIF(OFFSET($B21,1,0):$B976,\"Прочие инвестиционные проекты, всего, в том числе:\",OFFSET(M21,1,0):M976)","v":0},{"$f":"SUMIF(OFFSET($B21,1,0):$B976,\"Прочие инвестиционные проекты, всего, в том числе:\",OFFSET(N21,1,0):N976)","v":0},{"$f":"SUMIF(OFFSET($B21,1,0):$B976,\"Прочие инвестиционные проекты, всего, в том числе:\",OFFSET(O21,1,0):O976)","v":0},{"$f":"SUMIF(OFFSET($B21,1,0):$B976,\"Прочие инвестиционные проекты, всего, в том числе:\",OFFSET(P21,1,0):P976)","v":2.7570000000000001E-2},17.806999999999999,{"$f":"SUMIF(OFFSET($B21,1,0):$B976,\"Прочие инвестиционные проекты, всего, в том числе:\",OFFSET(R21,1,0):R976)","v":0},{"$f":"SUMIF(OFFSET($B21,1,0):$B976,\"Прочие инвестиционные проекты, всего, в том числе:\",OFFSET(S21,1,0):S976)","v":0},{"$f":"SUMIF(OFFSET($B21,1,0):$B976,\"Прочие инвестиционные проекты, всего, в том числе:\",OFFSET(T21,1,0):T976)","v":0},{"$f":"SUMIF(OFFSET($B21,1,0):$B976,\"Прочие инвестиционные проекты, всего, в том числе:\",OFFSET(U21,1,0):U976)","v":0},4.2380000000000004,{"$f":"SUMIF(OFFSET($B21,1,0):$B976,\"Прочие инвестиционные проекты, всего, в том числе:\",OFFSET(W21,1,0):W976)","v":0},3.9620000000000002,{"$f":"SUMIF(OFFSET($B21,1,0):$B976,\"Прочие инвестиционные проекты, всего, в том числе:\",OFFSET(Y21,1,0):Y976)","v":0},9.6069999999999993,{"$f":"SUMIF(OFFSET($B21,1,0):$B976,\"Прочие инвестиционные проекты, всего, в том числе:\",OFFSET(AA21,1,0):AA976)","v":0},{"$f":"SUM(AB24,AB23)","v":1.746},{"$f":"SUMIF(OFFSET($B21,1,0):$B976,\"Прочие инвестиционные проекты, всего, в том числе:\",OFFSET(AC21,1,0):AC976)","v":0},17.806999999999999,{"$f":"SUMIF(OFFSET($B21,1,0):$B976,\"Прочие инвестиционные проекты, всего, в том числе:\",OFFSET(AE21,1,0):AE976)","v":0}]
["1","Свердловская область",null,null,null,null,{"$f":"G23+#REF!","v":{"$error":"#REF!"}},{"$f":"H23+#REF!","v":{"$error":"#N/A"}},{"$f":"I23+#REF!","v":{"$error":"#REF!"}},{"$f":"J23+#REF!","v":{"$error":"#REF!"}},{"$f":"K23+#REF!","v":{"$error":"#REF!"}},{"$f":"L23+#REF!","v":{"$error":"#REF!"}},0,0,0,{"$f":"P23+#REF!","v":{"$error":"#REF!"}},64.281999999999996,0,0,0,0,16.907,0,16.07,0,16.07,0,0,0,64.281999999999996,0]
["1.2","Реконструкция, модернизация, техническое перевооружение всего, в том числе:",null,null,null,null,{"$f":"G24+#REF!+#REF!","v":{"$error":"#REF!"}},{"$f":"H24+#REF!+#REF!","v":{"$error":"#N/A"}},{"$f":"I24+#REF!+#REF!","v":{"$error":"#REF!"}},{"$f":"J24+#REF!+#REF!","v":{"$error":"#REF!"}},{"$f":"K24+#REF!+#REF!","v":{"$error":"#REF!"}},{"$f":"L24+#REF!+#REF!","v":{"$error":"#REF!"}},0,0,0,{"$f":"P24+#REF!+#REF!","v":{"$error":"#REF!"}},{"$f":"SUM(Q24,Q31,Q35)","v":46.472448},0,0,0,0,{"$f":"SUM(V24,V31,V35)","v":12.669},0,{"$f":"SUM(X31,X35)","v":12.108000000000001},0,6.4630000000000001,0,0.873,0,{"$f":"SUM(AD24,AD31,AD35)","v":46.472448},0]
["1.2.1","Реконструкция, модернизация, техническое перевооружение  трансформаторных и иных подстанций, распределительных пунктов, всего, в том числе:",null,null,null,null,{"$f":"G25+#REF!","v":{"$error":"#REF!"}},{"$f":"H25+#REF!","v":{"$error":"#N/A"}},{"$f":"I25+#REF!","v":{"$error":"#REF!"}},{"$f":"J25+#REF!","v":{"$error":"#REF!"}},{"$f":"K25+#REF!","v":{"$error":"#REF!"}},{"$f":"L25+#REF!","v":{"$error":"#REF!"}},0,0,0,{"$f":"P25+#REF!","v":{"$error":"#REF!"}},{"$f":"SUM(Q25,Q29)","v":10.158999999999999},0,0,0,0,{"$f":"SUM(V25,V31)","v":3.2320000000000002},0,0,0,0,0,0.873,0,{"$f":"SUM(AD25,AD29)","v":10.158999999999999},0]
["1.2.1.1","Реконструкция трансформаторных и иных подстанций, всего, в том числе:",null,null,null,null,{"$f":"SUMIF(OFFSET($A25,1,0):$A980,$A25,OFFSET(G25,1,0):G980)","v":0.36939959999999999},{"$f":"SUMIF(OFFSET($A25,1,0):$A980,$A25,OFFSET(H25,1,0):H980)","v":{"$error":"#N/A"}},{"$f":"SUMIF(OFFSET($A25,1,0):$A980,$A25,OFFSET(I25,1,0):I980)","v":4.6188133559322031},{"$f":"SUMIF(OFFSET($A25,1,0):$A980,$A25,OFFSET(J25,1,0):J980)","v":9.2769999999999991E-2},{"$f":"SUMIF(OFFSET($A25,1,0):$A980,$A25,OFFSET(K25,1,0):K980)","v":3.8767875272788035},{"$f":"SUMIF(OFFSET($A25,1,0):$A980,$A25,OFFSET(L25,1,0):L980)","v":0.64925582865340026},{"$f":"SUMIF(OFFSET($A25,1,0):$A980,$A25,OFFSET(M25,1,0):M980)","v":0},{"$f":"SUMIF(OFFSET($A25,1,0):$A980,$A25,OFFSET(N25,1,0):N980)","v":0},{"$f":"SUMIF(OFFSET($A25,1,0):$A980,$A25,OFFSET(O25,1,0):O980)","v":0},{"$f":"SUMIF(OFFSET($A25,1,0):$A980,$A25,OFFSET(P25,1,0):P980)","v":0.36939959999999999},{"$f":"SUM(Q26:Q28)","v":4.1520000000000001},{"$f":"SUMIF(OFFSET($A25,1,0):$A980,$A25,OFFSET(R25,1,0):R980)","v":0},{"$f":"SUMIF(OFFSET($A25,1,0):$A980,$A25,OFFSET(S25,1,0):S980)","v":0},{"$f":"SUMIF(OFFSET($A25,1,0):$A980,$A25,OFFSET(T25,1,0):T980)","v":0},{"$f":"SUMIF(OFFSET($A25,1,0):$A980,$A25,OFFSET(U25,1,0):U980)","v":0},2.4060000000000001,{"$f":"SUMIF(OFFSET($A25,1,0):$A980,$A25,OFFSET(W25,1,0):W980)","v":0},0,{"$f":"SUMIF(OFFSET($A25,1,0):$A980,$A25,OFFSET(Y25,1,0):Y980)","v":0},0,{"$f":"SUMIF(OFFSET($A25,1,0):$A980,$A25,OFFSET(AA25,1,0):AA980)","v":0},6.0069999999999997,{"$f":"SUMIF(OFFSET($A25,1,0):$A980,$A25,OFFSET(AC25,1,0):AC980)","v":0},{"$f":"SUM(AD26:AD28)","v":4.1520000000000001},{"$f":"SUMIF(OFFSET($A25,1,0):$A980,$A25,OFFSET(AE25,1,0):AE980)","v":0}]
["1.2.1.1","Реконструкция ТП-7011, ТП-1072, ТП-1017, ТП-1078, г. Верхняя Салда",null,"С",2021,2021,6.7463999999999996E-3,{"$f":"(VLOOKUP(C26,'2'!C:H,6,FALSE))/1000","v":{"$error":"#N/A"}},{"$f":"SUM(J26:M26)","v":1.7483869999999999},0,1.5084293406967999,0.23995765930320001,0,0,0,{"$f":"G26","v":6.7463999999999996E-3},2.4060000000000001,0,0,0,0,2.4060000000000001,0,0,0,0,0,6.0069999999999997,0,2.4060000000000001,0]
["1.2.1.1","Установка КТПн 250кВА в п. Тагильский ",null,"С",2024,2024,0.3308796,{"$f":"(VLOOKUP(C27,'2'!C:H,6,FALSE))/1000","v":{"$error":"#N/A"}},{"$f":"SUM(J27:M27)","v":2.0098843559322033},4.6384999999999996E-2,1.6623581865820034,0.30114116935020013,0,0,0,0.3308796,0.873,0,0,0,0,0,0,0,0,0,0,0,0,0.873,0]
["1.2.1.1","Установка КТПн 400кВА в г. Верхняя Салда",null,"С",2024,2024,3.1773599999999999E-2,{"$f":"(VLOOKUP(C28,'2'!C:H,6,FALSE))/1000","v":{"$error":"#N/A"}},{"$f":"SUM(J28:M28)","v":0.86054199999999992},4.6384999999999996E-2,0.70599999999999996,0.108157,0,0,0,3.1773599999999999E-2,0.873,0,0,0,0,0,0,0,0,0,0,0,0,0.873,0]
["1.2.1.2","Модернизация, техническое перевооружение трансформаторных и иных подстанций, распределительных пунктов, всего, в том числе:",null,null,null,null,2.7570000000000001E-2,{"$f":"(VLOOKUP(C29,'2'!C:H,6,FALSE))/1000","v":{"$error":"#N/A"}},0.54520199999999996,4.6384999999999996E-2,0.41799999999999998,8.0817E-2,0,0,0,2.7570000000000001E-2,6.0069999999999997,0,0,0,0,0,0,0,0,0,0,0,0,6.0069999999999997,0]
["1.2.1.2","Ретрофит ячеек 6-10 кВ в РП, ТП, г. Верхняя Салда",null,"С",2024,2024,2.7570000000000001E-2,{"$f":"(VLOOKUP(C30,'2'!C:H,6,FALSE))/1000","v":{"$error":"#N/A"}},0.62080200000000008,4.6384999999999996E-2,0.49360000000000004,8.0817E-2,0,0,0,2.7570000000000001E-2,6.0069999999999997,0,0,0,0,0,0,0,0,0,0,0,0,6.0069999999999997,0]
["1.2.2","Реконструкция, модернизация, техническое перевооружение линий электропередачи, всего, в том числе:",null,null,null,null,0,{"$f":"(VLOOKUP(C31,'2'!C:H,6,FALSE))/1000","v":{"$error":"#N/A"}},0.83779999999999999,0,0.83779999999999999,0,0,0,0,0,{"$f":"SUM(Q33:Q34)","v":6.4709999999999992},0,0,0,0,0.82599999999999996,0,5.6449999999999996,0,0,0,8.3059999999999992,0,{"$f":"SUM(AD33:AD34)","v":6.4709999999999992},0]
["1.2.2.1","Реконструкция линий электропередачи, всего, в том числе:",null,null,null,null,3.3345599999999996E-2,{"$f":"(VLOOKUP(C32,'2'!C:H,6,FALSE))/1000","v":{"$error":"#N/A"}},0.75651800000000002,3.1958E-2,0.57999999999999996,0.14455999999999999,0,0,0,3.3345599999999996E-2,6.4710000000000001,0,0,0,0,0.82599999999999996,0,5.6449999999999996,0,0,0,8.3059999999999992,0,6.4710000000000001,0]
["1.2.2.1","Реконструкция ВЛ-6 кВ ПС Басьяновка, г. Верхняя Салда",null,"П",2021,2021,2.7570000000000001E-2,{"$f":"(VLOOKUP(C33,'2'!C:H,6,FALSE))/1000","v":{"$error":"#N/A"}},0.62080200000000008,4.6384999999999996E-2,0.49360000000000004,8.0817E-2,0,0,0,2.7570000000000001E-2,0.82599999999999996,0,0,0,0,0.82599999999999996,0,0,0,0,0,0,0,0.82599999999999996,0]
["1.2.2.1","Реконструкция ВЛ-6 кВ ПС Басьяновка, г. Верхняя Салда",null,"С",2021,2021,3.1773599999999999E-2,{"$f":"(VLOOKUP(C34,'2'!C:H,6,FALSE))/1000","v":{"$error":"#N/A"}},0.86054199999999992,4.6384999999999996E-2,0.70599999999999996,0.108157,0,0,0,3.1773599999999999E-2,5.6449999999999996,0,0,0,0,0,0,5.6449999999999996,0,0,0,0,0,5.6449999999999996,0]
["1.2.3","Развитие и модернизация учета электрической энергии (мощности), всего, в том числе:",null,null,null,null,2.7570000000000001E-2,{"$f":"(VLOOKUP(C35,'2'!C:H,6,FALSE))/1000","v":{"$error":"#N/A"}},0.62080200000000008,4.6384999999999996E-2,0.49360000000000004,8.0817E-2,0,0,0,2.7570000000000001E-2,{"$f":"SUM(Q37:Q40)","v":29.842448000000001},0,0,0,0,8.6110000000000007,0,6.4630000000000001,0,6.4630000000000001,0,0,0,{"$f":"SUM(AD37:AD40)","v":29.842448000000001},0]
["1.2.3.1","«Установка приборов учета, класс напряжения 0,22 (0,4) кВ, всего, в том числе:»",null,null,null,null,2.7570000000000001E-2,{"$f":"(VLOOKUP(C36,'2'!C:H,6,FALSE))/1000","v":{"$error":"#N/A"}},0.62080200000000008,4.6384999999999996E-2,0.49360000000000004,8.0817E-2,0,0,0,2.7570000000000001E-2,{"$f":"SUM(Q37:Q40)","v":29.842448000000001},0,0,0,0,8.6110000000000007,0,6.4630000000000001,0,6.4630000000000001,0,8.3059999999999992,0,{"$f":"SUM(AD37:AD40)","v":29.842448000000001},0]
["1.2.3.1","Развитие системы АИИСКУЭ в сетях 0,4 кВ, г. Верхняя Салда",null,"С",2021,2021,2.7570000000000001E-2,{"$f":"(VLOOKUP(C37,'2'!C:H,6,FALSE))/1000","v":{"$error":"#N/A"}},0.62080200000000008,4.6384999999999996E-2,0.49360000000000004,8.0817E-2,0,0,0,2.7570000000000001E-2,8.6110000000000007,0,0,0,0,8.6110000000000007,0,0,0,0,0,0,0,8.6110000000000007,0]
["1.2.3.1","Развитие системы АИИСКУЭ в сетях 0,4 кВ, г. Верхняя Салда",null,"С",2022,2022,2.7570000000000001E-2,{"$f":"(VLOOKUP(C38,'2'!C:H,6,FALSE))/1000","v":{"$error":"#N/A"}},0.62080200000000008,4.6384999999999996E-2,0.49360000000000004,8.0817E-2,0,0,0,2.7570000000000001E-2,6.4630000000000001,0,0,0,0,0,0,6.4630000000000001,0,0,0,0,0,6.4630000000000001,0]
["1.2.3.1","Развитие системы АИИСКУЭ в сетях 0,4 кВ, г. Верхняя Салда",null,"С",2023,2023,2.7570000000000001E-2,{"$f":"(VLOOKUP(C39,'2'!C:H,6,FALSE))/1000","v":{"$error":"#N/A"}},0.62080200000000008,4.6384999999999996E-2,0.49360000000000004,8.0817E-2,0,0,0,2.7570000000000001E-2,6.4627809999999997,0,0,0,0,0,0,0,0,6.4630000000000001,0,0,0,6.4627809999999997,0]
["1.2.3.1","Развитие системы АИИСКУЭ в сетях 0,4 кВ, г. Верхняя Салда",null,"С",2024,2024,2.9629199999999998E-2,{"$f":"(VLOOKUP(C40,'2'!C:H,6,FALSE))/1000","v":{"$error":"#N/A"}},0.82162299999999999,4.6384999999999996E-2,0.67959999999999998,9.5638000000000001E-2,0,0,0,2.9629199999999998E-2,8.3056669999999997,0,0,0,0,0,0,0,0,0,0,0,0,8.3056669999999997,0]
["1.6","Прочие инвестиционные проекты, всего, в том числе:",null,null,null,null,2.7570000000000001E-2,{"$f":"(VLOOKUP(C41,'2'!C:H,6,FALSE))/1000","v":{"$error":"#N/A"}},0.62080200000000008,4.6384999999999996E-2,0.49360000000000004,8.0817E-2,0,0,0,2.7570000000000001E-2,{"$f":"SUM(Q42:Q48)","v":17.807000000000002},0,0,0,0,{"$f":"SUM(V45,V42)","v":4.2379999999999995},0,{"$f":"SUM(X46,X43)","v":3.9619999999999997},0,{"$f":"SUM(Z48,Z47,Z44)","v":9.6070000000000011},0,0,0,{"$f":"SUM(AD42:AD48)","v":17.807000000000002},0]
["1.6","Развитие системы АИИСКУЭ в сетях 6/10 кВ, г. Верхняя Салда",null,"С",2021,2021,2.9629199999999998E-2,{"$f":"(VLOOKUP(C42,'2'!C:H,6,FALSE))/1000","v":{"$error":"#N/A"}},0.82162299999999999,4.6384999999999996E-2,0.67959999999999998,9.5638000000000001E-2,0,0,0,2.9629199999999998E-2,2.3959999999999999,0,0,0,0,2.3959999999999999,0,0,0,0,0,0,0,2.3959999999999999,0]
["1.6","Развитие системы АИИСКУЭ в сетях 6/10 кВ, г. Верхняя Салда",null,"С",2022,2022,2.7570000000000001E-2,{"$f":"(VLOOKUP(C43,'2'!C:H,6,FALSE))/1000","v":{"$error":"#N/A"}},0.49600200000000005,4.6384999999999996E-2,0.36880000000000002,8.0817E-2,0,0,0,2.7570000000000001E-2,1.198,0,0,0,0,0,0,1.198,0,0,0,0,0,1.198,0]
["1.6","Развитие системы АИИСКУЭ в сетях 6/10 кВ, г. Верхняя Салда",null,"С",2023,2023,3.3345599999999996E-2,{"$f":"(VLOOKUP(C44,'2'!C:H,6,FALSE))/1000","v":{"$error":"#N/A"}},1.428318,4.6384999999999996E-2,1.2911892070893001,9.0743792910699991E-2,0,0,0,3.3345599999999996E-2,1.4379999999999999,0,0,0,0,0,0,0,0,1.4379999999999999,0,0,0,1.4379999999999999,0]
["1.6","Установка реклоузеров, г. Верхняя Салда",null,"С",2021,2021,2.7570000000000001E-2,{"$f":"(VLOOKUP(C45,'2'!C:H,6,FALSE))/1000","v":{"$error":"#N/A"}},0.49600200000000005,4.6384999999999996E-2,0.36880000000000002,8.0817E-2,0,0,0,2.7570000000000001E-2,1.8420000000000001,0,0,0,0,1.8420000000000001,0,0,0,0,0,0,0,1.8420000000000001,0]
["1.6","Установка реклоузеров, г. Верхняя Салда",null,"С",2022,2022,2.9629199999999998E-2,{"$f":"(VLOOKUP(C46,'2'!C:H,6,FALSE))/1000","v":{"$error":"#N/A"}},0.82162299999999999,4.6384999999999996E-2,0.67959999999999998,9.5638000000000001E-2,0,0,0,2.9629199999999998E-2,2.7639999999999998,0,0,0,0,0,0,2.7639999999999998,0,0,0,0,0,2.7639999999999998,0]
["1.6","Приобретение передвижной электротехнической лаборатории",null,"С",2023,2023,2.9629199999999998E-2,{"$f":"(VLOOKUP(C47,'2'!C:H,6,FALSE))/1000","v":{"$error":"#N/A"}},0.82162299999999999,4.6384999999999996E-2,0.67959999999999998,9.5638000000000001E-2,0,0,0,2.9629199999999998E-2,3.9830000000000001,0,0,0,0,0,0,0,0,3.9830000000000001,0,0,0,3.9830000000000001,0]
["1.6","Реконструкция кровли теплой автостоянки для строительно- эксплуатационной техники, г. Верхняя Салда ",null,"С",2023,2023,2.9629199999999998E-2,{"$f":"(VLOOKUP(C48,'2'!C:H,6,FALSE))/1000","v":{"$error":"#N/A"}},0.82162299999999999,4.6384999999999996E-2,0.67959999999999998,9.5638000000000001E-2,0,0,0,2.9629199999999998E-2,4.1859999999999999,0,0,0,0,0,0,0,0,4.1859999999999999,0,0,0,4.1859999999999999,0]

{"sheet":"4","index":6,"n_rows":50,"n_cols":90,"rows_kept":50,"cut":false,"hidden":false,"merged":[[14,47,14,60],[15,47,15,53],[15,54,15,60],[16,48,16,53],[16,55,16,60],[15,12,15,18],[4,0,4,32],[5,0,5,32],[6,0,6,32],[7,0,7,32],[8,0,8,32],[13,89,17,89],[15,19,15,25],[15,26,15,32],[14,19,14,32],[12,0,12,87],[13,0,17,0],[13,1,17,1],[13,2,17,2],[15,75,15,81],[16,69,16,74],[16,76,16,81],[16,83,16,88],[16,41,16,46],[16,6,16,11],[16,13,16,18],[13,5,14,18],[16,62,16,67],[16,3,17,3],[16,4,17,4],[16,20,16,25],[16,27,16,32],[16,34,16,39],[14,75,14,88],[14,61,14,74],[15,61,15,67],[14,33,14,46],[3,0,3,32],[9,0,9,32],[10,0,10,32],[11,0,11,32],[13,19,13,32],[13,33,13,88],[13,3,15,4],[15,68,15,74],[15,82,15,88],[15,33,15,39],[15,40,15,46],[15,5,15,11]]}
[null,null,null,null,null,null,null,null,null,null,null,null,null,null,null,null,null,null,null,null,null,null,null,null,null,null,null,null,null,null,null,null,"Приложение  № 4"]
[null,null,null,null,null,null,null,null,null,null,null,null,null,null,null,null,null,null,null,null,null,null,null,null,null,null,null,null,null,null,null,null,"к приказу Минэнерго России"]
[null,null,null,null,null,null,null,null,null,null,null,null,null,null,null,null,null,null,null,null,null,null,null,null,null,null,null,null,null,null,null,null,"от «__» _____ 2016 г. №___"]
["Форма 4. План ввода основных средств"]
[]
["Инвестиционная программа АО \"ВЭС\""]
["                                                         полное наименование субъекта электроэнергетики"]
[]
["Год раскрытия информации: 2020 год"]
[]
["Утвержденные плановые значения показателей приведены в соответствии с  ______________________________________________________________________________"]
["                                                                                                                                           реквизиты решения органа исполнительной власти, утвердившего инвестиционную программу"]
[]
["Номер группы инвести-ционных проектов","  Наименование инвестиционного проекта (группы инвестиционных проектов)","Идентифика-тор инвестицион-ного проекта","Первоначальная стоимость принимаемых к учету основных средств и нематериальных активов, млн рублей (без НДС)",null,"Принятие основных средств и нематериальных активов к бухгалтерскому учету в 2021 году",null,null,null,null,null,null,null,null,null,null,null,null,null,"Принятие основных средств и нематериальных активов к бухгалтерскому учету",null,null,null,null,null,null,null,null,null,null,null,null,null,"Принятие основных средств и нематериальных активов к бухгалтерскому учету",null,null,null,null,null,null,null,null,null,null,null,null,null,null,null,null,null,null,null,null,null,null,null,null,null,null,null,null,null,null,null,null,null,null,null,null,null,null,null,null,null,null,null,null,null,null,null,null,null,null,null,null,null,null,null,"Краткое обоснование  корректировки утвержденного плана"]
[null,null,null,null,null,null,null,null,null,null,null,null,null,null,null,null,null,null,null,"2022 году",null,null,null,null,null,null,null,null,null,null,null,null,null,"2023 году",null,null,null,null,null,null,null,null,null,null,null,null,null,"2024 году",null,null,null,null,null,null,null,null,null,null,null,null,null,"2024 году",null,null,null,null,null,null,null,null,null,null,null,null,null,"Итого за период реализации инвестиционной программы"]
[null,null,null,null,null,"План",null,null,null,null,null,null,"Факт",null,null,null,null,null,null,"План",null,null,null,null,null,null,"Факт",null,null,null,null,null,null,"План",null,null,null,null,null,null,"Факт",null,null,null,null,null,null,"План",null,null,null,null,null,null,"Факт",null,null,null,null,null,null,"План",null,null,null,null,null,null,"Факт",null,null,null,null,null,null,"План",null,null,null,null,null,null,"Предложение по корректировке утвержденного плана"]
[null,null,null,"План ","Предложение по корректировке утвержденного плана","нематериальные активы","основные средства",null,null,null,null,null,"нематериальные активы","основные средства",null,null,null,null,null,"нематериальные активы","основные средства",null,null,null,null,null,"нематериальные активы","основные средства",null,null,null,null,null,"нематериальные активы","основные средства",null,null,null,null,null,"нематериальные активы","основные средства",null,null,null,null,null,"нематериальные активы","основные средства",null,null,null,null,null,"нематериальные активы","основные средства",null,null,null,null,null,"нематериальные активы","основные средства",null,null,null,null,null,"нематериальные активы","основные средства",null,null,null,null,null,"нематериальные активы","основные средства",null,null,null,null,null,"нематериальные активы","основные средства"]
[null,null,null,null,null,"млн рублей (без НДС)","млн рублей (без НДС)","МВ×А","Мвар","км ЛЭП","МВт","Другое","млн рублей (без НДС)","млн рублей (без НДС)","МВ×А","Мвар","км ЛЭП","МВт","Другое","млн рублей (без НДС)","млн рублей (без НДС)","МВ×А","Мвар","км ЛЭП","МВт","Другое","млн рублей (без НДС)","млн рублей (без НДС)","МВ×А","Мвар","км ЛЭП","МВт","Другое","млн рублей (без НДС)","млн рублей (без НДС)","МВ×А","Мвар","км ЛЭП","МВт","Другое","млн рублей (без НДС)","млн рублей (без НДС)","МВ×А","Мвар","км ЛЭП","МВт","Другое","млн рублей (без НДС)","млн рублей (без НДС)","МВ×А","Мвар","км ЛЭП","МВт","Другое","млн рублей (без НДС)","млн рублей (без НДС)","МВ×А","Мвар","км ЛЭП","МВт","Другое","млн рублей (без НДС)","млн рублей (без НДС)","МВ×А","Мвар","км ЛЭП","МВт","Другое","млн рублей (без НДС)","млн рублей (без НДС)","МВ×А","Мвар","км ЛЭП","МВт",null,"млн рублей (без НДС)","млн рублей (без НДС)","МВ×А","Мвар","км ЛЭП","МВт","Другое","млн рублей (без НДС)","млн рублей (без НДС)","МВ×А","Мвар","км ЛЭП","МВт","Другое"]
[1,2,3,4,5,"6.1.1","6.1.2","6.1.3","6.1.4","6.1.5","6.1.6","6.1.7","6.2.1","6.2.2","6.2.3","6.2.4","6.2.5","6.2.6","6.2.7","7.1.1","7.1.2","7.1.3","7.1.4","7.1.5","7.1.6","7.1.7","7.2.1","7.2.2","7.2.3","7.2.4","7.2.5","7.2.6","7.2.7","7.3.1","7.3.2","7.3.3","7.3.4","7.3.5","7.3.6","7.3.7","7.4.1","7.4.2","7.4.3","7.4.4","7.4.5","7.4.6","7.4.7","7.5.1","7.5.2","7.5.3","7.5.4","7.5.5","7.5.6","7.5.7","7.6.1","7.6.2","7.6.3","7.6.4","7.6.5","7.6.6","7.6.7","7.5.1","7.5.2","7.5.3","7.5.4","7.5.5","7.5.6","7.5.7","7.6.1","7.6.2","7.6.3","7.6.4","7.6.5","7.6.6","7.6.7","8.1.1","8.1.2","8.1.3","8.1.4","8.1.5","8.1.6","8.1.7","8.2.1","8.2.2","8.2.3","8.2.4","8.2.5","8.2.6","8.2.7","9"]
["0","ВСЕГО по инвестиционной программе, в том числе:",null,64.281999999999996,0,{"$f":"F21+F22+F23","v":0},{"$f":"G21+G22+G23","v":16.081},1.6,0,0,0,410,0,0,0,0,0,0,0,0,16.07,0,0,9,0,307,0,0,0,0,0,0,{"$f":"AG24","v":0},0,16.07,0,0,0,0,304,0,0,0,0,0,0,0,0,16.058999999999997,0,0,0,0,391,0,0,0,0,0,0,0,{"$error":"#REF!"},0,{"$error":"#REF!"},{"$error":"#REF!"},0,{"$error":"#REF!"},{"$f":"BP21+BP22+BP23","v":0},{"$error":"#REF!"},{"$error":"#REF!"},{"$error":"#REF!"},{"$error":"#REF!"},{"$error":"#REF!"},{"$error":"#REF!"},{"$error":"#REF!"},{"$error":"#REF!"},64.281999999999996,2.25,0,9,0,1411,0,0,0,0,0,0,0]
["0.2","Реконструкция, модернизация, техническое перевооружение, всего",null,46.472000000000001,{"$f":"E25","v":0},0,11.843,1.6,0,0,0,396,0,0,0,0,0,0,0,0,12.108000000000001,0,0,9,0,296,0,0,0,0,0,0,{"$f":"AG25","v":0},0,6.4630000000000001,0,0,0,0,296,0,0,0,0,0,0,0,0,16.058999999999997,0,0,0,0,391,0,0,0,0,0,0,0,{"$error":"#REF!"},0,{"$error":"#REF!"},{"$error":"#REF!"},0,{"$error":"#REF!"},{"$f":"BP25","v":0},{"$error":"#REF!"},{"$error":"#REF!"},{"$error":"#REF!"},{"$error":"#REF!"},{"$error":"#REF!"},{"$error":"#REF!"},{"$error":"#REF!"},{"$error":"#REF!"},46.472000000000001,2.25,0,9,0,1378,0,0,0,0,0,0,0]
["0.3","Инвестиционные проекты, реализация которых обуславливается схемами и программами перспективного развития электроэнергетики, всего",null,null,0,null,null,null,null,null,null,null,null,null,null,null,null,null,null,null,null,null,null,null,null,null,null,null,null,null,null,null,{"$f":"AG26","v":0}]
["0.6","Прочие инвестиционные проекты, всего",null,17.806999999999999,{"$f":"SUMIF(OFFSET($B23,1,0):$B708,\"Прочие инвестиционные проекты, всего, в том числе:\",OFFSET(E23,1,0):E708)","v":0},{"$f":"SUMIF(OFFSET($B23,1,0):$B708,\"Прочие инвестиционные проекты, всего, в том числе:\",OFFSET(F23,1,0):F708)","v":0},4.2380000000000004,{"$f":"SUMIF(OFFSET($B23,1,0):$B708,\"Прочие инвестиционные проекты, всего, в том числе:\",OFFSET(H23,1,0):H708)","v":0},{"$f":"SUMIF(OFFSET($B23,1,0):$B708,\"Прочие инвестиционные проекты, всего, в том числе:\",OFFSET(I23,1,0):I708)","v":0},{"$f":"SUMIF(OFFSET($B23,1,0):$B708,\"Прочие инвестиционные проекты, всего, в том числе:\",OFFSET(J23,1,0):J708)","v":0},{"$f":"SUMIF(OFFSET($B23,1,0):$B708,\"Прочие инвестиционные проекты, всего, в том числе:\",OFFSET(K23,1,0):K708)","v":0},14,{"$f":"SUMIF(OFFSET($B23,1,0):$B708,\"Прочие инвестиционные проекты, всего, в том числе:\",OFFSET(M23,1,0):M708)","v":0},{"$f":"SUMIF(OFFSET($B23,1,0):$B708,\"Прочие инвестиционные проекты, всего, в том числе:\",OFFSET(N23,1,0):N708)","v":0},{"$f":"SUMIF(OFFSET($B23,1,0):$B708,\"Прочие инвестиционные проекты, всего, в том числе:\",OFFSET(O23,1,0):O708)","v":0},{"$f":"SUMIF(OFFSET($B23,1,0):$B708,\"Прочие инвестиционные проекты, всего, в том числе:\",OFFSET(P23,1,0):P708)","v":0},{"$f":"SUMIF(OFFSET($B23,1,0):$B708,\"Прочие инвестиционные проекты, всего, в том числе:\",OFFSET(Q23,1,0):Q708)","v":0},{"$f":"SUMIF(OFFSET($B23,1,0):$B708,\"Прочие инвестиционные проекты, всего, в том числе:\",OFFSET(R23,1,0):R708)","v":0},{"$f":"SUMIF(OFFSET($B23,1,0):$B708,\"Прочие инвестиционные проекты, всего, в том числе:\",OFFSET(S23,1,0):S708)","v":0},{"$f":"SUMIF(OFFSET($B23,1,0):$B708,\"Прочие инвестиционные проекты, всего, в том числе:\",OFFSET(T23,1,0):T708)","v":0},3.9620000000000002,{"$f":"SUMIF(OFFSET($B23,1,0):$B708,\"Прочие инвестиционные проекты, всего, в том числе:\",OFFSET(V23,1,0):V708)","v":0},{"$f":"SUMIF(OFFSET($B23,1,0):$B708,\"Прочие инвестиционные проекты, всего, в том числе:\",OFFSET(W23,1,0):W708)","v":0},{"$f":"SUMIF(OFFSET($B23,1,0):$B708,\"Прочие инвестиционные проекты, всего, в том числе:\",OFFSET(X23,1,0):X708)","v":0},{"$f":"SUMIF(OFFSET($B23,1,0):$B708,\"Прочие инвестиционные проекты, всего, в том числе:\",OFFSET(Y23,1,0):Y708)","v":0},11,{"$f":"SUMIF(OFFSET($B23,1,0):$B708,\"Прочие инвестиционные проекты, всего, в том числе:\",OFFSET(AA23,1,0):AA708)","v":0},{"$f":"SUMIF(OFFSET($B23,1,0):$B708,\"Прочие инвестиционные проекты, всего, в том числе:\",OFFSET(AB23,1,0):AB708)","v":0},{"$f":"SUMIF(OFFSET($B23,1,0):$B708,\"Прочие инвестиционные проекты, всего, в том числе:\",OFFSET(AC23,1,0):AC708)","v":0},{"$f":"SUMIF(OFFSET($B23,1,0):$B708,\"Прочие инвестиционные проекты, всего, в том числе:\",OFFSET(AD23,1,0):AD708)","v":0},{"$f":"SUMIF(OFFSET($B23,1,0):$B708,\"Прочие инвестиционные проекты, всего, в том числе:\",OFFSET(AE23,1,0):AE708)","v":0},{"$f":"SUMIF(OFFSET($B23,1,0):$B708,\"Прочие инвестиционные проекты, всего, в том числе:\",OFFSET(AF23,1,0):AF708)","v":0},{"$f":"AG27","v":0},{"$f":"SUMIF(OFFSET($B23,1,0):$B708,\"Прочие инвестиционные проекты, всего, в том числе:\",OFFSET(AH23,1,0):AH708)","v":0},9.6069999999999993,{"$f":"SUMIF(OFFSET($B23,1,0):$B708,\"Прочие инвестиционные проекты, всего, в том числе:\",OFFSET(AJ23,1,0):AJ708)","v":0},{"$f":"SUMIF(OFFSET($B23,1,0):$B708,\"Прочие инвестиционные проекты, всего, в том числе:\",OFFSET(AK23,1,0):AK708)","v":0},{"$f":"SUMIF(OFFSET($B23,1,0):$B708,\"Прочие инвестиционные проекты, всего, в том числе:\",OFFSET(AL23,1,0):AL708)","v":0},{"$f":"SUMIF(OFFSET($B23,1,0):$B708,\"Прочие инвестиционные проекты, всего, в том числе:\",OFFSET(AM23,1,0):AM708)","v":0},8,{"$f":"SUMIF(OFFSET($B23,1,0):$B708,\"Прочие инвестиционные проекты, всего, в том числе:\",OFFSET(AO23,1,0):AO708)","v":0},{"$f":"SUMIF(OFFSET($B23,1,0):$B708,\"Прочие инвестиционные проекты, всего, в том числе:\",OFFSET(AP23,1,0):AP708)","v":0},{"$f":"SUMIF(OFFSET($B23,1,0):$B708,\"Прочие инвестиционные проекты, всего, в том числе:\",OFFSET(AQ23,1,0):AQ708)","v":0},{"$f":"SUMIF(OFFSET($B23,1,0):$B708,\"Прочие инвестиционные проекты, всего, в том числе:\",OFFSET(AR23,1,0):AR708)","v":0},{"$f":"SUMIF(OFFSET($B23,1,0):$B708,\"Прочие инвестиционные проекты, всего, в том числе:\",OFFSET(AS23,1,0):AS708)","v":0},{"$f":"SUMIF(OFFSET($B23,1,0):$B708,\"Прочие инвестиционные проекты, всего, в том числе:\",OFFSET(AT23,1,0):AT708)","v":0},{"$f":"SUMIF(OFFSET($B23,1,0):$B708,\"Прочие инвестиционные проекты, всего, в том числе:\",OFFSET(AU23,1,0):AU708)","v":0},{"$f":"SUMIF(OFFSET($B23,1,0):$B708,\"Прочие инвестиционные проекты, всего, в том числе:\",OFFSET(AV23,1,0):AV708)","v":0},0,{"$f":"SUMIF(OFFSET($B23,1,0):$B708,\"Прочие инвестиционные проекты, всего, в том числе:\",OFFSET(AX23,1,0):AX708)","v":0},{"$f":"SUMIF(OFFSET($B23,1,0):$B708,\"Прочие инвестиционные проекты, всего, в том числе:\",OFFSET(AY23,1,0):AY708)","v":0},{"$f":"SUMIF(OFFSET($B23,1,0):$B708,\"Прочие инвестиционные проекты, всего, в том числе:\",OFFSET(AZ23,1,0):AZ708)","v":0},{"$f":"SUMIF(OFFSET($B23,1,0):$B708,\"Прочие инвестиционные проекты, всего, в том числе:\",OFFSET(BA23,1,0):BA708)","v":0},0,{"$f":"SUMIF(OFFSET($B23,1,0):$B708,\"Прочие инвестиционные проекты, всего, в том числе:\",OFFSET(BC23,1,0):BC708)","v":0},{"$f":"SUMIF(OFFSET($B23,1,0):$B708,\"Прочие инвестиционные проекты, всего, в том числе:\",OFFSET(BD23,1,0):BD708)","v":0},{"$f":"SUMIF(OFFSET($B23,1,0):$B708,\"Прочие инвестиционные проекты, всего, в том числе:\",OFFSET(BE23,1,0):BE708)","v":0},{"$f":"SUMIF(OFFSET($B23,1,0):$B708,\"Прочие инвестиционные проекты, всего, в том числе:\",OFFSET(BF23,1,0):BF708)","v":0},{"$f":"SUMIF(OFFSET($B23,1,0):$B708,\"Прочие инвестиционные проекты, всего, в том числе:\",OFFSET(BG23,1,0):BG708)","v":0},{"$f":"SUMIF(OFFSET($B23,1,0):$B708,\"Прочие инвестиционные проекты, всего, в том числе:\",OFFSET(BH23,1,0):BH708)","v":0},{"$f":"SUMIF(OFFSET($B23,1,0):$B708,\"Прочие инвестиционные проекты, всего, в том числе:\",OFFSET(BI23,1,0):BI708)","v":0},{"$f":"SUMIF(OFFSET($B23,1,0):$B708,\"Прочие инвестиционные проекты, всего, в том числе:\",OFFSET(BJ23,1,0):BJ708)","v":0},0,{"$f":"SUMIF(OFFSET($B23,1,0):$B708,\"Прочие инвестиционные проекты, всего, в том числе:\",OFFSET(BL23,1,0):BL708)","v":0},{"$f":"SUMIF(OFFSET($B23,1,0):$B708,\"Прочие инвестиционные проекты, всего, в том числе:\",OFFSET(BM23,1,0):BM708)","v":0},{"$f":"SUMIF(OFFSET($B23,1,0):$B708,\"Прочие инвестиционные проекты, всего, в том числе:\",OFFSET(BN23,1,0):BN708)","v":0},{"$f":"SUMIF(OFFSET($B23,1,0):$B708,\"Прочие инвестиционные проекты, всего, в том числе:\",OFFSET(BO23,1,0):BO708)","v":0},0,{"$f":"SUMIF(OFFSET($B23,1,0):$B708,\"Прочие инвестиционные проекты, всего, в том числе:\",OFFSET(BQ23,1,0):BQ708)","v":0},{"$f":"SUMIF(OFFSET($B23,1,0):$B708,\"Прочие инвестиционные проекты, всего, в том числе:\",OFFSET(BR23,1,0):BR708)","v":0},{"$f":"SUMIF(OFFSET($B23,1,0):$B708,\"Прочие инвестиционные проекты, всего, в том числе:\",OFFSET(BS23,1,0):BS708)","v":0},{"$f":"SUMIF(OFFSET($B23,1,0):$B708,\"Прочие инвестиционные проекты, всего, в том числе:\",OFFSET(BT23,1,0):BT708)","v":0},{"$f":"SUMIF(OFFSET($B23,1,0):$B708,\"Прочие инвестиционные проекты, всего, в том числе:\",OFFSET(BU23,1,0):BU708)","v":0},{"$f":"SUMIF(OFFSET($B23,1,0):$B708,\"Прочие инвестиционные проекты, всего, в том числе:\",OFFSET(BV23,1,0):BV708)","v":0},{"$f":"SUMIF(OFFSET($B23,1,0):$B708,\"Прочие инвестиционные проекты, всего, в том числе:\",OFFSET(BW23,1,0):BW708)","v":0},{"$f":"SUMIF(OFFSET($B23,1,0):$B708,\"Прочие инвестиционные проекты, всего, в том числе:\",OFFSET(BX23,1,0):BX708)","v":0},17.806999999999999,{"$f":"SUMIF(OFFSET($B23,1,0):$B708,\"Прочие инвестиционные проекты, всего, в том числе:\",OFFSET(BZ23,1,0):BZ708)","v":0},{"$f":"SUMIF(OFFSET($B23,1,0):$B708,\"Прочие инвестиционные проекты, всего, в том числе:\",OFFSET(CA23,1,0):CA708)","v":0},{"$f":"SUMIF(OFFSET($B23,1,0):$B708,\"Прочие инвестиционные проекты, всего, в том числе:\",OFFSET(CB23,1,0):CB708)","v":0},{"$f":"SUMIF(OFFSET($B23,1,0):$B708,\"Прочие инвестиционные проекты, всего, в том числе:\",OFFSET(CC23,1,0):CC708)","v":0},33,{"$f":"SUMIF(OFFSET($B23,1,0):$B708,\"Прочие инвестиционные проекты, всего, в том числе:\",OFFSET(CE23,1,0):CE708)","v":0},{"$f":"SUMIF(OFFSET($B23,1,0):$B708,\"Прочие инвестиционные проекты, всего, в том числе:\",OFFSET(CF23,1,0):CF708)","v":0},{"$f":"SUMIF(OFFSET($B23,1,0):$B708,\"Прочие инвестиционные проекты, всего, в том числе:\",OFFSET(CG23,1,0):CG708)","v":0},{"$f":"SUMIF(OFFSET($B23,1,0):$B708,\"Прочие инвестиционные проекты, всего, в том числе:\",OFFSET(CH23,1,0):CH708)","v":0},{"$f":"SUMIF(OFFSET($B23,1,0):$B708,\"Прочие инвестиционные проекты, всего, в том числе:\",OFFSET(CI23,1,0):CI708)","v":0},{"$f":"SUMIF(OFFSET($B23,1,0):$B708,\"Прочие инвестиционные проекты, всего, в том числе:\",OFFSET(CJ23,1,0):CJ708)","v":0},{"$f":"SUMIF(OFFSET($B23,1,0):$B708,\"Прочие инвестиционные проекты, всего, в том числе:\",OFFSET(CK23,1,0):CK708)","v":0}]
["1","Свердловская область",null,64.281999999999996,0,0,16.907,1.6,0,0,0,396,0,0,0,0,0,0,0,0,16.07,0,0,9,0,307,0,0,0,0,0,0,{"$f":"AG28","v":0},0,16.07,0,0,0,0,304,0,0,0,0,0,0,0,0,16.059000000000001,0,0,0,0,391,0,0,0,0,0,0,0,{"$f":"BJ25+#REF!","v":{"$error":"#REF!"}},0,{"$f":"BL25+#REF!","v":{"$error":"#REF!"}},{"$f":"BM25+#REF!","v":{"$error":"#REF!"}},0,{"$f":"BO25+#REF!","v":{"$error":"#REF!"}},0,{"$f":"BQ25+#REF!","v":{"$error":"#REF!"}},{"$f":"BR25+#REF!","v":{"$error":"#REF!"}},{"$f":"BS25+#REF!","v":{"$error":"#REF!"}},{"$f":"BT25+#REF!","v":{"$error":"#REF!"}},{"$f":"BU25+#REF!","v":{"$error":"#REF!"}},{"$f":"BV25+#REF!","v":{"$error":"#REF!"}},{"$f":"BW25+#REF!","v":{"$error":"#REF!"}},{"$f":"BX25+#REF!","v":{"$error":"#REF!"}},64.281999999999996,null,null,null,null,{"$f":"SUM(CD25,CD43)","v":1411},0,0,0,0,0,0,0]
["1.2","Реконструкция, модернизация, техническое перевооружение всего, в том числе:",null,{"$f":"SUM(D26,D33,D37)","v":46.472448},0,0,{"$f":"SUM(G26,G33,G37)","v":11.843},1.6,0,0,0,396,0,0,0,0,0,0,0,0,{"$f":"SUM(U33,U37)","v":12.108000000000001},0,0,9,0,296,0,0,0,0,0,0,{"$f":"AG29","v":0},0,6.4630000000000001,0,0,0,0,296,0,0,0,0,0,0,0,0,{"$f":"SUM(AW26,AW38)","v":16.058999999999997},0,0,0,0,{"$f":"SUM(BB26,BB31,BB37)","v":391},0,0,0,0,0,0,0,{"$f":"BJ26+#REF!+#REF!","v":{"$error":"#REF!"}},0,{"$f":"BL26+#REF!+#REF!","v":{"$error":"#REF!"}},{"$f":"BM26+#REF!+#REF!","v":{"$error":"#REF!"}},0,{"$f":"BO26+#REF!+#REF!","v":{"$error":"#REF!"}},0,{"$f":"BQ26+#REF!+#REF!","v":{"$error":"#REF!"}},{"$f":"BR26+#REF!+#REF!","v":{"$error":"#REF!"}},{"$f":"BS26+#REF!+#REF!","v":{"$error":"#REF!"}},{"$f":"BT26+#REF!+#REF!","v":{"$error":"#REF!"}},{"$f":"BU26+#REF!+#REF!","v":{"$error":"#REF!"}},{"$f":"BV26+#REF!+#REF!","v":{"$error":"#REF!"}},{"$f":"BW26+#REF!+#REF!","v":{"$error":"#REF!"}},{"$f":"BX26+#REF!+#REF!","v":{"$error":"#REF!"}},{"$f":"SUM(BY26,BY33,BY37)","v":46.472448},null,null,9,null,{"$f":"SUM(CD26,CD37)","v":1378},0,0,0,0,0,0,0]
["1.2.1","Реконструкция, модернизация, техническое перевооружение  трансформаторных и иных подстанций, распределительных пунктов, всего, в том числе:",null,{"$f":"SUM(D27,D31)","v":10.158999999999999},0,0,2.4060000000000001,1.6,0,0,0,396,0,0,0,0,0,0,0,0,0,0,0,0,0,0,0,0,0,0,0,0,{"$f":"AG30","v":0},0,0,0,0,0,0,0,0,0,0,0,0,0,0,0,{"$f":"SUM(AW27,AW31)","v":7.7530000000000001},0.65,0,0,0,0,0,0,0,0,0,0,0,{"$f":"BJ27+#REF!","v":{"$error":"#REF!"}},0,{"$f":"BL27+#REF!","v":{"$error":"#REF!"}},{"$f":"BM27+#REF!","v":{"$error":"#REF!"}},{"$f":"BN27+#REF!","v":{"$error":"#REF!"}},{"$f":"BO27+#REF!","v":{"$error":"#REF!"}},0,{"$f":"BQ27+#REF!","v":{"$error":"#REF!"}},{"$f":"BR27+#REF!","v":{"$error":"#REF!"}},{"$f":"BS27+#REF!","v":{"$error":"#REF!"}},{"$f":"BT27+#REF!","v":{"$error":"#REF!"}},{"$f":"BU27+#REF!","v":{"$error":"#REF!"}},{"$f":"BV27+#REF!","v":{"$error":"#REF!"}},{"$f":"BW27+#REF!","v":{"$error":"#REF!"}},{"$f":"BX27+#REF!","v":{"$error":"#REF!"}},{"$f":"SUM(BY27,BY31)","v":10.158999999999999},null,null,null,null,11,0,0,0,0,0,0,0]
["1.2.1.1","Реконструкция трансформаторных и иных подстанций, всего, в том числе:",null,{"$f":"SUM(D28:D30)","v":4.1520000000000001},{"$f":"SUMIF(OFFSET($A27,1,0):$A712,$A27,OFFSET(E27,1,0):E712)","v":0},{"$f":"SUMIF(OFFSET($A27,1,0):$A712,$A27,OFFSET(F27,1,0):F712)","v":0},2.4060000000000001,1.6,{"$f":"SUMIF(OFFSET($A27,1,0):$A712,$A27,OFFSET(I27,1,0):I712)","v":0},{"$f":"SUMIF(OFFSET($A27,1,0):$A712,$A27,OFFSET(J27,1,0):J712)","v":0},{"$f":"SUMIF(OFFSET($A27,1,0):$A712,$A27,OFFSET(K27,1,0):K712)","v":0},0,{"$f":"SUMIF(OFFSET($A27,1,0):$A712,$A27,OFFSET(M27,1,0):M712)","v":0},{"$f":"SUMIF(OFFSET($A27,1,0):$A712,$A27,OFFSET(N27,1,0):N712)","v":0},{"$f":"SUMIF(OFFSET($A27,1,0):$A712,$A27,OFFSET(O27,1,0):O712)","v":0},{"$f":"SUMIF(OFFSET($A27,1,0):$A712,$A27,OFFSET(P27,1,0):P712)","v":0},{"$f":"SUMIF(OFFSET($A27,1,0):$A712,$A27,OFFSET(Q27,1,0):Q712)","v":0},{"$f":"SUMIF(OFFSET($A27,1,0):$A712,$A27,OFFSET(R27,1,0):R712)","v":0},{"$f":"SUMIF(OFFSET($A27,1,0):$A712,$A27,OFFSET(S27,1,0):S712)","v":0},{"$f":"SUMIF(OFFSET($A27,1,0):$A712,$A27,OFFSET(T27,1,0):T712)","v":0},0,0,{"$f":"SUMIF(OFFSET($A27,1,0):$A712,$A27,OFFSET(W27,1,0):W712)","v":0},{"$f":"SUMIF(OFFSET($A27,1,0):$A712,$A27,OFFSET(X27,1,0):X712)","v":0},{"$f":"SUMIF(OFFSET($A27,1,0):$A712,$A27,OFFSET(Y27,1,0):Y712)","v":0},0,{"$f":"SUMIF(OFFSET($A27,1,0):$A712,$A27,OFFSET(AA27,1,0):AA712)","v":0},{"$f":"SUMIF(OFFSET($A27,1,0):$A712,$A27,OFFSET(AB27,1,0):AB712)","v":0},{"$f":"SUMIF(OFFSET($A27,1,0):$A712,$A27,OFFSET(AC27,1,0):AC712)","v":0},{"$f":"SUMIF(OFFSET($A27,1,0):$A712,$A27,OFFSET(AD27,1,0):AD712)","v":0},{"$f":"SUMIF(OFFSET($A27,1,0):$A712,$A27,OFFSET(AE27,1,0):AE712)","v":0},{"$f":"SUMIF(OFFSET($A27,1,0):$A712,$A27,OFFSET(AF27,1,0):AF712)","v":0},{"$f":"AG31","v":0},{"$f":"SUMIF(OFFSET($A27,1,0):$A712,$A27,OFFSET(AH27,1,0):AH712)","v":0},0,0,{"$f":"SUMIF(OFFSET($A27,1,0):$A712,$A27,OFFSET(AK27,1,0):AK712)","v":0},{"$f":"SUMIF(OFFSET($A27,1,0):$A712,$A27,OFFSET(AL27,1,0):AL712)","v":0},{"$f":"SUMIF(OFFSET($A27,1,0):$A712,$A27,OFFSET(AM27,1,0):AM712)","v":0},0,{"$f":"SUMIF(OFFSET($A27,1,0):$A712,$A27,OFFSET(AO27,1,0):AO712)","v":0},{"$f":"SUMIF(OFFSET($A27,1,0):$A712,$A27,OFFSET(AP27,1,0):AP712)","v":0},{"$f":"SUMIF(OFFSET($A27,1,0):$A712,$A27,OFFSET(AQ27,1,0):AQ712)","v":0},{"$f":"SUMIF(OFFSET($A27,1,0):$A712,$A27,OFFSET(AR27,1,0):AR712)","v":0},{"$f":"SUMIF(OFFSET($A27,1,0):$A712,$A27,OFFSET(AS27,1,0):AS712)","v":0},{"$f":"SUMIF(OFFSET($A27,1,0):$A712,$A27,OFFSET(AT27,1,0):AT712)","v":0},{"$f":"SUMIF(OFFSET($A27,1,0):$A712,$A27,OFFSET(AU27,1,0):AU712)","v":0},{"$f":"SUMIF(OFFSET($A27,1,0):$A712,$A27,OFFSET(AV27,1,0):AV712)","v":0},{"$f":"SUM(AW30,AW29)","v":1.746},0.65,{"$f":"SUMIF(OFFSET($A27,1,0):$A712,$A27,OFFSET(AY27,1,0):AY712)","v":0},{"$f":"SUMIF(OFFSET($A27,1,0):$A712,$A27,OFFSET(AZ27,1,0):AZ712)","v":0},{"$f":"SUMIF(OFFSET($A27,1,0):$A712,$A27,OFFSET(BA27,1,0):BA712)","v":0},0,{"$f":"SUMIF(OFFSET($A27,1,0):$A712,$A27,OFFSET(BC27,1,0):BC712)","v":0},{"$f":"SUMIF(OFFSET($A27,1,0):$A712,$A27,OFFSET(BD27,1,0):BD712)","v":0},{"$f":"SUMIF(OFFSET($A27,1,0):$A712,$A27,OFFSET(BE27,1,0):BE712)","v":0},{"$f":"SUMIF(OFFSET($A27,1,0):$A712,$A27,OFFSET(BF27,1,0):BF712)","v":0},{"$f":"SUMIF(OFFSET($A27,1,0):$A712,$A27,OFFSET(BG27,1,0):BG712)","v":0},{"$f":"SUMIF(OFFSET($A27,1,0):$A712,$A27,OFFSET(BH27,1,0):BH712)","v":0},{"$f":"SUMIF(OFFSET($A27,1,0):$A712,$A27,OFFSET(BI27,1,0):BI712)","v":0},{"$f":"SUMIF(OFFSET($A27,1,0):$A712,$A27,OFFSET(BJ27,1,0):BJ712)","v":0},0,0,{"$f":"SUMIF(OFFSET($A27,1,0):$A712,$A27,OFFSET(BM27,1,0):BM712)","v":0},{"$f":"SUMIF(OFFSET($A27,1,0):$A712,$A27,OFFSET(BN27,1,0):BN712)","v":0},{"$f":"SUMIF(OFFSET($A27,1,0):$A712,$A27,OFFSET(BO27,1,0):BO712)","v":0},0,{"$f":"SUMIF(OFFSET($A27,1,0):$A712,$A27,OFFSET(BQ27,1,0):BQ712)","v":0},{"$f":"SUMIF(OFFSET($A27,1,0):$A712,$A27,OFFSET(BR27,1,0):BR712)","v":0},{"$f":"SUMIF(OFFSET($A27,1,0):$A712,$A27,OFFSET(BS27,1,0):BS712)","v":0},{"$f":"SUMIF(OFFSET($A27,1,0):$A712,$A27,OFFSET(BT27,1,0):BT712)","v":0},{"$f":"SUMIF(OFFSET($A27,1,0):$A712,$A27,OFFSET(BU27,1,0):BU712)","v":0},{"$f":"SUMIF(OFFSET($A27,1,0):$A712,$A27,OFFSET(BV27,1,0):BV712)","v":0},{"$f":"SUMIF(OFFSET($A27,1,0):$A712,$A27,OFFSET(BW27,1,0):BW712)","v":0},{"$f":"SUMIF(OFFSET($A27,1,0):$A712,$A27,OFFSET(BX27,1,0):BX712)","v":0},{"$f":"SUM(BY28:BY30)","v":4.1520000000000001},2.25,{"$f":"SUMIF(OFFSET($A27,1,0):$A712,$A27,OFFSET(CA27,1,0):CA712)","v":0},{"$f":"SUMIF(OFFSET($A27,1,0):$A712,$A27,OFFSET(CB27,1,0):CB712)","v":0},{"$f":"SUMIF(OFFSET($A27,1,0):$A712,$A27,OFFSET(CC27,1,0):CC712)","v":0},11,{"$f":"SUMIF(OFFSET($A27,1,0):$A712,$A27,OFFSET(CE27,1,0):CE712)","v":0},{"$f":"SUMIF(OFFSET($A27,1,0):$A712,$A27,OFFSET(CF27,1,0):CF712)","v":0},{"$f":"SUMIF(OFFSET($A27,1,0):$A712,$A27,OFFSET(CG27,1,0):CG712)","v":0},{"$f":"SUMIF(OFFSET($A27,1,0):$A712,$A27,OFFSET(CH27,1,0):CH712)","v":0},{"$f":"SUMIF(OFFSET($A27,1,0):$A712,$A27,OFFSET(CI27,1,0):CI712)","v":0},{"$f":"SUMIF(OFFSET($A27,1,0):$A712,$A27,OFFSET(CJ27,1,0):CJ712)","v":0},{"$f":"SUMIF(OFFSET($A27,1,0):$A712,$A27,OFFSET(CK27,1,0):CK712)","v":0}]
["1.2.1.1","Реконструкция ТП-7011, ТП-1072, ТП-1017, ТП-1078, г. Верхняя Салда",null,2.4060000000000001,{"$f":"SUMIF(OFFSET($A28,1,0):$A713,$A28,OFFSET(E28,1,0):E713)","v":0},{"$f":"SUMIF(OFFSET($A28,1,0):$A713,$A28,OFFSET(F28,1,0):F713)","v":0},2.4060000000000001,1.6,null,0,null,0,null,null,null,null,null,null,null,null,0,0,null,0,null,0,null,null,null,null,null,null,null,null,0,0,null,0,null,0,null,null,null,null,null,null,null,null,0,0,null,0,null,0,null,null,null,null,null,null,null,null,0,0,null,0,null,0,null,null,null,null,null,null,null,{"$f":"SUM(F28,T28,AH28,AV28,BJ28)","v":0},2.4060000000000001,{"$f":"SUM(H28,V28,AJ28,AX28,BL28)","v":1.6},{"$f":"SUM(I28,W28,AK28,AY28,BM28)","v":0},{"$f":"SUM(J28,X28,AL28,AZ28,BN28)","v":0},{"$f":"SUM(K28,Y28,AM28,BA28,BO28)","v":0},{"$f":"SUM(L28,Z28,AN28,BB28,BP28)","v":0}]
["1.2.1.1","Установка КТПн 250кВА в п. Тагильский ",null,0.873,{"$f":"SUMIF(OFFSET($A29,1,0):$A714,$A29,OFFSET(E29,1,0):E714)","v":0},{"$f":"SUMIF(OFFSET($A29,1,0):$A714,$A29,OFFSET(F29,1,0):F714)","v":0},0,0,null,0,null,0,null,null,null,null,null,null,null,null,0,0,null,0,null,0,null,null,null,null,null,null,null,null,0,0,null,0,null,0,null,null,null,null,null,null,null,null,0.873,0.25,null,0,0,0,null,null,null,null,null,null,null,null,null,0,null,0,null,0,null,null,null,null,null,null,null,0,0.873,0.25,0,0,0,0]
["1.2.1.1","Установка КТПн 400кВА в г. Верхняя Салда",null,0.873,{"$f":"SUMIF(OFFSET($A30,1,0):$A715,$A30,OFFSET(E30,1,0):E715)","v":0},{"$f":"SUMIF(OFFSET($A30,1,0):$A715,$A30,OFFSET(F30,1,0):F715)","v":0},0,0,null,0,null,0,null,null,null,null,null,null,null,null,0,0,null,0,null,0,null,null,null,null,null,null,null,null,0,0,null,0,null,0,null,null,null,null,null,null,null,null,0.873,0.4,null,0,0,0,null,null,null,null,null,null,null,null,null,0,null,0,null,0,null,null,null,null,null,null,null,0,0.873,0.4,0,0,0,0]
["1.2.1.2","Модернизация, техническое перевооружение трансформаторных и иных подстанций, распределительных пунктов, всего, в том числе:",null,6.0069999999999997,{"$f":"SUMIF(OFFSET($A31,1,0):$A716,$A31,OFFSET(E31,1,0):E716)","v":0},{"$f":"SUMIF(OFFSET($A31,1,0):$A716,$A31,OFFSET(F31,1,0):F716)","v":0},0,0,null,0,null,0,null,null,null,null,null,null,null,null,0,0,null,0,null,0,null,null,null,null,null,null,null,null,0,0,null,0,null,0,null,null,null,null,null,null,null,null,6.0069999999999997,0,null,0,null,11,null,null,null,null,null,null,null,null,0,0,null,0,null,0,null,null,null,null,null,null,null,0,6.0069999999999997,0,0,0,0,11]
["1.2.1.2","Ретрофит ячеек 6-10 кВ в РП, ТП, г. Верхняя Салда",null,6.0069999999999997,{"$f":"SUMIF(OFFSET($A32,1,0):$A717,$A32,OFFSET(E32,1,0):E717)","v":0},{"$f":"SUMIF(OFFSET($A32,1,0):$A717,$A32,OFFSET(F32,1,0):F717)","v":0},0,0,null,0,null,0,null,null,null,null,null,null,null,null,0,0,null,0,null,0,null,null,null,null,null,null,null,null,0,0,null,0,null,0,null,null,null,null,null,null,null,null,6.0069999999999997,0,null,0,null,11,null,null,null,null,null,null,null,null,0,0,null,0,null,0,null,null,null,null,null,null,null,0,6.0069999999999997,0,0,0,0,11]
["1.2.2","Реконструкция, модернизация, техническое перевооружение линий электропередачи, всего, в том числе:",null,{"$f":"SUM(D35:D36)","v":6.4709999999999992},{"$f":"SUMIF(OFFSET($A33,1,0):$A718,$A33,OFFSET(E33,1,0):E718)","v":0},{"$f":"SUMIF(OFFSET($A33,1,0):$A718,$A33,OFFSET(F33,1,0):F718)","v":0},0.82599999999999996,0,null,0,null,0,null,null,null,null,null,null,null,null,5.6449999999999996,0,null,0,null,0,null,null,null,null,null,null,null,null,0,0,null,0,null,0,null,null,null,null,null,null,null,null,0,0,null,0,null,0,null,null,null,null,null,null,null,null,0,0,null,0,null,0,null,null,null,null,null,null,null,0,{"$f":"SUM(BY35:BY36)","v":6.4709999999999992},0,0,0,0,1]
["1.2.2.1","Реконструкция линий электропередачи, всего, в том числе:",null,6.4710000000000001,{"$f":"SUMIF(OFFSET($A34,1,0):$A719,$A34,OFFSET(E34,1,0):E719)","v":0},{"$f":"SUMIF(OFFSET($A34,1,0):$A719,$A34,OFFSET(F34,1,0):F719)","v":0},0.82599999999999996,0,null,0,null,0,null,null,null,null,null,null,null,null,5.6449999999999996,0,null,0,null,0,null,null,null,null,null,null,null,null,0,0,null,0,null,0,null,null,null,null,null,null,null,null,0,0,null,0,null,0,null,null,null,null,null,null,null,null,0,0,null,0,null,0,null,null,null,null,null,null,null,0,6.4710000000000001,0,0,0,0,1]
["1.2.2.1","Реконструкция ВЛ-6 кВ ПС Басьяновка, г. Верхняя Салда",null,0.82599999999999996,{"$f":"SUMIF(OFFSET($A35,1,0):$A720,$A35,OFFSET(E35,1,0):E720)","v":0},{"$f":"SUMIF(OFFSET($A35,1,0):$A720,$A35,OFFSET(F35,1,0):F720)","v":0},0.82599999999999996,0,null,0,null,1,null,null,null,null,null,null,null,null,0,0,null,0,null,0,null,null,null,null,null,null,null,null,0,0,null,0,null,0,null,null,null,null,null,null,null,null,0,0,null,0,null,0,null,null,null,null,null,null,null,null,0,0,null,0,null,0,null,null,null,null,null,null,null,0,0.82599999999999996,0,0,0,0,1]
["1.2.2.1","Реконструкция ВЛ-6 кВ ПС Басьяновка, г. Верхняя Салда",null,5.6449999999999996,{"$f":"SUMIF(OFFSET($A36,1,0):$A721,$A36,OFFSET(E36,1,0):E721)","v":0},{"$f":"SUMIF(OFFSET($A36,1,0):$A721,$A36,OFFSET(F36,1,0):F721)","v":0},0,0,null,0,null,0,null,null,null,null,null,null,null,null,5.6449999999999996,0,null,9,null,0,null,null,null,null,null,null,null,null,0,0,null,0,null,0,null,null,null,null,null,null,null,null,0,0,null,0,null,0,null,null,null,null,null,null,null,null,0,0,null,0,null,0,null,null,null,null,null,null,null,0,5.6449999999999996,0,0,9,0,0]
["1.2.3","Развитие и модернизация учета электрической энергии (мощности), всего, в том числе:",null,{"$f":"SUM(D39:D42)","v":29.842448000000001},{"$f":"SUMIF(OFFSET($A37,1,0):$A722,$A37,OFFSET(E37,1,0):E722)","v":0},{"$f":"SUMIF(OFFSET($A37,1,0):$A722,$A37,OFFSET(F37,1,0):F722)","v":0},8.6110000000000007,0,null,0,null,0,null,null,null,null,null,null,null,null,6.4630000000000001,0,null,0,null,0,null,null,null,null,null,null,null,null,6.4630000000000001,0,null,0,null,0,null,null,null,null,null,null,null,null,8.3059999999999992,0,null,0,null,380,null,null,null,null,null,null,null,null,0,0,null,0,null,0,null,null,null,null,null,null,null,0,{"$f":"SUM(BY39:BY42)","v":29.842448000000001},0,0,0,0,{"$f":"SUM(CD42,CD41,CD40,CD39)","v":1367}]
["1.2.3.1","«Установка приборов учета, класс напряжения 0,22 (0,4) кВ, всего, в том числе:»",null,{"$f":"SUM(D39:D42)","v":29.842448000000001},{"$f":"SUMIF(OFFSET($A38,1,0):$A723,$A38,OFFSET(E38,1,0):E723)","v":0},{"$f":"SUMIF(OFFSET($A38,1,0):$A723,$A38,OFFSET(F38,1,0):F723)","v":0},8.6110000000000007,0,null,0,null,0,null,null,null,null,null,null,null,null,6.4630000000000001,0,null,0,null,0,null,null,null,null,null,null,null,null,6.4630000000000001,0,null,0,null,0,null,null,null,null,null,null,null,null,8.3059999999999992,0,null,0,null,380,null,null,null,null,null,null,null,null,0,0,null,0,null,0,null,null,null,null,null,null,null,0,{"$f":"SUM(BY39:BY42)","v":29.842448000000001},0,0,0,0,1367]
["1.2.3.1","Развитие системы АИИСКУЭ в сетях 0,4 кВ, г. Верхняя Салда",null,8.6110000000000007,{"$f":"SUMIF(OFFSET($A39,1,0):$A724,$A39,OFFSET(E39,1,0):E724)","v":0},{"$f":"SUMIF(OFFSET($A39,1,0):$A724,$A39,OFFSET(F39,1,0):F724)","v":0},8.6110000000000007,0,null,0,null,395,null,null,null,null,null,null,null,null,0,0,null,0,null,0,null,null,null,null,null,null,null,null,0,0,null,0,null,null,null,null,null,null,null,null,null,null,0,0,null,0,null,0,null,null,null,null,null,null,null,null,0,0,null,0,null,0,null,null,null,null,null,null,null,0,8.6110000000000007,0,0,0,0,395]
["1.2.3.1","Развитие системы АИИСКУЭ в сетях 0,4 кВ, г. Верхняя Салда",null,6.4630000000000001,{"$f":"SUMIF(OFFSET($A40,1,0):$A725,$A40,OFFSET(E40,1,0):E725)","v":0},{"$f":"SUMIF(OFFSET($A40,1,0):$A725,$A40,OFFSET(F40,1,0):F725)","v":0},0,0,null,0,null,0,null,null,null,null,null,null,null,null,6.4630000000000001,0,null,0,null,296,null,null,null,null,null,null,null,null,0,0,null,0,null,0,null,null,null,null,null,null,null,null,0,0,null,0,null,0,null,null,null,null,null,null,null,null,0,0,null,0,null,0,null,null,null,null,null,null,null,0,6.4630000000000001,0,0,0,0,296]
["1.2.3.1","Развитие системы АИИСКУЭ в сетях 0,4 кВ, г. Верхняя Салда",null,6.4627809999999997,{"$f":"SUMIF(OFFSET($A41,1,0):$A726,$A41,OFFSET(E41,1,0):E726)","v":0},{"$f":"SUMIF(OFFSET($A41,1,0):$A726,$A41,OFFSET(F41,1,0):F726)","v":0},0,0,null,0,null,0,null,null,null,null,null,null,null,null,0,0,null,0,null,0,null,null,null,null,null,null,null,null,6.4630000000000001,0,null,0,null,296,null,null,null,null,null,null,null,null,0,0,null,0,null,0,null,null,null,null,null,null,null,null,0,0,null,0,null,0,null,null,null,null,null,null,null,0,6.4627809999999997,0,0,0,0,296]
["1.2.3.1","Развитие системы АИИСКУЭ в сетях 0,4 кВ, г. Верхняя Салда",null,8.3056669999999997,{"$f":"SUMIF(OFFSET($A42,1,0):$A727,$A42,OFFSET(E42,1,0):E727)","v":0},{"$f":"SUMIF(OFFSET($A42,1,0):$A727,$A42,OFFSET(F42,1,0):F727)","v":0},0,0,null,0,null,0,null,null,null,null,null,null,null,null,0,0,null,0,null,0,null,null,null,null,null,null,null,null,0,0,null,0,null,0,null,null,null,null,null,null,null,null,8.3059999999999992,0,null,0,null,380,null,null,null,null,null,null,null,null,0,0,null,0,null,0,null,null,null,null,null,null,null,0,8.3056669999999997,0,0,0,0,380]
["1.6","Прочие инвестиционные проекты, всего, в том числе:",null,{"$f":"SUM(D44:D50)","v":17.807000000000002},{"$f":"SUMIF(OFFSET($A43,1,0):$A728,$A43,OFFSET(E43,1,0):E728)","v":0},{"$f":"SUMIF(OFFSET($A43,1,0):$A728,$A43,OFFSET(F43,1,0):F728)","v":0},{"$f":"SUM(G47,G44)","v":4.2379999999999995},0,null,0,null,0,null,null,null,null,null,null,null,null,{"$f":"SUM(U48,U45)","v":3.9619999999999997},0,null,0,null,0,null,null,null,null,null,null,null,null,{"$f":"SUM(AI50,AI49,AI46)","v":9.6070000000000011},0,null,0,null,0,null,null,null,null,null,null,null,null,0,0,null,0,null,0,null,null,null,null,null,null,null,null,0,0,null,0,null,0,null,null,null,null,null,null,null,0,{"$f":"SUM(BY44:BY50)","v":17.807000000000002},0,0,0,0,{"$f":"SUM(CD45,CD44,CD46,CD47,CD48,CD50,CD49)","v":33}]
["1.6","Развитие системы АИИСКУЭ в сетях 6/10 кВ, г. Верхняя Салда",null,2.3959999999999999,{"$f":"SUMIF(OFFSET($A44,1,0):$A729,$A44,OFFSET(E44,1,0):E729)","v":0},{"$f":"SUMIF(OFFSET($A44,1,0):$A729,$A44,OFFSET(F44,1,0):F729)","v":0},2.3959999999999999,0,null,0,null,10,null,null,null,null,null,null,null,null,0,0,null,0,null,0,null,null,null,null,null,null,null,null,0,0,null,0,null,0,null,null,null,null,null,null,null,null,0,0,null,0,null,0,null,null,null,null,null,null,null,null,0,0,null,0,null,0,null,null,null,null,null,null,null,0,2.3959999999999999,0,0,0,0,10]
["1.6","Развитие системы АИИСКУЭ в сетях 6/10 кВ, г. Верхняя Салда",null,1.198,{"$f":"SUMIF(OFFSET($A45,1,0):$A730,$A45,OFFSET(E45,1,0):E730)","v":0},{"$f":"SUMIF(OFFSET($A45,1,0):$A730,$A45,OFFSET(F45,1,0):F730)","v":0},0,0,null,0,null,0,null,null,null,null,null,null,null,null,1.198,0,null,0,null,5,null,null,null,null,null,null,null,null,0,0,null,0,null,0,null,null,null,null,null,null,null,null,0,0,null,0,null,0,null,null,null,null,null,null,null,null,0,0,null,0,null,0,null,null,null,null,null,null,null,0,1.198,0,0,0,0,5]
["1.6","Развитие системы АИИСКУЭ в сетях 6/10 кВ, г. Верхняя Салда",null,1.4379999999999999,{"$f":"SUMIF(OFFSET($A46,1,0):$A731,$A46,OFFSET(E46,1,0):E731)","v":0},{"$f":"SUMIF(OFFSET($A46,1,0):$A731,$A46,OFFSET(F46,1,0):F731)","v":0},0,0,null,0,null,0,null,null,null,null,null,null,null,null,0,0,null,0,null,0,null,null,null,null,null,null,null,null,1.4379999999999999,0,null,0,null,6,null,null,null,null,null,null,null,null,0,0,null,0,null,0,null,null,null,null,null,null,null,null,0,0,null,0,null,0,null,null,null,null,null,null,null,0,1.4379999999999999,0,0,0,0,6]
["1.6","Установка реклоузеров, г. Верхняя Салда",null,1.8420000000000001,{"$f":"SUMIF(OFFSET($A47,1,0):$A732,$A47,OFFSET(E47,1,0):E732)","v":0},{"$f":"SUMIF(OFFSET($A47,1,0):$A732,$A47,OFFSET(F47,1,0):F732)","v":0},1.8420000000000001,0,null,0,null,4,null,null,null,null,null,null,null,null,0,0,null,0,null,0,null,null,null,null,null,null,null,null,0,0,null,0,null,0,null,null,null,null,null,null,null,null,0,0,null,0,null,0,null,null,null,null,null,null,null,null,0,0,null,0,null,0,null,null,null,null,null,null,null,0,1.8420000000000001,0,0,0,0,4]
["1.6","Установка реклоузеров, г. Верхняя Салда",null,2.7639999999999998,{"$f":"SUMIF(OFFSET($A48,1,0):$A733,$A48,OFFSET(E48,1,0):E733)","v":0},{"$f":"SUMIF(OFFSET($A48,1,0):$A733,$A48,OFFSET(F48,1,0):F733)","v":0},0,0,null,0,null,0,null,null,null,null,null,null,null,null,2.7639999999999998,0,null,0,null,6,null,null,null,null,null,null,null,null,0,0,null,0,null,0,null,null,null,null,null,null,null,null,0,0,null,0,null,0,null,null,null,null,null,null,null,null,0,0,null,0,null,0,null,null,null,null,null,null,null,0,2.7639999999999998,0,0,0,0,6]
["1.6","Приобретение передвижной электротехнической лаборатории",null,3.9830000000000001,{"$f":"SUMIF(OFFSET($A49,1,0):$A734,$A49,OFFSET(E49,1,0):E734)","v":0},{"$f":"SUMIF(OFFSET($A49,1,0):$A734,$A49,OFFSET(F49,1,0):F734)","v":0},0,0,null,0,null,0,null,null,null,null,null,null,null,null,0,0,null,0,null,0,null,null,null,null,null,null,null,null,3.9830000000000001,0,null,0,null,1,null,null,null,null,null,null,null,null,0,0,null,0,null,0,null,null,null,null,null,null,null,null,0,0,null,0,null,0,null,null,null,null,null,null,null,0,3.9830000000000001,0,0,0,0,1]
["1.6","Реконструкция кровли теплой автостоянки для строительно- эксплуатационной техники, г. Верхняя Салда ",null,4.1859999999999999,{"$f":"SUMIF(OFFSET($A50,1,0):$A735,$A50,OFFSET(E50,1,0):E735)","v":0},{"$f":"SUMIF(OFFSET($A50,1,0):$A735,$A50,OFFSET(F50,1,0):F735)","v":0},0,0,null,0,null,0,null,null,null,null,null,null,null,null,0,0,null,0,null,0,null,null,null,null,null,null,null,null,4.1859999999999999,0,null,0,null,1,null,null,null,null,null,null,null,null,0,0,null,0,null,0,null,null,null,null,null,null,null,null,0,0,null,0,null,0,null,null,null,null,null,null,null,0,4.1859999999999999,0,0,0,0,1]

{"sheet":"5.1","index":7,"n_rows":98,"n_cols":39,"rows_kept":98,"cut":false,"hidden":false,"merged":[[11,0,11,37],[12,0,12,37],[4,0,4,37],[9,0,9,37],[3,0,3,37],[6,0,6,37],[7,0,7,37],[13,0,13,37],[14,0,17,0],[14,1,17,1],[14,2,17,2],[16,4,16,9],[16,11,16,16],[16,18,16,23],[16,25,16,30],[16,32,16,37],[15,3,15,9],[15,10,15,16],[15,17,15,23],[15,24,15,30],[15,31,15,37],[14,3,14,37]]}
[null,null,null,null,null,null,null,null,null,null,null,null,null,null,null,null,null,null,null,null,null,null,null,null,null,null,null,null,null,null,null,null,null,null,null,null,null,"Приложение  № 5"]
[null,null,null,null,null,null,null,null,null,null,null,null,null,null,null,null,null,null,null,null,null,null,null,null,null,null,null,null,null,null,null,null,null,null,null,null,null,"к приказу Минэнерго России"]
[null,null,null,null,null,null,null,null,null,null,null,null,null,null,null,null,null,null,null,null,null,null,null,null,null,null,null,null,null,null,null,null,null,null,null,null,null,"от «__» _____ 2016 г. №___"]
["Форма 5. План ввода основных средств (с распределением по кварталам)"]
[" на 2021 год "]
[]
["Инвестиционная программа АО \"Облкоммунэнерго\""]
["                                                         полное наименование субъекта электроэнергетики"]
[]
["Год раскрытия информации: 2020 год"]
[]
["Утвержденные плановые значения показателей приведены в соответствии с  ______________________________________________________________________________"]
["                                                                                                              реквизиты решения органа исполнительной власти, утвердившего инвестиционную программу"]
[]
["Номер группы инвести-ционных проектов","  Наименование инвестиционного проекта (группы инвестиционных проектов)","Идентифика-тор инвестицион-ного проекта","План принятия основных средств и нематериальных активов к бухгалтерскому учету на год"]
[null,null,null,"I кв.",null,null,null,null,null,null,"II кв.",null,null,null,null,null,null,"III кв.",null,null,null,null,null,null,"IV кв.",null,null,null,null,null,null,"Итого план \nза год"]
[null,null,null,"нематериальные активы","основные средства",null,null,null,null,null,"нематериальные активы","основные средства",null,null,null,null,null,"нематериальные активы","основные средства",null,null,null,null,null,"нематериальные активы","основные средства",null,null,null,null,null,"нематериальные активы","основные средства"]
[null,null,null,"млн рублей (без НДС)","млн рублей (без НДС)","МВ×А","Мвар","км ЛЭП","МВт","Другое","млн рублей (без НДС)","млн рублей (без НДС)","МВ×А","Мвар","км ЛЭП","МВт","Другое","млн рублей (без НДС)","млн рублей (без НДС)","МВ×А","Мвар","км ЛЭП","МВт","Другое","млн рублей (без НДС)","млн рублей (без НДС)","МВ×А","Мвар","км ЛЭП","МВт","Другое","млн рублей (без НДС)","млн рублей (без НДС)","МВ×А","Мвар","км ЛЭП","МВт","Другое"]
[1,2,3,"4.1.1","4.1.2","4.1.3","4.1.4","4.1.5","4.1.6","4.1.7","4.2.1","4.2.2","4.2.3","4.2.4","4.2.5","4.2.6","4.2.7","4.3.1","4.3.2","4.3.3","4.3.4","4.3.5","4.3.6","4.3.7","4.4.1","4.4.2","4.4.3","4.4.4","4.4.5","4.4.6","4.4.7","5","6","7","8","9","10","11"]
["0","ВСЕГО по инвестиционной программе, в том числе:",{"$f":"SUMIF(OFFSET($A20,1,0):$A901,$A20,OFFSET(C20,1,0):C901)","v":0},{"$f":"D21+D22+D23","v":0},0,{"$f":"F21+F22+F23","v":0},0,0,0,0,0,{"$f":"L21+L22+L23","v":2.6680000000000001},0,0,0,0,5,0,8.6110000000000007,0,0,0,0,395,0,4.8019999999999996,1.6,0,0,0,10,0,{"$f":"SUM(L20,S20,Z20)","v":16.081},1.6,{"$f":"AI21+AI22+AI23","v":0},0,0,{"$f":"SUM(Q20,X20,AE20)","v":410}]
["0.2","Реконструкция, модернизация, техническое перевооружение, всего",0,{"$f":"D25","v":0},0,{"$f":"F25","v":0},0,0,0,0,0,{"$f":"L25","v":0.82599999999999996},0,0,0,0,1,0,8.6110000000000007,0,0,0,0,395,0,2.4060000000000001,1.6,0,0,0,0,0,{"$f":"SUM(L21,S21,Z21)","v":11.843000000000002},1.6,{"$f":"AI25","v":0},0,0,396]
["0.3","Инвестиционные проекты, реализация которых обуславливается схемами и программами перспективного развития электроэнергетики, всего",0,0,0,0,0,0,0,0,0,0,0,0,0,0,0,0,0,0,0,0,0,0,0,0,0,0,0,0,0,0,0,0,0,0,0,0]
["0.6","Прочие инвестиционные проекты, всего",0,{"$f":"SUMIF(OFFSET($B23,1,0):$B904,\"Прочие инвестиционные проекты, всего, в том числе:\",OFFSET(D23,1,0):D904)","v":0},{"$f":"SUMIF(OFFSET($B23,1,0):$B904,\"Прочие инвестиционные проекты, всего, в том числе:\",OFFSET(E23,1,0):E904)","v":0},{"$f":"SUMIF(OFFSET($B23,1,0):$B904,\"Прочие инвестиционные проекты, всего, в том числе:\",OFFSET(F23,1,0):F904)","v":0},{"$f":"SUMIF(OFFSET($B23,1,0):$B904,\"Прочие инвестиционные проекты, всего, в том числе:\",OFFSET(G23,1,0):G904)","v":0},{"$f":"SUMIF(OFFSET($B23,1,0):$B904,\"Прочие инвестиционные проекты, всего, в том числе:\",OFFSET(H23,1,0):H904)","v":0},{"$f":"SUMIF(OFFSET($B23,1,0):$B904,\"Прочие инвестиционные проекты, всего, в том числе:\",OFFSET(I23,1,0):I904)","v":0},{"$f":"SUMIF(OFFSET($B23,1,0):$B904,\"Прочие инвестиционные проекты, всего, в том числе:\",OFFSET(J23,1,0):J904)","v":0},{"$f":"SUMIF(OFFSET($B23,1,0):$B904,\"Прочие инвестиционные проекты, всего, в том числе:\",OFFSET(K23,1,0):K904)","v":0},{"$f":"SUMIF(OFFSET($B23,1,0):$B904,\"Прочие инвестиционные проекты, всего, в том числе:\",OFFSET(L23,1,0):L904)","v":1.8420000000000001},{"$f":"SUMIF(OFFSET($B23,1,0):$B904,\"Прочие инвестиционные проекты, всего, в том числе:\",OFFSET(M23,1,0):M904)","v":0},{"$f":"SUMIF(OFFSET($B23,1,0):$B904,\"Прочие инвестиционные проекты, всего, в том числе:\",OFFSET(N23,1,0):N904)","v":0},{"$f":"SUMIF(OFFSET($B23,1,0):$B904,\"Прочие инвестиционные проекты, всего, в том числе:\",OFFSET(O23,1,0):O904)","v":0},{"$f":"SUMIF(OFFSET($B23,1,0):$B904,\"Прочие инвестиционные проекты, всего, в том числе:\",OFFSET(P23,1,0):P904)","v":0},4,{"$f":"SUMIF(OFFSET($B23,1,0):$B904,\"Прочие инвестиционные проекты, всего, в том числе:\",OFFSET(R23,1,0):R904)","v":0},{"$f":"SUMIF(OFFSET($B23,1,0):$B904,\"Прочие инвестиционные проекты, всего, в том числе:\",OFFSET(S23,1,0):S904)","v":0},{"$f":"SUMIF(OFFSET($B23,1,0):$B904,\"Прочие инвестиционные проекты, всего, в том числе:\",OFFSET(T23,1,0):T904)","v":0},{"$f":"SUMIF(OFFSET($B23,1,0):$B904,\"Прочие инвестиционные проекты, всего, в том числе:\",OFFSET(U23,1,0):U904)","v":0},{"$f":"SUMIF(OFFSET($B23,1,0):$B904,\"Прочие инвестиционные проекты, всего, в том числе:\",OFFSET(V23,1,0):V904)","v":0},{"$f":"SUMIF(OFFSET($B23,1,0):$B904,\"Прочие инвестиционные проекты, всего, в том числе:\",OFFSET(W23,1,0):W904)","v":0},{"$f":"SUMIF(OFFSET($B23,1,0):$B904,\"Прочие инвестиционные проекты, всего, в том числе:\",OFFSET(X23,1,0):X904)","v":0},{"$f":"SUMIF(OFFSET($B23,1,0):$B904,\"Прочие инвестиционные проекты, всего, в том числе:\",OFFSET(Y23,1,0):Y904)","v":0},2.3959999999999999,{"$f":"SUMIF(OFFSET($B23,1,0):$B904,\"Прочие инвестиционные проекты, всего, в том числе:\",OFFSET(AA23,1,0):AA904)","v":0},{"$f":"SUMIF(OFFSET($B23,1,0):$B904,\"Прочие инвестиционные проекты, всего, в том числе:\",OFFSET(AB23,1,0):AB904)","v":0},{"$f":"SUMIF(OFFSET($B23,1,0):$B904,\"Прочие инвестиционные проекты, всего, в том числе:\",OFFSET(AC23,1,0):AC904)","v":0},{"$f":"SUMIF(OFFSET($B23,1,0):$B904,\"Прочие инвестиционные проекты, всего, в том числе:\",OFFSET(AD23,1,0):AD904)","v":0},{"$f":"SUMIF(OFFSET($B23,1,0):$B904,\"Прочие инвестиционные проекты, всего, в том числе:\",OFFSET(AE23,1,0):AE904)","v":10},{"$f":"SUMIF(OFFSET($B23,1,0):$B904,\"Прочие инвестиционные проекты, всего, в том числе:\",OFFSET(AF23,1,0):AF904)","v":0},{"$f":"SUM(L23,Z23)","v":4.2379999999999995},0,{"$f":"SUMIF(OFFSET($B23,1,0):$B904,\"Прочие инвестиционные проекты, всего, в том числе:\",OFFSET(AI23,1,0):AI904)","v":0},{"$f":"SUMIF(OFFSET($B23,1,0):$B904,\"Прочие инвестиционные проекты, всего, в том числе:\",OFFSET(AJ23,1,0):AJ904)","v":0},{"$f":"SUMIF(OFFSET($B23,1,0):$B904,\"Прочие инвестиционные проекты, всего, в том числе:\",OFFSET(AK23,1,0):AK904)","v":0},14]
["1","Свердловская область",0,0,0,0,0,0,0,0,0,2.6680000000000001,0,0,0,0,5,0,8.6110000000000007,0,0,0,0,395,0,4.8019999999999996,1.6,0,0,0,0,0,{"$f":"SUM(L24,S24,Z24)","v":16.081},1.6,0,0,0,410]
["1.2","Реконструкция, модернизация, техническое перевооружение всего, в том числе:",0,0,0,0,0,0,0,0,0,0.82599999999999996,0,0,0,0,1,0,8.6110000000000007,0,0,0,0,395,0,2.4060000000000001,1.6,0,0,0,0,0,{"$f":"SUM(L25,S25,Z25)","v":11.843000000000002},1.6,0,0,0,396]
["1.2.1","Реконструкция, модернизация, техническое перевооружение  трансформаторных и иных подстанций, распределительных пунктов, всего, в том числе:",{"$f":"SUMIF(OFFSET($A26,1,0):$A907,$A26,OFFSET(C26,1,0):C907)","v":0},0,0,0,0,0,0,0,0,0,0,0,0,0,0,0,null,0,0,0,0,0,0,2.4060000000000001,1.6,0,0,0,0,0,2.4060000000000001,1.6,0,0,0,0]
["1.2.1.1","Реконструкция трансформаторных и иных подстанций, всего, в том числе:",0,{"$f":"SUMIF(OFFSET($A27,1,0):$A908,$A27,OFFSET(D27,1,0):D908)","v":0},{"$f":"SUMIF(OFFSET($A27,1,0):$A908,$A27,OFFSET(E27,1,0):E908)","v":0},{"$f":"SUMIF(OFFSET($A27,1,0):$A908,$A27,OFFSET(F27,1,0):F908)","v":0},{"$f":"SUMIF(OFFSET($A27,1,0):$A908,$A27,OFFSET(G27,1,0):G908)","v":0},{"$f":"SUMIF(OFFSET($A27,1,0):$A908,$A27,OFFSET(H27,1,0):H908)","v":0},{"$f":"SUMIF(OFFSET($A27,1,0):$A908,$A27,OFFSET(I27,1,0):I908)","v":0},{"$f":"SUMIF(OFFSET($A27,1,0):$A908,$A27,OFFSET(J27,1,0):J908)","v":0},{"$f":"SUMIF(OFFSET($A27,1,0):$A908,$A27,OFFSET(K27,1,0):K908)","v":0},{"$f":"SUMIF(OFFSET($A27,1,0):$A908,$A27,OFFSET(L27,1,0):L908)","v":0},0,{"$f":"SUMIF(OFFSET($A27,1,0):$A908,$A27,OFFSET(N27,1,0):N908)","v":0},{"$f":"SUMIF(OFFSET($A27,1,0):$A908,$A27,OFFSET(O27,1,0):O908)","v":0},{"$f":"SUMIF(OFFSET($A27,1,0):$A908,$A27,OFFSET(P27,1,0):P908)","v":0},{"$f":"SUMIF(OFFSET($A27,1,0):$A908,$A27,OFFSET(Q27,1,0):Q908)","v":0},{"$f":"SUMIF(OFFSET($A27,1,0):$A908,$A27,OFFSET(R27,1,0):R908)","v":0},0,0,{"$f":"SUMIF(OFFSET($A27,1,0):$A908,$A27,OFFSET(U27,1,0):U908)","v":0},null,{"$f":"SUMIF(OFFSET($A27,1,0):$A908,$A27,OFFSET(W27,1,0):W908)","v":0},{"$f":"SUMIF(OFFSET($A27,1,0):$A908,$A27,OFFSET(X27,1,0):X908)","v":0},{"$f":"SUMIF(OFFSET($A27,1,0):$A908,$A27,OFFSET(Y27,1,0):Y908)","v":0},{"$f":"SUMIF(OFFSET($A27,1,0):$A908,$A27,OFFSET(Z27,1,0):Z908)","v":2.4060000000000001},{"$f":"SUMIF(OFFSET($A27,1,0):$A908,$A27,OFFSET(AA27,1,0):AA908)","v":1.6},{"$f":"SUMIF(OFFSET($A27,1,0):$A908,$A27,OFFSET(AB27,1,0):AB908)","v":0},{"$f":"SUMIF(OFFSET($A27,1,0):$A908,$A27,OFFSET(AC27,1,0):AC908)","v":0},{"$f":"SUMIF(OFFSET($A27,1,0):$A908,$A27,OFFSET(AD27,1,0):AD908)","v":0},{"$f":"SUMIF(OFFSET($A27,1,0):$A908,$A27,OFFSET(AE27,1,0):AE908)","v":0},{"$f":"SUMIF(OFFSET($A27,1,0):$A908,$A27,OFFSET(AF27,1,0):AF908)","v":0},2.4060000000000001,1.6,{"$f":"SUMIF(OFFSET($A27,1,0):$A908,$A27,OFFSET(AI27,1,0):AI908)","v":0},{"$f":"SUMIF(OFFSET($A27,1,0):$A908,$A27,OFFSET(AJ27,1,0):AJ908)","v":0},{"$f":"SUMIF(OFFSET($A27,1,0):$A908,$A27,OFFSET(AK27,1,0):AK908)","v":0},0]
["1.2.1.1","Реконструкция ТП-7011, ТП-1072, ТП-1017, ТП-1078, г. Верхняя Салда",null,null,0,0,0,0,0,0,null,0,0,0,0,0,0,null,0,0,0,null,0,0,null,2.4060000000000001,1.6,0,0,null,0,null,2.4060000000000001,1.6,0,0,0,0,{"$f":"IF(E28>0,1,IF(L28>0,2,IF(S28>0,3,IF(Z28>0,4,\"\"))))","v":4}]
["1.2.2","Реконструкция, модернизация, техническое перевооружение линий электропередачи, всего, в том числе:",0,null,0,0,0,0,0,0,null,0.82599999999999996,0,0,0,0,1,null,0,0,0,0,0,0,null,0,0,0,0,null,0,null,0.82599999999999996,0,0,0,0,1,{"$f":"IF(E29>0,1,IF(L29>0,2,IF(S29>0,3,IF(Z29>0,4,\"\"))))","v":2}]
["1.2.2.1","Реконструкция линий электропередачи, всего, в том числе:",0,null,0,0,0,0,0,0,null,0.82599999999999996,0,0,0,0,1,null,0,0,0,0,0,0,null,0,0,0,0,null,0,null,0.82599999999999996,0,0,0,0,1,2]
["1.2.2.1","Реконструкция ВЛ-6 кВ ПС Басьяновка, г. Верхняя Салда",null,null,0,0,0,0,0,0,null,0.82599999999999996,0,0,0,0,1,null,0,0,0,0,0,0,null,0,0,0,0,null,0,null,0.82599999999999996,0,0,0,0,1,2]
["1.2.3","Развитие и модернизация учета электрической энергии (мощности), всего, в том числе:",0,null,0,0,0,0,0,0,null,0,0,0,0,0,0,null,8.6110000000000007,0,0,0,0,395,null,0,0,0,0,null,0,null,8.6110000000000007,0,0,0,0,395,3]
["1.2.3.1","«Установка приборов учета, класс напряжения 0,22 (0,4) кВ, всего, в том числе:»",0,null,0,0,0,0,0,0,null,0,0,0,0,0,0,null,8.6110000000000007,0,0,0,0,395,null,0,0,0,0,null,0,null,8.6110000000000007,0,0,0,0,395,3]
["1.2.3.1","Развитие системы АИИСКУЭ в сетях 0,4 кВ, г. Верхняя Салда",null,null,0,0,0,0,0,0,null,0,0,0,0,0,0,null,8.6110000000000007,0,0,0,0,395,null,0,0,0,0,null,0,null,8.6110000000000007,0,0,0,0,395,3]
["1.6","Прочие инвестиционные проекты, всего, в том числе:",0,null,0,0,0,0,0,0,null,1.8420000000000001,0,0,0,0,0,null,0,0,0,0,0,0,null,2.3959999999999999,0,0,0,null,10,null,{"$f":"SUM(L35,Z35)","v":4.2379999999999995},0,0,0,0,14,2]
["1.6","Развитие системы АИИСКУЭ в сетях 6/10 кВ, г. Верхняя Салда",null,null,0,0,0,0,0,0,null,0,0,0,0,0,0,null,0,0,0,0,0,0,null,2.3959999999999999,0,0,0,null,10,null,2.3959999999999999,0,0,0,0,10,4]
["1.6","Установка реклоузеров, г. Верхняя Салда",null,null,0,0,0,0,0,0,null,1.8420000000000001,0,0,0,0,4,null,0,0,0,0,0,0,null,0,0,0,0,null,0,null,1.8420000000000001,0,0,0,0,4,2]
[null,null,null,null,null,null,null,null,null,null,null,null,null,null,null,null,null,null,null,null,null,null,null,null,null,null,null,null,null,null,null,null,null,null,null,null,null,null,{"$f":"IF(#REF!>0,1,IF(#REF!>0,2,IF(#REF!>0,3,IF(#REF!>0,4,\"\"))))","v":{"$error":"#REF!"}}]
[null,null,null,null,null,null,null,null,null,null,null,null,null,null,null,null,null,null,null,null,null,null,null,null,null,null,null,null,null,null,null,null,null,null,null,null,null,null,{"$f":"IF(#REF!>0,1,IF(#REF!>0,2,IF(#REF!>0,3,IF(#REF!>0,4,\"\"))))","v":{"$error":"#REF!"}}]
[null,null,null,null,null,null,null,null,null,null,null,null,null,null,null,null,null,null,null,null,null,null,null,null,null,null,null,null,null,null,null,null,null,null,null,null,null,null,{"$f":"IF(#REF!>0,1,IF(#REF!>0,2,IF(#REF!>0,3,IF(#REF!>0,4,\"\"))))","v":{"$error":"#REF!"}}]
[null,null,null,null,null,null,null,null,null,null,null,null,null,null,null,null,null,null,null,null,null,null,null,null,null,null,null,null,null,null,null,null,null,null,null,null,null,null,{"$f":"IF(#REF!>0,1,IF(#REF!>0,2,IF(#REF!>0,3,IF(#REF!>0,4,\"\"))))","v":{"$error":"#REF!"}}]
[null,null,null,null,null,null,null,null,null,null,null,null,null,null,null,null,null,null,null,null,null,null,null,null,null,null,null,null,null,null,null,null,null,null,null,null,null,null,{"$f":"IF(#REF!>0,1,IF(#REF!>0,2,IF(#REF!>0,3,IF(#REF!>0,4,\"\"))))","v":{"$error":"#REF!"}}]
[null,null,null,null,null,null,null,null,null,null,null,null,null,null,null,null,null,null,null,null,null,null,null,null,null,null,null,null,null,null,null,null,null,null,null,null,null,null,{"$f":"IF(#REF!>0,1,IF(#REF!>0,2,IF(#REF!>0,3,IF(#REF!>0,4,\"\"))))","v":{"$error":"#REF!"}}]
[]
[null,null,null,null,null,null,null,null,null,null,null,null,null,null,null,null,null,null,null,null,null,null,null,null,null,null,null,null,null,null,null,null,null,null,null,null,null,null,{"$f":"IF(#REF!>0,1,IF(#REF!>0,2,IF(#REF!>0,3,IF(#REF!>0,4,\"\"))))","v":{"$error":"#REF!"}}]
[null,null,null,null,null,null,null,null,null,null,null,null,null,null,null,null,null,null,null,null,null,null,null,null,null,null,null,null,null,null,null,null,null,null,null,null,null,null,{"$f":"IF(#REF!>0,1,IF(#REF!>0,2,IF(#REF!>0,3,IF(#REF!>0,4,\"\"))))","v":{"$error":"#REF!"}}]
[null,null,null,null,null,null,null,null,null,null,null,null,null,null,null,null,null,null,null,null,null,null,null,null,null,null,null,null,null,null,null,null,null,null,null,null,null,null,{"$f":"IF(#REF!>0,1,IF(#REF!>0,2,IF(#REF!>0,3,IF(#REF!>0,4,\"\"))))","v":{"$error":"#REF!"}}]
[]
[]
[null,null,null,null,null,null,null,null,null,null,null,null,null,null,null,null,null,null,null,null,null,null,null,null,null,null,null,null,null,null,null,null,null,null,null,null,null,null,{"$f":"IF(#REF!>0,1,IF(#REF!>0,2,IF(#REF!>0,3,IF(#REF!>0,4,\"херня какая то\"))))","v":{"$error":"#REF!"}}]
[null,null,null,null,null,null,null,null,null,null,null,null,null,null,null,null,null,null,null,null,null,null,null,null,null,null,null,null,null,null,null,null,null,null,null,null,null,null,{"$f":"IF(#REF!>0,1,IF(#REF!>0,2,IF(#REF!>0,3,IF(#REF!>0,4,\"\"))))","v":{"$error":"#REF!"}}]
[null,null,null,null,null,null,null,null,null,null,null,null,null,null,null,null,null,null,null,null,null,null,null,null,null,null,null,null,null,null,null,null,null,null,null,null,null,null,{"$f":"IF(#REF!>0,1,IF(#REF!>0,2,IF(#REF!>0,3,IF(#REF!>0,4,\"\"))))","v":{"$error":"#REF!"}}]
[null,null,null,null,null,null,null,null,null,null,null,null,null,null,null,null,null,null,null,null,null,null,null,null,null,null,null,null,null,null,null,null,null,null,null,null,null,null,{"$f":"IF(#REF!>0,1,IF(#REF!>0,2,IF(#REF!>0,3,IF(#REF!>0,4,\"\"))))","v":{"$error":"#REF!"}}]
[null,null,null,null,null,null,null,null,null,null,null,null,null,null,null,null,null,null,null,null,null,null,null,null,null,null,null,null,null,null,null,null,null,null,null,null,null,null,{"$f":"IF(#REF!>0,1,IF(#REF!>0,2,IF(#REF!>0,3,IF(#REF!>0,4,\"\"))))","v":{"$error":"#REF!"}}]
[null,null,null,null,null,null,null,null,null,null,null,null,null,null,null,null,null,null,null,null,null,null,null,null,null,null,null,null,null,null,null,null,null,null,null,null,null,null,{"$f":"IF(#REF!>0,1,IF(#REF!>0,2,IF(#REF!>0,3,IF(#REF!>0,4,\"\"))))","v":{"$error":"#REF!"}}]
[null,null,null,null,null,null,null,null,null,null,null,null,null,null,null,null,null,null,null,null,null,null,null,null,null,null,null,null,null,null,null,null,null,null,null,null,null,null,{"$f":"IF(#REF!>0,1,IF(#REF!>0,2,IF(#REF!>0,3,IF(#REF!>0,4,\"\"))))","v":{"$error":"#REF!"}}]
[null,null,null,null,null,null,null,null,null,null,null,null,null,null,null,null,null,null,null,null,null,null,null,null,null,null,null,null,null,null,null,null,null,null,null,null,null,null,{"$f":"IF(#REF!>0,1,IF(#REF!>0,2,IF(#REF!>0,3,IF(#REF!>0,4,\"\"))))","v":{"$error":"#REF!"}}]
[null,null,null,null,null,null,null,null,null,null,null,null,null,null,null,null,null,null,null,null,null,null,null,null,null,null,null,null,null,null,null,null,null,null,null,null,null,null,{"$f":"IF(#REF!>0,1,IF(#REF!>0,2,IF(#REF!>0,3,IF(#REF!>0,4,\"\"))))","v":{"$error":"#REF!"}}]
[null,null,null,null,null,null,null,null,null,null,null,null,null,null,null,null,null,null,null,null,null,null,null,null,null,null,null,null,null,null,null,null,null,null,null,null,null,null,{"$f":"IF(#REF!>0,1,IF(#REF!>0,2,IF(#REF!>0,3,IF(#REF!>0,4,\"\"))))","v":{"$error":"#REF!"}}]
[null,null,null,null,null,null,null,null,null,null,null,null,null,null,null,null,null,null,null,null,null,null,null,null,null,null,null,null,null,null,null,null,null,null,null,null,null,null,{"$f":"IF(#REF!>0,1,IF(#REF!>0,2,IF(#REF!>0,3,IF(#REF!>0,4,\"\"))))","v":{"$error":"#REF!"}}]
[null,null,null,null,null,null,null,null,null,null,null,null,null,null,null,null,null,null,null,null,null,null,null,null,null,null,null,null,null,null,null,null,null,null,null,null,null,null,{"$f":"IF(#REF!>0,1,IF(#REF!>0,2,IF(#REF!>0,3,IF(#REF!>0,4,\"\"))))","v":{"$error":"#REF!"}}]
[null,null,null,null,null,null,null,null,null,null,null,null,null,null,null,null,null,null,null,null,null,null,null,null,null,null,null,null,null,null,null,null,null,null,null,null,null,null,{"$f":"IF(#REF!>0,1,IF(#REF!>0,2,IF(#REF!>0,3,IF(#REF!>0,4,\"\"))))","v":{"$error":"#REF!"}}]
[null,null,null,null,null,null,null,null,null,null,null,null,null,null,null,null,null,null,null,null,null,null,null,null,null,null,null,null,null,null,null,null,null,null,null,null,null,null,{"$f":"IF(#REF!>0,1,IF(#REF!>0,2,IF(#REF!>0,3,IF(#REF!>0,4,\"\"))))","v":{"$error":"#REF!"}}]
[null,null,null,null,null,null,null,null,null,null,null,null,null,null,null,null,null,null,null,null,null,null,null,null,null,null,null,null,null,null,null,null,null,null,null,null,null,null,{"$f":"IF(#REF!>0,1,IF(#REF!>0,2,IF(#REF!>0,3,IF(#REF!>0,4,\"\"))))","v":{"$error":"#REF!"}}]
[null,null,null,null,null,null,null,null,null,null,null,null,null,null,null,null,null,null,null,null,null,null,null,null,null,null,null,null,null,null,null,null,null,null,null,null,null,null,{"$f":"IF(#REF!>0,1,IF(#REF!>0,2,IF(#REF!>0,3,IF(#REF!>0,4,\"\"))))","v":{"$error":"#REF!"}}]
[null,null,null,null,null,null,null,null,null,null,null,null,null,null,null,null,null,null,null,null,null,null,null,null,null,null,null,null,null,null,null,null,null,null,null,null,null,null,{"$f":"IF(#REF!>0,1,IF(#REF!>0,2,IF(#REF!>0,3,IF(#REF!>0,4,\"\"))))","v":{"$error":"#REF!"}}]
[null,null,null,null,null,null,null,null,null,null,null,null,null,null,null,null,null,null,null,null,null,null,null,null,null,null,null,null,null,null,null,null,null,null,null,null,null,null,{"$f":"IF(#REF!>0,1,IF(#REF!>0,2,IF(#REF!>0,3,IF(#REF!>0,4,\"\"))))","v":{"$error":"#REF!"}}]
[null,null,null,null,null,null,null,null,null,null,null,null,null,null,null,null,null,null,null,null,null,null,null,null,null,null,null,null,null,null,null,null,null,null,null,null,null,null,{"$f":"IF(#REF!>0,1,IF(#REF!>0,2,IF(#REF!>0,3,IF(#REF!>0,4,\"\"))))","v":{"$error":"#REF!"}}]
[null,null,null,null,null,null,null,null,null,null,null,null,null,null,null,null,null,null,null,null,null,null,null,null,null,null,null,null,null,null,null,null,null,null,null,null,null,null,{"$f":"IF(#REF!>0,1,IF(#REF!>0,2,IF(#REF!>0,3,IF(#REF!>0,4,\"\"))))","v":{"$error":"#REF!"}}]
[null,null,null,null,null,null,null,null,null,null,null,null,null,null,null,null,null,null,null,null,null,null,null,null,null,null,null,null,null,null,null,null,null,null,null,null,null,null,{"$f":"IF(#REF!>0,1,IF(#REF!>0,2,IF(#REF!>0,3,IF(#REF!>0,4,\"\"))))","v":{"$error":"#REF!"}}]
[null,null,null,null,null,null,null,null,null,null,null,null,null,null,null,null,null,null,null,null,null,null,null,null,null,null,null,null,null,null,null,null,null,null,null,null,null,null,{"$f":"IF(#REF!>0,1,IF(#REF!>0,2,IF(#REF!>0,3,IF(#REF!>0,4,\"\"))))","v":{"$error":"#REF!"}}]
[null,null,null,null,null,null,null,null,null,null,null,null,null,null,null,null,null,null,null,null,null,null,null,null,null,null,null,null,null,null,null,null,null,null,null,null,null,null,{"$f":"IF(#REF!>0,1,IF(#REF!>0,2,IF(#REF!>0,3,IF(#REF!>0,4,\"\"))))","v":{"$error":"#REF!"}}]
[null,null,null,null,null,null,null,null,null,null,null,null,null,null,null,null,null,null,null,null,null,null,null,null,null,null,null,null,null,null,null,null,null,null,null,null,null,null,{"$f":"IF(#REF!>0,1,IF(#REF!>0,2,IF(#REF!>0,3,IF(#REF!>0,4,\"\"))))","v":{"$error":"#REF!"}}]
[null,null,null,null,null,null,null,null,null,null,null,null,null,null,null,null,null,null,null,null,null,null,null,null,null,null,null,null,null,null,null,null,null,null,null,null,null,null,{"$f":"IF(#REF!>0,1,IF(#REF!>0,2,IF(#REF!>0,3,IF(#REF!>0,4,\"\"))))","v":{"$error":"#REF!"}}]
[null,null,null,null,null,null,null,null,null,null,null,null,null,null,null,null,null,null,null,null,null,null,null,null,null,null,null,null,null,null,null,null,null,null,null,null,null,null,{"$f":"IF(#REF!>0,1,IF(#REF!>0,2,IF(#REF!>0,3,IF(#REF!>0,4,\"\"))))","v":{"$error":"#REF!"}}]
[null,null,null,null,null,null,null,null,null,null,null,null,null,null,null,null,null,null,null,null,null,null,null,null,null,null,null,null,null,null,null,null,null,null,null,null,null,null,{"$f":"IF(#REF!>0,1,IF(#REF!>0,2,IF(#REF!>0,3,IF(#REF!>0,4,\"\"))))","v":{"$error":"#REF!"}}]
[null,null,null,null,null,null,null,null,null,null,null,null,null,null,null,null,null,null,null,null,null,null,null,null,null,null,null,null,null,null,null,null,null,null,null,null,null,null,{"$f":"IF(#REF!>0,1,IF(#REF!>0,2,IF(#REF!>0,3,IF(#REF!>0,4,\"\"))))","v":{"$error":"#REF!"}}]
[null,null,null,null,null,null,null,null,null,null,null,null,null,null,null,null,null,null,null,null,null,null,null,null,null,null,null,null,null,null,null,null,null,null,null,null,null,null,{"$f":"IF(#REF!>0,1,IF(#REF!>0,2,IF(#REF!>0,3,IF(#REF!>0,4,\"\"))))","v":{"$error":"#REF!"}}]
[null,null,null,null,null,null,null,null,null,null,null,null,null,null,null,null,null,null,null,null,null,null,null,null,null,null,null,null,null,null,null,null,null,null,null,null,null,null,{"$f":"IF(#REF!>0,1,IF(#REF!>0,2,IF(#REF!>0,3,IF(#REF!>0,4,\"\"))))","v":{"$error":"#REF!"}}]
[null,null,null,null,null,null,null,null,null,null,null,null,null,null,null,null,null,null,null,null,null,null,null,null,null,null,null,null,null,null,null,null,null,null,null,null,null,null,{"$f":"IF(#REF!>0,1,IF(#REF!>0,2,IF(#REF!>0,3,IF(#REF!>0,4,\"\"))))","v":{"$error":"#REF!"}}]
[null,null,null,null,null,null,null,null,null,null,null,null,null,null,null,null,null,null,null,null,null,null,null,null,null,null,null,null,null,null,null,null,null,null,null,null,null,null,{"$f":"IF(#REF!>0,1,IF(#REF!>0,2,IF(#REF!>0,3,IF(#REF!>0,4,\"\"))))","v":{"$error":"#REF!"}}]
[null,null,null,null,null,null,null,null,null,null,null,null,null,null,null,null,null,null,null,null,null,null,null,null,null,null,null,null,null,null,null,null,null,null,null,null,null,null,{"$f":"IF(#REF!>0,1,IF(#REF!>0,2,IF(#REF!>0,3,IF(#REF!>0,4,\"\"))))","v":{"$error":"#REF!"}}]
[null,null,null,null,null,null,null,null,null,null,null,null,null,null,null,null,null,null,null,null,null,null,null,null,null,null,null,null,null,null,null,null,null,null,null,null,null,null,{"$f":"IF(#REF!>0,1,IF(#REF!>0,2,IF(#REF!>0,3,IF(#REF!>0,4,\"\"))))","v":{"$error":"#REF!"}}]
[null,null,null,null,null,null,null,null,null,null,null,null,null,null,null,null,null,null,null,null,null,null,null,null,null,null,null,null,null,null,null,null,null,null,null,null,null,null,{"$f":"IF(#REF!>0,1,IF(#REF!>0,2,IF(#REF!>0,3,IF(#REF!>0,4,\"\"))))","v":{"$error":"#REF!"}}]
[null,null,null,null,null,null,null,null,null,null,null,null,null,null,null,null,null,null,null,null,null,null,null,null,null,null,null,null,null,null,null,null,null,null,null,null,null,null,{"$f":"IF(#REF!>0,1,IF(#REF!>0,2,IF(#REF!>0,3,IF(#REF!>0,4,\"\"))))","v":{"$error":"#REF!"}}]
[null,null,null,null,null,null,null,null,null,null,null,null,null,null,null,null,null,null,null,null,null,null,null,null,null,null,null,null,null,null,null,null,null,null,null,null,null,null,{"$f":"IF(#REF!>0,1,IF(#REF!>0,2,IF(#REF!>0,3,IF(#REF!>0,4,\"\"))))","v":{"$error":"#REF!"}}]
[null,null,null,null,null,null,null,null,null,null,null,null,null,null,null,null,null,null,null,null,null,null,null,null,null,null,null,null,null,null,null,null,null,null,null,null,null,null,{"$f":"IF(#REF!>0,1,IF(#REF!>0,2,IF(#REF!>0,3,IF(#REF!>0,4,\"\"))))","v":{"$error":"#REF!"}}]
[null,null,null,null,null,null,null,null,null,null,null,null,null,null,null,null,null,null,null,null,null,null,null,null,null,null,null,null,null,null,null,null,null,null,null,null,null,null,{"$f":"IF(#REF!>0,1,IF(#REF!>0,2,IF(#REF!>0,3,IF(#REF!>0,4,\"\"))))","v":{"$error":"#REF!"}}]
[null,null,null,null,null,null,null,null,null,null,null,null,null,null,null,null,null,null,null,null,null,null,null,null,null,null,null,null,null,null,null,null,null,null,null,null,null,null,{"$f":"IF(#REF!>0,1,IF(#REF!>0,2,IF(#REF!>0,3,IF(#REF!>0,4,\"\"))))","v":{"$error":"#REF!"}}]
[null,null,null,null,null,null,null,null,null,null,null,null,null,null,null,null,null,null,null,null,null,null,null,null,null,null,null,null,null,null,null,null,null,null,null,null,null,null,{"$f":"IF(#REF!>0,1,IF(#REF!>0,2,IF(#REF!>0,3,IF(#REF!>0,4,\"\"))))","v":{"$error":"#REF!"}}]
[null,null,null,null,null,null,null,null,null,null,null,null,null,null,null,null,null,null,null,null,null,null,null,null,null,null,null,null,null,null,null,null,null,null,null,null,null,null,{"$f":"IF(#REF!>0,1,IF(#REF!>0,2,IF(#REF!>0,3,IF(#REF!>0,4,\"\"))))","v":{"$error":"#REF!"}}]
[]
[]
[null,null,null,null,null,null,null,null,null,null,null,null,null,null,null,null,null,null,null,null,null,null,null,null,null,null,null,null,null,null,null,null,null,null,null,null,null,null,{"$f":"IF(#REF!>0,1,IF(#REF!>0,2,IF(#REF!>0,3,IF(#REF!>0,4,\"\"))))","v":{"$error":"#REF!"}}]
[]
[null,null,null,null,null,null,null,null,null,null,null,null,null,null,null,null,null,null,null,null,null,null,null,null,null,null,null,null,null,null,null,null,null,null,null,null,null,null,{"$f":"IF(#REF!>0,1,IF(#REF!>0,2,IF(#REF!>0,3,IF(#REF!>0,4,\"\"))))","v":{"$error":"#REF!"}}]
[null,null,null,null,null,null,null,null,null,null,null,null,null,null,null,null,null,null,null,null,null,null,null,null,null,null,null,null,null,null,null,null,null,null,null,null,null,null,{"$f":"IF(#REF!>0,1,IF(#REF!>0,2,IF(#REF!>0,3,IF(#REF!>0,4,\"\"))))","v":{"$error":"#REF!"}}]
[null,null,null,null,null,null,null,null,null,null,null,null,null,null,null,null,null,null,null,null,null,null,null,null,null,null,null,null,null,null,null,null,null,null,null,null,null,null,{"$f":"IF(#REF!>0,1,IF(#REF!>0,2,IF(#REF!>0,3,IF(#REF!>0,4,\"\"))))","v":{"$error":"#REF!"}}]

{"sheet":"5.2","index":8,"n_rows":90,"n_cols":39,"rows_kept":90,"cut":false,"hidden":false,"merged":[[12,0,12,37],[13,0,13,37],[14,0,17,0],[14,1,17,1],[14,2,17,2],[14,3,14,37],[15,3,15,9],[15,10,15,16],[15,17,15,23],[15,24,15,30],[15,31,15,37],[16,4,16,9],[16,11,16,16],[16,18,16,23],[16,25,16,30],[16,32,16,37],[11,0,11,37],[3,0,3,37],[4,0,4,37],[6,0,6,37],[7,0,7,37],[9,0,9,37]]}
[null,null,null,null,null,null,null,null,null,null,null,null,null,null,null,null,null,null,null,null,null,null,null,null,null,null,null,null,null,null,null,null,null,null,null,null,null,"Приложение  № 5"]
[null,null,null,null,null,null,null,null,null,null,null,null,null,null,null,null,null,null,null,null,null,null,null,null,null,null,null,null,null,null,null,null,null,null,null,null,null,"к приказу Минэнерго России"]
[null,null,null,null,null,null,null,null,null,null,null,null,null,null,null,null,null,null,null,null,null,null,null,null,null,null,null,null,null,null,null,null,null,null,null,null,null,"от «__» _____ 2016 г. №___"]
["Форма 5. План ввода основных средств (с распределением по кварталам)"]
[" на 2021 год "]
[]
["Инвестиционная программа АО \"Облкоммунэнерго\""]
["                                                         полное наименование субъекта электроэнергетики"]
[]
["Год раскрытия информации: 2019 год"]
[]
["Утвержденные плановые значения показателей приведены в соответствии с  ______________________________________________________________________________"]
["                                                                                                              реквизиты решения органа исполнительной власти, утвердившего инвестиционную программу"]
[]
["Номер группы инвести-ционных проектов","  Наименование инвестиционного проекта (группы инвестиционных проектов)","Идентифика-тор инвестицион-ного проекта","План принятия основных средств и нематериальных активов к бухгалтерскому учету на год"]
[null,null,null,"I кв.",null,null,null,null,null,null,"II кв.",null,null,null,null,null,null,"III кв.",null,null,null,null,null,null,"IV кв.",null,null,null,null,null,null,"Итого план (утвержденный план) \nза год"]
[null,null,null,"нематериальные активы","основные средства",null,null,null,null,null,"нематериальные активы","основные средства",null,null,null,null,null,"нематериальные активы","основные средства",null,null,null,null,null,"нематериальные активы","основные средства",null,null,null,null,null,"нематериальные активы","основные средства"]
[null,null,null,"млн рублей (без НДС)","млн рублей (без НДС)","МВ×А","Мвар","км ЛЭП","МВт","Другое","млн рублей (без НДС)","млн рублей (без НДС)","МВ×А","Мвар","км ЛЭП","МВт","Другое","млн рублей (без НДС)","млн рублей (без НДС)","МВ×А","Мвар","км ЛЭП","МВт","Другое","млн рублей (без НДС)","млн рублей (без НДС)","МВ×А","Мвар","км ЛЭП","МВт","Другое","млн рублей (без НДС)","млн рублей (без НДС)","МВ×А","Мвар","км ЛЭП","МВт","Другое"]
[1,2,3,"4.1.1","4.1.2","4.1.3","4.1.4","4.1.5","4.1.6","4.1.7","4.2.1","4.2.2","4.2.3","4.2.4","4.2.5","4.2.6","4.2.7","4.3.1","4.3.2","4.3.3","4.3.4","4.3.5","4.3.6","4.3.7","4.4.1","4.4.2","4.4.3","4.4.4","4.4.5","4.4.6","4.4.7","5","6","7","8","9","10","11"]
["0","ВСЕГО по инвестиционной программе, в том числе:",null,{"$f":"D21+D22+D23","v":0},0,0,0,0,0,0,0,1.198,{"$f":"M21+M22+M23","v":0},0,0,0,5,0,6.4630000000000001,0,0,0,0,296,0,8.4089999999999989,0,0,9,0,6,0,{"$f":"SUM(L20,S20,Z20)","v":16.07},0,{"$f":"AI21+AI22+AI23","v":0},0,0,0]
["0.2","Реконструкция, модернизация, техническое перевооружение, всего",null,{"$f":"D25","v":0},0,0,0,0,0,0,0,0,{"$f":"M25","v":0},0,0,0,0,0,6.4630000000000001,0,0,0,0,296,0,5.6449999999999996,0,0,9,0,0,0,{"$f":"SUM(S21,Z21)","v":12.108000000000001},0,{"$f":"AI25","v":0},0,0,0]
["0.3","Инвестиционные проекты, реализация которых обуславливается схемами и программами перспективного развития электроэнергетики, всего",null,0,0,0,0,0,0,0,0,0,0,0,0,0,0,0,0,0,0,0,0,0,0,0,0,0,0,0,0,0,0,0,0,0,0,0]
["0.6","Прочие инвестиционные проекты, всего",null,{"$f":"SUMIF(OFFSET($B23,1,0):$B926,\"Прочие инвестиционные проекты, всего, в том числе:\",OFFSET(D23,1,0):D926)","v":0},{"$f":"SUMIF(OFFSET($B23,1,0):$B926,\"Прочие инвестиционные проекты, всего, в том числе:\",OFFSET(E23,1,0):E926)","v":0},{"$f":"SUMIF(OFFSET($B23,1,0):$B926,\"Прочие инвестиционные проекты, всего, в том числе:\",OFFSET(F23,1,0):F926)","v":0},{"$f":"SUMIF(OFFSET($B23,1,0):$B926,\"Прочие инвестиционные проекты, всего, в том числе:\",OFFSET(G23,1,0):G926)","v":0},{"$f":"SUMIF(OFFSET($B23,1,0):$B926,\"Прочие инвестиционные проекты, всего, в том числе:\",OFFSET(H23,1,0):H926)","v":0},{"$f":"SUMIF(OFFSET($B23,1,0):$B926,\"Прочие инвестиционные проекты, всего, в том числе:\",OFFSET(I23,1,0):I926)","v":0},{"$f":"SUMIF(OFFSET($B23,1,0):$B926,\"Прочие инвестиционные проекты, всего, в том числе:\",OFFSET(J23,1,0):J926)","v":0},{"$f":"SUMIF(OFFSET($B23,1,0):$B926,\"Прочие инвестиционные проекты, всего, в том числе:\",OFFSET(K23,1,0):K926)","v":0},1.198,{"$f":"SUMIF(OFFSET($B23,1,0):$B926,\"Прочие инвестиционные проекты, всего, в том числе:\",OFFSET(M23,1,0):M926)","v":0},{"$f":"SUMIF(OFFSET($B23,1,0):$B926,\"Прочие инвестиционные проекты, всего, в том числе:\",OFFSET(N23,1,0):N926)","v":0},{"$f":"SUMIF(OFFSET($B23,1,0):$B926,\"Прочие инвестиционные проекты, всего, в том числе:\",OFFSET(O23,1,0):O926)","v":0},{"$f":"SUMIF(OFFSET($B23,1,0):$B926,\"Прочие инвестиционные проекты, всего, в том числе:\",OFFSET(P23,1,0):P926)","v":0},5,{"$f":"SUMIF(OFFSET($B23,1,0):$B926,\"Прочие инвестиционные проекты, всего, в том числе:\",OFFSET(R23,1,0):R926)","v":0},{"$f":"SUMIF(OFFSET($B23,1,0):$B926,\"Прочие инвестиционные проекты, всего, в том числе:\",OFFSET(S23,1,0):S926)","v":0},{"$f":"SUMIF(OFFSET($B23,1,0):$B926,\"Прочие инвестиционные проекты, всего, в том числе:\",OFFSET(T23,1,0):T926)","v":0},{"$f":"SUMIF(OFFSET($B23,1,0):$B926,\"Прочие инвестиционные проекты, всего, в том числе:\",OFFSET(U23,1,0):U926)","v":0},{"$f":"SUMIF(OFFSET($B23,1,0):$B926,\"Прочие инвестиционные проекты, всего, в том числе:\",OFFSET(V23,1,0):V926)","v":0},{"$f":"SUMIF(OFFSET($B23,1,0):$B926,\"Прочие инвестиционные проекты, всего, в том числе:\",OFFSET(W23,1,0):W926)","v":0},{"$f":"SUMIF(OFFSET($B23,1,0):$B926,\"Прочие инвестиционные проекты, всего, в том числе:\",OFFSET(X23,1,0):X926)","v":0},{"$f":"SUMIF(OFFSET($B23,1,0):$B926,\"Прочие инвестиционные проекты, всего, в том числе:\",OFFSET(Y23,1,0):Y926)","v":0},{"$f":"SUMIF(OFFSET($B23,1,0):$B926,\"Прочие инвестиционные проекты, всего, в том числе:\",OFFSET(Z23,1,0):Z926)","v":2.7639999999999998},{"$f":"SUMIF(OFFSET($B23,1,0):$B926,\"Прочие инвестиционные проекты, всего, в том числе:\",OFFSET(AA23,1,0):AA926)","v":0},{"$f":"SUMIF(OFFSET($B23,1,0):$B926,\"Прочие инвестиционные проекты, всего, в том числе:\",OFFSET(AB23,1,0):AB926)","v":0},{"$f":"SUMIF(OFFSET($B23,1,0):$B926,\"Прочие инвестиционные проекты, всего, в том числе:\",OFFSET(AC23,1,0):AC926)","v":0},{"$f":"SUMIF(OFFSET($B23,1,0):$B926,\"Прочие инвестиционные проекты, всего, в том числе:\",OFFSET(AD23,1,0):AD926)","v":0},{"$f":"SUMIF(OFFSET($B23,1,0):$B926,\"Прочие инвестиционные проекты, всего, в том числе:\",OFFSET(AE23,1,0):AE926)","v":6},{"$f":"SUMIF(OFFSET($B23,1,0):$B926,\"Прочие инвестиционные проекты, всего, в том числе:\",OFFSET(AF23,1,0):AF926)","v":0},{"$f":"SUM(L23,Z23)","v":3.9619999999999997},0,{"$f":"SUMIF(OFFSET($B23,1,0):$B926,\"Прочие инвестиционные проекты, всего, в том числе:\",OFFSET(AI23,1,0):AI926)","v":0},{"$f":"SUMIF(OFFSET($B23,1,0):$B926,\"Прочие инвестиционные проекты, всего, в том числе:\",OFFSET(AJ23,1,0):AJ926)","v":0},{"$f":"SUMIF(OFFSET($B23,1,0):$B926,\"Прочие инвестиционные проекты, всего, в том числе:\",OFFSET(AK23,1,0):AK926)","v":0},{"$f":"SUMIF(OFFSET($B23,1,0):$B926,\"Прочие инвестиционные проекты, всего, в том числе:\",OFFSET(AL23,1,0):AL926)","v":0}]
["1","Свердловская область",null,0,{"$f":"E25+E56","v":0},{"$f":"F25+F56","v":0},0,{"$f":"H25+H56","v":0},0,{"$f":"J25+J56","v":0},0,0,{"$f":"M25+M56","v":0},{"$f":"N25+N56","v":0},{"$f":"O25+O56","v":0},{"$f":"P25+P56","v":0},0,0,6.4630000000000001,{"$f":"T25+T56","v":0},{"$f":"U25+U56","v":0},{"$f":"V25+V56","v":0},{"$f":"W25+W56","v":0},296,{"$f":"Y25+Y56","v":0},5.6449999999999996,0,0,9,0,0,0,16.07,0,0,0,0,0]
["1.2","Реконструкция, модернизация, техническое перевооружение всего, в том числе:",null,0,0,0,0,0,0,0,0,0,0,0,0,0,0,0,6.4630000000000001,0,0,0,0,296,0,5.6449999999999996,0,0,9,0,0,0,{"$f":"SUM(S25,Z25)","v":12.108000000000001},0,0,0,0,0,{"$f":"AM26+AM53","v":0}]
["1.2.1","Реконструкция, модернизация, техническое перевооружение  трансформаторных и иных подстанций, распределительных пунктов, всего, в том числе:",null,0,0,0,0,0,0,0,0,0,0,0,0,0,0,0,0,0,0,0,0,0,0,0,0,0,0,0,0,0,0,0,0,0,0,0]
["1.2.1.1","Реконструкция трансформаторных и иных подстанций, всего, в том числе:",null,{"$f":"SUMIF(OFFSET($A27,1,0):$A930,$A27,OFFSET(D27,1,0):D930)","v":0},{"$f":"SUMIF(OFFSET($A27,1,0):$A930,$A27,OFFSET(E27,1,0):E930)","v":0},{"$f":"SUMIF(OFFSET($A27,1,0):$A930,$A27,OFFSET(F27,1,0):F930)","v":0},{"$f":"SUMIF(OFFSET($A27,1,0):$A930,$A27,OFFSET(G27,1,0):G930)","v":0},{"$f":"SUMIF(OFFSET($A27,1,0):$A930,$A27,OFFSET(H27,1,0):H930)","v":0},{"$f":"SUMIF(OFFSET($A27,1,0):$A930,$A27,OFFSET(I27,1,0):I930)","v":0},{"$f":"SUMIF(OFFSET($A27,1,0):$A930,$A27,OFFSET(J27,1,0):J930)","v":0},{"$f":"SUMIF(OFFSET($A27,1,0):$A930,$A27,OFFSET(K27,1,0):K930)","v":0},{"$f":"SUMIF(OFFSET($A27,1,0):$A930,$A27,OFFSET(L27,1,0):L930)","v":0},{"$f":"SUMIF(OFFSET($A27,1,0):$A930,$A27,OFFSET(M27,1,0):M930)","v":0},{"$f":"SUMIF(OFFSET($A27,1,0):$A930,$A27,OFFSET(N27,1,0):N930)","v":0},{"$f":"SUMIF(OFFSET($A27,1,0):$A930,$A27,OFFSET(O27,1,0):O930)","v":0},{"$f":"SUMIF(OFFSET($A27,1,0):$A930,$A27,OFFSET(P27,1,0):P930)","v":0},{"$f":"SUMIF(OFFSET($A27,1,0):$A930,$A27,OFFSET(Q27,1,0):Q930)","v":0},{"$f":"SUMIF(OFFSET($A27,1,0):$A930,$A27,OFFSET(R27,1,0):R930)","v":0},0,{"$f":"SUMIF(OFFSET($A27,1,0):$A930,$A27,OFFSET(T27,1,0):T930)","v":0},{"$f":"SUMIF(OFFSET($A27,1,0):$A930,$A27,OFFSET(U27,1,0):U930)","v":0},{"$f":"SUMIF(OFFSET($A27,1,0):$A930,$A27,OFFSET(V27,1,0):V930)","v":0},{"$f":"SUMIF(OFFSET($A27,1,0):$A930,$A27,OFFSET(W27,1,0):W930)","v":0},{"$f":"SUMIF(OFFSET($A27,1,0):$A930,$A27,OFFSET(X27,1,0):X930)","v":0},{"$f":"SUMIF(OFFSET($A27,1,0):$A930,$A27,OFFSET(Y27,1,0):Y930)","v":0},{"$f":"SUMIF(OFFSET($A27,1,0):$A930,$A27,OFFSET(Z27,1,0):Z930)","v":0},{"$f":"SUMIF(OFFSET($A27,1,0):$A930,$A27,OFFSET(AA27,1,0):AA930)","v":0},{"$f":"SUMIF(OFFSET($A27,1,0):$A930,$A27,OFFSET(AB27,1,0):AB930)","v":0},{"$f":"SUMIF(OFFSET($A27,1,0):$A930,$A27,OFFSET(AC27,1,0):AC930)","v":0},{"$f":"SUMIF(OFFSET($A27,1,0):$A930,$A27,OFFSET(AD27,1,0):AD930)","v":0},{"$f":"SUMIF(OFFSET($A27,1,0):$A930,$A27,OFFSET(AE27,1,0):AE930)","v":0},{"$f":"SUMIF(OFFSET($A27,1,0):$A930,$A27,OFFSET(AF27,1,0):AF930)","v":0},0,0,{"$f":"SUMIF(OFFSET($A27,1,0):$A930,$A27,OFFSET(AI27,1,0):AI930)","v":0},{"$f":"SUMIF(OFFSET($A27,1,0):$A930,$A27,OFFSET(AJ27,1,0):AJ930)","v":0},{"$f":"SUMIF(OFFSET($A27,1,0):$A930,$A27,OFFSET(AK27,1,0):AK930)","v":0},{"$f":"SUMIF(OFFSET($A27,1,0):$A930,$A27,OFFSET(AL27,1,0):AL930)","v":0}]
["1.2.1.2","Модернизация, техническое перевооружение трансформаторных и иных подстанций, распределительных пунктов, всего, в том числе:",null,null,0,0,0,0,0,0,null,0,0,0,0,0,0,null,0,0,0,0,0,0,0,0,0,0,0,0,0,null,0,0,0,0,0,0,{"$f":"IF(E28>0,1,IF(L28>0,2,IF(S28>0,3,IF(Z28>0,4,\"херня какая то\"))))","v":"херня какая то"}]
["1.2.2","Реконструкция, модернизация, техническое перевооружение линий электропередачи, всего, в том числе:",null,null,0,0,0,0,0,0,null,0,0,0,0,0,0,null,0,0,0,0,0,0,0,5.6449999999999996,0,0,9,0,0,null,5.6449999999999996,0,0,9,0,0,4]
["1.2.2.1","Реконструкция линий электропередачи, всего, в том числе:",null,null,0,0,0,0,0,0,null,0,0,0,0,0,0,null,0,0,0,0,0,0,0,5.6449999999999996,0,0,9,0,0,null,5.6449999999999996,0,0,9,0,0,4]
["1.2.2.1","Реконструкция ВЛ-6 кВ ПС Басьяновка, г. Верхняя Салда",null,null,0,0,0,0,0,0,null,0,0,0,0,0,0,null,0,0,0,0,0,0,0,5.6449999999999996,0,0,9,0,0,null,5.6449999999999996,0,0,9,0,0,4]
["1.2.3","Развитие и модернизация учета электрической энергии (мощности), всего, в том числе:",null,null,0,0,0,0,0,0,null,0,0,0,0,0,0,null,6.4630000000000001,0,0,0,0,296,0,0,0,0,0,0,0,null,6.4630000000000001,0,0,0,0,296,3]
["1.2.3.1","«Установка приборов учета, класс напряжения 0,22 (0,4) кВ, всего, в том числе:»",null,null,0,0,0,0,0,0,null,0,0,0,0,0,0,null,6.4630000000000001,0,0,0,0,296,0,0,0,0,0,0,0,null,6.4630000000000001,0,0,0,0,296,3]
["1.2.3.1","Развитие системы АИИСКУЭ в сетях 0,4 кВ, г. Верхняя Салда",null,null,0,0,0,0,0,0,null,0,0,0,0,0,0,null,6.4630000000000001,0,0,0,0,296,0,0,0,0,0,0,0,null,6.4630000000000001,0,0,0,0,296,3]
["1.6","Прочие инвестиционные проекты, всего, в том числе:",null,null,0,0,0,0,0,0,null,0,0,0,0,0,0,null,0,0,0,0,0,0,0,2.7639999999999998,0,0,0,0,6,null,{"$f":"SUM(AG36,AG37)","v":3.9619999999999997},0,0,0,0,0,4]
["1.6","Развитие системы АИИСКУЭ в сетях 6/10 кВ, г. Верхняя Салда",null,null,0,0,0,0,0,0,null,1.198,0,0,0,0,5,null,0,0,0,0,0,0,0,0,0,0,0,0,0,null,1.198,0,0,0,0,5,2]
["1.6","Установка реклоузеров, г. Верхняя Салда",null,null,0,0,0,0,0,0,null,0,0,0,0,0,0,null,0,0,0,0,0,0,0,2.7639999999999998,0,0,0,0,6,null,2.7639999999999998,0,0,0,0,6,4]
[null,null,null,null,null,null,null,null,null,null,null,null,null,null,null,null,null,null,null,null,null,null,null,null,null,null,null,null,null,null,null,null,null,null,null,null,null,null,{"$f":"IF(#REF!>0,1,IF(#REF!>0,2,IF(#REF!>0,3,IF(#REF!>0,4,\"херня какая то\"))))","v":{"$error":"#REF!"}}]
[null,null,null,null,null,null,null,null,null,null,null,null,null,null,null,null,null,null,null,null,null,null,null,null,null,null,null,null,null,null,null,null,null,null,null,null,null,null,{"$f":"IF(#REF!>0,1,IF(#REF!>0,2,IF(#REF!>0,3,IF(#REF!>0,4,\"херня какая то\"))))","v":{"$error":"#REF!"}}]
[null,null,null,null,null,null,null,null,null,null,null,null,null,null,null,null,null,null,null,null,null,null,null,null,null,null,null,null,null,null,null,null,null,null,null,null,null,null,{"$f":"IF(#REF!>0,1,IF(#REF!>0,2,IF(#REF!>0,3,IF(#REF!>0,4,\"херня какая то\"))))","v":{"$error":"#REF!"}}]
[null,null,null,null,null,null,null,null,null,null,null,null,null,null,null,null,null,null,null,null,null,null,null,null,null,null,null,null,null,null,null,null,null,null,null,null,null,null,{"$f":"IF(#REF!>0,1,IF(#REF!>0,2,IF(#REF!>0,3,IF(#REF!>0,4,\"херня какая то\"))))","v":{"$error":"#REF!"}}]
[null,null,null,null,null,null,null,null,null,null,null,null,null,null,null,null,null,null,null,null,null,null,null,null,null,null,null,null,null,null,null,null,null,null,null,null,null,null,{"$f":"IF(#REF!>0,1,IF(#REF!>0,2,IF(#REF!>0,3,IF(#REF!>0,4,\"херня какая то\"))))","v":{"$error":"#REF!"}}]
[null,null,null,null,null,null,null,null,null,null,null,null,null,null,null,null,null,null,null,null,null,null,null,null,null,null,null,null,null,null,null,null,null,null,null,null,null,null,{"$f":"IF(#REF!>0,1,IF(#REF!>0,2,IF(#REF!>0,3,IF(#REF!>0,4,\"херня какая то\"))))","v":{"$error":"#REF!"}}]
[]
[null,null,null,null,null,null,null,null,null,null,null,null,null,null,null,null,null,null,null,null,null,null,null,null,null,null,null,null,null,null,null,null,null,null,null,null,null,null,{"$f":"IF(#REF!>0,1,IF(#REF!>0,2,IF(#REF!>0,3,IF(#REF!>0,4,\"херня какая то\"))))","v":{"$error":"#REF!"}}]
[null,null,null,null,null,null,null,null,null,null,null,null,null,null,null,null,null,null,null,null,null,null,null,null,null,null,null,null,null,null,null,null,null,null,null,null,null,null,{"$f":"IF(#REF!>0,1,IF(#REF!>0,2,IF(#REF!>0,3,IF(#REF!>0,4,\"херня какая то\"))))","v":{"$error":"#REF!"}}]
[null,null,null,null,null,null,null,null,null,null,null,null,null,null,null,null,null,null,null,null,null,null,null,null,null,null,null,null,null,null,null,null,null,null,null,null,null,null,{"$f":"IF(#REF!>0,1,IF(#REF!>0,2,IF(#REF!>0,3,IF(#REF!>0,4,\"херня какая то\"))))","v":{"$error":"#REF!"}}]
[null,null,null,null,null,null,null,null,null,null,null,null,null,null,null,null,null,null,null,null,null,null,null,null,null,null,null,null,null,null,null,null,null,null,null,null,null,null,{"$f":"IF(#REF!>0,1,IF(#REF!>0,2,IF(#REF!>0,3,IF(#REF!>0,4,\"херня какая то\"))))","v":{"$error":"#REF!"}}]
[null,null,null,null,null,null,null,null,null,null,null,null,null,null,null,null,null,null,null,null,null,null,null,null,null,null,null,null,null,null,null,null,null,null,null,null,null,null,{"$f":"IF(#REF!>0,1,IF(#REF!>0,2,IF(#REF!>0,3,IF(#REF!>0,4,\"херня какая то\"))))","v":{"$error":"#REF!"}}]
[null,null,null,null,null,null,null,null,null,null,null,null,null,null,null,null,null,null,null,null,null,null,null,null,null,null,null,null,null,null,null,null,null,null,null,null,null,null,{"$f":"IF(#REF!>0,1,IF(#REF!>0,2,IF(#REF!>0,3,IF(#REF!>0,4,\"херня какая то\"))))","v":{"$error":"#REF!"}}]
[null,null,null,null,null,null,null,null,null,null,null,null,null,null,null,null,null,null,null,null,null,null,null,null,null,null,null,null,null,null,null,null,null,null,null,null,null,null,{"$f":"IF(#REF!>0,1,IF(#REF!>0,2,IF(#REF!>0,3,IF(#REF!>0,4,\"херня какая то\"))))","v":{"$error":"#REF!"}}]
[null,null,null,null,null,null,null,null,null,null,null,null,null,null,null,null,null,null,null,null,null,null,null,null,null,null,null,null,null,null,null,null,null,null,null,null,null,null,{"$f":"IF(#REF!>0,1,IF(#REF!>0,2,IF(#REF!>0,3,IF(#REF!>0,4,\"херня какая то\"))))","v":{"$error":"#REF!"}}]
[]
[]
[null,null,null,null,null,null,null,null,null,null,null,null,null,null,null,null,null,null,null,null,null,null,null,null,null,null,null,null,null,null,null,null,null,null,null,null,null,null,{"$f":"IF(#REF!>0,1,IF(#REF!>0,2,IF(#REF!>0,3,IF(#REF!>0,4,\"херня какая то\"))))","v":{"$error":"#REF!"}}]
[null,null,null,null,null,null,null,null,null,null,null,null,null,null,null,null,null,null,null,null,null,null,null,null,null,null,null,null,null,null,null,null,null,null,null,null,null,null,{"$f":"IF(#REF!>0,1,IF(#REF!>0,2,IF(#REF!>0,3,IF(#REF!>0,4,\"херня какая то\"))))","v":{"$error":"#REF!"}}]
[null,null,null,null,null,null,null,null,null,null,null,null,null,null,null,null,null,null,null,null,null,null,null,null,null,null,null,null,null,null,null,null,null,null,null,null,null,null,{"$f":"IF(#REF!>0,1,IF(#REF!>0,2,IF(#REF!>0,3,IF(#REF!>0,4,\"херня какая то\"))))","v":{"$error":"#REF!"}}]
[null,null,null,null,null,null,null,null,null,null,null,null,null,null,null,null,null,null,null,null,null,null,null,null,null,null,null,null,null,null,null,null,null,null,null,null,null,null,{"$f":"IF(#REF!>0,1,IF(#REF!>0,2,IF(#REF!>0,3,IF(#REF!>0,4,\"херня какая то\"))))","v":{"$error":"#REF!"}}]
[null,null,null,null,null,null,null,null,null,null,null,null,null,null,null,null,null,null,null,null,null,null,null,null,null,null,null,null,null,null,null,null,null,null,null,null,null,null,{"$f":"IF(#REF!>0,1,IF(#REF!>0,2,IF(#REF!>0,3,IF(#REF!>0,4,\"херня какая то\"))))","v":{"$error":"#REF!"}}]
[null,null,null,null,null,null,null,null,null,null,null,null,null,null,null,null,null,null,null,null,null,null,null,null,null,null,null,null,null,null,null,null,null,null,null,null,null,null,{"$f":"IF(#REF!>0,1,IF(#REF!>0,2,IF(#REF!>0,3,IF(#REF!>0,4,\"херня какая то\"))))","v":{"$error":"#REF!"}}]
[null,null,null,null,null,null,null,null,null,null,null,null,null,null,null,null,null,null,null,null,null,null,null,null,null,null,null,null,null,null,null,null,null,null,null,null,null,null,{"$f":"IF(#REF!>0,1,IF(#REF!>0,2,IF(#REF!>0,3,IF(#REF!>0,4,\"херня какая то\"))))","v":{"$error":"#REF!"}}]
[null,null,null,null,null,null,null,null,null,null,null,null,null,null,null,null,null,null,null,null,null,null,null,null,null,null,null,null,null,null,null,null,null,null,null,null,null,null,{"$f":"IF(#REF!>0,1,IF(#REF!>0,2,IF(#REF!>0,3,IF(#REF!>0,4,\"херня какая то\"))))","v":{"$error":"#REF!"}}]
[null,null,null,null,null,null,null,null,null,null,null,null,null,null,null,null,null,null,null,null,null,null,null,null,null,null,null,null,null,null,null,null,null,null,null,null,null,null,{"$f":"IF(#REF!>0,1,IF(#REF!>0,2,IF(#REF!>0,3,IF(#REF!>0,4,\"херня какая то\"))))","v":{"$error":"#REF!"}}]
[null,null,null,null,null,null,null,null,null,null,null,null,null,null,null,null,null,null,null,null,null,null,null,null,null,null,null,null,null,null,null,null,null,null,null,null,null,null,{"$f":"IF(#REF!>0,1,IF(#REF!>0,2,IF(#REF!>0,3,IF(#REF!>0,4,\"херня какая то\"))))","v":{"$error":"#REF!"}}]
[null,null,null,null,null,null,null,null,null,null,null,null,null,null,null,null,null,null,null,null,null,null,null,null,null,null,null,null,null,null,null,null,null,null,null,null,null,null,{"$f":"IF(#REF!>0,1,IF(#REF!>0,2,IF(#REF!>0,3,IF(#REF!>0,4,\"херня какая то\"))))","v":{"$error":"#REF!"}}]
[null,null,null,null,null,null,null,null,null,null,null,null,null,null,null,null,null,null,null,null,null,null,null,null,null,null,null,null,null,null,null,null,null,null,null,null,null,null,{"$f":"IF(#REF!>0,1,IF(#REF!>0,2,IF(#REF!>0,3,IF(#REF!>0,4,\"херня какая то\"))))","v":{"$error":"#REF!"}}]
[null,null,null,null,null,null,null,null,null,null,null,null,null,null,null,null,null,null,null,null,null,null,null,null,null,null,null,null,null,null,null,null,null,null,null,null,null,null,{"$f":"IF(#REF!>0,1,IF(#REF!>0,2,IF(#REF!>0,3,IF(#REF!>0,4,\"херня какая то\"))))","v":{"$error":"#REF!"}}]
[null,null,null,null,null,null,null,null,null,null,null,null,null,null,null,null,null,null,null,null,null,null,null,null,null,null,null,null,null,null,null,null,null,null,null,null,null,null,{"$f":"IF(#REF!>0,1,IF(#REF!>0,2,IF(#REF!>0,3,IF(#REF!>0,4,\"херня какая то\"))))","v":{"$error":"#REF!"}}]
[null,null,null,null,null,null,null,null,null,null,null,null,null,null,null,null,null,null,null,null,null,null,null,null,null,null,null,null,null,null,null,null,null,null,null,null,null,null,{"$f":"IF(#REF!>0,1,IF(#REF!>0,2,IF(#REF!>0,3,IF(#REF!>0,4,\"херня какая то\"))))","v":{"$error":"#REF!"}}]
[null,null,null,null,null,null,null,null,null,null,null,null,null,null,null,null,null,null,null,null,null,null,null,null,null,null,null,null,null,null,null,null,null,null,null,null,null,null,{"$f":"IF(#REF!>0,1,IF(#REF!>0,2,IF(#REF!>0,3,IF(#REF!>0,4,\"херня какая то\"))))","v":{"$error":"#REF!"}}]
[null,null,null,null,null,null,null,null,null,null,null,null,null,null,null,null,null,null,null,null,null,null,null,null,null,null,null,null,null,null,null,null,null,null,null,null,null,null,{"$f":"IF(#REF!>0,1,IF(#REF!>0,2,IF(#REF!>0,3,IF(#REF!>0,4,\"херня какая то\"))))","v":{"$error":"#REF!"}}]
[null,null,null,null,null,null,null,null,null,null,null,null,null,null,null,null,null,null,null,null,null,null,null,null,null,null,null,null,null,null,null,null,null,null,null,null,null,null,{"$f":"IF(#REF!>0,1,IF(#REF!>0,2,IF(#REF!>0,3,IF(#REF!>0,4,\"херня какая то\"))))","v":{"$error":"#REF!"}}]
[null,null,null,null,null,null,null,null,null,null,null,null,null,null,null,null,null,null,null,null,null,null,null,null,null,null,null,null,null,null,null,null,null,null,null,null,null,null,{"$f":"IF(#REF!>0,1,IF(#REF!>0,2,IF(#REF!>0,3,IF(#REF!>0,4,\"херня какая то\"))))","v":{"$error":"#REF!"}}]
[null,null,null,null,null,null,null,null,null,null,null,null,null,null,null,null,null,null,null,null,null,null,null,null,null,null,null,null,null,null,null,null,null,null,null,null,null,null,{"$f":"IF(#REF!>0,1,IF(#REF!>0,2,IF(#REF!>0,3,IF(#REF!>0,4,\"херня какая то\"))))","v":{"$error":"#REF!"}}]
[null,null,null,null,null,null,null,null,null,null,null,null,null,null,null,null,null,null,null,null,null,null,null,null,null,null,null,null,null,null,null,null,null,null,null,null,null,null,{"$f":"IF(#REF!>0,1,IF(#REF!>0,2,IF(#REF!>0,3,IF(#REF!>0,4,\"херня какая то\"))))","v":{"$error":"#REF!"}}]
[null,null,null,null,null,null,null,null,null,null,null,null,null,null,null,null,null,null,null,null,null,null,null,null,null,null,null,null,null,null,null,null,null,null,null,null,null,null,{"$f":"IF(#REF!>0,1,IF(#REF!>0,2,IF(#REF!>0,3,IF(#REF!>0,4,\"херня какая то\"))))","v":{"$error":"#REF!"}}]
[null,null,null,null,null,null,null,null,null,null,null,null,null,null,null,null,null,null,null,null,null,null,null,null,null,null,null,null,null,null,null,null,null,null,null,null,null,null,{"$f":"IF(#REF!>0,1,IF(#REF!>0,2,IF(#REF!>0,3,IF(#REF!>0,4,\"херня какая то\"))))","v":{"$error":"#REF!"}}]
[null,null,null,null,null,null,null,null,null,null,null,null,null,null,null,null,null,null,null,null,null,null,null,null,null,null,null,null,null,null,null,null,null,null,null,null,null,null,{"$f":"IF(#REF!>0,1,IF(#REF!>0,2,IF(#REF!>0,3,IF(#REF!>0,4,\"херня какая то\"))))","v":{"$error":"#REF!"}}]
[null,null,null,null,null,null,null,null,null,null,null,null,null,null,null,null,null,null,null,null,null,null,null,null,null,null,null,null,null,null,null,null,null,null,null,null,null,null,{"$f":"IF(#REF!>0,1,IF(#REF!>0,2,IF(#REF!>0,3,IF(#REF!>0,4,\"херня какая то\"))))","v":{"$error":"#REF!"}}]
[null,null,null,null,null,null,null,null,null,null,null,null,null,null,null,null,null,null,null,null,null,null,null,null,null,null,null,null,null,null,null,null,null,null,null,null,null,null,{"$f":"IF(#REF!>0,1,IF(#REF!>0,2,IF(#REF!>0,3,IF(#REF!>0,4,\"херня какая то\"))))","v":{"$error":"#REF!"}}]
[null,null,null,null,null,null,null,null,null,null,null,null,null,null,null,null,null,null,null,null,null,null,null,null,null,null,null,null,null,null,null,null,null,null,null,null,null,null,{"$f":"IF(#REF!>0,1,IF(#REF!>0,2,IF(#REF!>0,3,IF(#REF!>0,4,\"херня какая то\"))))","v":{"$error":"#REF!"}}]
[null,null,null,null,null,null,null,null,null,null,null,null,null,null,null,null,null,null,null,null,null,null,null,null,null,null,null,null,null,null,null,null,null,null,null,null,null,null,{"$f":"IF(#REF!>0,1,IF(#REF!>0,2,IF(#REF!>0,3,IF(#REF!>0,4,\"херня какая то\"))))","v":{"$error":"#REF!"}}]
[null,null,null,null,null,null,null,null,null,null,null,null,null,null,null,null,null,null,null,null,null,null,null,null,null,null,null,null,null,null,null,null,null,null,null,null,null,null,{"$f":"IF(#REF!>0,1,IF(#REF!>0,2,IF(#REF!>0,3,IF(#REF!>0,4,\"херня какая то\"))))","v":{"$error":"#REF!"}}]
[null,null,null,null,null,null,null,null,null,null,null,null,null,null,null,null,null,null,null,null,null,null,null,null,null,null,null,null,null,null,null,null,null,null,null,null,null,null,{"$f":"IF(#REF!>0,1,IF(#REF!>0,2,IF(#REF!>0,3,IF(#REF!>0,4,\"херня какая то\"))))","v":{"$error":"#REF!"}}]
[null,null,null,null,null,null,null,null,null,null,null,null,null,null,null,null,null,null,null,null,null,null,null,null,null,null,null,null,null,null,null,null,null,null,null,null,null,null,{"$f":"IF(#REF!>0,1,IF(#REF!>0,2,IF(#REF!>0,3,IF(#REF!>0,4,\"херня какая то\"))))","v":{"$error":"#REF!"}}]
[null,null,null,null,null,null,null,null,null,null,null,null,null,null,null,null,null,null,null,null,null,null,null,null,null,null,null,null,null,null,null,null,null,null,null,null,null,null,{"$f":"IF(#REF!>0,1,IF(#REF!>0,2,IF(#REF!>0,3,IF(#REF!>0,4,\"херня какая то\"))))","v":{"$error":"#REF!"}}]
[null,null,null,null,null,null,null,null,null,null,null,null,null,null,null,null,null,null,null,null,null,null,null,null,null,null,null,null,null,null,null,null,null,null,null,null,null,null,{"$f":"IF(#REF!>0,1,IF(#REF!>0,2,IF(#REF!>0,3,IF(#REF!>0,4,\"херня какая то\"))))","v":{"$error":"#REF!"}}]
[null,null,null,null,null,null,null,null,null,null,null,null,null,null,null,null,null,null,null,null,null,null,null,null,null,null,null,null,null,null,null,null,null,null,null,null,null,null,{"$f":"IF(#REF!>0,1,IF(#REF!>0,2,IF(#REF!>0,3,IF(#REF!>0,4,\"херня какая то\"))))","v":{"$error":"#REF!"}}]
[]
[null,null,null,null,null,null,null,null,null,null,null,null,null,null,null,null,null,null,null,null,null,null,null,null,null,null,null,null,null,null,null,null,null,null,null,null,null,null,{"$f":"IF(#REF!>0,1,IF(#REF!>0,2,IF(#REF!>0,3,IF(#REF!>0,4,\"херня какая то\"))))","v":{"$error":"#REF!"}}]

{"sheet":"5.3","index":9,"n_rows":67,"n_cols":39,"rows_kept":67,"cut":false,"hidden":false,"merged":[[12,0,12,37],[13,0,13,37],[14,0,17,0],[14,1,17,1],[14,2,17,2],[14,3,14,37],[15,3,15,9],[15,10,15,16],[15,17,15,23],[15,24,15,30],[15,31,15,37],[16,4,16,9],[16,11,16,16],[16,18,16,23],[16,25,16,30],[16,32,16,37],[11,0,11,37],[3,0,3,37],[4,0,4,37],[6,0,6,37],[7,0,7,37],[9,0,9,37]]}
[null,null,null,null,null,null,null,null,null,null,null,null,null,null,null,null,null,null,null,null,null,null,null,null,null,null,null,null,null,null,null,null,null,null,null,null,null,"Приложение  № 5"]
[null,null,null,null,null,null,null,null,null,null,null,null,null,null,null,null,null,null,null,null,null,null,null,null,null,null,null,null,null,null,null,null,null,null,null,null,null,"к приказу Минэнерго России"]
[null,null,null,null,null,null,null,null,null,null,null,null,null,null,null,null,null,null,null,null,null,null,null,null,null,null,null,null,null,null,null,null,null,null,null,null,null,"от «__» _____ 2016 г. №___"]
["Форма 5. План ввода основных средств (с распределением по кварталам)"]
[" на 2023 год "]
[]
["Инвестиционная программа АО \"ВЭС\""]
["                                                         полное наименование субъекта электроэнергетики"]
[]
["Год раскрытия информации: 2020 год"]
[]
["Утвержденные плановые значения показателей приведены в соответствии с  ______________________________________________________________________________"]
["                                                                                                              реквизиты решения органа исполнительной власти, утвердившего инвестиционную программу"]
[]
["Номер группы инвести-ционных проектов","  Наименование инвестиционного проекта (группы инвестиционных проектов)","Идентифика-тор инвестицион-ного проекта","План принятия основных средств и нематериальных активов к бухгалтерскому учету на год"]
[null,null,null,"I кв.",null,null,null,null,null,null,"II кв.",null,null,null,null,null,null,"III кв.",null,null,null,null,null,null,"IV кв.",null,null,null,null,null,null,"Итого план (утвержденный план) \nза год"]
[null,null,null,"нематериальные активы","основные средства",null,null,null,null,null,"нематериальные активы","основные средства",null,null,null,null,null,"нематериальные активы","основные средства",null,null,null,null,null,"нематериальные активы","основные средства",null,null,null,null,null,"нематериальные активы","основные средства"]
[null,null,null,"млн рублей (без НДС)","млн рублей (без НДС)","МВ×А","Мвар","км ЛЭП","МВт","Другое","млн рублей (без НДС)","млн рублей (без НДС)","МВ×А","Мвар","км ЛЭП","МВт","Другое","млн рублей (без НДС)","млн рублей (без НДС)","МВ×А","Мвар","км ЛЭП","МВт","Другое","млн рублей (без НДС)","млн рублей (без НДС)","МВ×А","Мвар","км ЛЭП","МВт","Другое","млн рублей (без НДС)","млн рублей (без НДС)","МВ×А","Мвар","км ЛЭП","МВт","Другое"]
[1,2,3,"4.1.1","4.1.2","4.1.3","4.1.4","4.1.5","4.1.6","4.1.7","4.2.1","4.2.2","4.2.3","4.2.4","4.2.5","4.2.6","4.2.7","4.3.1","4.3.2","4.3.3","4.3.4","4.3.5","4.3.6","4.3.7","4.4.1","4.4.2","4.4.3","4.4.4","4.4.5","4.4.6","4.4.7","5","6","7","8","9","10","11"]
["0","ВСЕГО по инвестиционной программе, в том числе:",null,{"$f":"D21+D22+D23","v":0},0,{"$f":"F21+F22+F23","v":0},0,0,0,0,0,1.4379999999999999,0,0,0,0,6,0,6.4630000000000001,0,0,0,0,296,0,8.1679999999999993,0,0,0,0,2,0,{"$f":"SUM(Z20,S20,L20)","v":16.068999999999999},{"$f":"AH21+AH22+AH23","v":0},0,0,0,304,0]
["0.2","Реконструкция, модернизация, техническое перевооружение, всего",null,{"$f":"D25","v":0},{"$f":"E25","v":0},{"$f":"F25","v":0},0,0,0,0,0,0,0,0,0,0,0,0,6.4630000000000001,0,0,0,0,296,0,0,0,0,0,0,0,0,6.4630000000000001,{"$f":"AH25","v":0},0,0,0,296,0]
["0.3","Инвестиционные проекты, реализация которых обуславливается схемами и программами перспективного развития электроэнергетики, всего"]
["0.6","Прочие инвестиционные проекты, всего",null,{"$f":"SUMIF(OFFSET($B23,1,0):$B955,\"Прочие инвестиционные проекты, всего, в том числе:\",OFFSET(D23,1,0):D955)","v":0},{"$f":"SUMIF(OFFSET($B23,1,0):$B955,\"Прочие инвестиционные проекты, всего, в том числе:\",OFFSET(E23,1,0):E955)","v":0},{"$f":"SUMIF(OFFSET($B23,1,0):$B955,\"Прочие инвестиционные проекты, всего, в том числе:\",OFFSET(F23,1,0):F955)","v":0},{"$f":"SUMIF(OFFSET($B23,1,0):$B955,\"Прочие инвестиционные проекты, всего, в том числе:\",OFFSET(G23,1,0):G955)","v":0},{"$f":"SUMIF(OFFSET($B23,1,0):$B955,\"Прочие инвестиционные проекты, всего, в том числе:\",OFFSET(H23,1,0):H955)","v":0},{"$f":"SUMIF(OFFSET($B23,1,0):$B955,\"Прочие инвестиционные проекты, всего, в том числе:\",OFFSET(I23,1,0):I955)","v":0},{"$f":"SUMIF(OFFSET($B23,1,0):$B955,\"Прочие инвестиционные проекты, всего, в том числе:\",OFFSET(J23,1,0):J955)","v":0},{"$f":"SUMIF(OFFSET($B23,1,0):$B955,\"Прочие инвестиционные проекты, всего, в том числе:\",OFFSET(K23,1,0):K955)","v":0},{"$f":"SUMIF(OFFSET($B23,1,0):$B955,\"Прочие инвестиционные проекты, всего, в том числе:\",OFFSET(L23,1,0):L955)","v":1.4379999999999999},{"$f":"SUMIF(OFFSET($B23,1,0):$B955,\"Прочие инвестиционные проекты, всего, в том числе:\",OFFSET(M23,1,0):M955)","v":0},{"$f":"SUMIF(OFFSET($B23,1,0):$B955,\"Прочие инвестиционные проекты, всего, в том числе:\",OFFSET(N23,1,0):N955)","v":0},{"$f":"SUMIF(OFFSET($B23,1,0):$B955,\"Прочие инвестиционные проекты, всего, в том числе:\",OFFSET(O23,1,0):O955)","v":0},{"$f":"SUMIF(OFFSET($B23,1,0):$B955,\"Прочие инвестиционные проекты, всего, в том числе:\",OFFSET(P23,1,0):P955)","v":0},{"$f":"SUMIF(OFFSET($B23,1,0):$B955,\"Прочие инвестиционные проекты, всего, в том числе:\",OFFSET(Q23,1,0):Q955)","v":6},{"$f":"SUMIF(OFFSET($B23,1,0):$B955,\"Прочие инвестиционные проекты, всего, в том числе:\",OFFSET(R23,1,0):R955)","v":0},{"$f":"SUMIF(OFFSET($B23,1,0):$B955,\"Прочие инвестиционные проекты, всего, в том числе:\",OFFSET(S23,1,0):S955)","v":0},{"$f":"SUMIF(OFFSET($B23,1,0):$B955,\"Прочие инвестиционные проекты, всего, в том числе:\",OFFSET(T23,1,0):T955)","v":0},{"$f":"SUMIF(OFFSET($B23,1,0):$B955,\"Прочие инвестиционные проекты, всего, в том числе:\",OFFSET(U23,1,0):U955)","v":0},{"$f":"SUMIF(OFFSET($B23,1,0):$B955,\"Прочие инвестиционные проекты, всего, в том числе:\",OFFSET(V23,1,0):V955)","v":0},{"$f":"SUMIF(OFFSET($B23,1,0):$B955,\"Прочие инвестиционные проекты, всего, в том числе:\",OFFSET(W23,1,0):W955)","v":0},{"$f":"SUMIF(OFFSET($B23,1,0):$B955,\"Прочие инвестиционные проекты, всего, в том числе:\",OFFSET(X23,1,0):X955)","v":0},{"$f":"SUMIF(OFFSET($B23,1,0):$B955,\"Прочие инвестиционные проекты, всего, в том числе:\",OFFSET(Y23,1,0):Y955)","v":0},{"$f":"SUMIF(OFFSET($B23,1,0):$B955,\"Прочие инвестиционные проекты, всего, в том числе:\",OFFSET(Z23,1,0):Z955)","v":8.1679999999999993},{"$f":"SUMIF(OFFSET($B23,1,0):$B955,\"Прочие инвестиционные проекты, всего, в том числе:\",OFFSET(AA23,1,0):AA955)","v":0},{"$f":"SUMIF(OFFSET($B23,1,0):$B955,\"Прочие инвестиционные проекты, всего, в том числе:\",OFFSET(AB23,1,0):AB955)","v":0},{"$f":"SUMIF(OFFSET($B23,1,0):$B955,\"Прочие инвестиционные проекты, всего, в том числе:\",OFFSET(AC23,1,0):AC955)","v":0},{"$f":"SUMIF(OFFSET($B23,1,0):$B955,\"Прочие инвестиционные проекты, всего, в том числе:\",OFFSET(AD23,1,0):AD955)","v":0},2,{"$f":"SUMIF(OFFSET($B23,1,0):$B955,\"Прочие инвестиционные проекты, всего, в том числе:\",OFFSET(AF23,1,0):AF955)","v":0},{"$f":"SUM(Z23,L23)","v":9.6059999999999999},{"$f":"SUMIF(OFFSET($B23,1,0):$B955,\"Прочие инвестиционные проекты, всего, в том числе:\",OFFSET(AH23,1,0):AH955)","v":0},{"$f":"SUMIF(OFFSET($B23,1,0):$B955,\"Прочие инвестиционные проекты, всего, в том числе:\",OFFSET(AI23,1,0):AI955)","v":0},{"$f":"SUMIF(OFFSET($B23,1,0):$B955,\"Прочие инвестиционные проекты, всего, в том числе:\",OFFSET(AJ23,1,0):AJ955)","v":0},{"$f":"SUMIF(OFFSET($B23,1,0):$B955,\"Прочие инвестиционные проекты, всего, в том числе:\",OFFSET(AK23,1,0):AK955)","v":0},8,{"$f":"SUMIF(OFFSET($B23,1,0):$B955,\"Прочие инвестиционные проекты, всего, в том числе:\",OFFSET(AM23,1,0):AM955)","v":0}]
["1","Свердловская область",null,0,0,0,0,0,0,0,0,1.4379999999999999,0,0,0,0,0,0,{"$f":"S25+S294","v":6.4630000000000001},{"$f":"T25+T294","v":0},0,{"$f":"V25+V294","v":0},0,{"$f":"X25+X294","v":296},{"$f":"Y25+Y294","v":0},8.1679999999999993,0,0,0,0,{"$f":"AE25+AE294","v":0},0,{"$f":"SUM(Z24,S24,L24)","v":16.068999999999999},0,0,0,0,304,0]
["1.2","Реконструкция, модернизация, техническое перевооружение всего, в том числе:",null,0,0,0,0,0,0,0,0,0,0,0,0,0,0,0,6.4630000000000001,0,0,0,0,296,0,0,0,0,0,0,0,0,6.4630000000000001,0,0,0,0,296,0]
["1.2.1","Реконструкция, модернизация, техническое перевооружение  трансформаторных и иных подстанций, распределительных пунктов, всего, в том числе:",null,0,0,0,0,0,0,0,0,0,0,0,0,0,0,0,0,0,0,0,0,0,0,0,0,0,0,0,0,0,0,0,0,0,0,0,0]
["1.2.1.1","Реконструкция трансформаторных и иных подстанций, всего, в том числе:",null,{"$f":"SUMIF(OFFSET($A27,1,0):$A959,$A27,OFFSET(D27,1,0):D959)","v":0},{"$f":"SUMIF(OFFSET($A27,1,0):$A959,$A27,OFFSET(E27,1,0):E959)","v":0},{"$f":"SUMIF(OFFSET($A27,1,0):$A959,$A27,OFFSET(F27,1,0):F959)","v":0},{"$f":"SUMIF(OFFSET($A27,1,0):$A959,$A27,OFFSET(G27,1,0):G959)","v":0},{"$f":"SUMIF(OFFSET($A27,1,0):$A959,$A27,OFFSET(H27,1,0):H959)","v":0},{"$f":"SUMIF(OFFSET($A27,1,0):$A959,$A27,OFFSET(I27,1,0):I959)","v":0},{"$f":"SUMIF(OFFSET($A27,1,0):$A959,$A27,OFFSET(J27,1,0):J959)","v":0},{"$f":"SUMIF(OFFSET($A27,1,0):$A959,$A27,OFFSET(K27,1,0):K959)","v":0},{"$f":"SUMIF(OFFSET($A27,1,0):$A959,$A27,OFFSET(L27,1,0):L959)","v":0},{"$f":"SUMIF(OFFSET($A27,1,0):$A959,$A27,OFFSET(M27,1,0):M959)","v":0},{"$f":"SUMIF(OFFSET($A27,1,0):$A959,$A27,OFFSET(N27,1,0):N959)","v":0},{"$f":"SUMIF(OFFSET($A27,1,0):$A959,$A27,OFFSET(O27,1,0):O959)","v":0},{"$f":"SUMIF(OFFSET($A27,1,0):$A959,$A27,OFFSET(P27,1,0):P959)","v":0},{"$f":"SUMIF(OFFSET($A27,1,0):$A959,$A27,OFFSET(Q27,1,0):Q959)","v":0},{"$f":"SUMIF(OFFSET($A27,1,0):$A959,$A27,OFFSET(R27,1,0):R959)","v":0},{"$f":"SUMIF(OFFSET($A27,1,0):$A959,$A27,OFFSET(S27,1,0):S959)","v":0},{"$f":"SUMIF(OFFSET($A27,1,0):$A959,$A27,OFFSET(T27,1,0):T959)","v":0},{"$f":"SUMIF(OFFSET($A27,1,0):$A959,$A27,OFFSET(U27,1,0):U959)","v":0},{"$f":"SUMIF(OFFSET($A27,1,0):$A959,$A27,OFFSET(V27,1,0):V959)","v":0},{"$f":"SUMIF(OFFSET($A27,1,0):$A959,$A27,OFFSET(W27,1,0):W959)","v":0},{"$f":"SUMIF(OFFSET($A27,1,0):$A959,$A27,OFFSET(X27,1,0):X959)","v":0},{"$f":"SUMIF(OFFSET($A27,1,0):$A959,$A27,OFFSET(Y27,1,0):Y959)","v":0},{"$f":"SUMIF(OFFSET($A27,1,0):$A959,$A27,OFFSET(Z27,1,0):Z959)","v":0},{"$f":"SUMIF(OFFSET($A27,1,0):$A959,$A27,OFFSET(AA27,1,0):AA959)","v":0},{"$f":"SUMIF(OFFSET($A27,1,0):$A959,$A27,OFFSET(AB27,1,0):AB959)","v":0},{"$f":"SUMIF(OFFSET($A27,1,0):$A959,$A27,OFFSET(AC27,1,0):AC959)","v":0},{"$f":"SUMIF(OFFSET($A27,1,0):$A959,$A27,OFFSET(AD27,1,0):AD959)","v":0},{"$f":"SUMIF(OFFSET($A27,1,0):$A959,$A27,OFFSET(AE27,1,0):AE959)","v":0},{"$f":"SUMIF(OFFSET($A27,1,0):$A959,$A27,OFFSET(AF27,1,0):AF959)","v":0},{"$f":"SUMIF(OFFSET($A27,1,0):$A959,$A27,OFFSET(AG27,1,0):AG959)","v":0},{"$f":"SUMIF(OFFSET($A27,1,0):$A959,$A27,OFFSET(AH27,1,0):AH959)","v":0},{"$f":"SUMIF(OFFSET($A27,1,0):$A959,$A27,OFFSET(AI27,1,0):AI959)","v":0},{"$f":"SUMIF(OFFSET($A27,1,0):$A959,$A27,OFFSET(AJ27,1,0):AJ959)","v":0},{"$f":"SUMIF(OFFSET($A27,1,0):$A959,$A27,OFFSET(AK27,1,0):AK959)","v":0},{"$f":"SUMIF(OFFSET($A27,1,0):$A959,$A27,OFFSET(AL27,1,0):AL959)","v":0},{"$f":"SUMIF(OFFSET($A27,1,0):$A959,$A27,OFFSET(AM27,1,0):AM959)","v":0}]
["1.2.1.2","Модернизация, техническое перевооружение трансформаторных и иных подстанций, распределительных пунктов, всего, в том числе:",null,null,0,0,0,0,0,0,0,0,{"$f":"IF(L28>0,$AH28,0)","v":0},{"$f":"IF(L28>0,$AI28,0)","v":0},{"$f":"IF(L28>0,$AJ28,0)","v":0},{"$f":"IF(L28>0,$AK28,0)","v":0},{"$f":"IF(L28>0,$AL28,0)","v":0},null,0,0,{"$f":"IF(S28>0,$AI28,0)","v":0},{"$f":"IF(S28>0,$AJ28,0)","v":0},{"$f":"IF(S28>0,$AK28,0)","v":0},{"$f":"IF(S28>0,$AL28,0)","v":0},null,0,{"$f":"IF(Z28>0,$AH28,0)","v":0},{"$f":"IF(Z28>0,$AI28,0)","v":0},{"$f":"IF(Z28>0,$AJ28,0)","v":0},{"$f":"IF(Z28>0,$AK28,0)","v":0},{"$f":"IF(Z28>0,$AL28,0)","v":0},null,0,{"$f":"IF(AE28>0,$AJ28,0)","v":0},0,{"$f":"IF(AG28>0,$AJ28,0)","v":0},{"$f":"IF(AH28>0,$AJ28,0)","v":0},{"$f":"IF(AI28>0,$AJ28,0)","v":0},{"$f":"IF(AJ28>0,$AJ28,0)","v":0}]
["1.2.2","Реконструкция, модернизация, техническое перевооружение линий электропередачи, всего, в том числе:",null,null,0,0,0,0,0,0,0,0,0,0,0,0,0,null,0,{"$f":"IF(S29>0,$AH29,0)","v":0},0,0,0,0,null,0,0,0,0,0,0,null,0,0,0,0,0,0,0]
["1.2.2.1","Реконструкция линий электропередачи, всего, в том числе:",null,null,0,0,0,0,0,0,0,0,0,0,0,0,0,null,0,0,0,0,0,0,null,0,0,0,0,0,0,null,0,0,0,0,0,0,0]
["1.2.3","Развитие и модернизация учета электрической энергии (мощности), всего, в том числе:",null,null,0,0,0,0,0,0,0,0,0,0,0,0,0,null,6.4630000000000001,0,0,0,0,296,null,0,0,0,0,0,0,null,6.4630000000000001,0,0,0,0,296,0]
["1.2.3.1","«Установка приборов учета, класс напряжения 0,22 (0,4) кВ, всего, в том числе:»",null,null,0,0,0,0,0,0,0,0,0,0,0,0,0,null,6.4630000000000001,0,0,0,0,296,null,0,0,0,0,0,0,null,6.4630000000000001,0,0,0,0,296,0]
["1.2.3.1","Развитие системы АИИСКУЭ в сетях 0,4 кВ, г. Верхняя Салда",null,null,0,0,0,0,0,0,0,0,0,0,0,0,0,null,6.4630000000000001,0,0,0,0,296,null,0,0,0,0,0,0,null,6.4630000000000001,0,0,0,0,296,0]
["1.6","Прочие инвестиционные проекты, всего, в том числе:",null,null,0,0,0,0,0,0,0,1.4379999999999999,0,0,0,0,6,null,0,0,0,0,0,0,null,{"$f":"SUM(Z36,Z37)","v":8.1679999999999993},0,0,0,0,2,null,8.1679999999999993,0,0,0,0,0,0]
["1.6","Развитие системы АИИСКУЭ в сетях 6/10 кВ, г. Верхняя Салда",null,null,0,0,0,0,0,0,0,1.4379999999999999,0,0,0,0,6,null,0,0,0,0,0,0,null,0,0,0,0,0,0,null,1.4379999999999999,0,0,0,0,6,0]
["1.6","Приобретение передвижной электротехнической лаборатории",null,null,0,0,0,0,0,0,0,0,0,0,0,0,0,null,0,0,0,0,0,0,null,3.9820000000000002,0,0,0,0,1,null,3.9820000000000002,0,0,0,0,1,0]
["1.6","Реконструкция кровли теплой автостоянки для строительно- эксплуатационной техники, г. Верхняя Салда ",null,null,0,0,0,0,0,0,0,0,0,0,0,0,0,null,0,0,0,0,0,0,null,4.1859999999999999,0,0,0,0,1,null,4.1859999999999999,0,0,0,0,1,0]
[null,null,null,null,null,null,null,null,null,null,null,null,null,null,null,null,null,null,null,null,null,null,null,null,null,null,null,null,null,null,null,null,null,null,null,null,null,null,{"$f":"IF(#REF!>0,1,IF(#REF!>0,2,IF(#REF!>0,3,IF(#REF!>0,4,\"херня какая то\"))))","v":{"$error":"#REF!"}}]
[null,null,null,null,null,null,null,null,null,null,null,null,null,null,null,null,null,null,null,null,null,null,null,null,null,null,null,null,null,null,null,null,null,null,null,null,null,null,{"$f":"IF(#REF!>0,1,IF(#REF!>0,2,IF(#REF!>0,3,IF(#REF!>0,4,\"херня какая то\"))))","v":{"$error":"#REF!"}}]
[null,null,null,null,null,null,null,null,null,null,null,null,null,null,null,null,null,null,null,null,null,null,null,null,null,null,null,null,null,null,null,null,null,null,null,null,null,null,{"$f":"IF(#REF!>0,1,IF(#REF!>0,2,IF(#REF!>0,3,IF(#REF!>0,4,\"херня какая то\"))))","v":{"$error":"#REF!"}}]
[null,null,null,null,null,null,null,null,null,null,null,null,null,null,null,null,null,null,null,null,null,null,null,null,null,null,null,null,null,null,null,null,null,null,null,null,null,null,{"$f":"IF(#REF!>0,1,IF(#REF!>0,2,IF(#REF!>0,3,IF(#REF!>0,4,\"херня какая то\"))))","v":{"$error":"#REF!"}}]
[null,null,null,null,null,null,null,null,null,null,null,null,null,null,null,null,null,null,null,null,null,null,null,null,null,null,null,null,null,null,null,null,null,null,null,null,null,null,{"$f":"IF(#REF!>0,1,IF(#REF!>0,2,IF(#REF!>0,3,IF(#REF!>0,4,\"херня какая то\"))))","v":{"$error":"#REF!"}}]
[]
[null,null,null,null,null,null,null,null,null,null,null,null,null,null,null,null,null,null,null,null,null,null,null,null,null,null,null,null,null,null,null,null,null,null,null,null,null,null,{"$f":"IF(#REF!>0,1,IF(#REF!>0,2,IF(#REF!>0,3,IF(#REF!>0,4,\"херня какая то\"))))","v":{"$error":"#REF!"}}]
[null,null,null,null,null,null,null,null,null,null,null,null,null,null,null,null,null,null,null,null,null,null,null,null,null,null,null,null,null,null,null,null,null,null,null,null,null,null,{"$f":"IF(#REF!>0,1,IF(#REF!>0,2,IF(#REF!>0,3,IF(#REF!>0,4,\"херня какая то\"))))","v":{"$error":"#REF!"}}]
[]
[]
[null,null,null,null,null,null,null,null,null,null,null,null,null,null,null,null,null,null,null,null,null,null,null,null,null,null,null,null,null,null,null,null,null,null,null,null,null,null,{"$f":"IF(#REF!>0,1,IF(#REF!>0,2,IF(#REF!>0,3,IF(#REF!>0,4,\"херня какая то\"))))","v":{"$error":"#REF!"}}]
[null,null,null,null,null,null,null,null,null,null,null,null,null,null,null,null,null,null,null,null,null,null,null,null,null,null,null,null,null,null,null,null,null,null,null,null,null,null,{"$f":"IF(#REF!>0,1,IF(#REF!>0,2,IF(#REF!>0,3,IF(#REF!>0,4,\"херня какая то\"))))","v":{"$error":"#REF!"}}]
[null,null,null,null,null,null,null,null,null,null,null,null,null,null,null,null,null,null,null,null,null,null,null,null,null,null,null,null,null,null,null,null,null,null,null,null,null,null,{"$f":"IF(#REF!>0,1,IF(#REF!>0,2,IF(#REF!>0,3,IF(#REF!>0,4,\"херня какая то\"))))","v":{"$error":"#REF!"}}]
[null,null,null,null,null,null,null,null,null,null,null,null,null,null,null,null,null,null,null,null,null,null,null,null,null,null,null,null,null,null,null,null,null,null,null,null,null,null,{"$f":"IF(#REF!>0,1,IF(#REF!>0,2,IF(#REF!>0,3,IF(#REF!>0,4,\"херня какая то\"))))","v":{"$error":"#REF!"}}]
[null,null,null,null,null,null,null,null,null,null,null,null,null,null,null,null,null,null,null,null,null,null,null,null,null,null,null,null,null,null,null,null,null,null,null,null,null,null,{"$f":"IF(#REF!>0,1,IF(#REF!>0,2,IF(#REF!>0,3,IF(#REF!>0,4,\"херня какая то\"))))","v":{"$error":"#REF!"}}]
[null,null,null,null,null,null,null,null,null,null,null,null,null,null,null,null,null,null,null,null,null,null,null,null,null,null,null,null,null,null,null,null,null,null,null,null,null,null,{"$f":"IF(#REF!>0,1,IF(#REF!>0,2,IF(#REF!>0,3,IF(#REF!>0,4,\"херня какая то\"))))","v":{"$error":"#REF!"}}]
[null,null,null,null,null,null,null,null,null,null,null,null,null,null,null,null,null,null,null,null,null,null,null,null,null,null,null,null,null,null,null,null,null,null,null,null,null,null,{"$f":"IF(#REF!>0,1,IF(#REF!>0,2,IF(#REF!>0,3,IF(#REF!>0,4,\"херня какая то\"))))","v":{"$error":"#REF!"}}]
[null,null,null,null,null,null,null,null,null,null,null,null,null,null,null,null,null,null,null,null,null,null,null,null,null,null,null,null,null,null,null,null,null,null,null,null,null,null,{"$f":"IF(#REF!>0,1,IF(#REF!>0,2,IF(#REF!>0,3,IF(#REF!>0,4,\"херня какая то\"))))","v":{"$error":"#REF!"}}]
[null,null,null,null,null,null,null,null,null,null,null,null,null,null,null,null,null,null,null,null,null,null,null,null,null,null,null,null,null,null,null,null,null,null,null,null,null,null,{"$f":"IF(#REF!>0,1,IF(#REF!>0,2,IF(#REF!>0,3,IF(#REF!>0,4,\"херня какая то\"))))","v":{"$error":"#REF!"}}]
[null,null,null,null,null,null,null,null,null,null,null,null,null,null,null,null,null,null,null,null,null,null,null,null,null,null,null,null,null,null,null,null,null,null,null,null,null,null,{"$f":"IF(#REF!>0,1,IF(#REF!>0,2,IF(#REF!>0,3,IF(#REF!>0,4,\"херня какая то\"))))","v":{"$error":"#REF!"}}]
[null,null,null,null,null,null,null,null,null,null,null,null,null,null,null,null,null,null,null,null,null,null,null,null,null,null,null,null,null,null,null,null,null,null,null,null,null,null,{"$f":"IF(#REF!>0,1,IF(#REF!>0,2,IF(#REF!>0,3,IF(#REF!>0,4,\"херня какая то\"))))","v":{"$error":"#REF!"}}]
[null,null,null,null,null,null,null,null,null,null,null,null,null,null,null,null,null,null,null,null,null,null,null,null,null,null,null,null,null,null,null,null,null,null,null,null,null,null,{"$f":"IF(#REF!>0,1,IF(#REF!>0,2,IF(#REF!>0,3,IF(#REF!>0,4,\"херня какая то\"))))","v":{"$error":"#REF!"}}]
[null,null,null,null,null,null,null,null,null,null,null,null,null,null,null,null,null,null,null,null,null,null,null,null,null,null,null,null,null,null,null,null,null,null,null,null,null,null,{"$f":"IF(#REF!>0,1,IF(#REF!>0,2,IF(#REF!>0,3,IF(#REF!>0,4,\"херня какая то\"))))","v":{"$error":"#REF!"}}]
[null,null,null,null,null,null,null,null,null,null,null,null,null,null,null,null,null,null,null,null,null,null,null,null,null,null,null,null,null,null,null,null,null,null,null,null,null,null,{"$f":"IF(#REF!>0,1,IF(#REF!>0,2,IF(#REF!>0,3,IF(#REF!>0,4,\"херня какая то\"))))","v":{"$error":"#REF!"}}]
[null,null,null,null,null,null,null,null,null,null,null,null,null,null,null,null,null,null,null,null,null,null,null,null,null,null,null,null,null,null,null,null,null,null,null,null,null,null,{"$f":"IF(#REF!>0,1,IF(#REF!>0,2,IF(#REF!>0,3,IF(#REF!>0,4,\"херня какая то\"))))","v":{"$error":"#REF!"}}]
[]
[]
[null,null,null,null,null,null,null,null,null,null,null,null,null,null,null,null,null,null,null,null,null,null,null,null,null,null,null,null,null,null,null,null,null,null,null,null,null,null,{"$f":"IF(#REF!>0,1,IF(#REF!>0,2,IF(#REF!>0,3,IF(#REF!>0,4,\"херня какая то\"))))","v":{"$error":"#REF!"}}]
[]
[null,null,null,null,null,null,null,null,null,null,null,null,null,null,null,null,null,null,null,null,null,null,null,null,null,null,null,null,null,null,null,null,null,null,null,null,null,null,{"$f":"IF(#REF!>0,1,IF(#REF!>0,2,IF(#REF!>0,3,IF(#REF!>0,4,\"херня какая то\"))))","v":{"$error":"#REF!"}}]

{"sheet":"5.4","index":10,"n_rows":76,"n_cols":39,"rows_kept":76,"cut":false,"hidden":false,"merged":[[12,0,12,37],[13,0,13,37],[14,0,17,0],[14,1,17,1],[14,2,17,2],[14,3,14,37],[15,3,15,9],[15,10,15,16],[15,17,15,23],[15,24,15,30],[15,31,15,37],[16,4,16,9],[16,11,16,16],[16,18,16,23],[16,25,16,30],[16,32,16,37],[11,0,11,37],[3,0,3,37],[4,0,4,37],[6,0,6,37],[7,0,7,37],[9,0,9,37]]}
[null,null,null,null,null,null,null,null,null,null,null,null,null,null,null,null,null,null,null,null,null,null,null,null,null,null,null,null,null,null,null,null,null,null,null,null,null,"Приложение  № 5"]
[null,null,null,null,null,null,null,null,null,null,null,null,null,null,null,null,null,null,null,null,null,null,null,null,null,null,null,null,null,null,null,null,null,null,null,null,null,"к приказу Минэнерго России"]
[null,null,null,null,null,null,null,null,null,null,null,null,null,null,null,null,null,null,null,null,null,null,null,null,null,null,null,null,null,null,null,null,null,null,null,null,null,"от «__» _____ 2016 г. №___"]
["Форма 5. План ввода основных средств (с распределением по кварталам)"]
[" на 2024 год "]
[]
["Инвестиционная программа АО \"ВЭС\""]
["                                                         полное наименование субъекта электроэнергетики"]
[]
["Год раскрытия информации: 2020 год"]
[]
["Утвержденные плановые значения показателей приведены в соответствии с  ______________________________________________________________________________"]
["                                                                                                              реквизиты решения органа исполнительной власти, утвердившего инвестиционную программу"]
[]
["Номер группы инвести-ционных проектов","  Наименование инвестиционного проекта (группы инвестиционных проектов)","Идентифика-тор инвестицион-ного проекта","План принятия основных средств и нематериальных активов к бухгалтерскому учету на год"]
[null,null,null,"I кв.",null,null,null,null,null,null,"II кв.",null,null,null,null,null,null,"III кв.",null,null,null,null,null,null,"IV кв.",null,null,null,null,null,null,"Итого план (утвержденный план) \nза год"]
[null,null,null,"нематериальные активы","основные средства",null,null,null,null,null,"нематериальные активы","основные средства",null,null,null,null,null,"нематериальные активы","основные средства",null,null,null,null,null,"нематериальные активы","основные средства",null,null,null,null,null,"нематериальные активы","основные средства"]
[null,null,null,"млн рублей (без НДС)","млн рублей (без НДС)","МВ×А","Мвар","км ЛЭП","МВт","Другое","млн рублей (без НДС)","млн рублей (без НДС)","МВ×А","Мвар","км ЛЭП","МВт","Другое","млн рублей (без НДС)","млн рублей (без НДС)","МВ×А","Мвар","км ЛЭП","МВт","Другое","млн рублей (без НДС)","млн рублей (без НДС)","МВ×А","Мвар","км ЛЭП","МВт","Другое","млн рублей (без НДС)","млн рублей (без НДС)","МВ×А","Мвар","км ЛЭП","МВт","Другое"]
[1,2,3,"4.1.1","4.1.2","4.1.3","4.1.4","4.1.5","4.1.6","4.1.7","4.2.1","4.2.2","4.2.3","4.2.4","4.2.5","4.2.6","4.2.7","4.3.1","4.3.2","4.3.3","4.3.4","4.3.5","4.3.6","4.3.7","4.4.1","4.4.2","4.4.3","4.4.4","4.4.5","4.4.6","4.4.7","5","6","7","8","9","10","11"]
["0","ВСЕГО по инвестиционной программе, в том числе:",0,{"$f":"D21+D22+D23","v":0},{"$f":"E21+E22+E23","v":0},0,0,0,0,0,0,1.75,0,0,0,0,2,0,6.0069999999999997,0,0,0,0,11,0,8.3059999999999992,0,0,0,0,380,0,{"$f":"SUM(Z20,L20,S20)","v":16.062999999999999},0,0,0,0,393]
["0.2","Реконструкция, модернизация, техническое перевооружение, всего",0,{"$f":"D25","v":0},{"$f":"E25","v":0},0,0,0,0,0,0,1.75,0,0,0,0,2,0,6.0069999999999997,0,0,0,0,11,0,8.3059999999999992,0,0,0,0,380,0,{"$f":"SUM(Z21,L21)","v":10.055999999999999},0,0,0,0,393]
["0.3","Инвестиционные проекты, реализация которых обуславливается схемами и программами перспективного развития электроэнергетики, всего",0]
["0.6","Прочие инвестиционные проекты, всего",0,{"$f":"SUMIF(OFFSET($B23,1,0):$B945,\"Прочие инвестиционные проекты, всего, в том числе:\",OFFSET(D23,1,0):D945)","v":0},{"$f":"SUMIF(OFFSET($B23,1,0):$B945,\"Прочие инвестиционные проекты, всего, в том числе:\",OFFSET(E23,1,0):E945)","v":0},{"$f":"SUMIF(OFFSET($B23,1,0):$B945,\"Прочие инвестиционные проекты, всего, в том числе:\",OFFSET(F23,1,0):F945)","v":0},{"$f":"SUMIF(OFFSET($B23,1,0):$B945,\"Прочие инвестиционные проекты, всего, в том числе:\",OFFSET(G23,1,0):G945)","v":0},{"$f":"SUMIF(OFFSET($B23,1,0):$B945,\"Прочие инвестиционные проекты, всего, в том числе:\",OFFSET(H23,1,0):H945)","v":0},{"$f":"SUMIF(OFFSET($B23,1,0):$B945,\"Прочие инвестиционные проекты, всего, в том числе:\",OFFSET(I23,1,0):I945)","v":0},{"$f":"SUMIF(OFFSET($B23,1,0):$B945,\"Прочие инвестиционные проекты, всего, в том числе:\",OFFSET(J23,1,0):J945)","v":0},{"$f":"SUMIF(OFFSET($B23,1,0):$B945,\"Прочие инвестиционные проекты, всего, в том числе:\",OFFSET(K23,1,0):K945)","v":0},{"$f":"SUMIF(OFFSET($B23,1,0):$B945,\"Прочие инвестиционные проекты, всего, в том числе:\",OFFSET(L23,1,0):L945)","v":0},{"$f":"SUMIF(OFFSET($B23,1,0):$B945,\"Прочие инвестиционные проекты, всего, в том числе:\",OFFSET(M23,1,0):M945)","v":0},{"$f":"SUMIF(OFFSET($B23,1,0):$B945,\"Прочие инвестиционные проекты, всего, в том числе:\",OFFSET(N23,1,0):N945)","v":0},{"$f":"SUMIF(OFFSET($B23,1,0):$B945,\"Прочие инвестиционные проекты, всего, в том числе:\",OFFSET(O23,1,0):O945)","v":0},{"$f":"SUMIF(OFFSET($B23,1,0):$B945,\"Прочие инвестиционные проекты, всего, в том числе:\",OFFSET(P23,1,0):P945)","v":0},{"$f":"SUMIF(OFFSET($B23,1,0):$B945,\"Прочие инвестиционные проекты, всего, в том числе:\",OFFSET(Q23,1,0):Q945)","v":0},{"$f":"SUMIF(OFFSET($B23,1,0):$B945,\"Прочие инвестиционные проекты, всего, в том числе:\",OFFSET(R23,1,0):R945)","v":0},{"$f":"SUMIF(OFFSET($B23,1,0):$B945,\"Прочие инвестиционные проекты, всего, в том числе:\",OFFSET(S23,1,0):S945)","v":0},{"$f":"SUMIF(OFFSET($B23,1,0):$B945,\"Прочие инвестиционные проекты, всего, в том числе:\",OFFSET(T23,1,0):T945)","v":0},{"$f":"SUMIF(OFFSET($B23,1,0):$B945,\"Прочие инвестиционные проекты, всего, в том числе:\",OFFSET(U23,1,0):U945)","v":0},{"$f":"SUMIF(OFFSET($B23,1,0):$B945,\"Прочие инвестиционные проекты, всего, в том числе:\",OFFSET(V23,1,0):V945)","v":0},{"$f":"SUMIF(OFFSET($B23,1,0):$B945,\"Прочие инвестиционные проекты, всего, в том числе:\",OFFSET(W23,1,0):W945)","v":0},{"$f":"SUMIF(OFFSET($B23,1,0):$B945,\"Прочие инвестиционные проекты, всего, в том числе:\",OFFSET(X23,1,0):X945)","v":0},{"$f":"SUMIF(OFFSET($B23,1,0):$B945,\"Прочие инвестиционные проекты, всего, в том числе:\",OFFSET(Y23,1,0):Y945)","v":0},{"$f":"SUMIF(OFFSET($B23,1,0):$B945,\"Прочие инвестиционные проекты, всего, в том числе:\",OFFSET(Z23,1,0):Z945)","v":0},{"$f":"SUMIF(OFFSET($B23,1,0):$B945,\"Прочие инвестиционные проекты, всего, в том числе:\",OFFSET(AA23,1,0):AA945)","v":0},{"$f":"SUMIF(OFFSET($B23,1,0):$B945,\"Прочие инвестиционные проекты, всего, в том числе:\",OFFSET(AB23,1,0):AB945)","v":0},{"$f":"SUMIF(OFFSET($B23,1,0):$B945,\"Прочие инвестиционные проекты, всего, в том числе:\",OFFSET(AC23,1,0):AC945)","v":0},{"$f":"SUMIF(OFFSET($B23,1,0):$B945,\"Прочие инвестиционные проекты, всего, в том числе:\",OFFSET(AD23,1,0):AD945)","v":0},{"$f":"SUMIF(OFFSET($B23,1,0):$B945,\"Прочие инвестиционные проекты, всего, в том числе:\",OFFSET(AE23,1,0):AE945)","v":0},{"$f":"SUMIF(OFFSET($B23,1,0):$B945,\"Прочие инвестиционные проекты, всего, в том числе:\",OFFSET(AF23,1,0):AF945)","v":0},{"$f":"SUMIF(OFFSET($B23,1,0):$B945,\"Прочие инвестиционные проекты, всего, в том числе:\",OFFSET(AG23,1,0):AG945)","v":0},{"$f":"SUMIF(OFFSET($B23,1,0):$B945,\"Прочие инвестиционные проекты, всего, в том числе:\",OFFSET(AH23,1,0):AH945)","v":0},{"$f":"SUMIF(OFFSET($B23,1,0):$B945,\"Прочие инвестиционные проекты, всего, в том числе:\",OFFSET(AI23,1,0):AI945)","v":0},{"$f":"SUMIF(OFFSET($B23,1,0):$B945,\"Прочие инвестиционные проекты, всего, в том числе:\",OFFSET(AJ23,1,0):AJ945)","v":0},{"$f":"SUMIF(OFFSET($B23,1,0):$B945,\"Прочие инвестиционные проекты, всего, в том числе:\",OFFSET(AK23,1,0):AK945)","v":0},{"$f":"SUMIF(OFFSET($B23,1,0):$B945,\"Прочие инвестиционные проекты, всего, в том числе:\",OFFSET(AL23,1,0):AL945)","v":0}]
["1","Свердловская область",0,{"$f":"D25+D284","v":0},{"$f":"E25+E284","v":0},0,0,0,0,0,0,{"$f":"L25+L284","v":1.75},{"$f":"M25+M284","v":0},0,0,0,2,0,6.0069999999999997,0,0,0,0,11,0,8.3059999999999992,0,0,0,0,380,0,{"$f":"SUM(Z24,S24,L24)","v":16.062999999999999},0,0,0,0,14]
["1.2","Реконструкция, модернизация, техническое перевооружение всего, в том числе:",0,0,0,0,0,0,0,0,0,1.75,0,0,0,0,2,0,6.0069999999999997,0,0,0,0,11,0,8.3059999999999992,0,0,0,0,380,0,{"$f":"SUM(S26,L26)","v":7.7569999999999997},0,0,0,0,{"$f":"SUM(AL26,AL30,AL35)","v":393}]
["1.2.1","Реконструкция, модернизация, техническое перевооружение  трансформаторных и иных подстанций, распределительных пунктов, всего, в том числе:",0,0,0,0,0,0,0,0,0,1.75,0,0,0,0,2,0,6.0069999999999997,0,0,0,0,11,0,0,0,0,0,0,0,0,7.76,0,0,0,0,2]
["1.2.1.1","Реконструкция трансформаторных и иных подстанций, всего, в том числе:",0,{"$f":"SUMIF(OFFSET($A27,1,0):$A949,$A27,OFFSET(D27,1,0):D949)","v":0},{"$f":"SUMIF(OFFSET($A27,1,0):$A949,$A27,OFFSET(E27,1,0):E949)","v":0},{"$f":"SUMIF(OFFSET($A27,1,0):$A949,$A27,OFFSET(F27,1,0):F949)","v":0},{"$f":"SUMIF(OFFSET($A27,1,0):$A949,$A27,OFFSET(G27,1,0):G949)","v":0},{"$f":"SUMIF(OFFSET($A27,1,0):$A949,$A27,OFFSET(H27,1,0):H949)","v":0},{"$f":"SUMIF(OFFSET($A27,1,0):$A949,$A27,OFFSET(I27,1,0):I949)","v":0},{"$f":"SUMIF(OFFSET($A27,1,0):$A949,$A27,OFFSET(J27,1,0):J949)","v":0},{"$f":"SUMIF(OFFSET($A27,1,0):$A949,$A27,OFFSET(K27,1,0):K949)","v":0},{"$f":"SUMIF(OFFSET($A27,1,0):$A949,$A27,OFFSET(L27,1,0):L949)","v":1.746},{"$f":"SUMIF(OFFSET($A27,1,0):$A949,$A27,OFFSET(M27,1,0):M949)","v":0},{"$f":"SUMIF(OFFSET($A27,1,0):$A949,$A27,OFFSET(N27,1,0):N949)","v":0},{"$f":"SUMIF(OFFSET($A27,1,0):$A949,$A27,OFFSET(O27,1,0):O949)","v":0},{"$f":"SUMIF(OFFSET($A27,1,0):$A949,$A27,OFFSET(P27,1,0):P949)","v":0},{"$f":"SUMIF(OFFSET($A27,1,0):$A949,$A27,OFFSET(Q27,1,0):Q949)","v":2},{"$f":"SUMIF(OFFSET($A27,1,0):$A949,$A27,OFFSET(R27,1,0):R949)","v":0},{"$f":"SUMIF(OFFSET($A27,1,0):$A949,$A27,OFFSET(S27,1,0):S949)","v":0},{"$f":"SUMIF(OFFSET($A27,1,0):$A949,$A27,OFFSET(T27,1,0):T949)","v":0},{"$f":"SUMIF(OFFSET($A27,1,0):$A949,$A27,OFFSET(U27,1,0):U949)","v":0},{"$f":"SUMIF(OFFSET($A27,1,0):$A949,$A27,OFFSET(V27,1,0):V949)","v":0},{"$f":"SUMIF(OFFSET($A27,1,0):$A949,$A27,OFFSET(W27,1,0):W949)","v":0},{"$f":"SUMIF(OFFSET($A27,1,0):$A949,$A27,OFFSET(X27,1,0):X949)","v":0},{"$f":"SUMIF(OFFSET($A27,1,0):$A949,$A27,OFFSET(Y27,1,0):Y949)","v":0},{"$f":"SUMIF(OFFSET($A27,1,0):$A949,$A27,OFFSET(Z27,1,0):Z949)","v":0},{"$f":"SUMIF(OFFSET($A27,1,0):$A949,$A27,OFFSET(AA27,1,0):AA949)","v":0},{"$f":"SUMIF(OFFSET($A27,1,0):$A949,$A27,OFFSET(AB27,1,0):AB949)","v":0},{"$f":"SUMIF(OFFSET($A27,1,0):$A949,$A27,OFFSET(AC27,1,0):AC949)","v":0},{"$f":"SUMIF(OFFSET($A27,1,0):$A949,$A27,OFFSET(AD27,1,0):AD949)","v":0},{"$f":"SUMIF(OFFSET($A27,1,0):$A949,$A27,OFFSET(AE27,1,0):AE949)","v":0},{"$f":"SUMIF(OFFSET($A27,1,0):$A949,$A27,OFFSET(AF27,1,0):AF949)","v":0},{"$f":"SUM(AG28,AG29)","v":1.746},{"$f":"SUMIF(OFFSET($A27,1,0):$A949,$A27,OFFSET(AH27,1,0):AH949)","v":0},{"$f":"SUMIF(OFFSET($A27,1,0):$A949,$A27,OFFSET(AI27,1,0):AI949)","v":0},{"$f":"SUMIF(OFFSET($A27,1,0):$A949,$A27,OFFSET(AJ27,1,0):AJ949)","v":0},{"$f":"SUMIF(OFFSET($A27,1,0):$A949,$A27,OFFSET(AK27,1,0):AK949)","v":0},{"$f":"SUM(AL28,AL29)","v":2}]
["1.2.1.1","Установка КТПн 250кВА в п. Тагильский ",0,0,0,0,0,0,0,0,0,0.873,0,0,0,0,1,0,null,0,0,0,0,null,0,0,0,0,0,0,0,0,0.873,0,0,0,0,1,{"$f":"IF(E28>0,1,IF(L28>0,2,IF(S28>0,3,IF(Z28>0,4,\"херня какая то\"))))","v":2}]
["1.2.1.1","Установка КТПн 400кВА в г. Верхняя Салда",0,0,0,0,0,0,0,0,0,0.873,0,0,0,0,1,0,null,0,0,0,0,null,0,0,0,0,0,0,0,0,0.873,null,0,0,0,1,2]
["1.2.1.2","Модернизация, техническое перевооружение трансформаторных и иных подстанций, распределительных пунктов, всего, в том числе:",0,0,0,0,0,0,0,0,0,null,0,0,0,0,null,0,6.0069999999999997,0,0,0,0,11,0,0,0,0,0,0,0,0,6.0069999999999997,0,0,0,0,11,3]
["1.2.1.2","Ретрофит ячеек 6-10 кВ в РП, ТП, г. Верхняя Салда",0,0,0,0,0,0,0,0,0,null,0,0,0,0,null,0,6.0069999999999997,0,0,0,0,11,0,0,0,0,0,0,0,0,6.0069999999999997,0,0,0,0,11,3]
["1.2.2","Реконструкция, модернизация, техническое перевооружение линий электропередачи, всего, в том числе:",0,0,0,0,0,0,0,0,0,0,0,0,0,0,0,0,0,0,0,0,0,0,0,0,0,0,0,0,0,0,0,0,0,0,0,0,"херня какая то"]
["1.2.2.1","Реконструкция линий электропередачи, всего, в том числе:",0,0,0,0,0,0,0,0,0,0,0,0,0,0,0,0,0,0,0,0,0,0,0,0,0,0,0,0,0,0,0,0,0,0,0,0,"херня какая то"]
["1.2.3","Развитие и модернизация учета электрической энергии (мощности), всего, в том числе:",0,0,0,0,0,0,0,0,0,0,0,0,0,0,0,0,0,0,0,0,0,0,0,0,0,0,0,0,0,0,0,0,0,0,0,0,"херня какая то"]
["1.2.3.1","«Установка приборов учета, класс напряжения 0,22 (0,4) кВ, всего, в том числе:»",0,0,0,0,0,0,0,0,0,0,0,0,0,0,0,0,0,0,0,0,0,0,0,8.3059999999999992,0,0,0,0,380,0,8.3059999999999992,0,0,0,0,380,4]
["1.2.3.1","Развитие системы АИИСКУЭ в сетях 0,4 кВ, г. Верхняя Салда",0,0,0,0,0,0,0,0,0,0,0,0,0,0,0,0,0,0,0,0,0,0,0,8.3059999999999992,0,0,0,0,380,0,8.3059999999999992,0,0,0,0,380,4]
["1.6","Прочие инвестиционные проекты, всего, в том числе:",0,0,0,0,0,0,0,0,0,0,0,0,0,0,0,0,0,0,0,0,0,0,0,0,0,0,0,0,0,0,0,0,0,0,0,0,"херня какая то"]
[null,null,null,null,null,null,null,null,null,null,null,null,null,null,null,null,null,null,null,null,null,null,null,null,null,null,null,null,null,null,null,null,null,null,null,null,null,null,{"$f":"IF(#REF!>0,1,IF(#REF!>0,2,IF(#REF!>0,3,IF(#REF!>0,4,\"херня какая то\"))))","v":{"$error":"#REF!"}}]
[]
[null,null,null,null,null,null,null,null,null,null,null,null,null,null,null,null,null,null,null,null,null,null,null,null,null,null,null,null,null,null,null,null,null,null,null,null,null,null,{"$f":"IF(#REF!>0,1,IF(#REF!>0,2,IF(#REF!>0,3,IF(#REF!>0,4,\"херня какая то\"))))","v":{"$error":"#REF!"}}]
[null,null,null,null,null,null,null,null,null,null,null,null,null,null,null,null,null,null,null,null,null,null,null,null,null,null,null,null,null,null,null,null,null,null,null,null,null,null,{"$f":"IF(#REF!>0,1,IF(#REF!>0,2,IF(#REF!>0,3,IF(#REF!>0,4,\"херня какая то\"))))","v":{"$error":"#REF!"}}]
[null,null,null,null,null,null,null,null,null,null,null,null,null,null,null,null,null,null,null,null,null,null,null,null,null,null,null,null,null,null,null,null,null,null,null,null,null,null,{"$f":"IF(#REF!>0,1,IF(#REF!>0,2,IF(#REF!>0,3,IF(#REF!>0,4,\"херня какая то\"))))","v":{"$error":"#REF!"}}]
[null,null,null,null,null,null,null,null,null,null,null,null,null,null,null,null,null,null,null,null,null,null,null,null,null,null,null,null,null,null,null,null,null,null,null,null,null,null,{"$f":"IF(#REF!>0,1,IF(#REF!>0,2,IF(#REF!>0,3,IF(#REF!>0,4,\"херня какая то\"))))","v":{"$error":"#REF!"}}]
[null,null,null,null,null,null,null,null,null,null,null,null,null,null,null,null,null,null,null,null,null,null,null,null,null,null,null,null,null,null,null,null,null,null,null,null,null,null,{"$f":"IF(#REF!>0,1,IF(#REF!>0,2,IF(#REF!>0,3,IF(#REF!>0,4,\"херня какая то\"))))","v":{"$error":"#REF!"}}]
[null,null,null,null,null,null,null,null,null,null,null,null,null,null,null,null,null,null,null,null,null,null,null,null,null,null,null,null,null,null,null,null,null,null,null,null,null,null,{"$f":"IF(#REF!>0,1,IF(#REF!>0,2,IF(#REF!>0,3,IF(#REF!>0,4,\"херня какая то\"))))","v":{"$error":"#REF!"}}]
[null,null,null,null,null,null,null,null,null,null,null,null,null,null,null,null,null,null,null,null,null,null,null,null,null,null,null,null,null,null,null,null,null,null,null,null,null,null,{"$f":"IF(#REF!>0,1,IF(#REF!>0,2,IF(#REF!>0,3,IF(#REF!>0,4,\"херня какая то\"))))","v":{"$error":"#REF!"}}]
[]
[]
[null,null,null,null,null,null,null,null,null,null,null,null,null,null,null,null,null,null,null,null,null,null,null,null,null,null,null,null,null,null,null,null,null,null,null,null,null,null,{"$f":"IF(#REF!>0,1,IF(#REF!>0,2,IF(#REF!>0,3,IF(#REF!>0,4,\"херня какая то\"))))","v":{"$error":"#REF!"}}]
[null,null,null,null,null,null,null,null,null,null,null,null,null,null,null,null,null,null,null,null,null,null,null,null,null,null,null,null,null,null,null,null,null,null,null,null,null,null,{"$f":"IF(#REF!>0,1,IF(#REF!>0,2,IF(#REF!>0,3,IF(#REF!>0,4,\"херня какая то\"))))","v":{"$error":"#REF!"}}]
[null,null,null,null,null,null,null,null,null,null,null,null,null,null,null,null,null,null,null,null,null,null,null,null,null,null,null,null,null,null,null,null,null,null,null,null,null,null,{"$f":"IF(#REF!>0,1,IF(#REF!>0,2,IF(#REF!>0,3,IF(#REF!>0,4,\"херня какая то\"))))","v":{"$error":"#REF!"}}]
[null,null,null,null,null,null,null,null,null,null,null,null,null,null,null,null,null,null,null,null,null,null,null,null,null,null,null,null,null,null,null,null,null,null,null,null,null,null,{"$f":"IF(#REF!>0,1,IF(#REF!>0,2,IF(#REF!>0,3,IF(#REF!>0,4,\"херня какая то\"))))","v":{"$error":"#REF!"}}]
[null,null,null,null,null,null,null,null,null,null,null,null,null,null,null,null,null,null,null,null,null,null,null,null,null,null,null,null,null,null,null,null,null,null,null,null,null,null,{"$f":"IF(#REF!>0,1,IF(#REF!>0,2,IF(#REF!>0,3,IF(#REF!>0,4,\"херня какая то\"))))","v":{"$error":"#REF!"}}]
[null,null,null,null,null,null,null,null,null,null,null,null,null,null,null,null,null,null,null,null,null,null,null,null,null,null,null,null,null,null,null,null,null,null,null,null,null,null,{"$f":"IF(#REF!>0,1,IF(#REF!>0,2,IF(#REF!>0,3,IF(#REF!>0,4,\"херня какая то\"))))","v":{"$error":"#REF!"}}]
[null,null,null,null,null,null,null,null,null,null,null,null,null,null,null,null,null,null,null,null,null,null,null,null,null,null,null,null,null,null,null,null,null,null,null,null,null,null,{"$f":"IF(#REF!>0,1,IF(#REF!>0,2,IF(#REF!>0,3,IF(#REF!>0,4,\"херня какая то\"))))","v":{"$error":"#REF!"}}]
[null,null,null,null,null,null,null,null,null,null,null,null,null,null,null,null,null,null,null,null,null,null,null,null,null,null,null,null,null,null,null,null,null,null,null,null,null,null,{"$f":"IF(#REF!>0,1,IF(#REF!>0,2,IF(#REF!>0,3,IF(#REF!>0,4,\"херня какая то\"))))","v":{"$error":"#REF!"}}]
[null,null,null,null,null,null,null,null,null,null,null,null,null,null,null,null,null,null,null,null,null,null,null,null,null,null,null,null,null,null,null,null,null,null,null,null,null,null,{"$f":"IF(#REF!>0,1,IF(#REF!>0,2,IF(#REF!>0,3,IF(#REF!>0,4,\"херня какая то\"))))","v":{"$error":"#REF!"}}]
[null,null,null,null,null,null,null,null,null,null,null,null,null,null,null,null,null,null,null,null,null,null,null,null,null,null,null,null,null,null,null,null,null,null,null,null,null,null,{"$f":"IF(#REF!>0,1,IF(#REF!>0,2,IF(#REF!>0,3,IF(#REF!>0,4,\"херня какая то\"))))","v":{"$error":"#REF!"}}]
[null,null,null,null,null,null,null,null,null,null,null,null,null,null,null,null,null,null,null,null,null,null,null,null,null,null,null,null,null,null,null,null,null,null,null,null,null,null,{"$f":"IF(#REF!>0,1,IF(#REF!>0,2,IF(#REF!>0,3,IF(#REF!>0,4,\"херня какая то\"))))","v":{"$error":"#REF!"}}]
[null,null,null,null,null,null,null,null,null,null,null,null,null,null,null,null,null,null,null,null,null,null,null,null,null,null,null,null,null,null,null,null,null,null,null,null,null,null,{"$f":"IF(#REF!>0,1,IF(#REF!>0,2,IF(#REF!>0,3,IF(#REF!>0,4,\"херня какая то\"))))","v":{"$error":"#REF!"}}]
[null,null,null,null,null,null,null,null,null,null,null,null,null,null,null,null,null,null,null,null,null,null,null,null,null,null,null,null,null,null,null,null,null,null,null,null,null,null,{"$f":"IF(#REF!>0,1,IF(#REF!>0,2,IF(#REF!>0,3,IF(#REF!>0,4,\"херня какая то\"))))","v":{"$error":"#REF!"}}]
[null,null,null,null,null,null,null,null,null,null,null,null,null,null,null,null,null,null,null,null,null,null,null,null,null,null,null,null,null,null,null,null,null,null,null,null,null,null,{"$f":"IF(#REF!>0,1,IF(#REF!>0,2,IF(#REF!>0,3,IF(#REF!>0,4,\"херня какая то\"))))","v":{"$error":"#REF!"}}]
[null,null,null,null,null,null,null,null,null,null,null,null,null,null,null,null,null,null,null,null,null,null,null,null,null,null,null,null,null,null,null,null,null,null,null,null,null,null,{"$f":"IF(#REF!>0,1,IF(#REF!>0,2,IF(#REF!>0,3,IF(#REF!>0,4,\"херня какая то\"))))","v":{"$error":"#REF!"}}]
[null,null,null,null,null,null,null,null,null,null,null,null,null,null,null,null,null,null,null,null,null,null,null,null,null,null,null,null,null,null,null,null,null,null,null,null,null,null,{"$f":"IF(#REF!>0,1,IF(#REF!>0,2,IF(#REF!>0,3,IF(#REF!>0,4,\"херня какая то\"))))","v":{"$error":"#REF!"}}]
[null,null,null,null,null,null,null,null,null,null,null,null,null,null,null,null,null,null,null,null,null,null,null,null,null,null,null,null,null,null,null,null,null,null,null,null,null,null,{"$f":"IF(#REF!>0,1,IF(#REF!>0,2,IF(#REF!>0,3,IF(#REF!>0,4,\"херня какая то\"))))","v":{"$error":"#REF!"}}]
[null,null,null,null,null,null,null,null,null,null,null,null,null,null,null,null,null,null,null,null,null,null,null,null,null,null,null,null,null,null,null,null,null,null,null,null,null,null,{"$f":"IF(#REF!>0,1,IF(#REF!>0,2,IF(#REF!>0,3,IF(#REF!>0,4,\"херня какая то\"))))","v":{"$error":"#REF!"}}]
[null,null,null,null,null,null,null,null,null,null,null,null,null,null,null,null,null,null,null,null,null,null,null,null,null,null,null,null,null,null,null,null,null,null,null,null,null,null,{"$f":"IF(#REF!>0,1,IF(#REF!>0,2,IF(#REF!>0,3,IF(#REF!>0,4,\"херня какая то\"))))","v":{"$error":"#REF!"}}]
[null,null,null,null,null,null,null,null,null,null,null,null,null,null,null,null,null,null,null,null,null,null,null,null,null,null,null,null,null,null,null,null,null,null,null,null,null,null,{"$f":"IF(#REF!>0,1,IF(#REF!>0,2,IF(#REF!>0,3,IF(#REF!>0,4,\"херня какая то\"))))","v":{"$error":"#REF!"}}]
[null,null,null,null,null,null,null,null,null,null,null,null,null,null,null,null,null,null,null,null,null,null,null,null,null,null,null,null,null,null,null,null,null,null,null,null,null,null,{"$f":"IF(#REF!>0,1,IF(#REF!>0,2,IF(#REF!>0,3,IF(#REF!>0,4,\"херня какая то\"))))","v":{"$error":"#REF!"}}]
[null,null,null,null,null,null,null,null,null,null,null,null,null,null,null,null,null,null,null,null,null,null,null,null,null,null,null,null,null,null,null,null,null,null,null,null,null,null,{"$f":"IF(#REF!>0,1,IF(#REF!>0,2,IF(#REF!>0,3,IF(#REF!>0,4,\"херня какая то\"))))","v":{"$error":"#REF!"}}]
[null,null,null,null,null,null,null,null,null,null,null,null,null,null,null,null,null,null,null,null,null,null,null,null,null,null,null,null,null,null,null,null,null,null,null,null,null,null,{"$f":"IF(#REF!>0,1,IF(#REF!>0,2,IF(#REF!>0,3,IF(#REF!>0,4,\"херня какая то\"))))","v":{"$error":"#REF!"}}]
[]
[]
[null,null,null,null,null,null,null,null,null,null,null,null,null,null,null,null,null,null,null,null,null,null,null,null,null,null,null,null,null,null,null,null,null,null,null,null,null,null,{"$f":"IF(#REF!>0,1,IF(#REF!>0,2,IF(#REF!>0,3,IF(#REF!>0,4,\"херня какая то\"))))","v":{"$error":"#REF!"}}]
[]
[null,null,null,null,null,null,null,null,null,null,null,null,null,null,null,null,null,null,null,null,null,null,null,null,null,null,null,null,null,null,null,null,null,null,null,null,null,null,{"$f":"IF(#REF!>0,1,IF(#REF!>0,2,IF(#REF!>0,3,IF(#REF!>0,4,\"херня какая то\"))))","v":{"$error":"#REF!"}}]

{"sheet":"6","index":11,"n_rows":50,"n_cols":64,"rows_kept":50,"cut":false,"hidden":false,"merged":[[13,63,17,63],[5,0,5,63],[6,0,6,63],[11,0,11,63],[16,3,16,8],[16,9,16,14],[13,3,15,14],[8,0,8,63],[14,39,15,50],[16,39,16,44],[16,45,16,50],[3,0,3,63],[10,0,10,63],[12,0,12,62],[16,51,16,56],[16,57,16,62],[14,51,15,62],[16,21,16,26],[14,27,15,38],[16,27,16,32],[16,33,16,38],[16,15,16,20],[14,15,15,26],[13,15,13,62],[13,2,17,2],[13,1,17,1],[13,0,17,0],[16,99,16,105],[14,85,15,91],[14,92,15,98],[14,99,15,105],[16,78,16,84],[16,85,16,91],[16,92,16,98],[14,78,15,84]]}
[null,null,null,null,null,null,null,null,null,null,null,null,null,null,null,null,null,null,null,null,null,null,null,null,null,null,null,null,null,null,null,null,null,null,null,null,null,null,null,null,null,null,null,null,null,null,null,null,null,null,null,null,null,null,null,null,null,null,null,null,null,null,null,"Приложение  № 6"]
[null,null,null,null,null,null,null,null,null,null,null,null,null,null,null,null,null,null,null,null,null,null,null,null,null,null,null,null,null,null,null,null,null,null,null,null,null,null,null,null,null,null,null,null,null,null,null,null,null,null,null,null,null,null,null,null,null,null,null,null,null,null,null,"к приказу Минэнерго России"]
[null,null,null,null,null,null,null,null,null,null,null,null,null,null,null,null,null,null,null,null,null,null,null,null,null,null,null,null,null,null,null,null,null,null,null,null,null,null,null,null,null,null,null,null,null,null,null,null,null,null,null,null,null,null,null,null,null,null,null,null,null,null,null,"от «__» _____ 2016 г. №___"]
["Форма 6. Краткое описание инвестиционной программы. Постановка объектов электросетевого хозяйства под напряжение и (или) включение объектов капитального строительства для проведения пусконаладочных работ"]
[]
["Инвестиционная программа АО \"ВЭС\""]
["                                                         полное наименование субъекта электроэнергетики"]
[]
["Год раскрытия информации: 2020 год"]
[]
["Утвержденные плановые значения показателей приведены в соответствии с  ______________________________________________________________________________"]
["                                                                                                              реквизиты решения органа исполнительной власти, утвердившего инвестиционную программу"]
[]
["Номер группы инвести-ционных проектов","  Наименование инвестиционного проекта (группы инвестиционных проектов)","Идентифика-тор инвестицион-ного проекта","Постановка объектов электросетевого хозяйства под напряжение и (или) включение объектов капитального строительства для проведения пусконаладочных работ в 2021 году",null,null,null,null,null,null,null,null,null,null,null,"Постановка объектов электросетевого хозяйства под напряжение и (или) включение объектов капитального строительства для проведения пусконаладочных работ",null,null,null,null,null,null,null,null,null,null,null,null,null,null,null,null,null,null,null,null,null,null,null,null,null,null,null,null,null,null,null,null,null,null,null,null,null,null,null,null,null,null,null,null,null,null,null,"Краткое обоснование  корректировки утвержденного плана"]
[null,null,null,null,null,null,null,null,null,null,null,null,null,null,null,2022,null,null,null,null,null,null,null,null,null,null,null,2023,null,null,null,null,null,null,null,null,null,null,null,2024,null,null,null,null,null,null,null,null,null,null,null,2024]
[]
[null,null,null,"План ",null,null,null,null,null,"Факт ",null,null,null,null,null,"План ",null,null,null,null,null,"Факт ",null,null,null,null,null,"План ",null,null,null,null,null,"Факт ",null,null,null,null,null,"План ",null,null,null,null,null,"Факт ",null,null,null,null,null,"План ",null,null,null,null,null,"Факт "]
[null,null,null,"Квартал","МВ×А","Мвар","км ЛЭП","МВт","Другое","Квартал","МВ×А","Мвар","км ЛЭП","МВт","Другое","Квартал","МВ×А","Мвар","км ЛЭП","МВт","Другое","Квартал","МВ×А","Мвар","км ЛЭП","МВт","Другое","Квартал","МВ×А","Мвар","км ЛЭП","МВт","Другое","Квартал","МВ×А","Мвар","км ЛЭП","МВт","Другое","Квартал","МВ×А","Мвар","км ЛЭП","МВт","Другое","Квартал","МВ×А","Мвар","км ЛЭП","МВт","Другое","Квартал","МВ×А","Мвар","км ЛЭП","МВт","Другое","Квартал","МВ×А","Мвар","км ЛЭП","МВт","Другое"]
[1,2,3,"4.1.1","4.1.2","4.1.3","4.1.4","4.1.5","4.1.6","4.2.1","4.2.2","4.2.3","4.2.4","4.2.5","4.2.6","5.1.1","5.1.2","5.1.3","5.1.4","5.1.5","5.1.6","5.2.1","5.2.2","5.2.3","5.2.4","5.2.5","5.2.6","5.3.1","5.3.2","5.3.3","5.3.4","5.3.5","5.3.6","5.4.1","5.4.2","5.4.3","5.4.4","5.4.5","5.4.6","5.5.1","5.5.2","5.5.3","5.5.4","5.5.5","5.5.6","5.6.1","5.6.2","5.6.3","5.6.4","5.6.5","5.6.6","5.5.1","5.5.2","5.5.3","5.5.4","5.5.5","5.5.6","5.6.1","5.6.2","5.6.3","5.6.4","5.6.5","5.6.6","6"]
["0","ВСЕГО по инвестиционной программе, в том числе:",null,null,{"$f":"E21+E22+E23","v":1.6},0,0,0,410,{"$f":"J21+J22+J23","v":0},0,0,0,0,0,null,{"$f":"Q21+Q22+Q23","v":0},0,9,0,307,{"$f":"V21+V22+V23","v":0},0,0,0,0,0,0,0,0,0,0,304,{"$f":"AH21+AH22+AH23","v":0},0,0,0,0,0,0,0.65,0,0,0,391,0,0,0,0,0,0,null,{"$f":"BA21+BA22+BA23","v":{"$error":"#REF!"}},{"$error":"#REF!"},{"$error":"#REF!"},{"$error":"#REF!"},{"$error":"#REF!"},{"$error":"#REF!"},{"$error":"#REF!"},{"$error":"#REF!"},{"$error":"#REF!"},{"$error":"#REF!"},{"$error":"#REF!"}]
["0.2","Реконструкция, модернизация, техническое перевооружение, всего",null,null,{"$f":"E25","v":1.6},0,0,0,396,{"$f":"J25","v":0},0,0,0,0,0,null,{"$f":"Q25","v":0},0,9,0,296,{"$f":"V25","v":0},0,0,0,0,0,0,0,0,0,0,296,{"$f":"AH25","v":0},0,0,0,0,0,0,0.65,0,0,0,391,0,0,0,0,0,0,null,{"$f":"BA25","v":{"$error":"#REF!"}},{"$error":"#REF!"},{"$error":"#REF!"},{"$error":"#REF!"},{"$error":"#REF!"},{"$error":"#REF!"},{"$error":"#REF!"},{"$error":"#REF!"},{"$error":"#REF!"},{"$error":"#REF!"},{"$error":"#REF!"}]
["0.3","Инвестиционные проекты, реализация которых обуславливается схемами и программами перспективного развития электроэнергетики, всего",null,null,null,null,null,null,null,null,null,null,null,null,null,null,null,null,null,null,null,null,null,null,null,null,null,null,null,null,null,null,null,null,null,null,null,null,null,null,null,null,null,null,null,null,null,null,null,null,0]
["0.6","Прочие инвестиционные проекты, всего",null,null,{"$f":"SUMIF(OFFSET($B23,1,0):$B708,\"Прочие инвестиционные проекты, всего, в том числе:\",OFFSET(E23,1,0):E708)","v":0},{"$f":"SUMIF(OFFSET($B23,1,0):$B708,\"Прочие инвестиционные проекты, всего, в том числе:\",OFFSET(F23,1,0):F708)","v":0},{"$f":"SUMIF(OFFSET($B23,1,0):$B708,\"Прочие инвестиционные проекты, всего, в том числе:\",OFFSET(G23,1,0):G708)","v":0},{"$f":"SUMIF(OFFSET($B23,1,0):$B708,\"Прочие инвестиционные проекты, всего, в том числе:\",OFFSET(H23,1,0):H708)","v":0},14,{"$f":"SUMIF(OFFSET($B23,1,0):$B708,\"Прочие инвестиционные проекты, всего, в том числе:\",OFFSET(J23,1,0):J708)","v":0},{"$f":"SUMIF(OFFSET($B23,1,0):$B708,\"Прочие инвестиционные проекты, всего, в том числе:\",OFFSET(K23,1,0):K708)","v":0},{"$f":"SUMIF(OFFSET($B23,1,0):$B708,\"Прочие инвестиционные проекты, всего, в том числе:\",OFFSET(L23,1,0):L708)","v":0},{"$f":"SUMIF(OFFSET($B23,1,0):$B708,\"Прочие инвестиционные проекты, всего, в том числе:\",OFFSET(M23,1,0):M708)","v":0},{"$f":"SUMIF(OFFSET($B23,1,0):$B708,\"Прочие инвестиционные проекты, всего, в том числе:\",OFFSET(N23,1,0):N708)","v":0},{"$f":"SUMIF(OFFSET($B23,1,0):$B708,\"Прочие инвестиционные проекты, всего, в том числе:\",OFFSET(O23,1,0):O708)","v":0},null,{"$f":"SUMIF(OFFSET($B23,1,0):$B708,\"Прочие инвестиционные проекты, всего, в том числе:\",OFFSET(Q23,1,0):Q708)","v":0},{"$f":"SUMIF(OFFSET($B23,1,0):$B708,\"Прочие инвестиционные проекты, всего, в том числе:\",OFFSET(R23,1,0):R708)","v":0},{"$f":"SUMIF(OFFSET($B23,1,0):$B708,\"Прочие инвестиционные проекты, всего, в том числе:\",OFFSET(S23,1,0):S708)","v":0},{"$f":"SUMIF(OFFSET($B23,1,0):$B708,\"Прочие инвестиционные проекты, всего, в том числе:\",OFFSET(T23,1,0):T708)","v":0},11,{"$f":"SUMIF(OFFSET($B23,1,0):$B708,\"Прочие инвестиционные проекты, всего, в том числе:\",OFFSET(V23,1,0):V708)","v":0},{"$f":"SUMIF(OFFSET($B23,1,0):$B708,\"Прочие инвестиционные проекты, всего, в том числе:\",OFFSET(W23,1,0):W708)","v":0},{"$f":"SUMIF(OFFSET($B23,1,0):$B708,\"Прочие инвестиционные проекты, всего, в том числе:\",OFFSET(X23,1,0):X708)","v":0},{"$f":"SUMIF(OFFSET($B23,1,0):$B708,\"Прочие инвестиционные проекты, всего, в том числе:\",OFFSET(Y23,1,0):Y708)","v":0},{"$f":"SUMIF(OFFSET($B23,1,0):$B708,\"Прочие инвестиционные проекты, всего, в том числе:\",OFFSET(Z23,1,0):Z708)","v":0},{"$f":"SUMIF(OFFSET($B23,1,0):$B708,\"Прочие инвестиционные проекты, всего, в том числе:\",OFFSET(AA23,1,0):AA708)","v":0},{"$f":"SUMIF(OFFSET($B23,1,0):$B708,\"Прочие инвестиционные проекты, всего, в том числе:\",OFFSET(AB23,1,0):AB708)","v":0},{"$f":"SUMIF(OFFSET($B23,1,0):$B708,\"Прочие инвестиционные проекты, всего, в том числе:\",OFFSET(AC23,1,0):AC708)","v":0},{"$f":"SUMIF(OFFSET($B23,1,0):$B708,\"Прочие инвестиционные проекты, всего, в том числе:\",OFFSET(AD23,1,0):AD708)","v":0},{"$f":"SUMIF(OFFSET($B23,1,0):$B708,\"Прочие инвестиционные проекты, всего, в том числе:\",OFFSET(AE23,1,0):AE708)","v":0},{"$f":"SUMIF(OFFSET($B23,1,0):$B708,\"Прочие инвестиционные проекты, всего, в том числе:\",OFFSET(AF23,1,0):AF708)","v":0},{"$f":"SUMIF(OFFSET($B23,1,0):$B708,\"Прочие инвестиционные проекты, всего, в том числе:\",OFFSET(AG23,1,0):AG708)","v":8},{"$f":"SUMIF(OFFSET($B23,1,0):$B708,\"Прочие инвестиционные проекты, всего, в том числе:\",OFFSET(AH23,1,0):AH708)","v":0},{"$f":"SUMIF(OFFSET($B23,1,0):$B708,\"Прочие инвестиционные проекты, всего, в том числе:\",OFFSET(AI23,1,0):AI708)","v":0},{"$f":"SUMIF(OFFSET($B23,1,0):$B708,\"Прочие инвестиционные проекты, всего, в том числе:\",OFFSET(AJ23,1,0):AJ708)","v":0},{"$f":"SUMIF(OFFSET($B23,1,0):$B708,\"Прочие инвестиционные проекты, всего, в том числе:\",OFFSET(AK23,1,0):AK708)","v":0},{"$f":"SUMIF(OFFSET($B23,1,0):$B708,\"Прочие инвестиционные проекты, всего, в том числе:\",OFFSET(AL23,1,0):AL708)","v":0},{"$f":"SUMIF(OFFSET($B23,1,0):$B708,\"Прочие инвестиционные проекты, всего, в том числе:\",OFFSET(AM23,1,0):AM708)","v":0},{"$f":"SUMIF(OFFSET($B23,1,0):$B708,\"Прочие инвестиционные проекты, всего, в том числе:\",OFFSET(AN23,1,0):AN708)","v":0},{"$f":"SUMIF(OFFSET($B23,1,0):$B708,\"Прочие инвестиционные проекты, всего, в том числе:\",OFFSET(AO23,1,0):AO708)","v":0},{"$f":"SUMIF(OFFSET($B23,1,0):$B708,\"Прочие инвестиционные проекты, всего, в том числе:\",OFFSET(AP23,1,0):AP708)","v":0},{"$f":"SUMIF(OFFSET($B23,1,0):$B708,\"Прочие инвестиционные проекты, всего, в том числе:\",OFFSET(AQ23,1,0):AQ708)","v":0},{"$f":"SUMIF(OFFSET($B23,1,0):$B708,\"Прочие инвестиционные проекты, всего, в том числе:\",OFFSET(AR23,1,0):AR708)","v":0},{"$f":"SUMIF(OFFSET($B23,1,0):$B708,\"Прочие инвестиционные проекты, всего, в том числе:\",OFFSET(AS23,1,0):AS708)","v":0},{"$f":"SUMIF(OFFSET($B23,1,0):$B708,\"Прочие инвестиционные проекты, всего, в том числе:\",OFFSET(AT23,1,0):AT708)","v":0},{"$f":"SUMIF(OFFSET($B23,1,0):$B708,\"Прочие инвестиционные проекты, всего, в том числе:\",OFFSET(AU23,1,0):AU708)","v":0},{"$f":"SUMIF(OFFSET($B23,1,0):$B708,\"Прочие инвестиционные проекты, всего, в том числе:\",OFFSET(AV23,1,0):AV708)","v":0},{"$f":"SUMIF(OFFSET($B23,1,0):$B708,\"Прочие инвестиционные проекты, всего, в том числе:\",OFFSET(AW23,1,0):AW708)","v":0},{"$f":"SUMIF(OFFSET($B23,1,0):$B708,\"Прочие инвестиционные проекты, всего, в том числе:\",OFFSET(AX23,1,0):AX708)","v":0},0,null,{"$f":"SUMIF(OFFSET($B23,1,0):$B708,\"Прочие инвестиционные проекты, всего, в том числе:\",OFFSET(BA23,1,0):BA708)","v":0},{"$f":"SUMIF(OFFSET($B23,1,0):$B708,\"Прочие инвестиционные проекты, всего, в том числе:\",OFFSET(BB23,1,0):BB708)","v":0},{"$f":"SUMIF(OFFSET($B23,1,0):$B708,\"Прочие инвестиционные проекты, всего, в том числе:\",OFFSET(BC23,1,0):BC708)","v":0},{"$f":"SUMIF(OFFSET($B23,1,0):$B708,\"Прочие инвестиционные проекты, всего, в том числе:\",OFFSET(BD23,1,0):BD708)","v":0},{"$f":"SUMIF(OFFSET($B23,1,0):$B708,\"Прочие инвестиционные проекты, всего, в том числе:\",OFFSET(BE23,1,0):BE708)","v":0},{"$f":"SUMIF(OFFSET($B23,1,0):$B708,\"Прочие инвестиционные проекты, всего, в том числе:\",OFFSET(BF23,1,0):BF708)","v":0},{"$f":"SUMIF(OFFSET($B23,1,0):$B708,\"Прочие инвестиционные проекты, всего, в том числе:\",OFFSET(BG23,1,0):BG708)","v":0},{"$f":"SUMIF(OFFSET($B23,1,0):$B708,\"Прочие инвестиционные проекты, всего, в том числе:\",OFFSET(BH23,1,0):BH708)","v":0},{"$f":"SUMIF(OFFSET($B23,1,0):$B708,\"Прочие инвестиционные проекты, всего, в том числе:\",OFFSET(BI23,1,0):BI708)","v":0},{"$f":"SUMIF(OFFSET($B23,1,0):$B708,\"Прочие инвестиционные проекты, всего, в том числе:\",OFFSET(BJ23,1,0):BJ708)","v":0},{"$f":"SUMIF(OFFSET($B23,1,0):$B708,\"Прочие инвестиционные проекты, всего, в том числе:\",OFFSET(BK23,1,0):BK708)","v":0}]
["1","Свердловская область",null,null,1.6,0,0,0,396,0,0,0,0,0,0,null,0,0,9,0,307,0,0,0,0,0,0,0,0,0,0,0,0,0,0,0,0,0,0,0,0,0,0,0,11,0,0,0,0,0,0,0,{"$f":"BA25+#REF!","v":{"$error":"#REF!"}},{"$f":"BB25+#REF!","v":{"$error":"#REF!"}},{"$f":"BC25+#REF!","v":{"$error":"#REF!"}},{"$f":"BD25+#REF!","v":{"$error":"#REF!"}},{"$f":"BE25+#REF!","v":{"$error":"#REF!"}},{"$f":"BF25+#REF!","v":{"$error":"#REF!"}},{"$f":"BG25+#REF!","v":{"$error":"#REF!"}},{"$f":"BH25+#REF!","v":{"$error":"#REF!"}},{"$f":"BI25+#REF!","v":{"$error":"#REF!"}},{"$f":"BJ25+#REF!","v":{"$error":"#REF!"}},{"$f":"BK25+#REF!","v":{"$error":"#REF!"}}]
["1.2","Реконструкция, модернизация, техническое перевооружение всего, в том числе:",null,null,1.6,0,0,0,396,0,0,0,0,0,0,null,0,0,9,0,296,0,0,0,0,0,0,0,0,0,0,0,296,0,0,0,0,0,0,0,0.65,0,0,0,391,0,0,0,0,0,0,null,{"$f":"BA26+#REF!+#REF!","v":{"$error":"#REF!"}},{"$f":"BB26+#REF!+#REF!","v":{"$error":"#REF!"}},{"$f":"BC26+#REF!+#REF!","v":{"$error":"#REF!"}},{"$f":"BD26+#REF!+#REF!","v":{"$error":"#REF!"}},{"$f":"BE26+#REF!+#REF!","v":{"$error":"#REF!"}},{"$f":"BF26+#REF!+#REF!","v":{"$error":"#REF!"}},{"$f":"BG26+#REF!+#REF!","v":{"$error":"#REF!"}},{"$f":"BH26+#REF!+#REF!","v":{"$error":"#REF!"}},{"$f":"BI26+#REF!+#REF!","v":{"$error":"#REF!"}},{"$f":"BJ26+#REF!+#REF!","v":{"$error":"#REF!"}},{"$f":"BK26+#REF!+#REF!","v":{"$error":"#REF!"}}]
["1.2.1","Реконструкция, модернизация, техническое перевооружение  трансформаторных и иных подстанций, распределительных пунктов, всего, в том числе:",null,null,1.6,0,0,0,396,0,0,0,0,0,0,null,0,0,0,0,0,0,0,0,0,0,0,0,0,0,0,0,0,0,0,0,0,0,0,0,0.65,0,0,0,11,0,0,0,0,0,0,null,{"$f":"BA27+#REF!","v":{"$error":"#REF!"}},{"$f":"BB27+#REF!","v":{"$error":"#REF!"}},{"$f":"BC27+#REF!","v":{"$error":"#REF!"}},{"$f":"BD27+#REF!","v":{"$error":"#REF!"}},{"$f":"BE27+#REF!","v":{"$error":"#REF!"}},{"$f":"BF27+#REF!","v":{"$error":"#REF!"}},{"$f":"BG27+#REF!","v":{"$error":"#REF!"}},{"$f":"BH27+#REF!","v":{"$error":"#REF!"}},{"$f":"BI27+#REF!","v":{"$error":"#REF!"}},{"$f":"BJ27+#REF!","v":{"$error":"#REF!"}},{"$f":"BK27+#REF!","v":{"$error":"#REF!"}}]
["1.2.1.1","Реконструкция трансформаторных и иных подстанций, всего, в том числе:",null,null,1.6,{"$f":"SUMIF(OFFSET($A27,1,0):$A712,$A27,OFFSET(F27,1,0):F712)","v":0},{"$f":"SUMIF(OFFSET($A27,1,0):$A712,$A27,OFFSET(G27,1,0):G712)","v":0},{"$f":"SUMIF(OFFSET($A27,1,0):$A712,$A27,OFFSET(H27,1,0):H712)","v":0},0,{"$f":"SUMIF(OFFSET($A27,1,0):$A712,$A27,OFFSET(J27,1,0):J712)","v":0},{"$f":"SUMIF(OFFSET($A27,1,0):$A712,$A27,OFFSET(K27,1,0):K712)","v":0},{"$f":"SUMIF(OFFSET($A27,1,0):$A712,$A27,OFFSET(L27,1,0):L712)","v":0},{"$f":"SUMIF(OFFSET($A27,1,0):$A712,$A27,OFFSET(M27,1,0):M712)","v":0},{"$f":"SUMIF(OFFSET($A27,1,0):$A712,$A27,OFFSET(N27,1,0):N712)","v":0},{"$f":"SUMIF(OFFSET($A27,1,0):$A712,$A27,OFFSET(O27,1,0):O712)","v":0},null,0,{"$f":"SUMIF(OFFSET($A27,1,0):$A712,$A27,OFFSET(R27,1,0):R712)","v":0},{"$f":"SUMIF(OFFSET($A27,1,0):$A712,$A27,OFFSET(S27,1,0):S712)","v":0},{"$f":"SUMIF(OFFSET($A27,1,0):$A712,$A27,OFFSET(T27,1,0):T712)","v":0},0,{"$f":"SUMIF(OFFSET($A27,1,0):$A712,$A27,OFFSET(V27,1,0):V712)","v":0},{"$f":"SUMIF(OFFSET($A27,1,0):$A712,$A27,OFFSET(W27,1,0):W712)","v":0},{"$f":"SUMIF(OFFSET($A27,1,0):$A712,$A27,OFFSET(X27,1,0):X712)","v":0},{"$f":"SUMIF(OFFSET($A27,1,0):$A712,$A27,OFFSET(Y27,1,0):Y712)","v":0},{"$f":"SUMIF(OFFSET($A27,1,0):$A712,$A27,OFFSET(Z27,1,0):Z712)","v":0},{"$f":"SUMIF(OFFSET($A27,1,0):$A712,$A27,OFFSET(AA27,1,0):AA712)","v":0},{"$f":"SUMIF(OFFSET($A27,1,0):$A712,$A27,OFFSET(AB27,1,0):AB712)","v":0},{"$f":"SUMIF(OFFSET($A27,1,0):$A712,$A27,OFFSET(AC27,1,0):AC712)","v":0},{"$f":"SUMIF(OFFSET($A27,1,0):$A712,$A27,OFFSET(AD27,1,0):AD712)","v":0},{"$f":"SUMIF(OFFSET($A27,1,0):$A712,$A27,OFFSET(AE27,1,0):AE712)","v":0},{"$f":"SUMIF(OFFSET($A27,1,0):$A712,$A27,OFFSET(AF27,1,0):AF712)","v":0},{"$f":"SUMIF(OFFSET($A27,1,0):$A712,$A27,OFFSET(AG27,1,0):AG712)","v":0},{"$f":"SUMIF(OFFSET($A27,1,0):$A712,$A27,OFFSET(AH27,1,0):AH712)","v":0},{"$f":"SUMIF(OFFSET($A27,1,0):$A712,$A27,OFFSET(AI27,1,0):AI712)","v":0},{"$f":"SUMIF(OFFSET($A27,1,0):$A712,$A27,OFFSET(AJ27,1,0):AJ712)","v":0},{"$f":"SUMIF(OFFSET($A27,1,0):$A712,$A27,OFFSET(AK27,1,0):AK712)","v":0},{"$f":"SUMIF(OFFSET($A27,1,0):$A712,$A27,OFFSET(AL27,1,0):AL712)","v":0},{"$f":"SUMIF(OFFSET($A27,1,0):$A712,$A27,OFFSET(AM27,1,0):AM712)","v":0},{"$f":"SUMIF(OFFSET($A27,1,0):$A712,$A27,OFFSET(AN27,1,0):AN712)","v":0},{"$f":"SUMIF(OFFSET($A27,1,0):$A712,$A27,OFFSET(AO27,1,0):AO712)","v":0.65},{"$f":"SUMIF(OFFSET($A27,1,0):$A712,$A27,OFFSET(AP27,1,0):AP712)","v":0},{"$f":"SUMIF(OFFSET($A27,1,0):$A712,$A27,OFFSET(AQ27,1,0):AQ712)","v":0},{"$f":"SUMIF(OFFSET($A27,1,0):$A712,$A27,OFFSET(AR27,1,0):AR712)","v":0},{"$f":"SUMIF(OFFSET($A27,1,0):$A712,$A27,OFFSET(AS27,1,0):AS712)","v":0},{"$f":"SUMIF(OFFSET($A27,1,0):$A712,$A27,OFFSET(AT27,1,0):AT712)","v":0},{"$f":"SUMIF(OFFSET($A27,1,0):$A712,$A27,OFFSET(AU27,1,0):AU712)","v":0},{"$f":"SUMIF(OFFSET($A27,1,0):$A712,$A27,OFFSET(AV27,1,0):AV712)","v":0},{"$f":"SUMIF(OFFSET($A27,1,0):$A712,$A27,OFFSET(AW27,1,0):AW712)","v":0},{"$f":"SUMIF(OFFSET($A27,1,0):$A712,$A27,OFFSET(AX27,1,0):AX712)","v":0},{"$f":"SUMIF(OFFSET($A27,1,0):$A712,$A27,OFFSET(AY27,1,0):AY712)","v":0},null,{"$f":"SUMIF(OFFSET($A27,1,0):$A712,$A27,OFFSET(BA27,1,0):BA712)","v":0},{"$f":"SUMIF(OFFSET($A27,1,0):$A712,$A27,OFFSET(BB27,1,0):BB712)","v":0},{"$f":"SUMIF(OFFSET($A27,1,0):$A712,$A27,OFFSET(BC27,1,0):BC712)","v":0},{"$f":"SUMIF(OFFSET($A27,1,0):$A712,$A27,OFFSET(BD27,1,0):BD712)","v":0},{"$f":"SUMIF(OFFSET($A27,1,0):$A712,$A27,OFFSET(BE27,1,0):BE712)","v":0},{"$f":"SUMIF(OFFSET($A27,1,0):$A712,$A27,OFFSET(BF27,1,0):BF712)","v":0},{"$f":"SUMIF(OFFSET($A27,1,0):$A712,$A27,OFFSET(BG27,1,0):BG712)","v":0},{"$f":"SUMIF(OFFSET($A27,1,0):$A712,$A27,OFFSET(BH27,1,0):BH712)","v":0},{"$f":"SUMIF(OFFSET($A27,1,0):$A712,$A27,OFFSET(BI27,1,0):BI712)","v":0},{"$f":"SUMIF(OFFSET($A27,1,0):$A712,$A27,OFFSET(BJ27,1,0):BJ712)","v":0},{"$f":"SUMIF(OFFSET($A27,1,0):$A712,$A27,OFFSET(BK27,1,0):BK712)","v":0}]
["1.2.1.1","Реконструкция ТП-7011, ТП-1072, ТП-1017, ТП-1078, г. Верхняя Салда",null,{"$f":"IFERROR(VLOOKUP($C28,'5.1'!$C:$AM,37,FALSE),\"\")","v":0},1.6,null,0,null,0,null,null,null,null,null,null,{"$f":"IFERROR(VLOOKUP($C28,'5.2'!$C:$AM,37,FALSE),\"\")","v":""},0,null,0,null,0,null,null,null,null,null,null,null,null,null,null,null,null,null,null,null,null,null,null,null,null,null,null,null,null,null,null,null,null,null,null,{"$f":"IFERROR(VLOOKUP($C28,#REF!,37,FALSE),\"\")","v":""},{"$f":"IFERROR(VLOOKUP($C28,#REF!,32,FALSE),\"\")","v":""},null,{"$f":"IFERROR(VLOOKUP($C28,#REF!,34,FALSE),\"\")","v":""},null,{"$f":"IFERROR(VLOOKUP($C28,#REF!,36,FALSE),\"\")","v":""}]
["1.2.1.1","Установка КТПн 250кВА в п. Тагильский ",null,{"$f":"IFERROR(VLOOKUP($C29,'5.1'!$C:$AM,37,FALSE),\"\")","v":0},0,null,0,null,0,null,null,null,null,null,null,{"$f":"IFERROR(VLOOKUP($C29,'5.2'!$C:$AM,37,FALSE),\"\")","v":""},0,null,0,null,0,null,null,null,null,null,null,null,null,null,null,null,null,null,null,null,null,null,null,null,0.25,null,null,null,null,null,null,null,null,null,null,{"$f":"IFERROR(VLOOKUP($C29,#REF!,37,FALSE),\"\")","v":""},{"$f":"IFERROR(VLOOKUP($C29,#REF!,32,FALSE),\"\")","v":""},null,{"$f":"IFERROR(VLOOKUP($C29,#REF!,34,FALSE),\"\")","v":""},null,{"$f":"IFERROR(VLOOKUP($C29,#REF!,36,FALSE),\"\")","v":""}]
["1.2.1.1","Установка КТПн 400кВА в г. Верхняя Салда",null,{"$f":"IFERROR(VLOOKUP($C30,'5.1'!$C:$AM,37,FALSE),\"\")","v":0},0,null,0,null,0,null,null,null,null,null,null,{"$f":"IFERROR(VLOOKUP($C30,'5.2'!$C:$AM,37,FALSE),\"\")","v":""},0,null,0,null,0,null,null,null,null,null,null,null,null,null,null,null,null,null,null,null,null,null,null,null,0.4,null,null,null,null,null,null,null,null,null,null,{"$f":"IFERROR(VLOOKUP($C30,#REF!,37,FALSE),\"\")","v":""},{"$f":"IFERROR(VLOOKUP($C30,#REF!,32,FALSE),\"\")","v":""},null,{"$f":"IFERROR(VLOOKUP($C30,#REF!,34,FALSE),\"\")","v":""},null,{"$f":"IFERROR(VLOOKUP($C30,#REF!,36,FALSE),\"\")","v":""}]
["1.2.1.2","Модернизация, техническое перевооружение трансформаторных и иных подстанций, распределительных пунктов, всего, в том числе:",null,{"$f":"IFERROR(VLOOKUP($C31,'5.1'!$C:$AM,37,FALSE),\"\")","v":0},0,null,0,null,0,null,null,null,null,null,null,{"$f":"IFERROR(VLOOKUP($C31,'5.2'!$C:$AM,37,FALSE),\"\")","v":""},0,null,0,null,0,null,null,null,null,null,null,null,null,null,null,null,null,null,null,null,null,null,null,null,null,null,null,null,11,null,null,null,null,null,null,{"$f":"IFERROR(VLOOKUP($C31,#REF!,37,FALSE),\"\")","v":""},{"$f":"IFERROR(VLOOKUP($C31,#REF!,32,FALSE),\"\")","v":""},null,{"$f":"IFERROR(VLOOKUP($C31,#REF!,34,FALSE),\"\")","v":""},null,{"$f":"IFERROR(VLOOKUP($C31,#REF!,36,FALSE),\"\")","v":""}]
["1.2.1.2","Ретрофит ячеек 6-10 кВ в РП, ТП, г. Верхняя Салда",null,{"$f":"IFERROR(VLOOKUP($C32,'5.1'!$C:$AM,37,FALSE),\"\")","v":0},0,null,0,null,0,null,null,null,null,null,null,{"$f":"IFERROR(VLOOKUP($C32,'5.2'!$C:$AM,37,FALSE),\"\")","v":""},0,null,0,null,0,null,null,null,null,null,null,null,null,null,null,null,null,null,null,null,null,null,null,null,null,null,null,null,11,null,null,null,null,null,null,{"$f":"IFERROR(VLOOKUP($C32,#REF!,37,FALSE),\"\")","v":""},{"$f":"IFERROR(VLOOKUP($C32,#REF!,32,FALSE),\"\")","v":""},null,{"$f":"IFERROR(VLOOKUP($C32,#REF!,34,FALSE),\"\")","v":""},null,{"$f":"IFERROR(VLOOKUP($C32,#REF!,36,FALSE),\"\")","v":""}]
["1.2.2","Реконструкция, модернизация, техническое перевооружение линий электропередачи, всего, в том числе:",null,{"$f":"IFERROR(VLOOKUP($C33,'5.1'!$C:$AM,37,FALSE),\"\")","v":0},0,null,0,null,0,null,null,null,null,null,null,{"$f":"IFERROR(VLOOKUP($C33,'5.2'!$C:$AM,37,FALSE),\"\")","v":""},0,null,0,null,0,null,null,null,null,null,null,null,null,null,null,null,null,null,null,null,null,null,null,null,null,null,null,null,null,null,null,null,null,null,null,{"$f":"IFERROR(VLOOKUP($C33,#REF!,37,FALSE),\"\")","v":""},{"$f":"IFERROR(VLOOKUP($C33,#REF!,32,FALSE),\"\")","v":""},null,{"$f":"IFERROR(VLOOKUP($C33,#REF!,34,FALSE),\"\")","v":""},null,{"$f":"IFERROR(VLOOKUP($C33,#REF!,36,FALSE),\"\")","v":""}]
["1.2.2.1","Реконструкция линий электропередачи, всего, в том числе:",null,{"$f":"IFERROR(VLOOKUP($C34,'5.1'!$C:$AM,37,FALSE),\"\")","v":0},0,null,0,null,0,null,null,null,null,null,null,{"$f":"IFERROR(VLOOKUP($C34,'5.2'!$C:$AM,37,FALSE),\"\")","v":""},0,null,0,null,0,null,null,null,null,null,null,null,null,null,null,null,null,null,null,null,null,null,null,null,null,null,null,null,null,null,null,null,null,null,null,{"$f":"IFERROR(VLOOKUP($C34,#REF!,37,FALSE),\"\")","v":""},{"$f":"IFERROR(VLOOKUP($C34,#REF!,32,FALSE),\"\")","v":""},null,{"$f":"IFERROR(VLOOKUP($C34,#REF!,34,FALSE),\"\")","v":""},null,{"$f":"IFERROR(VLOOKUP($C34,#REF!,36,FALSE),\"\")","v":""}]
["1.2.2.1","Реконструкция ВЛ-6 кВ ПС Басьяновка, г. Верхняя Салда",null,{"$f":"IFERROR(VLOOKUP($C35,'5.1'!$C:$AM,37,FALSE),\"\")","v":0},0,null,0,null,1,null,null,null,null,null,null,{"$f":"IFERROR(VLOOKUP($C35,'5.2'!$C:$AM,37,FALSE),\"\")","v":""},0,null,0,null,0,null,null,null,null,null,null,null,null,null,null,null,null,null,null,null,null,null,null,null,null,null,null,null,null,null,null,null,null,null,null,{"$f":"IFERROR(VLOOKUP($C35,#REF!,37,FALSE),\"\")","v":""},{"$f":"IFERROR(VLOOKUP($C35,#REF!,32,FALSE),\"\")","v":""},null,{"$f":"IFERROR(VLOOKUP($C35,#REF!,34,FALSE),\"\")","v":""},null,{"$f":"IFERROR(VLOOKUP($C35,#REF!,36,FALSE),\"\")","v":""}]
["1.2.2.1","Реконструкция ВЛ-6 кВ ПС Басьяновка, г. Верхняя Салда",null,{"$f":"IFERROR(VLOOKUP($C36,'5.1'!$C:$AM,37,FALSE),\"\")","v":0},0,null,0,null,0,null,null,null,null,null,null,{"$f":"IFERROR(VLOOKUP($C36,'5.2'!$C:$AM,37,FALSE),\"\")","v":""},0,null,9,null,0,null,null,null,null,null,null,null,null,null,null,null,null,null,null,null,null,null,null,null,null,null,null,null,null,null,null,null,null,null,null,{"$f":"IFERROR(VLOOKUP($C36,#REF!,37,FALSE),\"\")","v":""},{"$f":"IFERROR(VLOOKUP($C36,#REF!,32,FALSE),\"\")","v":""},null,{"$f":"IFERROR(VLOOKUP($C36,#REF!,34,FALSE),\"\")","v":""},null,{"$f":"IFERROR(VLOOKUP($C36,#REF!,36,FALSE),\"\")","v":""}]
["1.2.3","Развитие и модернизация учета электрической энергии (мощности), всего, в том числе:",null,{"$f":"IFERROR(VLOOKUP($C37,'5.1'!$C:$AM,37,FALSE),\"\")","v":0},0,null,0,null,0,null,null,null,null,null,null,{"$f":"IFERROR(VLOOKUP($C37,'5.2'!$C:$AM,37,FALSE),\"\")","v":""},0,null,0,null,0,null,null,null,null,null,null,null,null,null,null,null,296,null,null,null,null,null,null,null,null,null,null,null,380,null,null,null,null,null,null,{"$f":"IFERROR(VLOOKUP($C37,#REF!,37,FALSE),\"\")","v":""},{"$f":"IFERROR(VLOOKUP($C37,#REF!,32,FALSE),\"\")","v":""},null,{"$f":"IFERROR(VLOOKUP($C37,#REF!,34,FALSE),\"\")","v":""},null,{"$f":"IFERROR(VLOOKUP($C37,#REF!,36,FALSE),\"\")","v":""}]
["1.2.3.1","«Установка приборов учета, класс напряжения 0,22 (0,4) кВ, всего, в том числе:»",null,{"$f":"IFERROR(VLOOKUP($C38,'5.1'!$C:$AM,37,FALSE),\"\")","v":0},0,null,0,null,0,null,null,null,null,null,null,{"$f":"IFERROR(VLOOKUP($C38,'5.2'!$C:$AM,37,FALSE),\"\")","v":""},0,null,0,null,0,null,null,null,null,null,null,null,null,null,null,null,296,null,null,null,null,null,null,null,null,null,null,null,380,null,null,null,null,null,null,{"$f":"IFERROR(VLOOKUP($C38,#REF!,37,FALSE),\"\")","v":""},{"$f":"IFERROR(VLOOKUP($C38,#REF!,32,FALSE),\"\")","v":""},null,{"$f":"IFERROR(VLOOKUP($C38,#REF!,34,FALSE),\"\")","v":""},null,{"$f":"IFERROR(VLOOKUP($C38,#REF!,36,FALSE),\"\")","v":""}]
["1.2.3.1","Развитие системы АИИСКУЭ в сетях 0,4 кВ, г. Верхняя Салда",null,{"$f":"IFERROR(VLOOKUP($C39,'5.1'!$C:$AM,37,FALSE),\"\")","v":0},0,null,0,null,395,null,null,null,null,null,null,{"$f":"IFERROR(VLOOKUP($C39,'5.2'!$C:$AM,37,FALSE),\"\")","v":""},0,null,0,null,0,null,null,null,null,null,null,null,null,null,null,null,296,null,null,null,null,null,null,null,null,null,null,null,null,null,null,null,null,null,null,{"$f":"IFERROR(VLOOKUP($C39,#REF!,37,FALSE),\"\")","v":""},{"$f":"IFERROR(VLOOKUP($C39,#REF!,32,FALSE),\"\")","v":""},null,{"$f":"IFERROR(VLOOKUP($C39,#REF!,34,FALSE),\"\")","v":""},null,{"$f":"IFERROR(VLOOKUP($C39,#REF!,36,FALSE),\"\")","v":""}]
["1.2.3.1","Развитие системы АИИСКУЭ в сетях 0,4 кВ, г. Верхняя Салда",null,{"$f":"IFERROR(VLOOKUP($C40,'5.1'!$C:$AM,37,FALSE),\"\")","v":0},0,null,0,null,0,null,null,null,null,null,null,{"$f":"IFERROR(VLOOKUP($C40,'5.2'!$C:$AM,37,FALSE),\"\")","v":""},0,null,0,null,296,null,null,null,null,null,null,null,null,null,null,null,null,null,null,null,null,null,null,null,null,null,null,null,null,null,null,null,null,null,null,{"$f":"IFERROR(VLOOKUP($C40,#REF!,37,FALSE),\"\")","v":""},{"$f":"IFERROR(VLOOKUP($C40,#REF!,32,FALSE),\"\")","v":""},null,{"$f":"IFERROR(VLOOKUP($C40,#REF!,34,FALSE),\"\")","v":""},null,{"$f":"IFERROR(VLOOKUP($C40,#REF!,36,FALSE),\"\")","v":""}]
["1.2.3.1","Развитие системы АИИСКУЭ в сетях 0,4 кВ, г. Верхняя Салда",null,{"$f":"IFERROR(VLOOKUP($C41,'5.1'!$C:$AM,37,FALSE),\"\")","v":0},0,null,0,null,0,null,null,null,null,null,null,{"$f":"IFERROR(VLOOKUP($C41,'5.2'!$C:$AM,37,FALSE),\"\")","v":""},0,null,0,null,0,null,null,null,null,null,null,null,null,null,null,null,null,null,null,null,null,null,null,null,null,null,null,null,null,null,null,null,null,null,null,{"$f":"IFERROR(VLOOKUP($C41,#REF!,37,FALSE),\"\")","v":""},{"$f":"IFERROR(VLOOKUP($C41,#REF!,32,FALSE),\"\")","v":""},null,{"$f":"IFERROR(VLOOKUP($C41,#REF!,34,FALSE),\"\")","v":""},null,{"$f":"IFERROR(VLOOKUP($C41,#REF!,36,FALSE),\"\")","v":""}]
["1.2.3.1","Развитие системы АИИСКУЭ в сетях 0,4 кВ, г. Верхняя Салда",null,{"$f":"IFERROR(VLOOKUP($C42,'5.1'!$C:$AM,37,FALSE),\"\")","v":0},0,null,0,null,0,null,null,null,null,null,null,{"$f":"IFERROR(VLOOKUP($C42,'5.2'!$C:$AM,37,FALSE),\"\")","v":""},0,null,0,null,0,null,null,null,null,null,null,null,null,null,null,null,null,null,null,null,null,null,null,null,null,null,null,null,380,null,null,null,null,null,null,{"$f":"IFERROR(VLOOKUP($C42,#REF!,37,FALSE),\"\")","v":""},{"$f":"IFERROR(VLOOKUP($C42,#REF!,32,FALSE),\"\")","v":""},null,{"$f":"IFERROR(VLOOKUP($C42,#REF!,34,FALSE),\"\")","v":""},null,{"$f":"IFERROR(VLOOKUP($C42,#REF!,36,FALSE),\"\")","v":""}]
["1.6","Прочие инвестиционные проекты, всего, в том числе:",null,{"$f":"IFERROR(VLOOKUP($C43,'5.1'!$C:$AM,37,FALSE),\"\")","v":0},0,null,0,null,0,null,null,null,null,null,null,{"$f":"IFERROR(VLOOKUP($C43,'5.2'!$C:$AM,37,FALSE),\"\")","v":""},0,null,0,null,0,null,null,null,null,null,null,null,null,null,null,null,8,null,null,null,null,null,null,null,null,null,null,null,null,null,null,null,null,null,null,{"$f":"IFERROR(VLOOKUP($C43,#REF!,37,FALSE),\"\")","v":""},{"$f":"IFERROR(VLOOKUP($C43,#REF!,32,FALSE),\"\")","v":""},null,{"$f":"IFERROR(VLOOKUP($C43,#REF!,34,FALSE),\"\")","v":""},null,{"$f":"IFERROR(VLOOKUP($C43,#REF!,36,FALSE),\"\")","v":""}]
["1.6","Развитие системы АИИСКУЭ в сетях 6/10 кВ, г. Верхняя Салда",null,{"$f":"IFERROR(VLOOKUP($C44,'5.1'!$C:$AM,37,FALSE),\"\")","v":0},0,null,0,null,10,null,null,null,null,null,null,{"$f":"IFERROR(VLOOKUP($C44,'5.2'!$C:$AM,37,FALSE),\"\")","v":""},0,null,0,null,0,null,null,null,null,null,null,null,null,null,null,null,6,null,null,null,null,null,null,null,null,null,null,null,null,null,null,null,null,null,null,{"$f":"IFERROR(VLOOKUP($C44,#REF!,37,FALSE),\"\")","v":""},{"$f":"IFERROR(VLOOKUP($C44,#REF!,32,FALSE),\"\")","v":""},null,{"$f":"IFERROR(VLOOKUP($C44,#REF!,34,FALSE),\"\")","v":""},null,{"$f":"IFERROR(VLOOKUP($C44,#REF!,36,FALSE),\"\")","v":""}]
["1.6","Развитие системы АИИСКУЭ в сетях 6/10 кВ, г. Верхняя Салда",null,{"$f":"IFERROR(VLOOKUP($C45,'5.1'!$C:$AM,37,FALSE),\"\")","v":0},0,null,0,null,0,null,null,null,null,null,null,{"$f":"IFERROR(VLOOKUP($C45,'5.2'!$C:$AM,37,FALSE),\"\")","v":""},0,null,0,null,5,null,null,null,null,null,null,null,null,null,null,null,null,null,null,null,null,null,null,null,null,null,null,null,null,null,null,null,null,null,null,{"$f":"IFERROR(VLOOKUP($C45,#REF!,37,FALSE),\"\")","v":""},{"$f":"IFERROR(VLOOKUP($C45,#REF!,32,FALSE),\"\")","v":""},null,{"$f":"IFERROR(VLOOKUP($C45,#REF!,34,FALSE),\"\")","v":""},null,{"$f":"IFERROR(VLOOKUP($C45,#REF!,36,FALSE),\"\")","v":""}]
["1.6","Развитие системы АИИСКУЭ в сетях 6/10 кВ, г. Верхняя Салда",null,{"$f":"IFERROR(VLOOKUP($C46,'5.1'!$C:$AM,37,FALSE),\"\")","v":0},0,null,0,null,0,null,null,null,null,null,null,{"$f":"IFERROR(VLOOKUP($C46,'5.2'!$C:$AM,37,FALSE),\"\")","v":""},0,null,0,null,0,null,null,null,null,null,null,null,null,null,null,null,null,null,null,null,null,null,null,null,null,null,null,null,null,null,null,null,null,null,null,{"$f":"IFERROR(VLOOKUP($C46,#REF!,37,FALSE),\"\")","v":""},{"$f":"IFERROR(VLOOKUP($C46,#REF!,32,FALSE),\"\")","v":""},null,{"$f":"IFERROR(VLOOKUP($C46,#REF!,34,FALSE),\"\")","v":""},null,{"$f":"IFERROR(VLOOKUP($C46,#REF!,36,FALSE),\"\")","v":""}]
["1.6","Установка реклоузеров, г. Верхняя Салда",null,{"$f":"IFERROR(VLOOKUP($C47,'5.1'!$C:$AM,37,FALSE),\"\")","v":0},0,null,0,null,4,null,null,null,null,null,null,{"$f":"IFERROR(VLOOKUP($C47,'5.2'!$C:$AM,37,FALSE),\"\")","v":""},0,null,0,null,0,null,null,null,null,null,null,null,null,null,null,null,null,null,null,null,null,null,null,null,null,null,null,null,null,null,null,null,null,null,null,{"$f":"IFERROR(VLOOKUP($C47,#REF!,37,FALSE),\"\")","v":""},{"$f":"IFERROR(VLOOKUP($C47,#REF!,32,FALSE),\"\")","v":""},null,{"$f":"IFERROR(VLOOKUP($C47,#REF!,34,FALSE),\"\")","v":""},null,{"$f":"IFERROR(VLOOKUP($C47,#REF!,36,FALSE),\"\")","v":""}]
["1.6","Установка реклоузеров, г. Верхняя Салда",null,{"$f":"IFERROR(VLOOKUP($C48,'5.1'!$C:$AM,37,FALSE),\"\")","v":0},0,null,0,null,0,null,null,null,null,null,null,{"$f":"IFERROR(VLOOKUP($C48,'5.2'!$C:$AM,37,FALSE),\"\")","v":""},0,null,0,null,6,null,null,null,null,null,null,null,null,null,null,null,null,null,null,null,null,null,null,null,null,null,null,null,null,null,null,null,null,null,null,{"$f":"IFERROR(VLOOKUP($C48,#REF!,37,FALSE),\"\")","v":""},{"$f":"IFERROR(VLOOKUP($C48,#REF!,32,FALSE),\"\")","v":""},null,{"$f":"IFERROR(VLOOKUP($C48,#REF!,34,FALSE),\"\")","v":""},null,{"$f":"IFERROR(VLOOKUP($C48,#REF!,36,FALSE),\"\")","v":""}]
["1.6","Приобретение передвижной электротехнической лаборатории",null,{"$f":"IFERROR(VLOOKUP($C49,'5.1'!$C:$AM,37,FALSE),\"\")","v":0},0,null,0,null,0,null,null,null,null,null,null,{"$f":"IFERROR(VLOOKUP($C49,'5.2'!$C:$AM,37,FALSE),\"\")","v":""},0,null,0,null,0,null,null,null,null,null,null,null,null,null,null,null,1,null,null,null,null,null,null,null,null,null,null,null,null,null,null,null,null,null,null,{"$f":"IFERROR(VLOOKUP($C49,#REF!,37,FALSE),\"\")","v":""},{"$f":"IFERROR(VLOOKUP($C49,#REF!,32,FALSE),\"\")","v":""},null,{"$f":"IFERROR(VLOOKUP($C49,#REF!,34,FALSE),\"\")","v":""},null,{"$f":"IFERROR(VLOOKUP($C49,#REF!,36,FALSE),\"\")","v":""}]
["1.6","Реконструкция кровли теплой автостоянки для строительно- эксплуатационной техники, г. Верхняя Салда ",null,{"$f":"IFERROR(VLOOKUP($C50,'5.1'!$C:$AM,37,FALSE),\"\")","v":0},0,null,0,null,0,null,null,null,null,null,null,{"$f":"IFERROR(VLOOKUP($C50,'5.2'!$C:$AM,37,FALSE),\"\")","v":""},0,null,0,null,0,null,null,null,null,null,null,null,null,null,null,null,1,null,null,null,null,null,null,null,null,null,null,null,null,null,null,null,null,null,null,{"$f":"IFERROR(VLOOKUP($C50,#REF!,37,FALSE),\"\")","v":""},{"$f":"IFERROR(VLOOKUP($C50,#REF!,32,FALSE),\"\")","v":""},null,{"$f":"IFERROR(VLOOKUP($C50,#REF!,34,FALSE),\"\")","v":""},null,{"$f":"IFERROR(VLOOKUP($C50,#REF!,36,FALSE),\"\")","v":""}]

{"sheet":"7","index":12,"n_rows":49,"n_cols":102,"rows_kept":49,"cut":false,"hidden":false,"merged":[[4,0,4,44],[5,0,5,44],[13,17,14,30],[13,45,13,100],[3,0,3,44],[9,0,9,44],[10,0,10,44],[11,0,11,44],[13,31,13,44],[13,0,16,0],[12,0,12,100],[14,45,14,58],[14,87,14,100],[15,94,15,100],[15,73,15,79],[15,80,15,86],[8,0,8,44],[14,31,14,44],[14,73,14,86],[6,0,6,44],[7,0,7,44],[14,59,14,72],[13,101,16,101],[13,3,14,16],[13,2,16,2],[13,1,16,1],[15,10,15,16],[15,31,15,37],[15,38,15,44],[15,45,15,51],[15,52,15,58],[15,87,15,93],[15,17,15,23],[15,24,15,30],[15,3,15,9],[15,59,15,65],[15,66,15,72]]}
[null,null,null,null,null,null,null,null,null,null,null,null,null,null,null,null,null,null,null,null,null,null,null,null,null,null,null,null,null,null,null,null,null,null,null,null,null,null,null,null,null,null,null,null,"Приложение  № 7"]
[null,null,null,null,null,null,null,null,null,null,null,null,null,null,null,null,null,null,null,null,null,null,null,null,null,null,null,null,null,null,null,null,null,null,null,null,null,null,null,null,null,null,null,null,"к приказу Минэнерго России"]
[null,null,null,null,null,null,null,null,null,null,null,null,null,null,null,null,null,null,null,null,null,null,null,null,null,null,null,null,null,null,null,null,null,null,null,null,null,null,null,null,null,null,null,null,"от «__» _____ 2016 г. №___"]
["Форма 7. Краткое описание инвестиционной программы. Ввод объектов инвестиционной деятельности (мощностей) в эксплуатацию"]
[]
["Инвестиционная программа АО \"ВЭС\""]
["                                                         полное наименование субъекта электроэнергетики"]
[]
["Год раскрытия информации: 2020 год"]
[]
["Утвержденные плановые значения показателей приведены в соответствии с  ______________________________________________________________________________"]
["                                                                                                              реквизиты решения органа исполнительной власти, утвердившего инвестиционную программу"]
[]
["Номер группы инвести-ционных проектов","  Наименование инвестиционного проекта (группы инвестиционных проектов)","Идентифика-тор инвестицион-ного проекта","Характеристики объекта электроэнергетики (объекта инвестиционной деятельности)",null,null,null,null,null,null,null,null,null,null,null,null,null,"Ввод объектов инвестиционной деятельности (мощностей) в эксплуатацию в 2021 год ",null,null,null,null,null,null,null,null,null,null,null,null,null,"Ввод объектов инвестиционной деятельности (мощностей) в эксплуатацию",null,null,null,null,null,null,null,null,null,null,null,null,null,"Ввод объектов инвестиционной деятельности (мощностей) в эксплуатацию",null,null,null,null,null,null,null,null,null,null,null,null,null,null,null,null,null,null,null,null,null,null,null,null,null,null,null,null,null,null,null,null,null,null,null,null,null,null,null,null,null,null,null,null,null,null,null,null,null,null,null,null,null,null,null,"Краткое обоснование  корректировки утвержденного плана"]
[null,null,null,null,null,null,null,null,null,null,null,null,null,null,null,null,null,null,null,null,null,null,null,null,null,null,null,null,null,null,null,"2022 год",null,null,null,null,null,null,null,null,null,null,null,null,null,"2023 год",null,null,null,null,null,null,null,null,null,null,null,null,null,"2024 год",null,null,null,null,null,null,null,null,null,null,null,null,null,"2024 год",null,null,null,null,null,null,null,null,null,null,null,null,null,"Итого за период реализации инвестиционной программы "]
[null,null,null,"План",null,null,null,null,null,null,"Факт",null,null,null,null,null,null,"План",null,null,null,null,null,null,"Факт",null,null,null,null,null,null,"План",null,null,null,null,null,null,"Факт",null,null,null,null,null,null,"План",null,null,null,null,null,null,"Факт",null,null,null,null,null,null,"План",null,null,null,null,null,null,"Факт",null,null,null,null,null,null,"План",null,null,null,null,null,null,"Факт",null,null,null,null,null,null,"План",null,null,null,null,null,null,"Факт"]
[null,null,null,"МВ×А","Мвар","км ВЛ\n 1-цеп","км ВЛ\n 2-цеп","км КЛ","МВт","Другое","МВ×А","Мвар","км ВЛ\n 1-цеп","км ВЛ\n 2-цеп","км КЛ","МВт","Другое","МВ×А","Мвар","км ВЛ\n 1-цеп","км ВЛ\n 2-цеп","км КЛ","МВт","Другое","МВ×А","Мвар","км ВЛ\n 1-цеп","км ВЛ\n 2-цеп","км КЛ","МВт","Другое","МВ×А","Мвар","км ВЛ\n 1-цеп","км ВЛ\n 2-цеп","км КЛ","МВт","Другое","МВ×А","Мвар","км ВЛ\n 1-цеп","км ВЛ\n 2-цеп","км КЛ","МВт","Другое","МВ×А","Мвар","км ВЛ\n 1-цеп","км ВЛ\n 2-цеп","км КЛ","МВт","Другое","МВ×А","Мвар","км ВЛ\n 1-цеп","км ВЛ\n 2-цеп","км КЛ","МВт","Другое","МВ×А","Мвар","км ВЛ\n 1-цеп","км ВЛ\n 2-цеп","км КЛ","МВт","Другое","МВ×А","Мвар","км ВЛ\n 1-цеп","км ВЛ\n 2-цеп","км КЛ","МВт","Другое","МВ×А","Мвар","км ВЛ\n 1-цеп","км ВЛ\n 2-цеп","км КЛ","МВт","Другое","МВ×А","Мвар","км ВЛ\n 1-цеп","км ВЛ\n 2-цеп","км КЛ","МВт","Другое","МВ×А","Мвар","км ВЛ\n 1-цеп","км ВЛ\n 2-цеп","км КЛ","МВт","Другое","МВ×А","Мвар","км ВЛ\n 1-цеп","км ВЛ\n 2-цеп","км КЛ","МВт","Другое"]
[1,2,3,"4.1.1","4.1.2","4.1.3","4.1.4","4.1.5","4.1.6","4.1.7","4.2.1","4.2.2","4.2.3","4.2.4","4.2.5","4.2.6","4.2.7","5.1.1","5.1.2","5.1.3","5.1.4","5.1.5","5.1.6","5.1.7","5.2.1","5.2.2","5.2.3","5.2.4","5.2.5","5.2.6","5.2.7","6.1.1","6.1.2","6.1.3","6.1.4","6.1.5","6.1.6","6.1.7","6.2.1","6.2.2","6.2.3","6.2.4","6.2.5","6.2.6","6.2.7","6.3.1","6.3.2","6.3.3","6.3.4","6.3.5","6.3.6","6.3.7","6.4.1","6.4.2","6.4.3","6.4.4","6.4.5","6.4.6","6.4.7","6.3.1","6.3.2","6.3.3","6.3.4","6.3.5","6.3.6","6.3.7","6.4.1","6.4.2","6.4.3","6.4.4","6.4.5","6.4.6","6.4.7","6.5.1","6.5.2","6.5.3","6.5.4","6.5.5","6.5.6","6.5.7","6.6.1","6.6.2","6.6.3","6.6.4","6.6.5","6.6.6","6.6.7","7.1.1","7.1.2","7.1.3","7.1.4","7.1.5","7.1.6","7.1.7","7.2.1","7.2.2","7.2.3","7.2.4","7.2.5","7.2.6","7.2.7",8]
["0","ВСЕГО по инвестиционной программе, в том числе:",null,{"$f":"D20+D21+D22","v":2.25},0,9,0,0,0,1412,{"$f":"K20+K21+K22","v":0},0,0,0,0,0,0,1.6,0,0,0,0,0,410,0,0,0,0,0,0,0,{"$f":"AF20+AF21+AF22","v":0},0,9,0,0,0,307,0,0,0,0,0,0,0,{"$f":"AT20+AT21+AT22","v":0},0,0,0,0,0,304,{"$f":"BA20+BA21+BA22","v":0},0,0,0,0,0,0,0.65,0,0,0,0,0,391,0,0,0,0,0,0,0,0,{"$f":"BW20+BW21+BW22","v":{"$error":"#REF!"}},{"$error":"#REF!"},{"$error":"#REF!"},{"$error":"#REF!"},{"$error":"#REF!"},{"$error":"#REF!"},{"$error":"#REF!"},{"$error":"#REF!"},{"$error":"#REF!"},{"$error":"#REF!"},{"$error":"#REF!"},{"$error":"#REF!"},{"$error":"#REF!"},2.25,0,9,0,0,0,1412,0,0,0,0,0,0,0]
["0.2","Реконструкция, модернизация, техническое перевооружение, всего",null,{"$f":"D24","v":2.25},0,9,0,0,0,1379,{"$f":"K24","v":0},0,0,0,0,0,0,1.6,0,0,0,0,0,396,0,0,0,0,0,0,0,{"$f":"AF24","v":0},0,9,0,0,0,296,0,0,0,0,0,0,0,{"$f":"AT24","v":0},0,0,0,0,0,296,{"$f":"BA24","v":0},0,0,0,0,0,0,0.65,0,0,0,0,0,391,0,0,0,0,0,0,0,0,{"$f":"BW24","v":{"$error":"#REF!"}},{"$error":"#REF!"},{"$error":"#REF!"},{"$error":"#REF!"},{"$error":"#REF!"},{"$error":"#REF!"},{"$error":"#REF!"},{"$error":"#REF!"},{"$error":"#REF!"},{"$error":"#REF!"},{"$error":"#REF!"},{"$error":"#REF!"},{"$error":"#REF!"},2.25,0,9,0,0,0,1379,0,0,0,0,0,0,0]
["0.3","Инвестиционные проекты, реализация которых обуславливается схемами и программами перспективного развития электроэнергетики, всего"]
["0.6","Прочие инвестиционные проекты, всего",null,{"$f":"SUMIF(OFFSET($B22,1,0):$B707,\"Прочие инвестиционные проекты, всего, в том числе:\",OFFSET(D22,1,0):D707)","v":0},{"$f":"SUMIF(OFFSET($B22,1,0):$B707,\"Прочие инвестиционные проекты, всего, в том числе:\",OFFSET(E22,1,0):E707)","v":0},{"$f":"SUMIF(OFFSET($B22,1,0):$B707,\"Прочие инвестиционные проекты, всего, в том числе:\",OFFSET(F22,1,0):F707)","v":0},{"$f":"SUMIF(OFFSET($B22,1,0):$B707,\"Прочие инвестиционные проекты, всего, в том числе:\",OFFSET(G22,1,0):G707)","v":0},{"$f":"SUMIF(OFFSET($B22,1,0):$B707,\"Прочие инвестиционные проекты, всего, в том числе:\",OFFSET(H22,1,0):H707)","v":0},{"$f":"SUMIF(OFFSET($B22,1,0):$B707,\"Прочие инвестиционные проекты, всего, в том числе:\",OFFSET(I22,1,0):I707)","v":0},{"$f":"SUMIF(OFFSET($B22,1,0):$B707,\"Прочие инвестиционные проекты, всего, в том числе:\",OFFSET(J22,1,0):J707)","v":33},{"$f":"SUMIF(OFFSET($B22,1,0):$B707,\"Прочие инвестиционные проекты, всего, в том числе:\",OFFSET(K22,1,0):K707)","v":0},{"$f":"SUMIF(OFFSET($B22,1,0):$B707,\"Прочие инвестиционные проекты, всего, в том числе:\",OFFSET(L22,1,0):L707)","v":0},{"$f":"SUMIF(OFFSET($B22,1,0):$B707,\"Прочие инвестиционные проекты, всего, в том числе:\",OFFSET(M22,1,0):M707)","v":0},{"$f":"SUMIF(OFFSET($B22,1,0):$B707,\"Прочие инвестиционные проекты, всего, в том числе:\",OFFSET(N22,1,0):N707)","v":0},{"$f":"SUMIF(OFFSET($B22,1,0):$B707,\"Прочие инвестиционные проекты, всего, в том числе:\",OFFSET(O22,1,0):O707)","v":0},{"$f":"SUMIF(OFFSET($B22,1,0):$B707,\"Прочие инвестиционные проекты, всего, в том числе:\",OFFSET(P22,1,0):P707)","v":0},{"$f":"SUMIF(OFFSET($B22,1,0):$B707,\"Прочие инвестиционные проекты, всего, в том числе:\",OFFSET(Q22,1,0):Q707)","v":0},{"$f":"SUMIF(OFFSET($B22,1,0):$B707,\"Прочие инвестиционные проекты, всего, в том числе:\",OFFSET(R22,1,0):R707)","v":0},{"$f":"SUMIF(OFFSET($B22,1,0):$B707,\"Прочие инвестиционные проекты, всего, в том числе:\",OFFSET(S22,1,0):S707)","v":0},{"$f":"SUMIF(OFFSET($B22,1,0):$B707,\"Прочие инвестиционные проекты, всего, в том числе:\",OFFSET(T22,1,0):T707)","v":0},{"$f":"SUMIF(OFFSET($B22,1,0):$B707,\"Прочие инвестиционные проекты, всего, в том числе:\",OFFSET(U22,1,0):U707)","v":0},{"$f":"SUMIF(OFFSET($B22,1,0):$B707,\"Прочие инвестиционные проекты, всего, в том числе:\",OFFSET(V22,1,0):V707)","v":0},{"$f":"SUMIF(OFFSET($B22,1,0):$B707,\"Прочие инвестиционные проекты, всего, в том числе:\",OFFSET(W22,1,0):W707)","v":0},14,{"$f":"SUMIF(OFFSET($B22,1,0):$B707,\"Прочие инвестиционные проекты, всего, в том числе:\",OFFSET(Y22,1,0):Y707)","v":0},{"$f":"SUMIF(OFFSET($B22,1,0):$B707,\"Прочие инвестиционные проекты, всего, в том числе:\",OFFSET(Z22,1,0):Z707)","v":0},{"$f":"SUMIF(OFFSET($B22,1,0):$B707,\"Прочие инвестиционные проекты, всего, в том числе:\",OFFSET(AA22,1,0):AA707)","v":0},{"$f":"SUMIF(OFFSET($B22,1,0):$B707,\"Прочие инвестиционные проекты, всего, в том числе:\",OFFSET(AB22,1,0):AB707)","v":0},{"$f":"SUMIF(OFFSET($B22,1,0):$B707,\"Прочие инвестиционные проекты, всего, в том числе:\",OFFSET(AC22,1,0):AC707)","v":0},{"$f":"SUMIF(OFFSET($B22,1,0):$B707,\"Прочие инвестиционные проекты, всего, в том числе:\",OFFSET(AD22,1,0):AD707)","v":0},{"$f":"SUMIF(OFFSET($B22,1,0):$B707,\"Прочие инвестиционные проекты, всего, в том числе:\",OFFSET(AE22,1,0):AE707)","v":0},{"$f":"SUMIF(OFFSET($B22,1,0):$B707,\"Прочие инвестиционные проекты, всего, в том числе:\",OFFSET(AF22,1,0):AF707)","v":0},{"$f":"SUMIF(OFFSET($B22,1,0):$B707,\"Прочие инвестиционные проекты, всего, в том числе:\",OFFSET(AG22,1,0):AG707)","v":0},{"$f":"SUMIF(OFFSET($B22,1,0):$B707,\"Прочие инвестиционные проекты, всего, в том числе:\",OFFSET(AH22,1,0):AH707)","v":0},{"$f":"SUMIF(OFFSET($B22,1,0):$B707,\"Прочие инвестиционные проекты, всего, в том числе:\",OFFSET(AI22,1,0):AI707)","v":0},{"$f":"SUMIF(OFFSET($B22,1,0):$B707,\"Прочие инвестиционные проекты, всего, в том числе:\",OFFSET(AJ22,1,0):AJ707)","v":0},{"$f":"SUMIF(OFFSET($B22,1,0):$B707,\"Прочие инвестиционные проекты, всего, в том числе:\",OFFSET(AK22,1,0):AK707)","v":0},{"$f":"SUMIF(OFFSET($B22,1,0):$B707,\"Прочие инвестиционные проекты, всего, в том числе:\",OFFSET(AL22,1,0):AL707)","v":11},{"$f":"SUMIF(OFFSET($B22,1,0):$B707,\"Прочие инвестиционные проекты, всего, в том числе:\",OFFSET(AM22,1,0):AM707)","v":0},{"$f":"SUMIF(OFFSET($B22,1,0):$B707,\"Прочие инвестиционные проекты, всего, в том числе:\",OFFSET(AN22,1,0):AN707)","v":0},{"$f":"SUMIF(OFFSET($B22,1,0):$B707,\"Прочие инвестиционные проекты, всего, в том числе:\",OFFSET(AO22,1,0):AO707)","v":0},{"$f":"SUMIF(OFFSET($B22,1,0):$B707,\"Прочие инвестиционные проекты, всего, в том числе:\",OFFSET(AP22,1,0):AP707)","v":0},{"$f":"SUMIF(OFFSET($B22,1,0):$B707,\"Прочие инвестиционные проекты, всего, в том числе:\",OFFSET(AQ22,1,0):AQ707)","v":0},{"$f":"SUMIF(OFFSET($B22,1,0):$B707,\"Прочие инвестиционные проекты, всего, в том числе:\",OFFSET(AR22,1,0):AR707)","v":0},{"$f":"SUMIF(OFFSET($B22,1,0):$B707,\"Прочие инвестиционные проекты, всего, в том числе:\",OFFSET(AS22,1,0):AS707)","v":0},{"$f":"SUMIF(OFFSET($B22,1,0):$B707,\"Прочие инвестиционные проекты, всего, в том числе:\",OFFSET(AT22,1,0):AT707)","v":0},{"$f":"SUMIF(OFFSET($B22,1,0):$B707,\"Прочие инвестиционные проекты, всего, в том числе:\",OFFSET(AU22,1,0):AU707)","v":0},{"$f":"SUMIF(OFFSET($B22,1,0):$B707,\"Прочие инвестиционные проекты, всего, в том числе:\",OFFSET(AV22,1,0):AV707)","v":0},{"$f":"SUMIF(OFFSET($B22,1,0):$B707,\"Прочие инвестиционные проекты, всего, в том числе:\",OFFSET(AW22,1,0):AW707)","v":0},{"$f":"SUMIF(OFFSET($B22,1,0):$B707,\"Прочие инвестиционные проекты, всего, в том числе:\",OFFSET(AX22,1,0):AX707)","v":0},{"$f":"SUMIF(OFFSET($B22,1,0):$B707,\"Прочие инвестиционные проекты, всего, в том числе:\",OFFSET(AY22,1,0):AY707)","v":0},{"$f":"SUMIF(OFFSET($B22,1,0):$B707,\"Прочие инвестиционные проекты, всего, в том числе:\",OFFSET(AZ22,1,0):AZ707)","v":8},{"$f":"SUMIF(OFFSET($B22,1,0):$B707,\"Прочие инвестиционные проекты, всего, в том числе:\",OFFSET(BA22,1,0):BA707)","v":0},{"$f":"SUMIF(OFFSET($B22,1,0):$B707,\"Прочие инвестиционные проекты, всего, в том числе:\",OFFSET(BB22,1,0):BB707)","v":0},{"$f":"SUMIF(OFFSET($B22,1,0):$B707,\"Прочие инвестиционные проекты, всего, в том числе:\",OFFSET(BC22,1,0):BC707)","v":0},{"$f":"SUMIF(OFFSET($B22,1,0):$B707,\"Прочие инвестиционные проекты, всего, в том числе:\",OFFSET(BD22,1,0):BD707)","v":0},{"$f":"SUMIF(OFFSET($B22,1,0):$B707,\"Прочие инвестиционные проекты, всего, в том числе:\",OFFSET(BE22,1,0):BE707)","v":0},{"$f":"SUMIF(OFFSET($B22,1,0):$B707,\"Прочие инвестиционные проекты, всего, в том числе:\",OFFSET(BF22,1,0):BF707)","v":0},{"$f":"SUMIF(OFFSET($B22,1,0):$B707,\"Прочие инвестиционные проекты, всего, в том числе:\",OFFSET(BG22,1,0):BG707)","v":0},{"$f":"SUMIF(OFFSET($B22,1,0):$B707,\"Прочие инвестиционные проекты, всего, в том числе:\",OFFSET(BH22,1,0):BH707)","v":0},{"$f":"SUMIF(OFFSET($B22,1,0):$B707,\"Прочие инвестиционные проекты, всего, в том числе:\",OFFSET(BI22,1,0):BI707)","v":0},{"$f":"SUMIF(OFFSET($B22,1,0):$B707,\"Прочие инвестиционные проекты, всего, в том числе:\",OFFSET(BJ22,1,0):BJ707)","v":0},{"$f":"SUMIF(OFFSET($B22,1,0):$B707,\"Прочие инвестиционные проекты, всего, в том числе:\",OFFSET(BK22,1,0):BK707)","v":0},{"$f":"SUMIF(OFFSET($B22,1,0):$B707,\"Прочие инвестиционные проекты, всего, в том числе:\",OFFSET(BL22,1,0):BL707)","v":0},{"$f":"SUMIF(OFFSET($B22,1,0):$B707,\"Прочие инвестиционные проекты, всего, в том числе:\",OFFSET(BM22,1,0):BM707)","v":0},{"$f":"SUMIF(OFFSET($B22,1,0):$B707,\"Прочие инвестиционные проекты, всего, в том числе:\",OFFSET(BN22,1,0):BN707)","v":0},{"$f":"SUMIF(OFFSET($B22,1,0):$B707,\"Прочие инвестиционные проекты, всего, в том числе:\",OFFSET(BO22,1,0):BO707)","v":0},{"$f":"SUMIF(OFFSET($B22,1,0):$B707,\"Прочие инвестиционные проекты, всего, в том числе:\",OFFSET(BP22,1,0):BP707)","v":0},{"$f":"SUMIF(OFFSET($B22,1,0):$B707,\"Прочие инвестиционные проекты, всего, в том числе:\",OFFSET(BQ22,1,0):BQ707)","v":0},{"$f":"SUMIF(OFFSET($B22,1,0):$B707,\"Прочие инвестиционные проекты, всего, в том числе:\",OFFSET(BR22,1,0):BR707)","v":0},{"$f":"SUMIF(OFFSET($B22,1,0):$B707,\"Прочие инвестиционные проекты, всего, в том числе:\",OFFSET(BS22,1,0):BS707)","v":0},{"$f":"SUMIF(OFFSET($B22,1,0):$B707,\"Прочие инвестиционные проекты, всего, в том числе:\",OFFSET(BT22,1,0):BT707)","v":0},{"$f":"SUMIF(OFFSET($B22,1,0):$B707,\"Прочие инвестиционные проекты, всего, в том числе:\",OFFSET(BU22,1,0):BU707)","v":0},{"$f":"SUMIF(OFFSET($B22,1,0):$B707,\"Прочие инвестиционные проекты, всего, в том числе:\",OFFSET(BV22,1,0):BV707)","v":0},{"$f":"SUMIF(OFFSET($B22,1,0):$B707,\"Прочие инвестиционные проекты, всего, в том числе:\",OFFSET(BW22,1,0):BW707)","v":0},{"$f":"SUMIF(OFFSET($B22,1,0):$B707,\"Прочие инвестиционные проекты, всего, в том числе:\",OFFSET(BX22,1,0):BX707)","v":0},{"$f":"SUMIF(OFFSET($B22,1,0):$B707,\"Прочие инвестиционные проекты, всего, в том числе:\",OFFSET(BY22,1,0):BY707)","v":0},{"$f":"SUMIF(OFFSET($B22,1,0):$B707,\"Прочие инвестиционные проекты, всего, в том числе:\",OFFSET(BZ22,1,0):BZ707)","v":0},{"$f":"SUMIF(OFFSET($B22,1,0):$B707,\"Прочие инвестиционные проекты, всего, в том числе:\",OFFSET(CA22,1,0):CA707)","v":0},{"$f":"SUMIF(OFFSET($B22,1,0):$B707,\"Прочие инвестиционные проекты, всего, в том числе:\",OFFSET(CB22,1,0):CB707)","v":0},{"$f":"SUMIF(OFFSET($B22,1,0):$B707,\"Прочие инвестиционные проекты, всего, в том числе:\",OFFSET(CC22,1,0):CC707)","v":0},{"$f":"SUMIF(OFFSET($B22,1,0):$B707,\"Прочие инвестиционные проекты, всего, в том числе:\",OFFSET(CD22,1,0):CD707)","v":0},{"$f":"SUMIF(OFFSET($B22,1,0):$B707,\"Прочие инвестиционные проекты, всего, в том числе:\",OFFSET(CE22,1,0):CE707)","v":0},{"$f":"SUMIF(OFFSET($B22,1,0):$B707,\"Прочие инвестиционные проекты, всего, в том числе:\",OFFSET(CF22,1,0):CF707)","v":0},{"$f":"SUMIF(OFFSET($B22,1,0):$B707,\"Прочие инвестиционные проекты, всего, в том числе:\",OFFSET(CG22,1,0):CG707)","v":0},{"$f":"SUMIF(OFFSET($B22,1,0):$B707,\"Прочие инвестиционные проекты, всего, в том числе:\",OFFSET(CH22,1,0):CH707)","v":0},{"$f":"SUMIF(OFFSET($B22,1,0):$B707,\"Прочие инвестиционные проекты, всего, в том числе:\",OFFSET(CI22,1,0):CI707)","v":0},{"$f":"SUMIF(OFFSET($B22,1,0):$B707,\"Прочие инвестиционные проекты, всего, в том числе:\",OFFSET(CJ22,1,0):CJ707)","v":0},{"$f":"SUMIF(OFFSET($B22,1,0):$B707,\"Прочие инвестиционные проекты, всего, в том числе:\",OFFSET(CK22,1,0):CK707)","v":0},{"$f":"SUMIF(OFFSET($B22,1,0):$B707,\"Прочие инвестиционные проекты, всего, в том числе:\",OFFSET(CL22,1,0):CL707)","v":0},{"$f":"SUMIF(OFFSET($B22,1,0):$B707,\"Прочие инвестиционные проекты, всего, в том числе:\",OFFSET(CM22,1,0):CM707)","v":0},{"$f":"SUMIF(OFFSET($B22,1,0):$B707,\"Прочие инвестиционные проекты, всего, в том числе:\",OFFSET(CN22,1,0):CN707)","v":0},{"$f":"SUMIF(OFFSET($B22,1,0):$B707,\"Прочие инвестиционные проекты, всего, в том числе:\",OFFSET(CO22,1,0):CO707)","v":0},{"$f":"SUMIF(OFFSET($B22,1,0):$B707,\"Прочие инвестиционные проекты, всего, в том числе:\",OFFSET(CP22,1,0):CP707)","v":33},{"$f":"SUMIF(OFFSET($B22,1,0):$B707,\"Прочие инвестиционные проекты, всего, в том числе:\",OFFSET(CQ22,1,0):CQ707)","v":0},{"$f":"SUMIF(OFFSET($B22,1,0):$B707,\"Прочие инвестиционные проекты, всего, в том числе:\",OFFSET(CR22,1,0):CR707)","v":0},{"$f":"SUMIF(OFFSET($B22,1,0):$B707,\"Прочие инвестиционные проекты, всего, в том числе:\",OFFSET(CS22,1,0):CS707)","v":0},{"$f":"SUMIF(OFFSET($B22,1,0):$B707,\"Прочие инвестиционные проекты, всего, в том числе:\",OFFSET(CT22,1,0):CT707)","v":0},{"$f":"SUMIF(OFFSET($B22,1,0):$B707,\"Прочие инвестиционные проекты, всего, в том числе:\",OFFSET(CU22,1,0):CU707)","v":0},{"$f":"SUMIF(OFFSET($B22,1,0):$B707,\"Прочие инвестиционные проекты, всего, в том числе:\",OFFSET(CV22,1,0):CV707)","v":0},{"$f":"SUMIF(OFFSET($B22,1,0):$B707,\"Прочие инвестиционные проекты, всего, в том числе:\",OFFSET(CW22,1,0):CW707)","v":0}]
["1","Свердловская область",null,2.25,0,9,0,0,0,1412,0,0,0,0,0,0,0,0,0,0,0,0,0,410,0,0,0,0,0,0,0,0,0,9,0,0,0,0,0,0,0,0,0,0,0,0,0,0,0,0,0,0,0,0,0,0,0,0,0,0.65,0,0,0,0,0,0,0,0,0,0,0,0,0,0,{"$f":"BW24+#REF!","v":{"$error":"#REF!"}},{"$f":"BX24+#REF!","v":{"$error":"#REF!"}},{"$f":"BY24+#REF!","v":{"$error":"#REF!"}},{"$f":"BZ24+#REF!","v":{"$error":"#REF!"}},{"$f":"CA24+#REF!","v":{"$error":"#REF!"}},{"$f":"CB24+#REF!","v":{"$error":"#REF!"}},{"$f":"CC24+#REF!","v":{"$error":"#REF!"}},{"$f":"CD24+#REF!","v":{"$error":"#REF!"}},{"$f":"CE24+#REF!","v":{"$error":"#REF!"}},{"$f":"CF24+#REF!","v":{"$error":"#REF!"}},{"$f":"CG24+#REF!","v":{"$error":"#REF!"}},{"$f":"CH24+#REF!","v":{"$error":"#REF!"}},{"$f":"CI24+#REF!","v":{"$error":"#REF!"}},2.25,0,9,0,0,0,1412,0,0,0,0,0,0,0]
["1.2","Реконструкция, модернизация, техническое перевооружение всего, в том числе:",null,2.25,0,9,0,0,0,{"$f":"SUM(J25,J32,J36)","v":1379},0,0,0,0,0,0,0,1.6,0,0,0,0,0,396,0,0,0,0,0,0,0,0,0,9,0,0,0,296,0,0,0,0,0,0,0,0,0,0,0,0,0,296,0,0,0,0,0,0,0,0.65,0,0,0,0,0,391,0,0,0,0,0,0,0,0,{"$f":"BW25+#REF!+#REF!","v":{"$error":"#REF!"}},{"$f":"BX25+#REF!+#REF!","v":{"$error":"#REF!"}},{"$f":"BY25+#REF!+#REF!","v":{"$error":"#REF!"}},{"$f":"BZ25+#REF!+#REF!","v":{"$error":"#REF!"}},{"$f":"CA25+#REF!+#REF!","v":{"$error":"#REF!"}},{"$f":"CB25+#REF!+#REF!","v":{"$error":"#REF!"}},{"$f":"CC25+#REF!+#REF!","v":{"$error":"#REF!"}},{"$f":"CD25+#REF!+#REF!","v":{"$error":"#REF!"}},{"$f":"CE25+#REF!+#REF!","v":{"$error":"#REF!"}},{"$f":"CF25+#REF!+#REF!","v":{"$error":"#REF!"}},{"$f":"CG25+#REF!+#REF!","v":{"$error":"#REF!"}},{"$f":"CH25+#REF!+#REF!","v":{"$error":"#REF!"}},{"$f":"CI25+#REF!+#REF!","v":{"$error":"#REF!"}},2.25,0,9,0,0,0,{"$f":"SUM(CP25,CP32,CP36)","v":1379},0,0,0,0,0,0,0]
["1.2.1","Реконструкция, модернизация, техническое перевооружение  трансформаторных и иных подстанций, распределительных пунктов, всего, в том числе:",null,2.25,0,0,0,0,0,11,0,0,0,0,0,0,0,1.6,0,0,0,0,0,0,0,0,0,0,0,0,0,0,0,0,0,0,0,null,0,0,0,0,0,0,0,0,0,0,0,0,0,0,0,0,0,0,0,0,0,0.65,0,0,0,0,0,11,0,0,0,0,0,0,0,0,{"$f":"BW26+#REF!","v":{"$error":"#REF!"}},{"$f":"BX26+#REF!","v":{"$error":"#REF!"}},{"$f":"BY26+#REF!","v":{"$error":"#REF!"}},{"$f":"BZ26+#REF!","v":{"$error":"#REF!"}},{"$f":"CA26+#REF!","v":{"$error":"#REF!"}},{"$f":"CB26+#REF!","v":{"$error":"#REF!"}},{"$f":"CC26+#REF!","v":{"$error":"#REF!"}},{"$f":"CD26+#REF!","v":{"$error":"#REF!"}},{"$f":"CE26+#REF!","v":{"$error":"#REF!"}},{"$f":"CF26+#REF!","v":{"$error":"#REF!"}},{"$f":"CG26+#REF!","v":{"$error":"#REF!"}},{"$f":"CH26+#REF!","v":{"$error":"#REF!"}},{"$f":"CI26+#REF!","v":{"$error":"#REF!"}},2.25,0,0,0,0,0,11,0,0,0,0,0,0,0]
["1.2.1.1","Реконструкция трансформаторных и иных подстанций, всего, в том числе:",null,{"$f":"SUM(D27,D28,D29)","v":2.25},{"$f":"SUMIF(OFFSET($A26,1,0):$A711,$A26,OFFSET(E26,1,0):E711)","v":0},{"$f":"SUMIF(OFFSET($A26,1,0):$A711,$A26,OFFSET(F26,1,0):F711)","v":0},{"$f":"SUMIF(OFFSET($A26,1,0):$A711,$A26,OFFSET(G26,1,0):G711)","v":0},{"$f":"SUMIF(OFFSET($A26,1,0):$A711,$A26,OFFSET(H26,1,0):H711)","v":0},{"$f":"SUMIF(OFFSET($A26,1,0):$A711,$A26,OFFSET(I26,1,0):I711)","v":0},0,{"$f":"SUMIF(OFFSET($A26,1,0):$A711,$A26,OFFSET(K26,1,0):K711)","v":0},{"$f":"SUMIF(OFFSET($A26,1,0):$A711,$A26,OFFSET(L26,1,0):L711)","v":0},{"$f":"SUMIF(OFFSET($A26,1,0):$A711,$A26,OFFSET(M26,1,0):M711)","v":0},{"$f":"SUMIF(OFFSET($A26,1,0):$A711,$A26,OFFSET(N26,1,0):N711)","v":0},{"$f":"SUMIF(OFFSET($A26,1,0):$A711,$A26,OFFSET(O26,1,0):O711)","v":0},{"$f":"SUMIF(OFFSET($A26,1,0):$A711,$A26,OFFSET(P26,1,0):P711)","v":0},{"$f":"SUMIF(OFFSET($A26,1,0):$A711,$A26,OFFSET(Q26,1,0):Q711)","v":0},1.6,{"$f":"SUMIF(OFFSET($A26,1,0):$A711,$A26,OFFSET(S26,1,0):S711)","v":0},{"$f":"SUMIF(OFFSET($A26,1,0):$A711,$A26,OFFSET(T26,1,0):T711)","v":0},{"$f":"SUMIF(OFFSET($A26,1,0):$A711,$A26,OFFSET(U26,1,0):U711)","v":0},{"$f":"SUMIF(OFFSET($A26,1,0):$A711,$A26,OFFSET(V26,1,0):V711)","v":0},{"$f":"SUMIF(OFFSET($A26,1,0):$A711,$A26,OFFSET(W26,1,0):W711)","v":0},{"$f":"SUMIF(OFFSET($A26,1,0):$A711,$A26,OFFSET(X26,1,0):X711)","v":0},{"$f":"SUMIF(OFFSET($A26,1,0):$A711,$A26,OFFSET(Y26,1,0):Y711)","v":0},{"$f":"SUMIF(OFFSET($A26,1,0):$A711,$A26,OFFSET(Z26,1,0):Z711)","v":0},{"$f":"SUMIF(OFFSET($A26,1,0):$A711,$A26,OFFSET(AA26,1,0):AA711)","v":0},{"$f":"SUMIF(OFFSET($A26,1,0):$A711,$A26,OFFSET(AB26,1,0):AB711)","v":0},{"$f":"SUMIF(OFFSET($A26,1,0):$A711,$A26,OFFSET(AC26,1,0):AC711)","v":0},{"$f":"SUMIF(OFFSET($A26,1,0):$A711,$A26,OFFSET(AD26,1,0):AD711)","v":0},{"$f":"SUMIF(OFFSET($A26,1,0):$A711,$A26,OFFSET(AE26,1,0):AE711)","v":0},{"$f":"SUMIF(OFFSET($A26,1,0):$A711,$A26,OFFSET(AF26,1,0):AF711)","v":0},{"$f":"SUMIF(OFFSET($A26,1,0):$A711,$A26,OFFSET(AG26,1,0):AG711)","v":0},{"$f":"SUMIF(OFFSET($A26,1,0):$A711,$A26,OFFSET(AH26,1,0):AH711)","v":0},{"$f":"SUMIF(OFFSET($A26,1,0):$A711,$A26,OFFSET(AI26,1,0):AI711)","v":0},{"$f":"SUMIF(OFFSET($A26,1,0):$A711,$A26,OFFSET(AJ26,1,0):AJ711)","v":0},{"$f":"SUMIF(OFFSET($A26,1,0):$A711,$A26,OFFSET(AK26,1,0):AK711)","v":0},{"$f":"SUMIF(OFFSET($A26,1,0):$A711,$A26,OFFSET(AL26,1,0):AL711)","v":0},{"$f":"SUMIF(OFFSET($A26,1,0):$A711,$A26,OFFSET(AM26,1,0):AM711)","v":0},{"$f":"SUMIF(OFFSET($A26,1,0):$A711,$A26,OFFSET(AN26,1,0):AN711)","v":0},{"$f":"SUMIF(OFFSET($A26,1,0):$A711,$A26,OFFSET(AO26,1,0):AO711)","v":0},{"$f":"SUMIF(OFFSET($A26,1,0):$A711,$A26,OFFSET(AP26,1,0):AP711)","v":0},{"$f":"SUMIF(OFFSET($A26,1,0):$A711,$A26,OFFSET(AQ26,1,0):AQ711)","v":0},{"$f":"SUMIF(OFFSET($A26,1,0):$A711,$A26,OFFSET(AR26,1,0):AR711)","v":0},{"$f":"SUMIF(OFFSET($A26,1,0):$A711,$A26,OFFSET(AS26,1,0):AS711)","v":0},{"$f":"SUMIF(OFFSET($A26,1,0):$A711,$A26,OFFSET(AT26,1,0):AT711)","v":0},{"$f":"SUMIF(OFFSET($A26,1,0):$A711,$A26,OFFSET(AU26,1,0):AU711)","v":0},{"$f":"SUMIF(OFFSET($A26,1,0):$A711,$A26,OFFSET(AV26,1,0):AV711)","v":0},{"$f":"SUMIF(OFFSET($A26,1,0):$A711,$A26,OFFSET(AW26,1,0):AW711)","v":0},{"$f":"SUMIF(OFFSET($A26,1,0):$A711,$A26,OFFSET(AX26,1,0):AX711)","v":0},{"$f":"SUMIF(OFFSET($A26,1,0):$A711,$A26,OFFSET(AY26,1,0):AY711)","v":0},{"$f":"SUMIF(OFFSET($A26,1,0):$A711,$A26,OFFSET(AZ26,1,0):AZ711)","v":0},{"$f":"SUMIF(OFFSET($A26,1,0):$A711,$A26,OFFSET(BA26,1,0):BA711)","v":0},{"$f":"SUMIF(OFFSET($A26,1,0):$A711,$A26,OFFSET(BB26,1,0):BB711)","v":0},{"$f":"SUMIF(OFFSET($A26,1,0):$A711,$A26,OFFSET(BC26,1,0):BC711)","v":0},{"$f":"SUMIF(OFFSET($A26,1,0):$A711,$A26,OFFSET(BD26,1,0):BD711)","v":0},{"$f":"SUMIF(OFFSET($A26,1,0):$A711,$A26,OFFSET(BE26,1,0):BE711)","v":0},{"$f":"SUMIF(OFFSET($A26,1,0):$A711,$A26,OFFSET(BF26,1,0):BF711)","v":0},{"$f":"SUMIF(OFFSET($A26,1,0):$A711,$A26,OFFSET(BG26,1,0):BG711)","v":0},{"$f":"SUMIF(OFFSET($A26,1,0):$A711,$A26,OFFSET(BH26,1,0):BH711)","v":0.65},{"$f":"SUMIF(OFFSET($A26,1,0):$A711,$A26,OFFSET(BI26,1,0):BI711)","v":0},{"$f":"SUMIF(OFFSET($A26,1,0):$A711,$A26,OFFSET(BJ26,1,0):BJ711)","v":0},{"$f":"SUMIF(OFFSET($A26,1,0):$A711,$A26,OFFSET(BK26,1,0):BK711)","v":0},{"$f":"SUMIF(OFFSET($A26,1,0):$A711,$A26,OFFSET(BL26,1,0):BL711)","v":0},{"$f":"SUMIF(OFFSET($A26,1,0):$A711,$A26,OFFSET(BM26,1,0):BM711)","v":0},{"$f":"SUMIF(OFFSET($A26,1,0):$A711,$A26,OFFSET(BN26,1,0):BN711)","v":0},{"$f":"SUMIF(OFFSET($A26,1,0):$A711,$A26,OFFSET(BO26,1,0):BO711)","v":0},{"$f":"SUMIF(OFFSET($A26,1,0):$A711,$A26,OFFSET(BP26,1,0):BP711)","v":0},{"$f":"SUMIF(OFFSET($A26,1,0):$A711,$A26,OFFSET(BQ26,1,0):BQ711)","v":0},{"$f":"SUMIF(OFFSET($A26,1,0):$A711,$A26,OFFSET(BR26,1,0):BR711)","v":0},{"$f":"SUMIF(OFFSET($A26,1,0):$A711,$A26,OFFSET(BS26,1,0):BS711)","v":0},{"$f":"SUMIF(OFFSET($A26,1,0):$A711,$A26,OFFSET(BT26,1,0):BT711)","v":0},{"$f":"SUMIF(OFFSET($A26,1,0):$A711,$A26,OFFSET(BU26,1,0):BU711)","v":0},{"$f":"SUMIF(OFFSET($A26,1,0):$A711,$A26,OFFSET(BV26,1,0):BV711)","v":0},{"$f":"SUMIF(OFFSET($A26,1,0):$A711,$A26,OFFSET(BW26,1,0):BW711)","v":0},{"$f":"SUMIF(OFFSET($A26,1,0):$A711,$A26,OFFSET(BX26,1,0):BX711)","v":0},{"$f":"SUMIF(OFFSET($A26,1,0):$A711,$A26,OFFSET(BY26,1,0):BY711)","v":0},{"$f":"SUMIF(OFFSET($A26,1,0):$A711,$A26,OFFSET(BZ26,1,0):BZ711)","v":0},{"$f":"SUMIF(OFFSET($A26,1,0):$A711,$A26,OFFSET(CA26,1,0):CA711)","v":0},{"$f":"SUMIF(OFFSET($A26,1,0):$A711,$A26,OFFSET(CB26,1,0):CB711)","v":0},{"$f":"SUMIF(OFFSET($A26,1,0):$A711,$A26,OFFSET(CC26,1,0):CC711)","v":0},{"$f":"SUMIF(OFFSET($A26,1,0):$A711,$A26,OFFSET(CD26,1,0):CD711)","v":0},{"$f":"SUMIF(OFFSET($A26,1,0):$A711,$A26,OFFSET(CE26,1,0):CE711)","v":0},{"$f":"SUMIF(OFFSET($A26,1,0):$A711,$A26,OFFSET(CF26,1,0):CF711)","v":0},{"$f":"SUMIF(OFFSET($A26,1,0):$A711,$A26,OFFSET(CG26,1,0):CG711)","v":0},{"$f":"SUMIF(OFFSET($A26,1,0):$A711,$A26,OFFSET(CH26,1,0):CH711)","v":0},{"$f":"SUMIF(OFFSET($A26,1,0):$A711,$A26,OFFSET(CI26,1,0):CI711)","v":0},{"$f":"SUM(CJ27,CJ28,CJ29)","v":2.25},{"$f":"SUMIF(OFFSET($A26,1,0):$A711,$A26,OFFSET(CK26,1,0):CK711)","v":0},{"$f":"SUMIF(OFFSET($A26,1,0):$A711,$A26,OFFSET(CL26,1,0):CL711)","v":0},{"$f":"SUMIF(OFFSET($A26,1,0):$A711,$A26,OFFSET(CM26,1,0):CM711)","v":0},{"$f":"SUMIF(OFFSET($A26,1,0):$A711,$A26,OFFSET(CN26,1,0):CN711)","v":0},{"$f":"SUMIF(OFFSET($A26,1,0):$A711,$A26,OFFSET(CO26,1,0):CO711)","v":0},0,{"$f":"SUMIF(OFFSET($A26,1,0):$A711,$A26,OFFSET(CQ26,1,0):CQ711)","v":0},{"$f":"SUMIF(OFFSET($A26,1,0):$A711,$A26,OFFSET(CR26,1,0):CR711)","v":0},{"$f":"SUMIF(OFFSET($A26,1,0):$A711,$A26,OFFSET(CS26,1,0):CS711)","v":0},{"$f":"SUMIF(OFFSET($A26,1,0):$A711,$A26,OFFSET(CT26,1,0):CT711)","v":0},{"$f":"SUMIF(OFFSET($A26,1,0):$A711,$A26,OFFSET(CU26,1,0):CU711)","v":0},{"$f":"SUMIF(OFFSET($A26,1,0):$A711,$A26,OFFSET(CV26,1,0):CV711)","v":0},{"$f":"SUMIF(OFFSET($A26,1,0):$A711,$A26,OFFSET(CW26,1,0):CW711)","v":0}]
["1.2.1.1","Реконструкция ТП-7011, ТП-1072, ТП-1017, ТП-1078, г. Верхняя Салда",null,1.6,{"$f":"CK27","v":0},0,0,0,0,0,{"$f":"CQ27","v":0},{"$f":"CR27","v":0},{"$f":"CS27","v":0},{"$f":"CT27","v":0},{"$f":"CU27","v":0},{"$f":"CV27","v":0},{"$f":"CW27","v":0},1.6,{"$f":"CY27","v":0},{"$f":"CZ27","v":0},{"$f":"DA27","v":0},{"$f":"DB27","v":0},{"$f":"DC27","v":0},{"$f":"DD27","v":0},{"$f":"DE27","v":0},{"$f":"DF27","v":0},{"$f":"DG27","v":0},{"$f":"DH27","v":0},{"$f":"DI27","v":0},{"$f":"DJ27","v":0},{"$f":"DK27","v":0},{"$f":"DL27","v":0},{"$f":"DM27","v":0},{"$f":"DN27","v":0},{"$f":"DO27","v":0},{"$f":"DP27","v":0},{"$f":"DQ27","v":0},{"$f":"DR27","v":0},{"$f":"DS27","v":0},{"$f":"DT27","v":0},{"$f":"DU27","v":0},{"$f":"DV27","v":0},{"$f":"DW27","v":0},{"$f":"DX27","v":0},{"$f":"DY27","v":0},{"$f":"DZ27","v":0},{"$f":"EA27","v":0},{"$f":"EB27","v":0},{"$f":"EC27","v":0},{"$f":"ED27","v":0},{"$f":"EE27","v":0},0,{"$f":"EG27","v":0},{"$f":"EH27","v":0},{"$f":"EI27","v":0},{"$f":"EJ27","v":0},{"$f":"EK27","v":0},{"$f":"EL27","v":0},{"$f":"EM27","v":0},{"$f":"EN27","v":0},{"$f":"EO27","v":0},{"$f":"EP27","v":0},{"$f":"EQ27","v":0},{"$f":"ER27","v":0},{"$f":"ES27","v":0},{"$f":"ET27","v":0},{"$f":"EU27","v":0},{"$f":"EV27","v":0},{"$f":"EW27","v":0},{"$f":"EX27","v":0},{"$f":"EY27","v":0},{"$f":"EZ27","v":0},{"$f":"FA27","v":0},{"$f":"FB27","v":0},null,null,null,{"$f":"IFERROR(VLOOKUP($C27,#REF!,34,FALSE),\"\")","v":""},null,{"$f":"IFERROR(VLOOKUP($C27,#REF!,36,FALSE),\"\")","v":""},null,null,null,null,null,null,null,1.6,{"$f":"FQ27","v":0},{"$f":"FR27","v":0},{"$f":"FS27","v":0},{"$f":"FT27","v":0},{"$f":"FU27","v":0},0,{"$f":"FW27","v":0},{"$f":"FX27","v":0},{"$f":"FY27","v":0},{"$f":"FZ27","v":0},{"$f":"GA27","v":0},{"$f":"GB27","v":0},{"$f":"GC27","v":0}]
["1.2.1.1","Установка КТПн 250кВА в п. Тагильский ",null,0.25,0,0,0,0,0,0,0,0,0,0,0,0,0,{"$f":"CX28","v":0},0,0,0,0,0,0,0,0,0,0,0,0,0,0,0,0,0,0,0,0,0,0,0,0,0,0,0,0,0,0,0,0,0,0,0,0,0,0,0,0,0,0.25,0,0,0,0,0,0,0,0,0,0,0,0,0,0,null,null,null,{"$f":"IFERROR(VLOOKUP($C28,#REF!,34,FALSE),\"\")","v":""},null,{"$f":"IFERROR(VLOOKUP($C28,#REF!,36,FALSE),\"\")","v":""},null,null,null,null,null,null,null,0.25,0,0,0,0,0,0,0,0,0,0,0,0,0]
["1.2.1.1","Установка КТПн 400кВА в г. Верхняя Салда",null,0.4,{"$f":"CK29","v":0},0,0,0,0,0,0,0,0,0,0,0,0,0,0,0,0,0,0,0,0,0,0,0,0,0,0,0,0,0,0,0,0,0,0,0,0,0,0,0,0,0,0,0,0,0,0,0,0,0,0,0,0,0,0,0.4,0,0,0,0,0,null,0,0,0,0,0,0,0,0,null,null,null,{"$f":"IFERROR(VLOOKUP($C29,#REF!,34,FALSE),\"\")","v":""},null,{"$f":"IFERROR(VLOOKUP($C29,#REF!,36,FALSE),\"\")","v":""},null,null,null,null,null,null,null,0.4,0,0,0,0,0,0,0,0,0,0,0,0,0]
["1.2.1.2","Модернизация, техническое перевооружение трансформаторных и иных подстанций, распределительных пунктов, всего, в том числе:",null,0,{"$f":"CK30","v":0},{"$f":"CL30","v":0},{"$f":"CM30","v":0},{"$f":"CN30","v":0},{"$f":"CO30","v":0},11,0,0,0,0,0,0,0,0,0,0,0,0,0,0,0,0,0,0,0,0,0,0,0,0,0,0,0,0,0,0,0,0,0,0,0,0,0,0,0,0,0,0,0,0,0,0,0,0,0,0,0,0,0,0,0,11,0,0,0,0,0,0,0,0,null,null,null,{"$f":"IFERROR(VLOOKUP($C30,#REF!,34,FALSE),\"\")","v":""},null,{"$f":"IFERROR(VLOOKUP($C30,#REF!,36,FALSE),\"\")","v":""},null,null,null,null,null,null,null,0,0,0,0,0,0,11,0,0,0,0,0,0,0]
["1.2.1.2","Ретрофит ячеек 6-10 кВ в РП, ТП, г. Верхняя Салда",null,0,0,0,0,0,0,11,0,0,0,0,0,0,0,0,0,0,0,0,0,0,0,0,0,0,0,0,0,0,0,0,0,0,0,0,0,0,0,0,0,0,0,0,0,0,0,0,0,0,0,0,0,0,0,0,0,0,0,0,0,0,0,11,0,0,0,0,0,0,0,0,null,null,null,{"$f":"IFERROR(VLOOKUP($C31,#REF!,34,FALSE),\"\")","v":""},null,{"$f":"IFERROR(VLOOKUP($C31,#REF!,36,FALSE),\"\")","v":""},null,null,null,null,null,null,null,0,0,0,0,0,0,11,0,0,0,0,0,0,0]
["1.2.2","Реконструкция, модернизация, техническое перевооружение линий электропередачи, всего, в том числе:",null,0,0,9,0,0,0,1,0,0,0,0,0,0,0,0,0,0,0,0,0,0,0,0,0,0,0,0,0,0,0,9,0,0,0,0,0,0,0,0,0,0,0,0,0,0,0,0,0,0,0,0,0,0,0,0,0,0,0,0,0,0,0,0,0,0,0,0,0,0,0,0,null,null,null,{"$f":"IFERROR(VLOOKUP($C32,#REF!,34,FALSE),\"\")","v":""},null,{"$f":"IFERROR(VLOOKUP($C32,#REF!,36,FALSE),\"\")","v":""},null,null,null,null,null,null,null,0,0,9,0,0,0,1,0,0,0,0,0,0,0]
["1.2.2.1","Реконструкция линий электропередачи, всего, в том числе:",null,0,0,9,0,0,0,1,0,0,0,0,0,0,0,0,0,0,0,0,0,0,0,0,0,0,0,0,0,0,0,9,0,0,0,0,0,0,0,0,0,0,0,0,0,0,0,0,0,0,0,0,0,0,0,0,0,0,0,0,0,0,0,0,0,0,0,0,0,0,0,0,null,null,null,{"$f":"IFERROR(VLOOKUP($C33,#REF!,34,FALSE),\"\")","v":""},null,{"$f":"IFERROR(VLOOKUP($C33,#REF!,36,FALSE),\"\")","v":""},null,null,null,null,null,null,null,0,0,9,0,0,0,1,0,0,0,0,0,0,0]
["1.2.2.1","Реконструкция ВЛ-6 кВ ПС Басьяновка, г. Верхняя Салда",null,0,0,0,0,0,0,1,0,0,0,0,0,0,0,0,0,0,0,0,0,1,0,0,0,0,0,0,0,0,0,0,0,0,0,0,0,0,0,0,0,0,0,0,0,0,0,0,0,0,0,0,0,0,0,0,0,0,0,0,0,0,0,0,0,0,0,0,0,0,0,0,null,null,null,{"$f":"IFERROR(VLOOKUP($C34,#REF!,34,FALSE),\"\")","v":""},null,{"$f":"IFERROR(VLOOKUP($C34,#REF!,36,FALSE),\"\")","v":""},null,null,null,null,null,null,null,0,0,{"$f":"FR34","v":0},0,0,0,1,0,0,0,0,0,0,0]
["1.2.2.1","Реконструкция ВЛ-6 кВ ПС Басьяновка, г. Верхняя Салда",null,0,0,9,0,0,0,0,0,0,0,0,0,0,0,0,0,0,0,0,0,0,0,0,0,0,0,0,0,0,0,9,0,0,0,0,0,0,0,0,0,0,0,0,0,0,0,0,0,0,0,0,0,0,0,0,0,0,0,0,0,0,0,0,0,0,0,0,0,0,0,0,null,null,null,{"$f":"IFERROR(VLOOKUP($C35,#REF!,34,FALSE),\"\")","v":""},null,{"$f":"IFERROR(VLOOKUP($C35,#REF!,36,FALSE),\"\")","v":""},null,null,null,null,null,null,null,0,0,9,0,0,0,0,0,0,0,0,0,0,0]
["1.2.3","Развитие и модернизация учета электрической энергии (мощности), всего, в том числе:",null,0,0,0,0,0,0,{"$f":"SUM(J38,J39,J40,J41)","v":1367},0,0,0,0,0,0,0,0,0,0,0,0,0,0,0,0,0,0,0,0,0,0,0,0,0,0,0,0,0,0,0,0,0,0,0,0,0,0,0,0,0,0,0,0,0,0,0,0,0,0,0,0,0,0,0,0,0,0,0,0,0,0,0,0,null,null,null,{"$f":"IFERROR(VLOOKUP($C36,#REF!,34,FALSE),\"\")","v":""},null,{"$f":"IFERROR(VLOOKUP($C36,#REF!,36,FALSE),\"\")","v":""},null,null,null,null,null,null,null,0,0,{"$f":"FR36","v":0},0,0,0,{"$f":"SUM(CP38,CP39,CP40,CP41)","v":1367},0,0,0,0,0,0,0]
["1.2.3.1","«Установка приборов учета, класс напряжения 0,22 (0,4) кВ, всего, в том числе:»",null,0,0,0,0,0,0,1367,0,0,0,0,0,0,0,0,0,0,0,0,0,0,0,0,0,0,0,0,0,0,0,0,0,0,0,0,0,0,0,0,0,0,0,0,0,0,0,0,0,0,0,0,0,0,0,0,0,0,0,0,0,0,0,0,0,0,0,0,0,0,0,0,null,null,null,{"$f":"IFERROR(VLOOKUP($C37,#REF!,34,FALSE),\"\")","v":""},null,{"$f":"IFERROR(VLOOKUP($C37,#REF!,36,FALSE),\"\")","v":""},null,null,null,null,null,null,null,0,0,0,0,0,0,1367,0,0,0,0,0,0,0]
["1.2.3.1","Развитие системы АИИСКУЭ в сетях 0,4 кВ, г. Верхняя Салда",null,0,0,0,0,0,0,395,0,0,0,0,0,0,0,0,0,0,0,0,0,395,0,0,0,0,0,0,0,0,0,0,0,0,0,0,0,0,0,0,0,0,0,0,0,0,0,0,0,0,0,0,0,0,0,0,0,0,0,0,0,0,0,0,0,0,0,0,0,0,0,0,null,null,null,{"$f":"IFERROR(VLOOKUP($C38,#REF!,34,FALSE),\"\")","v":""},null,{"$f":"IFERROR(VLOOKUP($C38,#REF!,36,FALSE),\"\")","v":""},null,null,null,null,null,null,null,0,0,0,0,0,0,395,0,0,0,0,0,0,0]
["1.2.3.1","Развитие системы АИИСКУЭ в сетях 0,4 кВ, г. Верхняя Салда",null,0,0,0,0,0,0,296,0,0,0,0,0,0,0,0,0,0,0,0,0,0,0,0,0,0,0,0,0,0,0,0,0,0,0,296,0,0,0,0,0,0,0,0,0,0,0,0,0,0,0,0,0,0,0,0,0,0,0,0,0,0,0,0,0,0,0,0,0,0,0,0,null,null,null,{"$f":"IFERROR(VLOOKUP($C39,#REF!,34,FALSE),\"\")","v":""},null,{"$f":"IFERROR(VLOOKUP($C39,#REF!,36,FALSE),\"\")","v":""},null,null,null,null,null,null,null,0,0,0,0,0,0,296,0,0,0,0,0,0,0]
["1.2.3.1","Развитие системы АИИСКУЭ в сетях 0,4 кВ, г. Верхняя Салда",null,0,0,0,0,0,0,296,0,0,0,0,0,0,0,0,0,0,0,0,0,0,0,0,0,0,0,0,0,0,0,0,0,0,0,0,0,0,0,0,0,0,0,{"$f":"IFERROR(VLOOKUP($C40,'5.3'!$C:$AM,32,FALSE),\"\")","v":""},null,null,null,{"$f":"IFERROR(VLOOKUP($C40,'5.3'!$C:$AM,34,FALSE),\"\")","v":""},null,296,null,null,null,null,null,null,null,null,null,null,null,null,null,null,null,null,null,null,null,null,null,null,null,null,null,{"$f":"IFERROR(VLOOKUP($C40,#REF!,34,FALSE),\"\")","v":""},null,{"$f":"IFERROR(VLOOKUP($C40,#REF!,36,FALSE),\"\")","v":""},null,null,null,null,null,null,null,0,0,0,0,0,0,296,0,0,0,0,0,0,0]
["1.2.3.1","Развитие системы АИИСКУЭ в сетях 0,4 кВ, г. Верхняя Салда",null,0,0,0,0,0,0,380,0,0,0,0,0,0,0,0,0,0,0,0,0,0,0,0,0,0,0,0,0,0,0,0,0,0,0,0,0,0,0,0,0,0,0,{"$f":"IFERROR(VLOOKUP($C41,'5.3'!$C:$AM,32,FALSE),\"\")","v":""},null,null,null,{"$f":"IFERROR(VLOOKUP($C41,'5.3'!$C:$AM,34,FALSE),\"\")","v":""},null,{"$f":"IFERROR(VLOOKUP($C41,'5.3'!$C:$AM,36,FALSE),\"\")","v":""},null,null,null,null,null,null,null,null,null,null,null,null,null,380,null,null,null,null,null,null,null,null,null,null,null,{"$f":"IFERROR(VLOOKUP($C41,#REF!,34,FALSE),\"\")","v":""},null,{"$f":"IFERROR(VLOOKUP($C41,#REF!,36,FALSE),\"\")","v":""},null,null,null,null,null,null,null,0,0,0,0,0,0,380,0,0,0,0,0,0,0]
["1.6","Прочие инвестиционные проекты, всего, в том числе:",null,0,0,0,0,0,0,{"$f":"SUM(D42:I42,J43:J49)","v":33},0,0,0,0,0,0,0,0,0,0,0,0,0,0,0,0,0,0,0,0,0,0,0,0,0,0,0,11,0,0,0,0,0,0,0,{"$f":"IFERROR(VLOOKUP($C42,'5.3'!$C:$AM,32,FALSE),\"\")","v":""},null,null,null,{"$f":"IFERROR(VLOOKUP($C42,'5.3'!$C:$AM,34,FALSE),\"\")","v":""},null,8,null,null,null,null,null,null,null,null,null,null,null,null,null,null,null,null,null,null,null,null,null,null,null,null,null,{"$f":"IFERROR(VLOOKUP($C42,#REF!,34,FALSE),\"\")","v":""},null,{"$f":"IFERROR(VLOOKUP($C42,#REF!,36,FALSE),\"\")","v":""},null,null,null,null,null,null,null,0,0,0,0,0,0,{"$f":"SUM(CJ42:CO42,CP43:CP49)","v":33},0,0,0,0,0,0,0]
["1.6","Развитие системы АИИСКУЭ в сетях 6/10 кВ, г. Верхняя Салда",null,0,0,0,0,0,0,10,0,0,0,0,0,0,0,0,0,0,0,0,0,10,0,0,0,0,0,0,0,0,0,0,0,0,0,null,0,0,0,0,0,0,0,{"$f":"IFERROR(VLOOKUP($C43,'5.3'!$C:$AM,32,FALSE),\"\")","v":""},null,null,null,{"$f":"IFERROR(VLOOKUP($C43,'5.3'!$C:$AM,34,FALSE),\"\")","v":""},null,{"$f":"IFERROR(VLOOKUP($C43,'5.3'!$C:$AM,36,FALSE),\"\")","v":""},null,null,null,null,null,null,null,null,null,null,null,null,null,null,null,null,null,null,null,null,null,null,null,null,null,{"$f":"IFERROR(VLOOKUP($C43,#REF!,34,FALSE),\"\")","v":""},null,{"$f":"IFERROR(VLOOKUP($C43,#REF!,36,FALSE),\"\")","v":""},null,null,null,null,null,null,null,0,0,0,0,0,0,10,0,0,0,0,0,0,0]
["1.6","Развитие системы АИИСКУЭ в сетях 6/10 кВ, г. Верхняя Салда",null,0,0,0,0,0,0,5,0,0,0,0,0,0,0,0,0,0,0,0,0,0,0,0,0,0,0,0,0,0,0,0,0,0,0,5,0,0,0,0,0,0,0,{"$f":"IFERROR(VLOOKUP($C44,'5.3'!$C:$AM,32,FALSE),\"\")","v":""},null,null,null,{"$f":"IFERROR(VLOOKUP($C44,'5.3'!$C:$AM,34,FALSE),\"\")","v":""},null,{"$f":"IFERROR(VLOOKUP($C44,'5.3'!$C:$AM,36,FALSE),\"\")","v":""},null,null,null,null,null,null,null,null,null,null,null,null,null,null,null,null,null,null,null,null,null,null,null,null,null,{"$f":"IFERROR(VLOOKUP($C44,#REF!,34,FALSE),\"\")","v":""},null,{"$f":"IFERROR(VLOOKUP($C44,#REF!,36,FALSE),\"\")","v":""},null,null,null,null,null,null,null,0,0,0,0,0,0,5,0,0,0,0,0,0,0]
["1.6","Развитие системы АИИСКУЭ в сетях 6/10 кВ, г. Верхняя Салда",null,0,0,0,0,0,0,6,0,0,0,0,0,0,0,0,0,0,0,0,0,0,0,0,0,0,0,0,0,0,0,0,0,0,0,0,0,0,0,0,0,0,0,{"$f":"IFERROR(VLOOKUP($C45,'5.3'!$C:$AM,32,FALSE),\"\")","v":""},null,null,null,{"$f":"IFERROR(VLOOKUP($C45,'5.3'!$C:$AM,34,FALSE),\"\")","v":""},null,6,null,null,null,null,null,null,null,null,null,null,null,null,null,null,null,null,null,null,null,null,null,null,null,null,null,{"$f":"IFERROR(VLOOKUP($C45,#REF!,34,FALSE),\"\")","v":""},null,{"$f":"IFERROR(VLOOKUP($C45,#REF!,36,FALSE),\"\")","v":""},null,null,null,null,null,null,null,0,0,0,0,0,0,6,0,0,0,0,0,0,0]
["1.6","Установка реклоузеров, г. Верхняя Салда",null,0,0,0,0,0,0,4,0,0,0,0,0,0,0,0,0,0,0,0,0,4,0,0,0,0,0,0,0,0,0,0,0,0,0,null,0,0,0,0,0,0,0,{"$f":"IFERROR(VLOOKUP($C46,'5.3'!$C:$AM,32,FALSE),\"\")","v":""},null,null,null,{"$f":"IFERROR(VLOOKUP($C46,'5.3'!$C:$AM,34,FALSE),\"\")","v":""},null,{"$f":"IFERROR(VLOOKUP($C46,'5.3'!$C:$AM,36,FALSE),\"\")","v":""},null,null,null,null,null,null,null,null,null,null,null,null,null,null,null,null,null,null,null,null,null,null,null,null,null,{"$f":"IFERROR(VLOOKUP($C46,#REF!,34,FALSE),\"\")","v":""},null,{"$f":"IFERROR(VLOOKUP($C46,#REF!,36,FALSE),\"\")","v":""},null,null,null,null,null,null,null,0,0,0,0,0,0,4,0,0,0,0,0,0,0]
["1.6","Установка реклоузеров, г. Верхняя Салда",null,0,0,0,0,0,0,6,0,0,0,0,0,0,0,0,0,0,0,0,0,0,0,0,0,0,0,0,0,0,0,0,0,0,0,6,0,0,0,0,0,0,0,{"$f":"IFERROR(VLOOKUP($C47,'5.3'!$C:$AM,32,FALSE),\"\")","v":""},null,null,null,{"$f":"IFERROR(VLOOKUP($C47,'5.3'!$C:$AM,34,FALSE),\"\")","v":""},null,{"$f":"IFERROR(VLOOKUP($C47,'5.3'!$C:$AM,36,FALSE),\"\")","v":""},null,null,null,null,null,null,null,null,null,null,null,null,null,null,null,null,null,null,null,null,null,null,null,null,null,{"$f":"IFERROR(VLOOKUP($C47,#REF!,34,FALSE),\"\")","v":""},null,{"$f":"IFERROR(VLOOKUP($C47,#REF!,36,FALSE),\"\")","v":""},null,null,null,null,null,null,null,0,0,0,0,0,0,6,0,0,0,0,0,0,0]
["1.6","Приобретение передвижной электротехнической лаборатории",null,0,0,0,0,0,0,1,0,0,0,0,0,0,0,0,0,0,0,0,0,0,0,0,0,0,0,0,0,0,0,0,0,0,0,0,0,0,0,0,0,0,0,{"$f":"IFERROR(VLOOKUP($C48,'5.3'!$C:$AM,32,FALSE),\"\")","v":""},null,null,null,{"$f":"IFERROR(VLOOKUP($C48,'5.3'!$C:$AM,34,FALSE),\"\")","v":""},null,1,null,null,null,null,null,null,null,null,null,null,null,null,null,null,null,null,null,null,null,null,null,null,null,null,null,{"$f":"IFERROR(VLOOKUP($C48,#REF!,34,FALSE),\"\")","v":""},null,{"$f":"IFERROR(VLOOKUP($C48,#REF!,36,FALSE),\"\")","v":""},null,null,null,null,null,null,null,0,0,0,0,0,0,1,0,0,0,0,0,0,0]
["1.6","Реконструкция кровли теплой автостоянки для строительно- эксплуатационной техники, г. Верхняя Салда ",null,0,0,0,0,0,0,1,0,0,0,0,0,0,0,0,0,0,0,0,0,0,0,0,0,0,0,0,0,0,0,0,0,0,0,0,0,0,0,0,0,0,0,{"$f":"IFERROR(VLOOKUP($C49,'5.3'!$C:$AM,32,FALSE),\"\")","v":""},null,null,null,{"$f":"IFERROR(VLOOKUP($C49,'5.3'!$C:$AM,34,FALSE),\"\")","v":""},null,1,null,null,null,null,null,null,null,null,null,null,null,null,null,null,null,null,null,null,null,null,null,null,null,null,null,{"$f":"IFERROR(VLOOKUP($C49,#REF!,34,FALSE),\"\")","v":""},null,{"$f":"IFERROR(VLOOKUP($C49,#REF!,36,FALSE),\"\")","v":""},null,null,null,null,null,null,null,0,0,0,0,0,0,1,0,0,0,0,0,0,0]

{"sheet":"8","index":13,"n_rows":15,"n_cols":29,"rows_kept":15,"cut":false,"hidden":false,"merged":[[5,0,5,28],[6,0,6,28],[3,0,3,28],[10,3,13,3],[10,2,13,2],[10,1,13,1],[10,0,13,0],[11,24,11,28],[12,9,12,13],[12,24,12,28],[9,0,9,23],[12,14,12,18],[12,19,12,23],[10,9,10,28],[11,9,11,13],[11,14,11,18],[11,19,11,23],[12,4,12,8],[10,4,11,8],[8,0,8,28]]}
[null,null,null,null,null,null,null,null,null,null,null,null,null,null,null,null,null,null,null,null,null,null,null,null,null,null,null,null,"Приложение  № 8"]
[null,null,null,null,null,null,null,null,null,null,null,null,null,null,null,null,null,null,null,null,null,null,null,null,null,null,null,null,"к приказу Минэнерго России"]
[null,null,null,null,null,null,null,null,null,null,null,null,null,null,null,null,null,null,null,null,null,null,null,null,null,null,null,null,"от «__» _____ 2016 г. №___"]
["Форма 8. Краткое описание инвестиционной программы. Вывод объектов инвестиционной деятельности (мощностей) из эксплуатации"]
[]
["Инвестиционная программа АО \"ВЭС\""]
["                                                         полное наименование субъекта электроэнергетики"]
[]
["Год раскрытия информации: 2020 год"]
[]
["Номер группы инвести-ционных проектов","  Наименование инвестиционного проекта (группы инвестиционных проектов)","Идентифика-тор инвестицион-ного проекта","Наименование объекта, выводимого из эксплуатации","Вывод объектов инвестиционной деятельности (мощностей) из эксплуатации в год (N-1)",null,null,null,null,"Вывод объектов инвестиционной деятельности (мощностей) из эксплуатации"]
[null,null,null,null,null,null,null,null,null,"Год N",null,null,null,null,"Год N+1",null,null,null,null,"Год N+2",null,null,null,null,"Итого за период реализации инвестиционной программы"]
[null,null,null,null,"План (Факт)",null,null,null,null,"План (Факт)",null,null,null,null,"План (Факт)",null,null,null,null,"План (Факт)",null,null,null,null,"План"]
[null,null,null,null,"МВ×А","Мвар","км ЛЭП","МВт","Другое","МВ×А","Мвар","км ЛЭП","МВт","Другое","МВ×А","Мвар","км ЛЭП","МВт","Другое","МВ×А","Мвар","км ЛЭП","МВт","Другое","МВ×А","Мвар","км ЛЭП","МВт","Другое"]
[1,2,3,4,"5.1.1","5.1.2","5.1.3","5.1.4","5.1.5","6.1.1","6.1.2","6.1.3","6.1.4","6.1.5","6.2.1","6.2.2","6.2.3","6.2.4","6.2.5","6.3.1","6.3.2","6.3.3","6.3.4","6.3.5","7.1.1","7.1.2","7.1.3","7.1.4","7.1.5"]

{"sheet":"9","index":14,"n_rows":19,"n_cols":11,"rows_kept":19,"cut":false,"hidden":false,"merged":[[8,0,8,10],[3,0,3,10],[5,0,5,10],[6,0,6,10],[12,0,12,10],[10,0,10,10],[11,0,11,10],[14,0,17,0],[14,1,17,1],[14,2,17,2],[14,10,17,10],[13,0,13,9],[14,3,15,9],[16,3,16,5],[16,6,16,8]]}
[null,null,null,null,null,null,null,null,null,null,"Приложение  № 9"]
[null,null,null,null,null,null,null,null,null,null,"к приказу Минэнерго России"]
[null,null,null,null,null,null,null,null,null,null,"от «__» _____ 2016 г. №___"]
["Форма 9. Краткое описание инвестиционной программы. Показатели энергетической эффективности"]
[]
["Инвестиционная программа АО \"ВЭС\""]
["                                                         полное наименование субъекта электроэнергетики"]
[]
["Год раскрытия информации: 2020 год"]
[]
["Перечень показателей энергетической эффективности объектов приведен в соответствии с  _____________________________________________________________________________________________________________________________"]
["______________________________________________________________________________________________________________________________________________________________________________________________________________"]
["реквизиты решения уполномоченного органа исполнительной власти, утвердившего требования к программам в области энергосбережения и повышения энергетической эффективности организаций, осуществляющих регулируемые виды деятельности"]
[]
["Номер группы инвести-ционных проектов","  Наименование инвестиционного проекта (группы инвестиционных проектов)","Идентификатор инвестиционного проекта","Плановые значения показателей энергетической эффективности строящихся (реконструируемых, приобретаемых) объектов (показатели энергетической эффективности объектов, предусмотренные требованиями к программам в области энергосбережения и повышения энергетической эффективности, установленными уполномоченным органом исполнительной власти)",null,null,null,null,null,null,"Примечание"]
[]
[null,null,null,"Наименование показателя энергетической эффективности, единицы измерения",null,null,"Наименование показателя энергетической эффективности, единицы измерения",null,null,"…"]
[null,null,null,"Наименование вида объекта (оборудования, группы оборудования)","Наименование вида объекта (оборудования, группы оборудования)","…","Наименование вида объекта (оборудования, группы оборудования)","Наименование вида объекта (оборудования, группы оборудования)","…","…"]
[1,2,3,"4.1.1","4.1.2","4.1. …","4.2.1","4.2.2","4.2. …","4. …","5"]

{"sheet":"10","index":15,"n_rows":43,"n_cols":18,"rows_kept":43,"cut":false,"hidden":false,"merged":[[9,0,9,17],[8,0,8,17],[3,0,3,17],[5,0,5,17],[6,0,6,17]]}
[null,null,null,null,null,null,null,null,null,null,null,null,null,null,null,null,null,"Приложение  № 10"]
[null,null,null,null,null,null,null,null,null,null,null,null,null,null,null,null,null,"к приказу Минэнерго России"]
[null,null,null,null,null,null,null,null,null,null,null,null,null,null,null,null,null,"от «__» _____ 2016 г. №___"]
["Форма 10. Краткое описание инвестиционной программы. Места расположения объектов инвестиционной деятельности и другие показатели инвестиционных проектов"]
[]
["Инвестиционная программа АО \"ВЭС\""]
["                                                         полное наименование субъекта электроэнергетики"]
[]
["Год раскрытия информации: 2020 год"]
[]
["Номер группы инвести-ционных проектов","  Наименование инвестиционного проекта (группы инвестиционных проектов)","Идентифика-тор инвестицион-ного проекта","Федеральные округа, на территории \nкоторых \nреализуется \nинвестиционный \nпроект","Субъекты Российской Федерации, \nна территории \nкоторых \nреализуется \nинвестиционный \nпроект","Территории муниципальных образований, на территории которых реализуется инвестиционный проект","Наименование обособленного подразделения субъекта электроэнергетики, реализующего инвестиционный проект \n(если применимо)","Наличие решения о резервировании земель\n(+; -; не требуется)","Наличие решения  об изъятии земельных участков для государственных или муниципальных нужд\n(+; -; не требуется)","Наличие решения о переводе земель или земельных участков из одной категории в другую\n(+; -; не требуется)","Наличие  правоустанав-ливающих документов на земельный участок\n(+; -; не требуется)","Наличие утвержденной документации по планировке территории\n(+; -; не требуется)","Объект капитального строительства относится к видам объектов федерального, регионального, местного значения, подлежащим отображению в соответствующем документе территориального планирования \n(федеральный; региональный; местный; не относится)","Объект капитального строительства (федерального, регионального, местного значения) отображен в соответствующем  документе территориального планирования (Российской Федерации, субъекта Российской Федерации,  муниципального образования) \n(+; -; не требуется)","Наличие заключения по результатам \nтехнологического и ценового аудита инвестиционного проекта\n(+; -; не требуется)","Наличие положительного заключения \nэкспертизы проектной документации\n(+; -; не требуется)","Наличие утвержденной  \nпроектной \nдокументации\n(+; -; не требуется)","Наличие разрешения \nна строи-\nтельство\n(+; -; не требуется)"]
[1,2,3,4,5,6,7,8,9,10,11,12,13,14,15,16,17,18]
["0","ВСЕГО по инвестиционной программе, в том числе:"]
["0.2","Реконструкция, модернизация, техническое перевооружение, всего"]
["0.3","Инвестиционные проекты, реализация которых обуславливается схемами и программами перспективного развития электроэнергетики, всего"]
["0.6","Прочие инвестиционные проекты, всего"]
["1","Свердловская область"]
["1.2","Реконструкция, модернизация, техническое перевооружение всего, в том числе:"]
["1.2.1","Реконструкция, модернизация, техническое перевооружение  трансформаторных и иных подстанций, распределительных пунктов, всего, в том числе:"]
["1.2.1.1","Реконструкция трансформаторных и иных подстанций, всего, в том числе:"]
["1.2.1.1","Реконструкция ТП-7011, ТП-1072, ТП-1017, ТП-1078, г. Верхняя Салда",null,"УРФО","Свердловская область","г. Верхняя Салда","Кушвинский","не требуется","не требуется","не требуется","не требуется","не требуется","не требуется","не требуется","не требуется","не требуется","не требуется","не требуется"]
["1.2.1.1","Установка КТПн 250кВА в п. Тагильский ",null,"УРФО","Свердловская область","п. Тагильский","Асбестовский","не требуется","не требуется","не требуется","не требуется","не требуется","не требуется","не требуется","не требуется","не требуется","не требуется","не требуется"]
["1.2.1.1","Установка КТПн 400кВА в г. Верхняя Салда",null,"УРФО","Свердловская область","г. Верхняя Салда","Артемовский","не требуется","не требуется","не требуется","не требуется","не требуется","не требуется","не требуется","не требуется","не требуется","не требуется","не требуется"]
["1.2.1.2","Модернизация, техническое перевооружение трансформаторных и иных подстанций, распределительных пунктов, всего, в том числе:",null,"УРФО",null,"г. Верхняя Салда","Артемовский","не требуется","не требуется","не требуется","не требуется","не требуется","не требуется","не требуется","не требуется","не требуется","не требуется","не требуется"]
["1.2.1.2","Ретрофит ячеек 6-10 кВ в РП, ТП, г. Верхняя Салда",null,"УРФО","Свердловская область","г. Верхняя Салда","Верхнетагильский","не требуется","не требуется","не требуется","не требуется","не требуется","не требуется","не требуется","не требуется","не требуется","не требуется","не требуется"]
["1.2.2","Реконструкция, модернизация, техническое перевооружение линий электропередачи, всего, в том числе:",null,"УРФО",null,null,"Верхнетагильский","не требуется","не требуется","не требуется","не требуется","не требуется","не требуется","не требуется","не требуется","не требуется","не требуется","не требуется"]
["1.2.2.1","Реконструкция линий электропередачи, всего, в том числе:",null,"УРФО",null,null,"Ирбитский","не требуется","не требуется","не требуется","не требуется","не требуется","не требуется","не требуется","не требуется","не требуется","не требуется","не требуется"]
["1.2.2.1","Реконструкция ВЛ-6 кВ ПС Басьяновка, г. Верхняя Салда",null,"УРФО","Свердловская область","п. Тагильский","Ирбитский","не требуется","не требуется","не требуется","не требуется","не требуется","не требуется","не требуется","не требуется","не требуется","не требуется","не требуется"]
["1.2.2.1","Реконструкция ВЛ-6 кВ ПС Басьяновка, г. Верхняя Салда",null,"УРФО","Свердловская область","п. Тагильский","Ирбитский","не требуется","не требуется","не требуется","не требуется","не требуется","не требуется","не требуется","не требуется","не требуется","не требуется","не требуется"]
["1.2.3","Развитие и модернизация учета электрической энергии (мощности), всего, в том числе:",null,"УРФО",null,null,"Камышловский","не требуется","не требуется","не требуется","не требуется","не требуется","не требуется","не требуется","не требуется","не требуется","не требуется","не требуется"]
["1.2.3.1","«Установка приборов учета, класс напряжения 0,22 (0,4) кВ, всего, в том числе:»",null,"УРФО",null,null,"Камышловский","не требуется","не требуется","не требуется","не требуется","не требуется","не требуется","не требуется","не требуется","не требуется","не требуется","не требуется"]
["1.2.3.1","Развитие системы АИИСКУЭ в сетях 0,4 кВ, г. Верхняя Салда",null,"УРФО","Свердловская область","г. Верхняя Салда","Камышловский","не требуется","не требуется","не требуется","не требуется","не требуется","не требуется","не требуется","не требуется","не требуется","не требуется","не требуется"]
["1.2.3.1","Развитие системы АИИСКУЭ в сетях 0,4 кВ, г. Верхняя Салда",null,"УРФО","Свердловская область","г. Верхняя Салда","Камышловский","не требуется","не требуется","не требуется","не требуется","не требуется","не требуется","не требуется","не требуется","не требуется","не требуется","не требуется"]
["1.2.3.1","Развитие системы АИИСКУЭ в сетях 0,4 кВ, г. Верхняя Салда",null,"УРФО","Свердловская область","г. Верхняя Салда","Кушвинский","не требуется","не требуется","не требуется","не требуется","не требуется","не требуется","не требуется","не требуется","не требуется","не требуется","не требуется"]
["1.2.3.1","Развитие системы АИИСКУЭ в сетях 0,4 кВ, г. Верхняя Салда",null,"УРФО","Свердловская область","г. Верхняя Салда","Нижнесалдинский","не требуется","не требуется","не требуется","не требуется","не требуется","не требуется","не требуется","не требуется","не требуется","не требуется","не требуется"]
["1.6","Прочие инвестиционные проекты, всего, в том числе:",null,"УРФО",null,null,"Пелымский","не требуется","не требуется","не требуется","не требуется","не требуется","не требуется","не требуется","не требуется","не требуется","не требуется","не требуется"]
["1.6","Развитие системы АИИСКУЭ в сетях 6/10 кВ, г. Верхняя Салда",null,"УРФО","Свердловская область","г. Верхняя Салда","Кушвинский","не требуется","не требуется","не требуется","не требуется","не требуется","не требуется","не требуется","не требуется","не требуется","не требуется","не требуется"]
["1.6","Развитие системы АИИСКУЭ в сетях 6/10 кВ, г. Верхняя Салда",null,"УРФО","Свердловская область","г. Верхняя Салда","Первоуральский","не требуется","не требуется","не требуется","не требуется","не требуется","не требуется","не требуется","не требуется","не требуется","не требуется","не требуется"]
["1.6","Развитие системы АИИСКУЭ в сетях 6/10 кВ, г. Верхняя Салда",null,"УРФО","Свердловская область","г. Верхняя Салда","Полевской","не требуется","не требуется","не требуется","не требуется","не требуется","не требуется","не требуется","не требуется","не требуется","не требуется","не требуется"]
["1.6","Установка реклоузеров, г. Верхняя Салда",null,"УРФО","Свердловская область","г. Верхняя Салда","Полевской","не требуется","не требуется","не требуется","не требуется","не требуется","не требуется","не требуется","не требуется","не требуется","не требуется","не требуется"]
["1.6","Установка реклоузеров, г. Верхняя Салда",null,"УРФО","Свердловская область","г. Верхняя Салда","Среднеуральский","не требуется","не требуется","не требуется","не требуется","не требуется","не требуется","не требуется","не требуется","не требуется","не требуется","не требуется"]
["1.6","Приобретение передвижной электротехнической лаборатории",null,"УРФО","Свердловская область","г. Верхняя Салда","Среднеуральский","не требуется","не требуется","не требуется","не требуется","не требуется","не требуется","не требуется","не требуется","не требуется","не требуется","не требуется"]
["1.6","Реконструкция кровли теплой автостоянки для строительно- эксплуатационной техники, г. Верхняя Салда ",null,"УРФО","Свердловская область","г. Верхняя Салда","Среднеуральский","не требуется","не требуется","не требуется","не требуется","не требуется","не требуется","не требуется","не требуется","не требуется","не требуется","не требуется"]

{"sheet":"11.1","index":16,"n_rows":16,"n_cols":34,"rows_kept":16,"cut":false,"hidden":false,"merged":[[10,0,10,15],[7,0,7,15],[8,0,8,15],[9,0,9,15],[3,0,3,15],[5,0,5,15],[13,3,13,4],[12,3,12,5],[12,24,13,25],[12,20,14,20],[12,12,12,15],[13,12,14,12],[12,21,13,22],[11,0,11,33],[12,7,12,11],[13,13,14,13],[13,8,13,9],[13,17,14,17],[12,0,14,0],[13,7,14,7],[13,11,14,11],[12,1,14,1],[12,2,14,2],[13,5,14,5],[13,10,14,10],[12,6,14,6],[13,26,13,27],[12,26,12,29],[13,14,13,15],[12,33,14,33],[13,18,13,19],[12,16,12,19],[13,16,14,16],[12,23,14,23],[12,31,12,32],[13,32,14,32],[12,30,14,30],[13,31,14,31],[13,28,13,29]]}
[null,null,null,null,null,null,null,null,null,null,null,null,null,null,null,"Приложение  № 11"]
[null,null,null,null,null,null,null,null,null,null,null,null,null,null,null,"к приказу Минэнерго России"]
[null,null,null,null,null,null,null,null,null,null,null,null,null,null,null,"от «__» _____ 2016 г. №___"]
["Форма 11. Краткое описание инвестиционной программы. Обоснование необходимости реализации инвестиционных проектов"]
[]
["Раздел 1. Технологическое присоединение к электрическим сетям энергопринимающих устройств потребителей максимальной мощностью свыше 150 кВт"]
[]
["Инвестиционная программа АО \"ВЭС\""]
["                                                         полное наименование субъекта электроэнергетики"]
[]
["Год раскрытия информации: 2020 год"]
[]
["Номер группы инвести-ционных проектов","  Наименование инвестиционного проекта (группы инвестиционных проектов)","Идентификатор инвестиционного проекта","Наличие заключенного договора об осуществлении технологического присоединения",null,null,"Размер платы за технологическое присоединение (в соответствии с договором об осуществлении технологического присоединения), млн рублей","Сроки осуществления мероприятий по технологическому присоединению",null,null,null,null,"Технологическое присоединение объектов по производству электрической энергии",null,null,null,"Технологическое присоединение объектов электросетевого хозяйства",null,null,null,"Наименование трансформаторной или иной подстанции (распределительного устройства объекта по производству электрической энергии), реконструкция (модернизация или техническое перевооружение) которой осуществляется в рамках инвестиционного проекта","Нагрузка трансформаторной или иной подстанции (распределительного устройства объекта по производству электрической энергии) по результатам контрольных замеров",null,"Аварийная нагрузка, %","Максимальная мощность энергопринимающих устройств  потребителей услуг  по документам о технологическом присоединении, МВт",null,"Мощность трансформаторной или иной подстанции (распределительного устройства объекта по производству электрической энергии), строительство (реконструкция) которой осуществляется в рамках инвестиционного проекта, МВА",null,null,null,"Срок ввода объектов электросетевого хозяйства в соответствиии со схемой и программой развития Единой энергетической системы России, утвержденными в год (X-1)","Схема и программа развития электроэнергетики субъекта Российской Федерации, утвержденные в год (X-1)",null,"Идентификаторы инвестиционных проектов, предусматривающих выполнение мероприятий по технологическому присоединению, которые содержатся в качестве обязательства сетевой организации по выполнению требований к усилению существующей электрической сети  в договоре об осуществлении технологического присоединения к электрическим сетям, указанном в столбцах 4 и 5"]
[null,null,null,"Реквизиты договоров об осуществлении технологического присоединения, предусматривающих  в технических условиях обязанности сетевой организации по выполнению мероприятий инвестиционного проекта в качестве мероприятий по технологическому присоединению от существующих объектов электросетевого хозяйства до границы участка, на котором расположены энергопринимающие устройства и (или) объекты электроэнергетики (объекты по производству электрической энергии, объекты электросетевого хозяйства) заявителя\n(за исключением выполнения требований к усилению существующей электрической сети)",null,"Количество заключенных договоров об осуществлении технологического присоединения, предусматривающих  в технических условиях обязанности сетевой организации по выполнению мероприятий инвестиционного проекта в качестве выполнения требований к усилению существующей электрической сети (распределительного устройства объекта по производству электрической энергии)",null,"Срок осуществления мероприятий по технологическому присоединению, выполняемых в рамках инвестиционного проекта  (в соответствии с договором об осуществлении технологического присоединения)\n","Планируемый в инвестиционной программе срок постановки объектов электросетевого хозяйства под напряжение",null,"Планируемый в инвестиционной программе срок ввода объектов электросетевого хозяйства в эксплуатацию, год","Планируемый в инвестиционной программе срок принятия объектов электросетевого хозяйства к бухгалтерскому учету, год","Наименование  присоединяемых объектов по производству электрической энергии ","Наименование заявителя по договору об осуществлении технологического присоединения объекта по производству электрической энергии","Мощность присоединенных объектов по производству электрической энергии по документам о технологическом присоединении, МВт",null,"Наименование  присоединяемых объектов электросетевого хозяйства","Наименование заявителя по договору об осуществлении технологического присоединения  объекта электросетевого хозяйства","Максимальная мощность энергопринимающих устройств по документам о технологическом присоединении, МВт",null,null,null,null,null,null,null,"всего",null,"всего за вычетом мощности  наиболее крупного (авто-) трансформатора",null,null,"Срок ввода объекта в эксплуатацию, предусмотренный схемой и программой развития электроэнергетики субъекта Российской Федерации","Реквизиты решения  высшего должностного лица (руководителя высшего исполнительного органа государственной власти) субъекта Российской Федерации\n и указание на структурные единицы     схемы и программы"]
[null,null,null,"Дата","Номер",null,null,null,"год","квартал",null,null,null,null,"до","после",null,null,"до","после",null,"МВхА","Дата контрольного замерного дня",null,"до","после","До","После","До","После"]
[1,2,3,4,5,6,7,8,9,10,11,12,13,14,15,16,17,18,19,20,21,22,23,24,25,26,27,28,29,30,31,32,33,34]

{"sheet":"11.2","index":17,"n_rows":162,"n_cols":15,"rows_kept":162,"cut":false,"hidden":false,"merged":[[11,0,11,14],[12,0,12,14],[134,0,137,0],[134,1,137,1],[138,0,141,0],[138,1,141,1],[142,0,145,0],[142,1,145,1],[122,0,125,0],[122,1,125,1],[126,0,129,0],[126,1,129,1],[130,0,133,0],[130,1,133,1],[111,0,112,0],[111,1,112,1],[113,0,114,0],[113,1,114,1],[115,0,116,0],[115,1,116,1],[105,0,106,0],[105,1,106,1],[107,0,108,0],[107,1,108,1],[109,0,110,0],[109,1,110,1],[99,0,100,0],[99,1,100,1],[101,0,102,0],[101,1,102,1],[103,0,104,0],[103,1,104,1],[93,0,94,0],[93,1,94,1],[95,0,96,0],[95,1,96,1],[97,0,98,0],[97,1,98,1],[87,0,88,0],[87,1,88,1],[89,0,90,0],[89,1,90,1],[91,0,92,0],[91,1,92,1],[70,0,73,0],[70,1,73,1],[74,0,77,0],[74,1,77,1],[82,0,85,0],[82,1,85,1],[78,0,81,0],[78,1,81,1],[58,0,61,0],[58,1,61,1],[62,0,65,0],[62,1,65,1],[43,0,44,0],[43,1,44,1],[45,0,46,0],[45,1,46,1],[47,0,48,0],[47,1,48,1],[3,0,3,15],[4,0,4,15],[6,0,6,15],[7,0,7,15],[8,0,8,15],[9,0,9,15],[66,1,69,1],[66,0,69,0],[13,0,13,32],[14,9,14,10],[14,11,14,12],[14,13,14,14],[14,3,14,5],[25,0,26,0],[25,1,26,1],[27,0,28,0],[27,1,28,1],[29,0,30,0],[29,1,30,1],[19,0,20,0],[19,1,20,1],[21,0,22,0],[21,1,22,1],[23,0,24,0],[146,0,149,0],[146,1,149,1],[150,0,153,0],[150,1,153,1],[14,6,15,6],[14,1,15,1],[14,2,15,2],[14,0,15,0],[14,7,14,8],[23,1,24,1],[37,0,38,0],[37,1,38,1],[39,0,40,0],[39,1,40,1],[41,0,42,0],[41,1,42,1],[31,0,32,0],[31,1,32,1],[33,0,34,0],[33,1,34,1],[35,0,36,0],[35,1,36,1],[54,0,57,0],[54,1,57,1]]}
[]
[]
[]
[]
["Раздел 2. Технологическое присоединение к электрическим сетям энергопринимающих устройств потребителей максимальной мощностью до 150 кВт включительно"]
[]
["Инвестиционная программа АО \"ВЭС\""]
["                                                         полное наименование субъекта электроэнергетики"]
[]
["Год раскрытия информации: 2020 год"]
[]
["Утвержденные плановые значения показателей приведены в соответствии с  ______________________________________________________________________________"]
["                                                                                                                                                                  реквизиты решения органа исполнительной власти, утвердившего инвестиционную программу"]
[]
["№ п/п","Наименование показателя","Единица измерения","Фактические данные о реализации мероприятий по технологическому присоединению",null,null,"Среднее за 3 года значение фактических данных о реализации мероприятий по технологическому присоединению ","год (N-1)",null,"год N",null,"год (N+1)",null,"год (N+2)"]
[null,null,null,"год (N-4) ","год (N-3)","год (N-2)",null,"План\n(Утвержденный план)","Факт \n(Предложение по корректировке утвержденного плана) ","План\n(Утвержденный план)","Факт \n(Предложение по корректировке утвержденного плана) ","План\n(Утвержденный план)","Факт \n(Предложение по корректировке плана)","План\n(Утвержденный план)","Факт \n(Предложение по корректировке плана)"]
[1,2,3,4,5,6,7,8,9,10,11,12,13,14,15]
["1","Наименование субъекта Российской Федерации","нд3)","нд","нд","нд","нд","нд","нд","нд","нд","нд","нд","нд","нд"]
["1.1","Группа инвестиционных проектов \"Технологическое присоединение энергопринимающих устройств потребителей максимальной мощностью до 15 кВт включительно, всего\"","нд","нд","нд","нд","нд","нд","нд","нд","нд","нд","нд","нд","нд"]
["1.1.1","Наличие обязательств по исполнению договоров об осуществлении технологического присоединения к электрическим сетям по состоянию на 1 января  соответствующего года","шт.1)"]
[null,null,"МВт2)"]
["1.1.1.1","          в том числе не предусматривающие выполнение работ со стороны сетевой организации","шт.1)"]
[null,null,"МВт2)"]
["1.1.1.2","          в том числе только с реконструкцией объектов электросетевого хозяйства","шт.1)"]
[null,null,"МВт2)"]
["1.1.1.3","          в том числе с реконструкцией и новым строительством объектов электросетевого хозяйства","шт.1)"]
[null,null,"МВт2)"]
["1.1.1.4","          в том числе только с новым строительством объектов электросетевого хозяйства","шт.1)"]
[null,null,"МВт2)"]
["1.1.2","Принято обязательств по исполнению договоров об осуществлении технологического присоединения к электрическим сетям за планируемый (истекший) год","шт.1)"]
[null,null,"МВт2)"]
["1.1.2.1","          в том числе не предусматривающие выполнение работ со стороны сетевой организации","шт.1)"]
[null,null,"МВт2)"]
["1.1.2.2","          в том числе только с реконструкцией объектов электросетевого хозяйства","шт.1)"]
[null,null,"МВт2)"]
["1.1.2.3","          в том числе с реконструкцией и новым строительством объектов электросетевого хозяйства","шт.1)"]
[null,null,"МВт2)"]
["1.1.2.4","          в том числе только с новым строительством объектов электросетевого хозяйства","шт.1)"]
[null,null,"МВт2)"]
["1.1.3","Исполнено обязательств по договорам об осуществлении технологического присоединения к электрическим сетям за планируемый (истекший) год","шт.1)"]
[null,null,"МВт2)"]
["1.1.3.1","          в том числе не предусматривающие выполнение работ со стороны сетевой организации","шт.1)"]
[null,null,"МВт2)"]
["1.1.3.2","          в том числе только с реконструкцией объектов электросетевого хозяйства","шт.1)"]
[null,null,"МВт2)"]
["1.1.3.3","          в том числе с реконструкцией и новым строительством объектов электросетевого хозяйства","шт.1)"]
[null,null,"МВт2)"]
["1.1.3.4","          в том числе только с новым строительством объектов электросетевого хозяйства","шт.1)"]
[null,null,"МВт2)"]
["1.1.4","Освоение капитальных вложений по мероприятиям, реализуемым в рамках исполнения договоров об осуществлении технологического присоединения к электрическим сетям","млн рублей\nбез НДС"]
["1.1.4.1","          в том числе затраты на проектно изыскательские работы","млн рублей\nбез НДС"]
["1.1.4.2","          в том числе затраты на реконструкцию объектов электросетевого хозяйства","млн рублей\nбез НДС"]
["1.1.4.3","          в том числе затраты на новое строительство объектов электросетевого хозяйства","млн рублей\nбез НДС"]
["1.1.4.4","          в том числе затраты не включаемые в плату за технологическое присоединение","млн рублей\nбез НДС"]
["1.1.5","Постановка объектов электросетевого хозяйства под напряжение в рамках исполнения договоров об осуществлении технологического присоединения к электрическим сетям","МВт"]
[null,null,"МВА"]
[null,null,"км"]
[null,null,"Другое5)"]
["1.1.5.1","          в том числе только с реконструкцией объектов электросетевого хозяйства","МВт"]
[null,null,"МВА"]
[null,null,"км"]
[null,null,"Другое5)"]
["1.1.5.2","          в том числе с реконструкцией и новым строительством объектов электросетевого хозяйства","МВт"]
[null,null,"МВА"]
[null,null,"км"]
[null,null,"Другое5)"]
["1.1.5.3","          в том числе только с новым строительством объектов электросетевого хозяйства","МВт"]
[null,null,"МВА"]
[null,null,"км"]
[null,null,"Другое5)"]
["1.1.6","Ввод объектов инвестиционной деятельности (мощностей) в эксплуатацию в рамках исполнения договоров об осуществлении технологического присоединения к электрическим сетям","МВт"]
[null,null,"МВА"]
[null,null,"км"]
[null,null,"Другое5)"]
["1.1.6.1","          в том числе только с реконструкцией объектов электросетевого хозяйства","МВт"]
[null,null,"МВА"]
[null,null,"км"]
[null,null,"Другое"]
["1.1.6.2","          в том числе с реконструкцией и новым строительством объектов электросетевого хозяйства","МВт"]
[null,null,"МВА"]
[null,null,"км"]
[null,null,"Другое5)"]
["1.1.6.3","          в том числе только с новым строительством объектов электросетевого хозяйства","МВт"]
[null,null,"МВА"]
[null,null,"км"]
[null,null,"Другое5)"]
["1.2","Группа инвестиционных проектов \"Технологическое присоединение энергопринимающих устройств потребителей максимальной мощностью до 150 кВт включительно, всего\"","нд","нд","нд","нд","нд","нд","нд","нд","нд","нд","нд","нд","нд"]
["1.2.1","Наличие обязательств по исполнению договоров об осуществлении технологического присоединения к электрическим сетям по состоянию на 1 января  соответствующего года","шт.1)"]
[null,null,"МВт2)"]
["1.2.1.1","          в том числе не предусматривающие выполнение работ со стороны сетевой организации","шт.1)"]
[null,null,"МВт2)"]
["1.2.1.2","          в том числе только с реконструкцией объектов электросетевого хозяйства","шт.1)"]
[null,null,"МВт2)"]
["1.2.1.3","          в том числе с реконструкцией и новым строительством объектов электросетевого хозяйства","шт.1)"]
[null,null,"МВт2)"]
["1.2.1.4","          в том числе только с новым строительством объектов электросетевого хозяйства","шт.1)"]
[null,null,"МВт2)"]
["1.2.2","Принято обязательств по исполнению договоров об осуществлении технологического присоединения к электрическим сетям за планируемый (истекший) год","шт.1)"]
[null,null,"МВт2)"]
["1.2.2.1","          в том числе не предусматривающие выполнение работ со стороны сетевой организации","шт.1)"]
[null,null,"МВт2)"]
["1.2.2.2","          в том числе только с реконструкцией объектов электросетевого хозяйства","шт.1)"]
[null,null,"МВт2)"]
["1.2.2.3","          в том числе с реконструкцией и новым строительством объектов электросетевого хозяйства","шт.1)"]
[null,null,"МВт2)"]
["1.2.2.4","          в том числе только с новым строительством объектов электросетевого хозяйства","шт.1)"]
[null,null,"МВт2)"]
["1.2.3","Исполнено обязательств по договорам об осуществлении технологического присоединения к электрическим сетям за планируемый (истекший) год","шт.1)"]
[null,null,"МВт2)"]
["1.2.3.1","          в том числе не предусматривающие выполнение работ со стороны сетевой организации","шт.1)"]
[null,null,"МВт2)"]
["1.2.3.2","          в том числе только с реконструкцией объектов электросетевого хозяйства","шт.1)"]
[null,null,"МВт2)"]
["1.2.3.3","          в том числе с реконструкцией и новым строительством объектов электросетевого хозяйства","шт.1)"]
[null,null,"МВт2)"]
["1.2.3.4","          в том числе только с новым строительством объектов электросетевого хозяйства","шт.1)"]
[null,null,"МВт2)"]
["1.2.4","Освоение капитальных вложений по мероприятиям, реализуемым в рамках исполнения договоров об осуществлении технологического присоединения к электрическим сетям","млн рублей\nбез НДС"]
["1.2.4.1","          в том числе затраты на проектно изыскательские работы","млн рублей\nбез НДС"]
["1.2.4.2","          в том числе затраты на реконструкцию объектов электросетевого хозяйства","млн рублей\nбез НДС"]
["1.2.4.3","          в том числе затраты на новое строительство объектов электросетевого хозяйства","млн рублей\nбез НДС"]
["1.2.4.4","          в том числе затраты не включаемые в плату за технологическое присоединение","млн рублей\nбез НДС"]
["1.2.5","Постановка объектов электросетевого хозяйства под напряжение в рамках исполнения договоров об осуществлении технологического присоединения к электрическим сетям","МВт"]
[null,null,"МВА"]
[null,null,"км"]
[null,null,"Другое5)"]
["1.2.5.1","          в том числе только с реконструкцией объектов электросетевого хозяйства","МВт"]
[null,null,"МВА"]
[null,null,"км"]
[null,null,"Другое5)"]
["1.2.5.2","          в том числе с реконструкцией и новым строительством объектов электросетевого хозяйства","МВт"]
[null,null,"МВА"]
[null,null,"км"]
[null,null,"Другое5)"]
["1.2.5.3","          в том числе только с новым строительством объектов электросетевого хозяйства","МВт"]
[null,null,"МВА"]
[null,null,"км"]
[null,null,"Другое5)"]
["1.2.6","Ввод объектов инвестиционной деятельности (мощностей) в эксплуатацию в рамках исполнения договоров об осуществлении технологического присоединения к электрическим сетям","МВт"]
[null,null,"МВА"]
[null,null,"км"]
[null,null,"Другое5)"]
["1.2.6.1","          в том числе только с реконструкцией объектов электросетевого хозяйства","МВт"]
[null,null,"МВА"]
[null,null,"км"]
[null,null,"Другое5)"]
["1.2.6.2","          в том числе с реконструкцией и новым строительством объектов электросетевого хозяйства","МВт"]
[null,null,"МВА"]
[null,null,"км"]
[null,null,"Другое5)"]
["1.2.6.3","          в том числе только с новым строительством объектов электросетевого хозяйства","МВт"]
[null,null,"МВА"]
[null,null,"км"]
[null,null,"Другое5)"]
["2","Наименование субъекта Российской Федерации","нд","нд","нд","нд","нд","нд","нд","нд","нд","нд","нд","нд","нд"]
["…4)","…4)"]
[]
[null,"1) шт. договоров об осуществлении технологического присоединения к электрическим сетям"]
[null,"2) МВт максимальной мощности энергопринимающих устройств потребителей  "]
[null,"3) Ячейки, в которых указано слово \"нд\", заполнению не подлежат"]
[null,"4) Перечень наименований показателей и их нумерация формируются по аналогии с такой структурой, указанной в пунктах, номера которых начинаются с цифры 1"]
[null,"5) При необходимости указания единиц измерения отличных от МВт, МВА и км вместо слова \"Другое\" указывается наименование иной единицы измерения"]

{"sheet":"11.3","index":18,"n_rows":37,"n_cols":9,"rows_kept":37,"cut":false,"hidden":false,"merged":[[31,1,31,8],[35,1,35,8],[11,7,12,7],[11,8,12,8],[9,0,9,8],[11,0,12,0],[11,1,12,1],[11,2,11,4],[11,5,12,5],[11,6,12,6],[3,0,3,8],[4,0,4,8],[6,0,6,8],[7,0,7,8],[8,0,8,8]]}
[]
[]
[]
[]
["Раздел 3. Оценка расходов на технологическое присоединение к электрическим сетям энергопринимающих устройств потребителей максимальной мощностью до 150 кВт включительно"]
[]
["Инвестиционная программа АО \"ВЭС\""]
["                                                         полное наименование субъекта электроэнергетики"]
[]
["Год раскрытия информации: 2020 год"]
[]
["№ п/п","Наименование показателя","Фактические значения показателей мощности, протяженности, кВт (км)",null,null,"Среднее за 3 года значение фактических показателей мощности, протяженности, кВт (км)1)","Значения стандартизированных ставок за год (X-1), тыс. рублей","Индекс сметной стоимости","Плановые значения стоимости на год X6), \nтыс. рублей2)"]
[null,null,"Год (X-3)6)","Год (X-2)6)","Год (X-1)6)"]
[1,2,3,4,5,6,7,8,9]
["1","Наименование субъекта Российской Федерации","нд3)","нд","нд","нд","нд","нд","нд"]
["1.1","Группа инвестиционных проектов \"Технологическое присоединение энергопринимающих устройств потребителей максимальной мощностью до 15 кВт включительно, всего\"4) [п.1.1.1+п.1.1.2+п.1.1.3+\nп.1.1.4+п.1.1.5]:",null,null,null,"(ст.3+ст.4+ст.5)/3","нд","нд"]
["1.1.1","строительство воздушных линий, на уровне напряжения i",null,null,null,"(ст.3+ст.4+ст.5)/3","С2",null,"ст.6*ст.7*ст.8/1000"]
["1.1.2","строительство кабельных линий, на уровне напряжения i ",null,null,null,"(ст.3+ст.4+ст.5)/3","С3",null,"ст.6*ст.7*ст.8/1000"]
["1.1.3","строительство пунктов секционирования, на уровне напряжения i и (или) диапазоне мощности j  ",null,null,null,"(ст.3+ст.4+ст.5)/3","С4",null,"ст.6*ст.7*ст.8/1000"]
["1.1.4","строительство комплектных трансформаторных подстанций (КТП), распределительных трансформаторных подстанций (РТП) с уровнем напряжения до 35 кВ,  на уровне напряжения i и (или) диапазоне мощности j  ",null,null,null,"(ст.3+ст.4+ст.5)/3","С4",null,"ст.6*ст.7*ст.8/1000"]
["1.1.5","строительство центров питания, подстанций уровнем напряжения 35 кВ и выше (ПС), на уровне напряжения i и (или) диапазоне мощности j",null,null,null,"(ст.3+ст.4+ст.5)/3","С4",null,"ст.6*ст.7*ст.8/1000"]
["1.2","Группа инвестиционных проектов \"Технологическое присоединение энергопринимающих устройств потребителей максимальной мощностью  до 150 кВт включительно, всего\"5) [п.1.2.1+п.1.2.2+п.1.2.3+\nп.1.2.4+п.1.2.5]",null,null,null,"(ст.3+ст.4+ст.5)/3","нд","нд"]
["1.2.1","строительство воздушных линий, на уровне напряжения i",null,null,null,"(ст.3+ст.4+ст.5)/3","С2",null,"ст.6*ст.7*ст.8/1000"]
["1.2.2","строительство кабельных линий, на уровне напряжения i ",null,null,null,"(ст.3+ст.4+ст.5)/3","С3",null,"ст.6*ст.7*ст.8/1000"]
["1.2.3","строительство пунктов секционирования, на уровне напряжения i и (или) диапазоне мощности j  ",null,null,null,"(ст.3+ст.4+ст.5)/3","С4",null,"ст.6*ст.7*ст.8/1000"]
["1.2.4","строительство комплектных трансформаторных подстанций (КТП), распределительных трансформаторных подстанций (РТП) с уровнем напряжения до 35 кВ,  на уровне напряжения i и (или) диапазоне мощности j  ",null,null,null,"(ст.3+ст.4+ст.5)/3","С4",null,"ст.6*ст.7*ст.8/1000"]
["1.2.5","строительство центров питания, подстанций уровнем напряжения 35 кВ и выше (ПС), на уровне напряжения i и (или) диапазоне мощности j",null,null,null,"(ст.3+ст.4+ст.5)/3","С4",null,"ст.6*ст.7*ст.8/1000"]
["2","Наименование субъекта Российской Федерации","нд","нд","нд","нд","нд","нд","нд"]
["…7)","…7)"]
[]
[null,"1) Определяется как (столбец (ст.)3+ст.4+ст.5)/3"]
[null,"2) Определяется как ст.6*ст.7*ст.8/1000, за исключением пункта (п.) 1.1 и п.1.2 (Группа инвестиционных проектов \"Технологическое присоединение энергопринимающих устройств потребителей максимальной мощностью до 15 кВт включительно, всего\" и Группа инвестиционных проектов \"Технологическое присоединение энергопринимающих устройств потребителей максимальной мощностью от 15 до 150 кВт включительно, всего\")"]
[null,"3) Ячейки, в которых указано слово \"нд\", заполнению не подлежат"]
[null,"4) В п.1.1 в столбцах 3, 4, 5 и 9 указывются значения, определяюемые как сумма значений, указанных в пунктах 1.1.1 - 1.1.5 соответствующих столбцов"]
[null,"5)  В п.1.2 в столбцах 3, 4, 5 и 9 указывются значения, определяюемые как сумма значений, указанных в пунктах 1.2.1 - 1.2.5 соответствующих столбцов"]
[null,"6) Словосочетания вида «год X», «год (X-1)» заменя.тся указанием года (четыре цифры и слово «год» в соответствующем падеже), который определяется как год, в котором сетевой организацией раскрывается информация об инвестиционной программе (о проекте инвестиционной программе и (или) изменений, вносимых в инвестиционную программу) минус количество лет, равных числу указанному в словосочетании после знака «-»."]
[null,"7) Перечень наименований показателей и их нумерация формируются по аналогии с такой структурой, указанной в пунктах, номера которых начинаются с цифры 1."]

{"sheet":"12","index":19,"n_rows":14,"n_cols":31,"rows_kept":14,"cut":false,"hidden":false,"merged":[[10,29,11,30],[10,28,12,28],[10,5,12,5],[10,18,12,18],[10,0,12,0],[10,1,12,1],[10,2,12,2],[10,4,12,4],[10,3,12,3],[11,7,12,7],[11,8,12,8],[10,6,12,6],[7,0,7,13],[8,0,8,13],[5,0,5,13],[6,0,6,13],[10,16,11,17],[3,0,3,13],[9,0,9,28],[10,26,11,27],[10,14,12,14],[11,24,11,25],[10,20,10,25],[10,11,11,12],[10,13,12,13],[10,7,10,10],[11,10,12,10],[11,9,12,9],[10,19,12,19],[10,15,12,15],[11,20,11,21],[4,0,4,13],[11,22,11,23]]}
[null,null,null,null,null,null,null,null,null,null,null,null,null,"Приложение  № 12"]
[null,null,null,null,null,null,null,null,null,null,null,null,null,"к приказу Минэнерго России"]
[null,null,null,null,null,null,null,null,null,null,null,null,null,"от «__» _____ 2016 г. №___"]
["Форма 12. Краткое описание инвестиционной программы. Обоснование необходимости реализации инвестиционных проектов"]
[]
["Инвестиционная программа АО \"ВЭС\""]
["                                                         полное наименование субъекта электроэнергетики"]
[]
["Год раскрытия информации: 2020 год"]
[]
["Номер группы инвести-ционных проектов","  Наименование инвестиционного проекта (группы инвестиционных проектов)","Идентифика-\nтор инвестицион-ного проекта","Год ввода в эксплуатацию трансформаторной или иной подстанции, линии электропередачи \n(до реализации инвестиционного проекта)","Показатель  оценки технического состояния","Показатель оценки последствий отказа","Год определения показателей оценки технического состояния и последствий отказа","Инвестиционным проектом предусматривается выполнение:",null,null,null,"Реализация инвестиционного проекта обсулавливается необходимостью выполнения требований:",null,"Инвестиционным проектом осуществляются  мероприятия по энергосбережению и повышению энергетической эффективности, предусмотренные утвержденной программой в области энергосбережения и повышения энергетической эффективности и\n обеспечивающие достижение утвержденных целевых показателей энергосбережения и повышения энергетической эффективности\n(+;-)","Инвестиционным проектом осуществляются  обязательные мероприятия по энергосбережению и повышению энергетической эффективности, предусмотренные утвержденной программой в области энергосбережения и повышения энергетической эффективности\n(+;-)\n","Наименование трансформаторной или иной подстанции, линии электропередачи (участка линии электропередачи), реконструкция (модернизация или техническое перевооружение) которой осуществляется в рамках инвестиционного проекта","Нагрузка по результатам контрольных замеров трансформаторной или иной подстанции, реконструкция (модернизация, техническое перевооружение, которой предусматривается инвестиционным проектом",null,"Аварийная нагрузка, %","Максимальная мощность энергопринимающих устройств потребителей услуг  по документам о технологическом присоединении","Мощность трансформаторной или иной подстанции, реконструкция (модернизация или техническое перевооружение) которой осуществляется в рамках инвестиционного проекта",null,null,null,null,null,"Проектный высший класс напряжения (рабочее высшее  напряжение), кВ",null,"Задачи, решаемые в рамках реализации инвестиционного проекта","Неудовлетворительное техническое состояние подтверждается  результатами:"]
[null,null,null,null,null,null,null,"противоаварийных мероприятий, предусмотренных актами о расследовании причин аварии (реквизиты актов)","предписаний федерального органа исполнительной власти, уполномоченного на осуществление федерального государственного энергетического надзора вынесенных по результатам расследования причин аварий (реквизиты предписаний)\n","иных  предписаний федерального органа исполнительной власти, уполномоченного на осуществление федерального государственного энергетического надзора (реквизиты предписаний)","предписаний иных органов государственной власти (указать наименования органов исполнительной власти)",null,null,null,null,null,null,null,null,null,"всего, МВхА",null,"всего за вычетом мощности  наиболее крупного (авто-) трансформатора, МВхА",null,"всего, Мвар"]
[null,null,null,null,null,null,null,null,null,null,null,"законодательства Российской Федерации (+;-)","регламентов рынков электрической энергии  (+;-)",null,null,null,"МВт","Дата контрольного замерного дня",null,null,"До","После","До","После","До","После","До","После",null,"технического освидетельст-вования (+;-)","технического обследования (+;-)"]
[1,2,3,4,5,6,7,8,9,10,11,12,13,14,15,16,17,18,19,20,21,22,23,24,25,26,27,28,29,30,31]

{"sheet":"13","index":20,"n_rows":16,"n_cols":11,"rows_kept":16,"cut":false,"hidden":false,"merged":[[15,0,15,10],[3,0,3,10],[5,0,5,10],[6,0,6,10],[8,0,8,10],[10,9,10,10],[10,6,10,7],[10,5,11,5],[10,3,11,3],[10,2,11,2],[10,1,11,1],[10,0,11,0],[10,4,11,4],[10,8,11,8]]}
[null,null,null,null,null,null,null,null,null,null,"Приложение  № 13"]
[null,null,null,null,null,null,null,null,null,null,"к приказу Минэнерго России"]
[null,null,null,null,null,null,null,null,null,null,"от «__» _____ 2016 г. №___"]
["Форма 13. Краткое описание инвестиционной программы. Обоснование необходимости реализации инвестиционных проектов"]
[]
["Инвестиционная программа АО \"ВЭС\""]
["                                              полное наименование субъекта электроэнергетики"]
[]
["Год раскрытия информации: 2020 год"]
[]
["Номер группы инвести-ционных проектов","  Наименование инвестиционного проекта (группы инвестиционных проектов)","Идентифика-тор инвестицион-ного проекта","Планируемый в инвестиционной программе срок постановки объектов электросетевого хозяйства под напряжение (включения объектов капитального строительства для проведения пусконаладочных работ), год","Планируемый в инвестиционной программе срок ввода объектов электросетевого хозяйства (объектов теплоснабжения) в эксплуатацию, год","Срок ввода объектов электросетевого хозяйства в соответствиии со схемой и программой развития Единой энергетической системы России, утвержденными в год (X-1)1)\n(срок ввода объекта теплоснабжения в соответствии со схемой теплоснабжения поселения, городского округа с численностью населения пятьсот тысяч человек и более или города федерального значения, утвержденной федеральным органом исполнительной власти), год","Схема и программа развития электроэнергетики субъекта Российской Федерации, утвержденные в год (X-1)1) (схема теплоснабжения поселения (городского округа), утвержденная органом местного самоуправления)",null,"Реализация инвестиционного проекта предусматривается решением Правительства Российской Федерации (федерального органа исполнительной власти, органа государственной власти субъекта Российской Федерации, органа местного самоуправления)  (+;-)","Инвестиционным проектом предусматривается выполнение:"]
[null,null,null,null,null,null,"Срок ввода объекта в эксплуатацию, предусмотренный схемой и программой развития электроэнергетики субъекта Российской Федерации, утвержденные в год (X-1)1) \n(схемой теплоснабжения поселения (городского округа), утвержденной органом местного самоуправления), год","Реквизиты решения  высшего должностного лица (руководителя высшего исполнительного органа государственной власти) субъекта Российской Федерации\n и указание на структурные единицы   схемы и программы (реквизиты решения  органа местного самоуправления об утверждении схемы теплоснабжения\n и указание на структурные единицы      схемы теплоснабжения)",null,"противоаварийных мероприятий, предусмотренных актами о расследовании причин аварии (реквизиты актов)","предписаний федерального органа исполнительной власти, уполномоченного на осуществление федерального государственного энергетического надзора вынесенных по результатам расследования причин аварий (реквизиты предписаний)\n"]
[1,2,3,4,5,6,7,8,9,10,11]
[]
[]
["1) «год X-1» заменяется указанием года (четыре цифры и слово «год» в соответствующем падеже), предшествующего году, в котором сетевой организацией раскрывается информация об инвестиционной программе (о проекте инвестиционной программе и (или) изменений, вносимых в инвестиционную программу)."]

{"sheet":"14","index":21,"n_rows":45,"n_cols":19,"rows_kept":45,"cut":false,"hidden":false,"merged":[[3,0,3,18],[8,0,8,18],[10,14,12,14],[9,0,9,17],[10,0,12,0],[10,1,12,1],[10,2,12,2],[10,3,12,3],[10,13,12,13],[10,15,10,18],[10,5,11,9],[10,11,11,12],[10,10,12,10],[10,4,12,4],[11,15,11,16],[11,17,11,18],[5,0,5,18],[6,0,6,18]]}
[null,null,null,null,null,null,null,null,null,null,null,null,null,null,null,null,null,null,"Приложение  № 14"]
[null,null,null,null,null,null,null,null,null,null,null,null,null,null,null,null,null,null,"к приказу Минэнерго России"]
[null,null,null,null,null,null,null,null,null,null,null,null,null,null,null,null,null,null,"от «__» _____ 2016 г. №___"]
["Форма 14. Краткое описание инвестиционной программы. Обоснование необходимости реализации инвестиционных проектов"]
[]
["Инвестиционная программа АО \"ВЭС\""]
["                                              полное наименование субъекта электроэнергетики"]
[]
["Год раскрытия информации: 2020 год"]
[]
["Номер группы инвести-ционных проектов","  Наименование инвестиционного проекта (группы инвестиционных проектов)","Идентифика-тор инвестицион-ного проекта","Оценка полной стоимости инвестиционного проекта в прогнозных ценах соответствующих лет, млн рублей (с НДС) ","Наименование документа, обосновывающего оценку полной стоимости инвестиционного проекта","Финансирование капитальных вложений в прогнозных ценах соответствующих лет итого за период реализации инвестиционной программы, млн рублей (с НДС)",null,null,null,null,"Освоение капитальных вложений в прогнозных ценах соответствующих лет итого за период реализации инвестиционной программы, млн рублей  (без НДС)","Принятие основных средств (нематериальных активов) к бухгалтерскому учету",null,"Задачи, решаемые в рамках инвестиционного проекта","Идентификатор инвестиционного проекта, для целей реализации которого инвестиционным проектом предусматривается покупка земельного участка","Характеристики объектов инвестиционной деятельности"]
[null,null,null,null,null,null,null,null,null,null,null,null,null,null,null,"Наименование показателя, единицы измерения",null,"Наименование показателя, единицы измерения"]
[null,null,null,null,null,"Общий объем финансирования, в том числе за счет:","федерального бюджета","бюджетов субъектов Российской Федерации","средств, полученных от оказания услуг, реализации товаров по регулируемым государством ценам (тарифам)","иных источников финансирования",null,"Год принятия к бухгалтерскому учету","Первоначальная стоимость, млн рублей",null,null,"значение до","значение после","значение до","значение после"]
[1,2,3,4,5,6,7,8,9,10,11,12,13,14,15,"16.1.1","16.1.2","16.2.1","16.2.2"]
["0","ВСЕГО по инвестиционной программе, в том числе:",null,{"$f":"D16+D17+D18","v":{"$error":"#REF!"}},{"$f":"E16+E17+E18","v":0},{"$error":"#REF!"},0,0,{"$error":"#REF!"},0,0,null,{"$f":"M16+M17+M18","v":{"$error":"#REF!"}},0,0,0,0,0,0]
["0.2","Реконструкция, модернизация, техническое перевооружение, всего",null,{"$f":"D20","v":{"$error":"#REF!"}},{"$f":"E20","v":0},{"$error":"#REF!"},0,0,{"$error":"#REF!"},0,0,null,{"$f":"M20","v":{"$error":"#REF!"}},0,0,0,0,0,0]
["0.3","Инвестиционные проекты, реализация которых обуславливается схемами и программами перспективного развития электроэнергетики, всего"]
["0.6","Прочие инвестиционные проекты, всего",null,{"$f":"SUMIF(OFFSET($B18,1,0):$B973,\"Прочие инвестиционные проекты, всего, в том числе:\",OFFSET(D18,1,0):D973)","v":2020},{"$f":"SUMIF(OFFSET($B18,1,0):$B703,\"Прочие инвестиционные проекты, всего, в том числе:\",OFFSET(E18,1,0):E703)","v":0},{"$f":"SUMIF(OFFSET($B18,1,0):$B973,\"Прочие инвестиционные проекты, всего, в том числе:\",OFFSET(F18,1,0):F973)","v":2020},{"$f":"SUMIF(OFFSET($B18,1,0):$B703,\"Прочие инвестиционные проекты, всего, в том числе:\",OFFSET(G18,1,0):G703)","v":0},{"$f":"SUMIF(OFFSET($B18,1,0):$B703,\"Прочие инвестиционные проекты, всего, в том числе:\",OFFSET(H18,1,0):H703)","v":0},{"$f":"SUMIF(OFFSET($B18,1,0):$B973,\"Прочие инвестиционные проекты, всего, в том числе:\",OFFSET(I18,1,0):I973)","v":2020},{"$f":"SUMIF(OFFSET($B18,1,0):$B703,\"Прочие инвестиционные проекты, всего, в том числе:\",OFFSET(J18,1,0):J703)","v":0},{"$f":"SUMIF(OFFSET($B18,1,0):$B703,\"Прочие инвестиционные проекты, всего, в том числе:\",OFFSET(K18,1,0):K703)","v":0},null,{"$f":"SUMIF(OFFSET($B18,1,0):$B973,\"Прочие инвестиционные проекты, всего, в том числе:\",OFFSET(M18,1,0):M973)","v":0},{"$f":"SUMIF(OFFSET($B18,1,0):$B703,\"Прочие инвестиционные проекты, всего, в том числе:\",OFFSET(N18,1,0):N703)","v":0},{"$f":"SUMIF(OFFSET($B18,1,0):$B703,\"Прочие инвестиционные проекты, всего, в том числе:\",OFFSET(O18,1,0):O703)","v":0},{"$f":"SUMIF(OFFSET($B18,1,0):$B703,\"Прочие инвестиционные проекты, всего, в том числе:\",OFFSET(P18,1,0):P703)","v":0},{"$f":"SUMIF(OFFSET($B18,1,0):$B703,\"Прочие инвестиционные проекты, всего, в том числе:\",OFFSET(Q18,1,0):Q703)","v":0},{"$f":"SUMIF(OFFSET($B18,1,0):$B703,\"Прочие инвестиционные проекты, всего, в том числе:\",OFFSET(R18,1,0):R703)","v":0},{"$f":"SUMIF(OFFSET($B18,1,0):$B703,\"Прочие инвестиционные проекты, всего, в том числе:\",OFFSET(S18,1,0):S703)","v":0}]
["1","Свердловская область",null,{"$f":"D20+#REF!","v":{"$error":"#REF!"}},0,{"$f":"F20+#REF!","v":{"$error":"#REF!"}},0,0,{"$f":"I20+#REF!","v":{"$error":"#REF!"}},0,0,null,{"$f":"M20+#REF!","v":{"$error":"#REF!"}},0,0,0,0,0,0]
["1.2","Реконструкция, модернизация, техническое перевооружение всего, в том числе:",null,{"$f":"D21+#REF!+#REF!","v":{"$error":"#REF!"}},0,{"$f":"F21+#REF!+#REF!","v":{"$error":"#REF!"}},0,0,{"$f":"I21+#REF!+#REF!","v":{"$error":"#REF!"}},0,0,null,{"$f":"M21+#REF!+#REF!","v":{"$error":"#REF!"}},0,0,0,0,0,0]
["1.2.1","Реконструкция, модернизация, техническое перевооружение  трансформаторных и иных подстанций, распределительных пунктов, всего, в том числе:",null,{"$f":"D22+#REF!","v":{"$error":"#REF!"}},0,{"$f":"F22+#REF!","v":{"$error":"#REF!"}},0,0,{"$f":"I22+#REF!","v":{"$error":"#REF!"}},0,0,null,{"$f":"M22+#REF!","v":{"$error":"#REF!"}},0,0,0,0,0,0]
["1.2.1.1","Реконструкция трансформаторных и иных подстанций, всего, в том числе:",null,{"$f":"SUMIF(OFFSET($A22,1,0):$A977,$A22,OFFSET(D22,1,0):D977)","v":6069},{"$f":"SUMIF(OFFSET($A22,1,0):$A707,$A22,OFFSET(E22,1,0):E707)","v":0},{"$f":"SUMIF(OFFSET($A22,1,0):$A977,$A22,OFFSET(F22,1,0):F977)","v":6069},{"$f":"SUMIF(OFFSET($A22,1,0):$A707,$A22,OFFSET(G22,1,0):G707)","v":0},{"$f":"SUMIF(OFFSET($A22,1,0):$A707,$A22,OFFSET(H22,1,0):H707)","v":0},{"$f":"SUMIF(OFFSET($A22,1,0):$A977,$A22,OFFSET(I22,1,0):I977)","v":6069},{"$f":"SUMIF(OFFSET($A22,1,0):$A707,$A22,OFFSET(J22,1,0):J707)","v":0},{"$f":"SUMIF(OFFSET($A22,1,0):$A707,$A22,OFFSET(K22,1,0):K707)","v":0},null,{"$f":"SUMIF(OFFSET($A22,1,0):$A977,$A22,OFFSET(M22,1,0):M977)","v":0},{"$f":"SUMIF(OFFSET($A22,1,0):$A707,$A22,OFFSET(N22,1,0):N707)","v":0},{"$f":"SUMIF(OFFSET($A22,1,0):$A707,$A22,OFFSET(O22,1,0):O707)","v":0},{"$f":"SUMIF(OFFSET($A22,1,0):$A707,$A22,OFFSET(P22,1,0):P707)","v":0},{"$f":"SUMIF(OFFSET($A22,1,0):$A707,$A22,OFFSET(Q22,1,0):Q707)","v":0},{"$f":"SUMIF(OFFSET($A22,1,0):$A707,$A22,OFFSET(R22,1,0):R707)","v":0},{"$f":"SUMIF(OFFSET($A22,1,0):$A707,$A22,OFFSET(S22,1,0):S707)","v":0}]
["1.2.1.1","Реконструкция ТП-7011, ТП-1072, ТП-1017, ТП-1078, г. Верхняя Салда",null,{"$f":"SUM(E23:H23)","v":2021},"Смета",{"$f":"SUM(G23:J23)","v":2021},null,null,{"$f":"SUM(J23:M23)","v":2021},null,null,2021,{"$f":"SUM(N23:Q23)","v":0},"повышение надежности и качества электроснабжения "]
["1.2.1.1","Установка КТПн 250кВА в п. Тагильский ",null,{"$f":"SUM(E24:H24)","v":2024},"Смета",{"$f":"SUM(G24:J24)","v":2024},null,null,{"$f":"SUM(J24:M24)","v":2024},null,null,2024,{"$f":"SUM(N24:Q24)","v":0},"повышение надежности и качества электроснабжения "]
["1.2.1.1","Установка КТПн 400кВА в г. Верхняя Салда",null,{"$f":"SUM(E25:H25)","v":2024},"Смета",{"$f":"SUM(G25:J25)","v":2024},null,null,{"$f":"SUM(J25:M25)","v":2024},null,null,2024,{"$f":"SUM(N25:Q25)","v":0},"повышение надежности и качества электроснабжения "]
["1.2.1.2","Модернизация, техническое перевооружение трансформаторных и иных подстанций, распределительных пунктов, всего, в том числе:",null,0,"Смета",0,null,null,0,null,null,null,0,"повышение надежности и качества электроснабжения "]
["1.2.1.2","Ретрофит ячеек 6-10 кВ в РП, ТП, г. Верхняя Салда",null,2024,"Смета",2024,null,null,2024,null,null,2024,0,"повышение надежности и качества электроснабжения "]
["1.2.2","Реконструкция, модернизация, техническое перевооружение линий электропередачи, всего, в том числе:",null,0,"Смета",0,null,null,0,null,null,null,0,"повышение надежности и качества электроснабжения "]
["1.2.2.1","Реконструкция линий электропередачи, всего, в том числе:",null,0,"Смета",0,null,null,0,null,null,null,0,"повышение надежности и качества электроснабжения "]
["1.2.2.1","Реконструкция ВЛ-6 кВ ПС Басьяновка, г. Верхняя Салда",null,2021,"Смета",2021,null,null,2021,null,null,2021,0,"повышение надежности и качества электроснабжения "]
["1.2.2.1","Реконструкция ВЛ-6 кВ ПС Басьяновка, г. Верхняя Салда",null,2022,"Смета",2022,null,null,2022,null,null,2022,0,"повышение надежности и качества электроснабжения "]
["1.2.3","Развитие и модернизация учета электрической энергии (мощности), всего, в том числе:",null,0,"Смета",0,null,null,0,null,null,null,0,"повышение надежности и качества электроснабжения "]
["1.2.3.1","«Установка приборов учета, класс напряжения 0,22 (0,4) кВ, всего, в том числе:»",null,0,"Смета",0,null,null,0,null,null,null,0,"повышение надежности и качества электроснабжения "]
["1.2.3.1","Развитие системы АИИСКУЭ в сетях 0,4 кВ, г. Верхняя Салда",null,2021,"Смета",2021,null,null,2021,null,null,2021,0,"повышение надежности и качества электроснабжения "]
["1.2.3.1","Развитие системы АИИСКУЭ в сетях 0,4 кВ, г. Верхняя Салда",null,2022,"Смета",2022,null,null,2022,null,null,2022,0,"повышение надежности и качества электроснабжения "]
["1.2.3.1","Развитие системы АИИСКУЭ в сетях 0,4 кВ, г. Верхняя Салда",null,2023,"Смета",2023,null,null,2023,null,null,2023,0,"повышение надежности и качества электроснабжения "]
["1.2.3.1","Развитие системы АИИСКУЭ в сетях 0,4 кВ, г. Верхняя Салда",null,2024,"Смета",2024,null,null,2024,null,null,2024,0,"повышение надежности и качества электроснабжения "]
["1.6","Прочие инвестиционные проекты, всего, в том числе:",null,2020,"Смета",2020,null,null,2020,null,null,2020,0,"повышение надежности и качества электроснабжения "]
["1.6","Развитие системы АИИСКУЭ в сетях 6/10 кВ, г. Верхняя Салда",null,2021,"Смета",2021,null,null,2021,null,null,2021,0,"повышение надежности и качества электроснабжения "]
["1.6","Развитие системы АИИСКУЭ в сетях 6/10 кВ, г. Верхняя Салда",null,2022,"Смета",2022,null,null,2022,null,null,2022,0,"повышение надежности и качества электроснабжения "]
["1.6","Развитие системы АИИСКУЭ в сетях 6/10 кВ, г. Верхняя Салда",null,2023,"Смета",2023,null,null,2023,null,null,2023,0,"повышение надежности и качества электроснабжения "]
["1.6","Установка реклоузеров, г. Верхняя Салда",null,2021,"Смета",2021,null,null,2021,null,null,2021,0,"повышение надежности и качества электроснабжения "]
["1.6","Установка реклоузеров, г. Верхняя Салда",null,2022,"Смета",2022,null,null,2022,null,null,2022,0,"повышение надежности и качества электроснабжения "]
["1.6","Приобретение передвижной электротехнической лаборатории",null,2023,"Смета",2023,null,null,2023,null,null,2023,0,"повышение надежности и качества электроснабжения "]
["1.6","Реконструкция кровли теплой автостоянки для строительно- эксплуатационной техники, г. Верхняя Салда ",null,2023,"Смета",2023,null,null,2023,null,null,2023,0,"повышение надежности и качества электроснабжения "]

{"sheet":"15","index":22,"n_rows":14,"n_cols":25,"rows_kept":14,"cut":false,"hidden":false,"merged":[[3,0,3,11],[8,0,8,11],[5,0,5,11],[6,0,6,11],[7,0,7,11],[11,12,12,12],[11,13,12,13],[11,14,11,15],[10,17,12,17],[10,24,12,24],[11,18,11,19],[11,20,11,21],[11,23,12,23],[11,22,12,22],[10,18,10,21],[9,0,9,23],[10,0,12,0],[10,1,12,1],[10,2,12,2],[10,3,10,5],[10,6,12,6],[10,7,10,11],[10,12,10,15],[10,16,12,16],[10,22,10,23],[11,3,11,4],[11,5,12,5],[11,7,12,7],[11,8,11,9],[11,10,12,10],[11,11,12,11]]}
[null,null,null,null,null,null,null,null,null,null,null,"Приложение  № 15"]
[null,null,null,null,null,null,null,null,null,null,null,"к приказу Минэнерго России"]
[null,null,null,null,null,null,null,null,null,null,null,"от «__» _____ 2016 г. №___"]
["Форма 15. Краткое описание инвестиционной программы. Обоснование необходимости реализации инвестиционных проектов"]
[]
["Инвестиционная программа АО \"ВЭС\""]
["                                              полное наименование субъекта электроэнергетики"]
[]
["Год раскрытия информации: 2020 год"]
[]
["Номер группы инвести-ционных проектов","  Наименование инвестиционного проекта (группы инвестиционных проектов)","Идентифика-тор инвестицион-ного проекта","Наличие заключенного договора о подключении к системам теплоснабжения",null,null,"Размер платы за подключение в соответствии с договором о подключении к системам теплоснабжения, млн рублей","Сроки осуществления мероприятий по подключению",null,null,null,null,"Присоединение источников тепловой энергии или тепловых сетей к системам теплоснабжения",null,null,null,"Наименование объекта теплоснабжения, реконструкция (модернизация или техническое перевооружение) которого осуществляется в рамках инвестиционного проекта","Фактическая тепловая мощность, нагрузка (расход теплоносителя) объекта теплоснабжения, Гкал/ч (т/ч)","Тепловая мощность объекта теплоснабжения (производительность насосной станции, диаметр тепловых сетей) , строительство (реконструкция) которого осуществляется в рамках инвестиционного проекта",null,null,null,"Схема теплоснабжения",null,"Идентификаторы инвестиционных проектов, предусматривающих выполнение мероприятий по подлкючению к системам теплоснабжения, которые содержатся в качестве ее обязательства по строительству, реконструкции, модернизации и (или) техническому перевооружению источников тепловой энергии и (или) тепловых сетей в целях подключения теплопотребляющих установок потребителей тепловой энергии к системе теплоснабжения, за исключением мероприятий по подключению к системе теплоснабжения от существующих тепловых сетей или источников тепловой энергии  до точек подключения соответствующих теплопотребляющих установок потребителей, в договоре о подключении к системам теплоснабжения, указанном в столбцах 4 и 5"]
[null,null,null,"Реквизиты договоров о подключении к системам теплоснабжения, предусматривающих  в технических условиях обязанности сетевой организации по  выполнению мероприятий инвестиционного проекта в качестве мероприятий по подключению теплопотребляющих установок потребителей тепловой энергии от существующих тепловых сетей или источников тепловой энергии сетевой организации до точек подключения соответствующих теплопотребляющих установок потребителей",null,"Количество заключенных договоров о подключении к системам теплоснабжения, предусматривающих  в технических условиях обязанности сетевой организации по выполнению мероприятий инвестиционного проекта по строительству, реконструкции, модернизации и (или) техническому перевооружению источников тепловой энергии и (или) тепловых сетей в целях подключения теплопотребляющих установок потребителей тепловой энергии к системе теплоснабжения (за исключением мероприятий от существующих тепловых сетей или источников тепловой энергии сетевой организации до точек подключения соответствующих теплопотребляющих установок потребителей)",null,"Срок осуществления мероприятий по подключению, выполняемых в рамках инвестиционного проекта  в соответствии с договором о подключении к системам теплоснабжения","Планируемый в инвестиционной программе срок включения объектов капитального строительства для проведения пусконаладочных работ",null,"Планируемый в инвестиционной программе срок ввода  объектов теплоснабжения  в эксплуатацию, год","Планируемый в инвестиционной программе срок принятия законченных строительством объектов теплоснабжения к бухгалтерскому учету, год","Наименование  подключаемых объектов теплоснабжения","Наименование заявителя по договору о подключении к системам теплоснабжения объекта теплоснабжения","Мощность (нагрузка) подключенных объектов теплоснабжения  по документам, подтверждающим подключение объектов теплоснабжения к системе теплоснабжения, Гкал/ч",null,null,null,"всего, Гкал/ч (т/ч, мм)",null,"всего за вычетом мощности  наиболее крупного источника тепловой энергии (насосного агрегата), Гкал/ч (т/ч)",null,"Срок ввода объекта теплоснабжения в соответствии со схемой теплоснабжения поселения, городского округа или города федерального значения, утвержденной федеральным органом исполнительной власти или органом местного самоуправления, год","Реквизиты решения  федерального органа исполнительной власти, органа местного самоуправления об утверждении схемы теплоснабжения\n и соответствующих положений  схемы теплоснабжения"]
[null,null,null,"Дата","Номер",null,null,null,"год","квартал",null,null,null,null,"до","после",null,null,"До","После","До","После"]
[1,2,3,4,5,6,7,8,9,10,11,12,13,14,15,16,17,18,19,20,21,22,23,24,25]

{"sheet":"16","index":23,"n_rows":14,"n_cols":24,"rows_kept":14,"cut":false,"hidden":false,"merged":[[11,17,11,18],[11,19,11,20],[10,11,11,12],[10,7,10,10],[10,13,12,13],[10,14,12,14],[10,15,12,15],[10,16,12,16],[8,0,8,23],[11,7,12,7],[11,8,12,8],[11,9,12,9],[11,10,12,10],[10,0,12,0],[10,1,12,1],[10,2,12,2],[10,3,12,3],[10,4,12,4],[10,5,12,5],[9,0,9,21],[10,6,12,6],[10,17,10,20],[10,21,12,21],[10,22,11,23],[5,0,5,23],[6,0,6,23],[7,0,7,23],[3,0,3,23],[4,0,4,23]]}
[null,null,null,null,null,null,null,null,null,null,null,null,null,null,null,null,null,null,null,null,null,null,null,"Приложение  № 16"]
[null,null,null,null,null,null,null,null,null,null,null,null,null,null,null,null,null,null,null,null,null,null,null,"к приказу Минэнерго России"]
[null,null,null,null,null,null,null,null,null,null,null,null,null,null,null,null,null,null,null,null,null,null,null,"от «__» _____ 2015 г. №___"]
["Форма 16. Краткое описание инвестиционной программы. Обоснование необходимости реализации инвестиционных проектов"]
[]
["Инвестиционная программа АО \"ВЭС\""]
["                                              полное наименование субъекта электроэнергетики"]
[]
["Год раскрытия информации: 2020 год"]
[]
[" Номер группы инвести-ционных проектов","  Наименование инвестиционного проекта (группы инвестиционных проектов)","Идентифика-\nтор инвестицион-ного проекта","Год ввода в эксплуатацию объекта теплоснабжения, объекта по производству электрической энергии\n(до реализации инвестиционного проекта)","Показатель  оценки технического состояния","Показатель оценки последствий отказа","Год определения показателей оценки технического состояния и последствий отказа","Инвестиционным проектом предусматривается выполнение:",null,null,null,"Реализация инвестиционного проекта обсулавливается необходимостью выполнения требований:",null,"Инвестиционным проектом осуществляются  мероприятия по энергосбережению и повышению энергетической эффективности, предусмотренные утвержденной программой в области энергосбережения и повышения энергетической эффективности и\n обеспечивающие достижение утвержденных целевых показателей энергосбережения и повышения энергетической эффективности\n(+;-)","Инвестиционным проектом осуществляются  обязательные мероприятия по энергосбережению и повышению энергетической эффективности, предусмотренные утвержденной программой в области энергосбережения и повышения энергетической эффективности\n(+;-)\n","Наименование объекта теплоснабжения (объекта по производству электрической энергии), реконструкция (модернизация или техническое перевооружение) которого осуществляется в рамках инвестиционного проекта","Фактическая тепловая нагрузка (расход теплоносителя) объекта теплоснабжения, Гкал/ч (т/ч)","Мощность объекта теплоснабжения (производительность насосной станции, диаметр тепловых сетей) , строительство (реконструкция) которого осуществляется в рамках инвестиционного проекта",null,null,null,"Задачи, решаемые в рамках реализации инвестиционного проекта","Необходимость замены физически изношенного оборудования подтверждается  результатами:"]
[null,null,null,null,null,null,null,"противоаварийных мероприятий, предусмотренных актами о расследовании причин аварии (реквизиты актов)","предписаний федерального органа исполнительной власти, уполномоченного на осуществление федерального государственного энергетического надзора вынесенных по результатам расследования причин аварий (реквизиты предписаний)\n","иных  предписаний федерального органа исполнительной власти, уполномоченного на осуществление федерального государственного энергетического надзора (реквизиты предписаний)","предписаний иных органов государственной власти (указать наименования органов исполнительной власти)",null,null,null,null,null,null,"всего, Гкал/ч (т/ч, мм)",null,"всего за вычетом мощности  наиболее крупного источника тепловой энергии (насосного агрегата), Гкал/ч (т/ч)"]
[null,null,null,null,null,null,null,null,null,null,null,"законодательства Российской Федерации (+;-)","регламентов рынков электрической энергии  (+;-)",null,null,null,null,"До","После","До","После",null,"технического освидетельст-вования (+;-)","технического обследования (+;-)"]
[1,2,3,4,5,6,7,8,9,10,11,12,13,14,15,16,17,18,19,20,21,22,23,24]

{"sheet":"17","index":24,"n_rows":18,"n_cols":10,"rows_kept":18,"cut":false,"hidden":false,"merged":[[9,0,9,9],[7,0,7,9],[4,0,4,9],[6,0,6,9],[8,0,8,9],[11,2,12,2],[11,3,12,3],[11,1,12,1],[11,0,12,0],[11,4,11,9]]}
[null,null,null,null,null,null,null,null,null,"Приложение  № 17"]
[null,null,null,null,null,null,null,null,null,"к приказу Минэнерго России"]
[null,null,null,null,null,null,null,null,null,"от «__» _____ 2016 г. №___"]
[]
["Форма 17. Краткое описание инвестиционной программы. Индексы-дефляторы инвестиций в основной капитал (капитальных вложений)"]
[]
["Инвестиционная программа АО \"ВЭС\""]
["                                              полное наименование субъекта электроэнергетики"]
[]
["Год раскрытия информации: 2020 год"]
[]
["№ п/п","Наименование","Наименование документа - источника данных ","Реквизиты документа","Годы"]
[null,null,null,null," … год","… год","… год","… год","… год","…"]
[1,2,3,4,"5.1","5.2","5.3","5.4","5.5","…"]
[1,"Индексы- дефляторы, предусмотренные прогнозом социально-экономического развития Российской Федерации на среднесрочный период (в %, к предыдущему году)"]
[2,"Наименование индексов-дефляторов, отражающих повышение эффективности инвестиционной деятельности (в %, к предыдущему году)"]
[3,"Наименование индексов-дефляторов, отражающих повышение эффективности инвестиционной деятельности (в %, к предыдущему году)"]
["…","…"]

{"sheet":"18","index":25,"n_rows":19,"n_cols":8,"rows_kept":19,"cut":false,"hidden":false,"merged":[[13,0,14,0],[13,1,14,1],[13,2,14,2],[13,3,13,7],[4,0,4,7],[6,0,6,7],[7,0,7,7],[9,0,9,7],[11,0,11,7]]}
[null,null,null,null,null,null,null,"Приложение  № 18"]
[null,null,null,null,null,null,null,"к приказу Минэнерго России"]
[null,null,null,null,null,null,null,"от «__» _____ 2016 г. №___"]
[]
["Форма 18. Значения целевых показателей, установленные для целей формирования инвестиционной программы"]
[]
["Инвестиционная программа АО \"ВЭС\""]
["полное наименование субъекта электроэнергетики"]
[]
["Год раскрытия информации: 2020 год"]
[]
["Наименование  субъекта Российской Федерации - Свердловская область"]
["______________________________________________________________________________________________________________________________________________________________________________"]
["№ п/п","Наименование целевого показателя","Единицы измерения","Значения целевых показателей, годы"]
[null,null,null,2020,2021,2022,2023,2024]
[1,2,3,4,5,6,7,8]
[1,"Показатель средней продолжительности прекращений передачи электрической энергии (Пп)",null,3.9489999999999997E-2,3.9489999999999997E-2,3.9489999999999997E-2,3.9489999999999997E-2,3.9489999999999997E-2]
[2,"Показатель уровня качества осуществляемого технологического присоединения (Птпр)",null,5.5430000000000001,5.5430000000000001,5.5430000000000001,5.5430000000000001,5.5430000000000001]
[3,"Показатель уровня качества обслуживания потребителей услуг (Птсо)",null,0.89800000000000002,0.89800000000000002,0.89800000000000002,0.89800000000000002,0.89800000000000002]

{"sheet":"19","index":26,"n_rows":11,"n_cols":2,"rows_kept":11,"cut":false,"hidden":false,"merged":[[6,0,6,1],[4,0,4,1]]}
[null,"Приложение  № 19"]
[null,"к приказу Минэнерго России"]
[null,"от «__» _____ 2016 г. №___"]
[]
["Форма 19. Перечень субъектов Российской Федерации, на территории которых инвестиционной программой (проектом инвестиционной программы) организации по управлению единой национальной (общероссийской) электрической сетью предусматривается строительство (реконструкция, модернизация, техническое перевооружение) объектов электросетевого хозяйства, а также находятся объекты электросетевого хозяйства, входящие в единую национальную (общероссийскую) электрическую сеть и не принадлежащие на праве собственности указанной организации"]
[]
["Год раскрытия информации: 2020 год"]
[]
["№ п/п","Наименование субъекта Российской Федерации "]
[1,2]
[1,"Свердловская область"]